Workbook

Sheet Simulación Cliente
D4: SIMULADOR HIPOTECARIO
V6: Porcentaje %
V7: Valor
D8: Valor del Inmueble | E8: 2145000
D9: Valor Cuota Inicial | E9: 511582.5
D10: Valor Asegurable aproximado | E10: =0.75*E8 -> 1608750 | F10: Se usa como aproximación el 75% del valor del inmueble | W10: SD. Exonerado | X10: 0
D11: Bono Buen Pagador | E11: NO | F11: =IF(E11="NO",0,7500) -> 0
D12: Bono Verde | E12: NO | F12: =IF(E12="NO",0,5400) -> 0
D13: % Cuota Inicial | E13: =E9/$E$8 -> 0.2385
D14: Monto a Financiar | E14: =E8-E9-F11-F12 -> 1633417.5 | Q14: Columna1 | R14: Columna2 | W14: Columna1 | X14: Columna2
Q15: Seguro Desgravamen sin retorno Titular | R15: 0.03 | W15: SD. Exonerado | X15: 0
D16: Plazo (meses) | E16: 240 | Q16: Seguro Desgravamen con retorno Titular | R16: 0.051 | W16: Endosado | X16: 0
D17: Seg. Desgravamen (% mensual) | E17: Seguro Desgravamen con retorno Titular + Cónyuge | F17: =+VLOOKUP(E17,$Q$10:$R$47,2,0)/100 -> 0.00102 | Q17: Seguro Desgravamen sin retorno Titular + Cónyuge | R17: 0.06 | W17: SR Titular Premium | X17: 0.025
D18: Seg. Del Bien (% mensual) | E18: Seguro del Bien Hipotecario | F18: =+VLOOKUP(E18,$W$52:$X$53,2,0)/100 -> 0.00028 | Q18: Seguro Desgravamen con retorno Titular + Cónyuge | R18: 0.102 | W18: CR Titular Premium | X18: 0.047
D19: Portes | E19: 0 | Q19: Seguro Desgravamen sin retorno Titular c/sobretasa | R19: 0.057 | W19: SR Titular + Cony. Premium | X19: 0.0425
D20: TEA (Tasa efectiva anual) | E20: 0.13 | Q20: Seguro Desgravamen con retorno Titular c/sobretasa | R20: 0.102 | W20: CR Titular + Cony. Premium | X20: 0.0799
D21: TCEA (Tasa de costo efectivo anual) | E21: 0.1480154135 | Q21: Seguro Desgravamen sin retorno Titular + Cónyuge c/sobretasa | R21: 0.09 | W21: SR SD. Hipotecario CV/BF Titular CAMPAØA | X21: 0.0285
Q22: Seguro Desgravamen con retorno Titular + Cónyuge c/sobretasa | R22: 0.153 | W22: CR SD. Hipotecario CV/BF Titular CAMPAØA | X22: 0.0485
I23: Cuota Doble | Q23: SD. Exonerado | R23: 0 | W23: SR SD. Hipotecario CV/BF Tit.+ Cony.CAMP | X23: 0.0546
D24: Valor Cuota Simple | E24: =+'Simulador Detalle'!$C$17 -> 20409.31104 | G24: Valor Cuota con cuotas dobles | H24: =+'Simulador Detalle'!$Y$17 -> 17465.02404 | I24: =+H24*2 -> 34930.04808 | Q24: Endosado | R24: 0 | W24: CR SD. Hipotecario CV/BF Tit.+ Cony.CAMP | X24: 0.0928
D25: Valor Seg. Desgravamen (promedio mensual) | E25: =+AVERAGE('Simulador Detalle'!$I$22:$I$381) -> 1191.632872 | G25: Valor Seg. Desgravamen (promedio mensual) | H25: =+AVERAGE('Simulador Detalle'!$AE$22:$AE$381) -> 1188.602475 | W25: SR Desgravamen TIT Sobretasa (100%) | X25: 0.057
D26: Valor Seg. Del Bien (mensual) | E26: =+'Simulador Detalle'!$J$22 -> 450.45 | G26: Valor Seg. Del Bien (mensual) | H26: =+'Simulador Detalle'!$AF$22 -> 450.45 | W26: CR Desgravamen TIT Sobretasa (100%) | X26: 0.0969
W27: SR Desgravamen TIT + CONY Sobretasa (100 | X27: 0.0819
W28: CR Desgravamen TIT + CONY Sobretasa (100 | X28: 0.1392
W29: SR Degravamen TIT Sobretasa 50% | X29: 0.0428
D30: Simulaciones adicionales | W30: CR Degravamen TIT Sobretasa 50% | X30: 0.0728
D31: Plazo | E31: Valor Cuota Simple | F31: Valor Cuota con cuotas dobles | W31: SR Degravamen TIT Sobretasa(50%)+CONY | X31: 0.0683
D32: 180 meses | E32: =+'Simulador Detalle'!$AP$17 -> 21876.0844 | F32: =+'Simulador Detalle'!$BG$17 -> 18720.19633 | W32: CR Degravamen TIT Sobretasa(50%)+CONY | X32: 0.1161
D33: 240 meses | E33: =+'Simulador Detalle'!$BX$17 -> 20409.31104 | F33: =+'Simulador Detalle'!$CO$17 -> 17465.02404 | W33: SR Desgravamen TIT+ CONY Sobretasa (50%) | X33: 0.0683
I34: =+TODAY() -> 2023-10-31 | W34: CR Desgravamen TIT+ CONY Sobretasa (50%) | X34: 0.11
W35: SR Desgravamen TIT Sobretasa(100%)+CONY | X35: 0.0819
W36: CR Desgravamen TIT Sobretasa(100%)+CONY | X36: 0.13
D37: Importante: | W37: SR Desgravamen (TIT+CONY)Sobretasa (50%) | X37: 0.0819
D38: - Cargos mensuales que se incluyen: Seguro de desgravamen individual CARDIF BNP PARIBAS (sobre el monto del crédito adeudado a la fecha) y Seguro del bien Mapfre (sobre el valor asegurable). - Valores aproximados y referenciales. - Los términos y condiciones presentados son indicativos y vigentes en la medida que no ocurra cambios sustantivos en el mercado que afecten las condiciones existentes a la fecha de la presente propuesta. - Crédito sujeto a evaluación crediticia. | W38: CR Desgravamen (TIT+CONY)Sobretasa (50%) | X38: 0.1392
W39: SR Desgravamen (TIT+CONY ) Sobretasa (10 | X39: 0.1092
W40: CR Desgravamen (TIT+CONY ) Sobretasa (10 | X40: 0.1856
W41: SR SD Titul.Sobretasa100%+Cony.Sobretasa | X41: 0.0956
W42: CR SD Titul.Sobretasa100%+Cony.Sobretasa | X42: 0.1625
W43: SR SD Titul.Sobretasa50%+Cony.Sobretasa1 | X43: 0.0956
V44: Colaborador | W44: CR SD Titul.Sobretasa50%+Cony.Sobretasa1 | X44: 0.1625
V45: Colaborador | W45: CR Desgravamen TIT Sobretasa(100%)+CONY | X45: 0.13
V46: Colaborador | W46: CR Desgravamen (TIT+CONY)Sobretasa (50%) | X46: 0.1392
W47: CR SD. HIPOT. WP(Tit + Cony)Sobretasa (N | X47: 0.1392
W48: CR Desgravamen TIT + CONY Sobretasa (100 | X48: 0.1392
W49: CR SD Titul.Sobretasa50%+Cony.Sobretasa1 | X49: 0.1625
W50: CR SD Titul.Sobretasa100%+Cony.Sobretasa | X50: 0.1625
V51: CV | W51: CR Desgravamen (TIT+CONY ) Sobretasa (10 | X51: 0.18
V52: CV | W52: Seguro del Bien Hipotecario | X52: 0.028
V53: CV | W53: Seguro del Bien Exonerado | X53: 0
V54: LDGH

Sheet Simulador Detalle (hidden)
B1: simulacion con Cuota simple | X1: simulacion con CD | AO1: simulacion a 180 | BF1: simulacion a 180 con CD | BW1: simulacion a 240 | CN1: simulacion a 240 con CD
B3: MAF | C3: =+'Simulación Cliente'!$E$14 -> 1633417.5 | X3: MAF | Y3: =+'Simulación Cliente'!$E$14 -> 1633417.5 | AO3: MAF | AP3: =+'Simulación Cliente'!$E$14 -> 1633417.5 | BF3: MAF | BG3: =+'Simulación Cliente'!$E$14 -> 1633417.5 | BW3: MAF | BX3: =+'Simulación Cliente'!$E$14 -> 1633417.5 | CN3: MAF | CO3: =+'Simulación Cliente'!$E$14 -> 1633417.5
B4: Monto del Bien | C4: =+'Simulación Cliente'!$E$8 -> 2145000 | D4: ='Simulación Cliente'!$E$10 -> 1608750 | X4: Monto del Bien | Y4: =+'Simulación Cliente'!$E$8 -> 2145000 | Z4: ='Simulación Cliente'!$E$10 -> 1608750 | AO4: Monto del Bien | AP4: =+'Simulación Cliente'!$E$8 -> 2145000 | AQ4: ='Simulación Cliente'!$E$10 -> 1608750 | BF4: Monto del Bien | BG4: =+'Simulación Cliente'!$E$8 -> 2145000 | BH4: ='Simulación Cliente'!$E$10 -> 1608750 | BW4: Monto del Bien | BX4: =+'Simulación Cliente'!$E$8 -> 2145000 | BY4: ='Simulación Cliente'!$E$10 -> 1608750 | CN4: Monto del Bien | CO4: =+'Simulación Cliente'!$E$8 -> 2145000 | CP4: ='Simulación Cliente'!$E$10 -> 1608750
B5: Moneda | C5: Soles | X5: Moneda | Y5: Soles | AO5: Moneda | AP5: Soles | BF5: Moneda | BG5: Soles | BW5: Moneda | BX5: Soles | CN5: Moneda | CO5: Soles
B6: Plazo | C6: =+'Simulación Cliente'!$E$16 -> 240 | X6: Plazo | Y6: =+'Simulación Cliente'!$E$16 -> 240 | AO6: Plazo | AP6: 180 | BF6: Plazo | BG6: 180 | BW6: Plazo | BX6: 240 | CN6: Plazo | CO6: 240
B7: Fecha de Desembolso | C7: =TODAY() -> 2023-10-31 | X7: Fecha de Desembolso | Y7: =TODAY() -> 2023-10-31 | AO7: Fecha de Desembolso | AP7: =TODAY() -> 2023-10-31 | BF7: Fecha de Desembolso | BG7: =TODAY() -> 2023-10-31 | BW7: Fecha de Desembolso | BX7: =TODAY() -> 2023-10-31 | CN7: Fecha de Desembolso | CO7: =TODAY() -> 2023-10-31
B8: Fecha de 1er Pago | C8: =EDATE(C7,1) -> 2023-11-30 | X8: Fecha de 1er Pago | Y8: =EDATE(Y7,1) -> 2023-11-30 | AO8: Fecha de 1er Pago | AP8: =EDATE(AP7,1) -> 2023-11-30 | BF8: Fecha de 1er Pago | BG8: =EDATE(BG7,1) -> 2023-11-30 | BW8: Fecha de 1er Pago | BX8: =EDATE(BX7,1) -> 2023-11-30 | CN8: Fecha de 1er Pago | CO8: =EDATE(CO7,1) -> 2023-11-30
B9: Cuota Julio | C9: 1 | X9: Cuota Julio | Y9: 2 | AO9: Cuota Julio | AP9: 1 | BF9: Cuota Julio | BG9: 2 | BW9: Cuota Julio | BX9: 1 | CN9: Cuota Julio | CO9: 2
B10: Cuota Diciembre | C10: 1 | X10: Cuota Diciembre | Y10: 2 | AO10: Cuota Diciembre | AP10: 1 | BF10: Cuota Diciembre | BG10: 2 | BW10: Cuota Diciembre | BX10: 1 | CN10: Cuota Diciembre | CO10: 2
B11: TEA | C11: =+'Simulación Cliente'!$E$20 -> 0.13 | X11: TEA | Y11: =+'Simulación Cliente'!$E$20 -> 0.13 | AO11: TEA | AP11: =+'Simulación Cliente'!$E$20 -> 0.13 | BF11: TEA | BG11: =+'Simulación Cliente'!$E$20 -> 0.13 | BW11: TEA | BX11: =+'Simulación Cliente'!$E$20 -> 0.13 | CN11: TEA | CO11: =+'Simulación Cliente'!$E$20 -> 0.13
B12: Seguro de Desgravamen | C12: =+'Simulación Cliente'!$F$17 -> 0.00102 | X12: Seguro de Desgravamen | Y12: =+'Simulación Cliente'!$F$17 -> 0.00102 | AO12: Seguro de Desgravamen | AP12: =+'Simulación Cliente'!$F$17 -> 0.00102 | BF12: Seguro de Desgravamen | BG12: =+'Simulación Cliente'!$F$17 -> 0.00102 | BW12: Seguro de Desgravamen | BX12: =+'Simulación Cliente'!$F$17 -> 0.00102 | CN12: Seguro de Desgravamen | CO12: =+'Simulación Cliente'!$F$17 -> 0.00102
B13: TCEA | C13: =(1+(((1+C11)^(30/360)-1)+C12+C16))^12-1 -> 0.1437673318 | X13: TCEA | Y13: =(1+(((1+Y11)^(30/360)-1)+Y12+Y16))^12-1 -> 0.1437673318 | AO13: TCEA | AP13: =(1+(((1+AP11)^(30/360)-1)+AP12+AP16))^12-1 -> 0.1437673318 | BF13: TCEA | BG13: =(1+(((1+BG11)^(30/360)-1)+BG12+BG16))^12-1 -> 0.1437673318 | BW13: TCEA | BX13: =(1+(((1+BX11)^(30/360)-1)+BX12+BX16))^12-1 -> 0.1437673318 | CN13: TCEA | CO13: =(1+(((1+CO11)^(30/360)-1)+CO12+CO16))^12-1 -> 0.1437673318
B14: Seguro del Bien | C14: =+'Simulación Cliente'!$F$18 -> 0.00028 | X14: Seguro del Bien | Y14: =+'Simulación Cliente'!$F$18 -> 0.00028 | AO14: Seguro del Bien | AP14: =+'Simulación Cliente'!$F$18 -> 0.00028 | BF14: Seguro del Bien | BG14: =+'Simulación Cliente'!$F$18 -> 0.00028 | BW14: Seguro del Bien | BX14: =+'Simulación Cliente'!$F$18 -> 0.00028 | CN14: Seguro del Bien | CO14: =+'Simulación Cliente'!$F$18 -> 0.00028
B15: Portes | C15: =+'Simulación Cliente'!$E$19 -> 0 | X15: Portes | Y15: =+'Simulación Cliente'!$E$19 -> 0 | AO15: Portes | AP15: =+'Simulación Cliente'!$E$19 -> 0 | BF15: Portes | BG15: =+'Simulación Cliente'!$E$19 -> 0 | BW15: Portes | BX15: =+'Simulación Cliente'!$E$19 -> 0 | CN15: Portes | CO15: =+'Simulación Cliente'!$E$19 -> 0
B16: % Portes | C16: =C15/C3 -> 0 | X16: % Portes | Y16: =Y15/Y3 -> 0 | AO16: % Portes | AP16: =AP15/AP3 -> 0 | BF16: % Portes | BG16: =BG15/BG3 -> 0 | BW16: % Portes | BX16: =BX15/BX3 -> 0 | CN16: % Portes | CO16: =CO15/CO3 -> 0
B17: VALOR CUOTA | C17: =(C3+(C14*D4)*O20)/N20 -> 20409.31104 | X17: VALOR CUOTA | Y17: =(Y3+(Y14*Z4)*AK20)/AJ20 -> 17465.02404 | AO17: VALOR CUOTA | AP17: =(AP3+(AP14*AQ4)*BB20)/BA20 -> 21876.0844 | BF17: VALOR CUOTA | BG17: =(BG3+(BG14*BH4)*BS20)/BR20 -> 18720.19633 | BW17: VALOR CUOTA | BX17: =(BX3+(BX14*BY4)*CJ20)/CI20 -> 20409.31104 | CN17: VALOR CUOTA | CO17: =(CO3+(CO14*CP4)*DA20)/CZ20 -> 17465.02404
T19: ='Simulación Cliente'!E14-'Simulador Detalle'!T20 -> 0
N20: =SUM(N22:N381) -> 81.83921402 | O20: =SUM(O22:O381) -> 81.83921402 | T20: =SUM(T22:T381) -> 1633417.5 | AJ20: =SUM(AJ22:AJ381) -> 95.63582449 | AK20: =SUM(AK22:AK381) -> 81.83921402 | BA20: =SUM(BA22:BA381) -> 76.23659908 | BB20: =SUM(BB22:BB381) -> 76.23659908 | BR20: =SUM(BR22:BR381) -> 89.08871714 | BS20: =SUM(BS22:BS381) -> 76.23659908 | CI20: =SUM(CI22:CI381) -> 81.83921402 | CJ20: =SUM(CJ22:CJ381) -> 81.83921402 | CZ20: =SUM(CZ22:CZ381) -> 95.63582449 | DA20: =SUM(DA22:DA381) -> 81.83921402
B21: N° Cuota | C21: Fecha de pago | D21: Días | E21: Dias Acumulados | F21: Saldo Inicial | G21: Amortización | H21: Interés | I21: Seguro Desgravamen | J21: Seguro del Bien | K21: Portes | L21: VALOR CUOTA | M21: Saldo Final | N21: Factor Cronograma | O21: Factor Cronograma 2 | Q21: Vector i,1 Cuota | R21: Vector i,2 Días Acum | S21: Vector i,3 Factor | T21: Vector i,4 Calculo VA | X21: N° Cuota | Y21: Fecha de pago | Z21: Días | AA21: Dias Acumulados | AB21: Saldo Inicial | AC21: Amortización | AD21: Interés | AE21: Seguro Desgravamen | AF21: Seguro del Bien | AG21: Portes | AH21: VALOR CUOTA | AI21: Saldo Final | AJ21: Factor Cronograma | AK21: Factor Cronograma 2 | AO21: N° Cuota | AP21: Fecha de pago | AQ21: Días | AR21: Dias Acumulados | AS21: Saldo Inicial | AT21: Amortización | AU21: Interés | AV21: Seguro Desgravamen | AW21: Seguro del Bien | AX21: Portes | AY21: VALOR CUOTA | AZ21: Saldo Final | BA21: Factor Cronograma | BB21: Factor Cronograma 2 | BF21: N° Cuota | BG21: Fecha de pago | BH21: Días | BI21: Dias Acumulados | BJ21: Saldo Inicial | BK21: Amortización | BL21: Interés | BM21: Seguro Desgravamen | BN21: Seguro del Bien | BO21: Portes | BP21: VALOR CUOTA | BQ21: Saldo Final | BR21: Factor Cronograma | BS21: Factor Cronograma 2 | BW21: N° Cuota | BX21: Fecha de pago | BY21: Días | BZ21: Dias Acumulados | CA21: Saldo Inicial | CB21: Amortización | CC21: Interés | CD21: Seguro Desgravamen | CE21: Seguro del Bien | CF21: Portes | CG21: VALOR CUOTA | CH21: Saldo Final | CI21: Factor Cronograma | CJ21: Factor Cronograma 2 | CN21: N° Cuota | CO21: Fecha de pago | CP21: Días | CQ21: Dias Acumulados | CR21: Saldo Inicial | CS21: Amortización | CT21: Interés | CU21: Seguro Desgravamen | CV21: Seguro del Bien | CW21: Portes | CX21: VALOR CUOTA | CY21: Saldo Final | CZ21: Factor Cronograma | DA21: Factor Cronograma 2
B22: 1 | C22: =C8 -> 2023-11-30 | D22: =C22-C7 -> 30 | E22: =D22 -> 30 | F22: =C3 -> 1633417.5 | G22: =IF(B22>C$6,"",L22-K22-J22-I22-H22) -> 1571.734466 | H22: =IF(B22>C$6,"",((1+C$11)^(D22/360)-1)*F22) -> 16721.04072 | I22: =IF(B22>C$6,"",((1+C$12)^(D22/30)-1)*F22) -> 1666.08585 | J22: =IF(B22>C$6,"",D$4*C$14) -> 450.45 | K22: =IF(B22>C$6,"",C$15) -> 0 | L22: =IF(B22>C$6,"",IF(B22=C$6,F22+H22+I22+J22+K22,IF(AND(C$9=2,MONTH(C22)=7),2*C$17,IF(AND(C$10=2,MONTH(C22)=12),2*C$17,C$17)))) -> 20409.31104 | M22: =IF(B22>C$6,"",F22-G22) -> 1631845.766 | N22: =IFERROR(IF(AND(MONTH(C22)=7,C$9=2),2/(1+C$13)^(E22/360),IF(AND(MONTH(C22)=12,C$10=2),2/(1+C$13)^(E22/360),1/(1+C$13)^(E22/360))),"") -> 0.9888684616 | O22: =IFERROR(1/(1+C$13)^(E22/360),"") -> 0.9888684616 | Q22: =IFERROR(G22+H22+I22+J22+K22,"") -> 20409.31104 | R22: =E22 -> 30 | S22: =IFERROR((1+'Simulación Cliente'!$E$21)^(R22/360),"") -> 1.011569306 | T22: =IFERROR(ROUND(Q22/S22,2),"") -> 20175.89 | X22: 1 | Y22: =Y8 -> 2023-11-30 | Z22: =Y22-Y7 -> 30 | AA22: =Z22 -> 30 | AB22: =Y3 -> 1633417.5 | AC22: =IF(X22>Y$6,"",AH22-AG22-AF22-AE22-AD22) -> -1372.552529 | AD22: =IF(X22>Y$6,"",((1+Y$11)^(Z22/360)-1)*AB22) -> 16721.04072 | AE22: =IF(X22>Y$6,"",((1+Y$12)^(Z22/30)-1)*AB22) -> 1666.08585 | AF22: =IF(X22>Y$6,"",Z$4*Y$14) -> 450.45 | AG22: =IF(X22>Y$6,"",Y$15) -> 0 | AH22: =IF(X22>Y$6,"",IF(X22=Y$6,AB22+AD22+AE22+AF22+AG22,IF(AND(Y$9=2,MONTH(Y22)=7),2*Y$17,IF(AND(Y$10=2,MONTH(Y22)=12),2*Y$17,Y$17)))) -> 17465.02404 | AI22: =IF(X22>Y$6,"",AB22-AC22) -> 1634790.053 | AJ22: =IFERROR(IF(AND(MONTH(Y22)=7,Y$9=2),2/(1+Y$13)^(AA22/360),IF(AND(MONTH(Y22)=12,Y$10=2),2/(1+Y$13)^(AA22/360),1/(1+Y$13)^(AA22/360))),"") -> 0.9888684616 | AK22: =IFERROR(1/(1+Y$13)^(AA22/360),"") -> 0.9888684616 | AO22: 1 | AP22: =AP8 -> 2023-11-30 | AQ22: =AP22-AP7 -> 30 | AR22: =AQ22 -> 30 | AS22: =AP3 -> 1633417.5 | AT22: =IF(AO22>AP$6,"",AY22-AX22-AW22-AV22-AU22) -> 3038.507832 | AU22: =IF(AO22>AP$6,"",((1+AP$11)^(AQ22/360)-1)*AS22) -> 16721.04072 | AV22: =IF(AO22>AP$6,"",((1+AP$12)^(AQ22/30)-1)*AS22) -> 1666.08585 | AW22: =IF(AO22>AP$6,"",AQ$4*AP$14) -> 450.45 | AX22: =IF(AO22>AP$6,"",AP$15) -> 0 | AY22: =IF(AO22>AP$6,"",IF(AO22=AP$6,AS22+AU22+AV22+AW22+AX22,IF(AND(AP$9=2,MONTH(AP22)=7),2*AP$17,IF(AND(AP$10=2,MONTH(AP22)=12),2*AP$17,AP$17)))) -> 21876.0844 | AZ22: =IF(AO22>AP$6,"",AS22-AT22) -> 1630378.992 | BA22: =IFERROR(IF(AND(MONTH(AP22)=7,AP$9=2),2/(1+AP$13)^(AR22/360),IF(AND(MONTH(AP22)=12,AP$10=2),2/(1+AP$13)^(AR22/360),1/(1+AP$13)^(AR22/360))),"") -> 0.9888684616 | BB22: =IFERROR(1/(1+AP$13)^(AR22/360),"") -> 0.9888684616 | BF22: 1 | BG22: =BG8 -> 2023-11-30 | BH22: =BG22-BG7 -> 30 | BI22: =BH22 -> 30 | BJ22: =BG3 -> 1633417.5 | BK22: =IF(BF22>BG$6,"",BP22-BO22-BN22-BM22-BL22) -> -117.3802354 | BL22: =IF(BF22>BG$6,"",((1+BG$11)^(BH22/360)-1)*BJ22) -> 16721.04072 | BM22: =IF(BF22>BG$6,"",((1+BG$12)^(BH22/30)-1)*BJ22) -> 1666.08585 | BN22: =IF(BF22>BG$6,"",BH$4*BG$14) -> 450.45 | BO22: =IF(BF22>BG$6,"",BG$15) -> 0 | BP22: =IF(BF22>BG$6,"",IF(BF22=BG$6,BJ22+BL22+BM22+BN22+BO22,IF(AND(BG$9=2,MONTH(BG22)=7),2*BG$17,IF(AND(BG$10=2,MONTH(BG22)=12),2*BG$17,BG$17)))) -> 18720.19633 | BQ22: =IF(BF22>BG$6,"",BJ22-BK22) -> 1633534.88 | BR22: =IFERROR(IF(AND(MONTH(BG22)=7,BG$9=2),2/(1+BG$13)^(BI22/360),IF(AND(MONTH(BG22)=12,BG$10=2),2/(1+BG$13)^(BI22/360),1/(1+BG$13)^(BI22/360))),"") -> 0.9888684616 | BS22: =IFERROR(1/(1+BG$13)^(BI22/360),"") -> 0.9888684616 | BW22: 1 | BX22: =BX8 -> 2023-11-30 | BY22: =BX22-BX7 -> 30 | BZ22: =BY22 -> 30 | CA22: =BX3 -> 1633417.5 | CB22: =IF(BW22>BX$6,"",CG22-CF22-CE22-CD22-CC22) -> 1571.734466 | CC22: =IF(BW22>BX$6,"",((1+BX$11)^(BY22/360)-1)*CA22) -> 16721.04072 | CD22: =IF(BW22>BX$6,"",((1+BX$12)^(BY22/30)-1)*CA22) -> 1666.08585 | CE22: =IF(BW22>BX$6,"",BY$4*BX$14) -> 450.45 | CF22: =IF(BW22>BX$6,"",BX$15) -> 0 | CG22: =IF(BW22>BX$6,"",IF(BW22=BX$6,CA22+CC22+CD22+CE22+CF22,IF(AND(BX$9=2,MONTH(BX22)=7),2*BX$17,IF(AND(BX$10=2,MONTH(BX22)=12),2*BX$17,BX$17)))) -> 20409.31104 | CH22: =IF(BW22>BX$6,"",CA22-CB22) -> 1631845.766 | CI22: =IFERROR(IF(AND(MONTH(BX22)=7,BX$9=2),2/(1+BX$13)^(BZ22/360),IF(AND(MONTH(BX22)=12,BX$10=2),2/(1+BX$13)^(BZ22/360),1/(1+BX$13)^(BZ22/360))),"") -> 0.9888684616 | CJ22: =IFERROR(1/(1+BX$13)^(BZ22/360),"") -> 0.9888684616 | CN22: 1 | CO22: =CO8 -> 2023-11-30 | CP22: =CO22-CO7 -> 30 | CQ22: =CP22 -> 30 | CR22: =CO3 -> 1633417.5 | CS22: =IF(CN22>CO$6,"",CX22-CW22-CV22-CU22-CT22) -> -1372.552529 | CT22: =IF(CN22>CO$6,"",((1+CO$11)^(CP22/360)-1)*CR22) -> 16721.04072 | CU22: =IF(CN22>CO$6,"",((1+CO$12)^(CP22/30)-1)*CR22) -> 1666.08585 | CV22: =IF(CN22>CO$6,"",CP$4*CO$14) -> 450.45 | CW22: =IF(CN22>CO$6,"",CO$15) -> 0 | CX22: =IF(CN22>CO$6,"",IF(CN22=CO$6,CR22+CT22+CU22+CV22+CW22,IF(AND(CO$9=2,MONTH(CO22)=7),2*CO$17,IF(AND(CO$10=2,MONTH(CO22)=12),2*CO$17,CO$17)))) -> 17465.02404 | CY22: =IF(CN22>CO$6,"",CR22-CS22) -> 1634790.053 | CZ22: =IFERROR(IF(AND(MONTH(CO22)=7,CO$9=2),2/(1+CO$13)^(CQ22/360),IF(AND(MONTH(CO22)=12,CO$10=2),2/(1+CO$13)^(CQ22/360),1/(1+CO$13)^(CQ22/360))),"") -> 0.9888684616 | DA22: =IFERROR(1/(1+CO$13)^(CQ22/360),"") -> 0.9888684616
B23: 2 | C23: =IF(B23>C$6,"",EDATE(C$22,B22)) -> 2023-12-30 | D23: =IF(B23>C$6,"",C23-C22) -> 30 | E23: =IFERROR(D23+E22,"") -> 60 | F23: =IF(B23>C$6,"",M22) -> 1631845.766 | G23: 1589.427237 | H23: =IF(B23>C$6,"",((1+C$11)^(D23/360)-1)*F23) -> 16704.95112 | I23: =IF(B23>C$6,"",((1+C$12)^(D23/30)-1)*F23) -> 1664.482681 | J23: =IF(B23>C$6,"",D$4*C$14) -> 450.45 | K23: 0 | L23: 20409.31104 | M23: =IF(B23>C$6,"",F23-G23) -> 1630256.338 | N23: =IFERROR(IF(AND(MONTH(C23)=7,C$9=2),2/(1+C$13)^(E23/360),IF(AND(MONTH(C23)=12,C$10=2),2/(1+C$13)^(E23/360),1/(1+C$13)^(E23/360))),"") -> 0.9778608344 | O23: =IFERROR(1/(1+C$13)^(E23/360),"") -> 0.9778608344 | Q23: =IFERROR(G23+H23+I23+J23+K23,"") -> 20409.31104 | R23: =E23 -> 60 | S23: =IFERROR((1+'Simulación Cliente'!$E$21)^(R23/360),"") -> 1.023272462 | T23: =IFERROR(ROUND(Q23/S23,2),"") -> 19945.14 | X23: 2 | Y23: =IF(X23>Y$6,"",EDATE(Y$22,X22)) -> 2023-12-30 | Z23: =IF(X23>Y$6,"",Y23-Y22) -> 30 | AA23: =IFERROR(Z23+AA22,"") -> 60 | AB23: =IF(X23>Y$6,"",AI22) -> 1634790.053 | AC23: =IF(X23>Y$6,"",AH23-AG23-AF23-AE23-AD23) -> 16077.0209 | AD23: =IF(X23>Y$6,"",((1+Y$11)^(Z23/360)-1)*AB23) -> 16735.09133 | AE23: =IF(X23>Y$6,"",((1+Y$12)^(Z23/30)-1)*AB23) -> 1667.485854 | AF23: =IF(X23>Y$6,"",Z$4*Y$14) -> 450.45 | AG23: 0 | AH23: 34930.04808 | AI23: 1618713.032 | AJ23: =IFERROR(IF(AND(MONTH(Y23)=7,Y$9=2),2/(1+Y$13)^(AA23/360),IF(AND(MONTH(Y23)=12,Y$10=2),2/(1+Y$13)^(AA23/360),1/(1+Y$13)^(AA23/360))),"") -> 1.955721669 | AK23: =IFERROR(1/(1+Y$13)^(AA23/360),"") -> 0.9778608344 | AO23: 2 | AP23: =IF(AO23>AP$6,"",EDATE(AP$22,AO22)) -> 2023-12-30 | AQ23: =IF(AO23>AP$6,"",AP23-AP22) -> 30 | AR23: =IFERROR(AQ23+AR22,"") -> 60 | AS23: =IF(AO23>AP$6,"",AZ22) -> 1630378.992 | AT23: 3072.711842 | AU23: =IF(AO23>AP$6,"",((1+AP$11)^(AQ23/360)-1)*AS23) -> 16689.93599 | AV23: =IF(AO23>AP$6,"",((1+AP$12)^(AQ23/30)-1)*AS23) -> 1662.986572 | AW23: =IF(AO23>AP$6,"",AQ$4*AP$14) -> 450.45 | AX23: 0 | AY23: 21876.0844 | AZ23: 1627306.28 | BA23: =IFERROR(IF(AND(MONTH(AP23)=7,AP$9=2),2/(1+AP$13)^(AR23/360),IF(AND(MONTH(AP23)=12,AP$10=2),2/(1+AP$13)^(AR23/360),1/(1+AP$13)^(AR23/360))),"") -> 0.9778608344 | BB23: =IFERROR(1/(1+AP$13)^(AR23/360),"") -> 0.9778608344 | BF23: 2 | BG23: =IF(BF23>BG$6,"",EDATE(BG$22,BF22)) -> 2023-12-30 | BH23: =IF(BF23>BG$6,"",BG23-BG22) -> 30 | BI23: =IFERROR(BH23+BI22,"") -> 60 | BJ23: =IF(BF23>BG$6,"",BQ22) -> 1633534.88 | BK23: 18601.49477 | BL23: =IF(BF23>BG$6,"",((1+BG$11)^(BH23/360)-1)*BJ23) -> 16722.24232 | BM23: 1666.205578 | BN23: =IF(BF23>BG$6,"",BH$4*BG$14) -> 450.45 | BO23: 0 | BP23: 37440.39267 | BQ23: 1614933.385 | BR23: =IFERROR(IF(AND(MONTH(BG23)=7,BG$9=2),2/(1+BG$13)^(BI23/360),IF(AND(MONTH(BG23)=12,BG$10=2),2/(1+BG$13)^(BI23/360),1/(1+BG$13)^(BI23/360))),"") -> 1.955721669 | BS23: =IFERROR(1/(1+BG$13)^(BI23/360),"") -> 0.9778608344 | BW23: 2 | BX23: =IF(BW23>BX$6,"",EDATE(BX$22,BW22)) -> 2023-12-30 | BY23: =IF(BW23>BX$6,"",BX23-BX22) -> 30 | BZ23: =IFERROR(BY23+BZ22,"") -> 60 | CA23: =IF(BW23>BX$6,"",CH22) -> 1631845.766 | CB23: 1589.427237 | CC23: =IF(BW23>BX$6,"",((1+BX$11)^(BY23/360)-1)*CA23) -> 16704.95112 | CD23: 1664.482681 | CE23: =IF(BW23>BX$6,"",BY$4*BX$14) -> 450.45 | CF23: 0 | CG23: 20409.31104 | CH23: 1630256.338 | CI23: =IFERROR(IF(AND(MONTH(BX23)=7,BX$9=2),2/(1+BX$13)^(BZ23/360),IF(AND(MONTH(BX23)=12,BX$10=2),2/(1+BX$13)^(BZ23/360),1/(1+BX$13)^(BZ23/360))),"") -> 0.9778608344 | CJ23: =IFERROR(1/(1+BX$13)^(BZ23/360),"") -> 0.9778608344 | CN23: 2 | CO23: =IF(CN23>CO$6,"",EDATE(CO$22,CN22)) -> 2023-12-30 | CP23: =IF(CN23>CO$6,"",CO23-CO22) -> 30 | CQ23: =IFERROR(CP23+CQ22,"") -> 60 | CR23: =IF(CN23>CO$6,"",CY22) -> 1634790.053 | CS23: =IF(CN23>CO$6,"",CX23-CW23-CV23-CU23-CT23) -> 16077.0209 | CT23: =IF(CN23>CO$6,"",((1+CO$11)^(CP23/360)-1)*CR23) -> 16735.09133 | CU23: 1667.485854 | CV23: =IF(CN23>CO$6,"",CP$4*CO$14) -> 450.45 | CW23: 0 | CX23: =IF(CN23>CO$6,"",IF(CN23=CO$6,CR23+CT23+CU23+CV23+CW23,IF(AND(CO$9=2,MONTH(CO23)=7),2*CO$17,IF(AND(CO$10=2,MONTH(CO23)=12),2*CO$17,CO$17)))) -> 34930.04808 | CY23: 1618713.032 | CZ23: =IFERROR(IF(AND(MONTH(CO23)=7,CO$9=2),2/(1+CO$13)^(CQ23/360),IF(AND(MONTH(CO23)=12,CO$10=2),2/(1+CO$13)^(CQ23/360),1/(1+CO$13)^(CQ23/360))),"") -> 1.955721669 | DA23: =IFERROR(1/(1+CO$13)^(CQ23/360),"") -> 0.9778608344
B24: 3 | C24: =IF(B24>C$6,"",EDATE(C$22,B23)) -> 2024-01-30 | D24: =IF(B24>C$6,"",C24-C23) -> 31 | E24: 91 | F24: 1630256.338 | G24: =IF(B24>C$6,"",L24-K24-J24-I24-H24) -> 992.6393302 | H24: =IF(B24>C$6,"",((1+C$11)^(D24/360)-1)*F24) -> 17247.90232 | I24: 1718.319382 | J24: 450.45 | K24: 0 | L24: 20409.31104 | M24: 1629263.699 | N24: 0.9666149968 | O24: 0.9666149968 | Q24: 20409.31104 | R24: 91 | S24: =IFERROR((1+'Simulación Cliente'!$E$21)^(R24/360),"") -> 1.035507983 | T24: 19709.47 | X24: 3 | Y24: 2024-01-30 | Z24: =IF(X24>Y$6,"",Y24-Y23) -> 31 | AA24: 91 | AB24: 1618713.032 | AC24: =IF(X24>Y$6,"",AH24-AG24-AF24-AE24-AD24) -> -1817.354113 | AD24: =IF(X24>Y$6,"",((1+Y$11)^(Z24/360)-1)*AB24) -> 17125.77562 | AE24: 1706.15253 | AF24: 450.45 | AG24: 0 | AH24: 17465.02404 | AI24: 1620530.386 | AJ24: 0.9666149968 | AK24: 0.9666149968 | AO24: 3 | AP24: 2024-01-30 | AQ24: =IF(AO24>AP$6,"",AP24-AP23) -> 31 | AR24: 91 | AS24: 1627306.28 | AT24: =IF(AO24>AP$6,"",AY24-AX24-AW24-AV24-AU24) -> 2493.733344 | AU24: =IF(AO24>AP$6,"",((1+AP$11)^(AQ24/360)-1)*AS24) -> 17216.69109 | AV24: =IF(AO24>AP$6,"",((1+AP$12)^(AQ24/30)-1)*AS24) -> 1715.209968 | AW24: 450.45 | AX24: 0 | AY24: 21876.0844 | AZ24: 1624812.547 | BA24: 0.9666149968 | BB24: 0.9666149968 | BF24: 3 | BG24: 2024-01-30 | BH24: =IF(BF24>BG$6,"",BG24-BG23) -> 31 | BI24: 91 | BJ24: 1614933.385 | BK24: =IF(BF24>BG$6,"",BP24-BO24-BN24-BM24-BL24) -> -518.2098352 | BL24: =IF(BF24>BG$6,"",((1+BG$11)^(BH24/360)-1)*BJ24) -> 17085.78745 | BM24: 1702.168715 | BN24: 450.45 | BO24: 0 | BP24: 18720.19633 | BQ24: 1615451.595 | BR24: 0.9666149968 | BS24: 0.9666149968 | BW24: 3 | BX24: 2024-01-30 | BY24: =IF(BW24>BX$6,"",BX24-BX23) -> 31 | BZ24: 91 | CA24: 1630256.338 | CB24: =IF(BW24>BX$6,"",CG24-CF24-CE24-CD24-CC24) -> 992.6393302 | CC24: =IF(BW24>BX$6,"",((1+BX$11)^(BY24/360)-1)*CA24) -> 17247.90232 | CD24: 1718.319382 | CE24: 450.45 | CF24: 0 | CG24: 20409.31104 | CH24: 1629263.699 | CI24: 0.9666149968 | CJ24: 0.9666149968 | CN24: 3 | CO24: 2024-01-30 | CP24: =IF(CN24>CO$6,"",CO24-CO23) -> 31 | CQ24: 91 | CR24: 1618713.032 | CS24: =IF(CN24>CO$6,"",CX24-CW24-CV24-CU24-CT24) -> -1817.354113 | CT24: =IF(CN24>CO$6,"",((1+CO$11)^(CP24/360)-1)*CR24) -> 17125.77562 | CU24: 1706.15253 | CV24: 450.45 | CW24: 0 | CX24: 17465.02404 | CY24: 1620530.386 | CZ24: 0.9666149968 | DA24: 0.9666149968
B25: 4 | C25: 2024-02-29 | D25: 30 | E25: 121 | F25: 1629263.699 | G25: 1618.493158 | H25: 16678.5189 | I25: 1661.848973 | J25: 450.45 | K25: 0 | L25: 20409.31104 | M25: 1627645.206 | N25: 0.9558550849 | O25: 0.9558550849 | Q25: 20409.31104 | R25: 121 | S25: =IFERROR((1+'Simulación Cliente'!$E$21)^(R25/360),"") -> 1.047488092 | T25: 19484.05 | X25: 4 | Y25: 2024-02-29 | Z25: =IF(X25>Y$6,"",Y25-Y24) -> 30 | AA25: 121 | AB25: 1620530.386 | AC25: =IF(X25>Y$6,"",AH25-AG25-AF25-AE25-AD25) -> -1227.484289 | AD25: 16589.11734 | AE25: 1652.940993 | AF25: 450.45 | AG25: 0 | AH25: 17465.02404 | AI25: 1621757.87 | AJ25: 0.9558550849 | AK25: 0.9558550849 | AO25: 4 | AP25: 2024-02-29 | AQ25: =IF(AO25>AP$6,"",AP25-AP24) -> 30 | AR25: 121 | AS25: 1624812.547 | AT25: =IF(AO25>AP$6,"",AY25-AX25-AW25-AV25-AU25) -> 3135.372449 | AU25: 16632.95315 | AV25: 1657.308798 | AW25: 450.45 | AX25: 0 | AY25: 21876.0844 | AZ25: 1621677.175 | BA25: 0.9558550849 | BB25: 0.9558550849 | BF25: 4 | BG25: 2024-02-29 | BH25: =IF(BF25>BG$6,"",BG25-BG24) -> 30 | BI25: 121 | BJ25: 1615451.595 | BK25: =IF(BF25>BG$6,"",BP25-BO25-BN25-BM25-BL25) -> 84.85915756 | BL25: 16537.12655 | BM25: 1647.760627 | BN25: 450.45 | BO25: 0 | BP25: 18720.19633 | BQ25: 1615366.736 | BR25: 0.9558550849 | BS25: 0.9558550849 | BW25: 4 | BX25: 2024-02-29 | BY25: =IF(BW25>BX$6,"",BX25-BX24) -> 30 | BZ25: 121 | CA25: 1629263.699 | CB25: =IF(BW25>BX$6,"",CG25-CF25-CE25-CD25-CC25) -> 1618.493158 | CC25: 16678.5189 | CD25: 1661.848973 | CE25: 450.45 | CF25: 0 | CG25: 20409.31104 | CH25: 1627645.206 | CI25: 0.9558550849 | CJ25: 0.9558550849 | CN25: 4 | CO25: 2024-02-29 | CP25: =IF(CN25>CO$6,"",CO25-CO24) -> 30 | CQ25: 121 | CR25: 1620530.386 | CS25: =IF(CN25>CO$6,"",CX25-CW25-CV25-CU25-CT25) -> -1227.484289 | CT25: 16589.11734 | CU25: 1652.940993 | CV25: 450.45 | CW25: 0 | CX25: 17465.02404 | CY25: 1621757.87 | CZ25: 0.9558550849 | DA25: 0.9558550849
B26: 5 | C26: 2024-03-30 | D26: 30 | E26: 151 | F26: 1627645.206 | G26: 1636.712284 | H26: 16661.95064 | I26: 1660.19811 | J26: 450.45 | K26: 0 | L26: 20409.31104 | M26: 1626008.494 | N26: 0.9452149474 | O26: 0.9452149474 | Q26: 20409.31104 | R26: 151 | S26: =IFERROR((1+'Simulación Cliente'!$E$21)^(R26/360),"") -> 1.059606802 | T26: 19261.21 | X26: 5 | Y26: 2024-03-30 | Z26: 30 | AA26: 151 | AB26: 1621757.87 | AC26: -1241.301889 | AD26: 16601.6829 | AE26: 1654.193027 | AF26: 450.45 | AG26: 0 | AH26: 17465.02404 | AI26: 1622999.172 | AJ26: 0.9452149474 | AK26: 0.9452149474 | AO26: 5 | AP26: 2024-03-30 | AQ26: 30 | AR26: 151 | AS26: 1621677.175 | AT26: 3170.666849 | AU26: 16600.85683 | AV26: 1654.110718 | AW26: 450.45 | AX26: 0 | AY26: 21876.0844 | AZ26: 1618506.508 | BA26: 0.9452149474 | BB26: 0.9452149474 | BF26: 5 | BG26: 2024-03-30 | BH26: 30 | BI26: 151 | BJ26: 1615366.736 | BK26: 85.81440389 | BL26: 16536.25786 | BM26: 1647.674071 | BN26: 450.45 | BO26: 0 | BP26: 18720.19633 | BQ26: 1615280.922 | BR26: 0.9452149474 | BS26: 0.9452149474 | BW26: 5 | BX26: 2024-03-30 | BY26: 30 | BZ26: 151 | CA26: 1627645.206 | CB26: 1636.712284 | CC26: 16661.95064 | CD26: 1660.19811 | CE26: 450.45 | CF26: 0 | CG26: 20409.31104 | CH26: 1626008.494 | CI26: 0.9452149474 | CJ26: 0.9452149474 | CN26: 5 | CO26: 2024-03-30 | CP26: 30 | CQ26: 151 | CR26: 1621757.87 | CS26: -1241.301889 | CT26: 16601.6829 | CU26: 1654.193027 | CV26: 450.45 | CW26: 0 | CX26: 17465.02404 | CY26: 1622999.172 | CZ26: 0.9452149474 | DA26: 0.9452149474
B27: 6 | C27: 2024-04-30 | D27: 31 | E27: 182 | F27: 1626008.494 | G27: 1042.058286 | H27: 17202.96067 | I27: 1713.842077 | J27: 450.45 | K27: 0 | L27: 20409.31104 | M27: 1624966.435 | N27: 0.9343445521 | O27: 0.9343445521 | Q27: 20409.31104 | R27: 182 | S27: =IFERROR((1+'Simulación Cliente'!$E$21)^(R27/360),"") -> 1.072276782 | T27: 19033.62 | X27: 6 | Y27: 2024-04-30 | Z27: 31 | AA27: 182 | AB27: 1622999.172 | AC27: -1867.218595 | AD27: 17171.12244 | AE27: 1710.670199 | AF27: 450.45 | AG27: 0 | AH27: 17465.02404 | AI27: 1624866.391 | AJ27: 0.9343445521 | AK27: 0.9343445521 | AO27: 6 | AP27: 2024-04-30 | AQ27: 31 | AR27: 182 | AS27: 1618506.508 | AT27: 2596.108924 | AU27: 17123.59063 | AV27: 1705.93485 | AW27: 450.45 | AX27: 0 | AY27: 21876.0844 | AZ27: 1615910.399 | BA27: 0.9343445521 | BB27: 0.9343445521 | BF27: 6 | BG27: 2024-04-30 | BH27: 31 | BI27: 182 | BJ27: 1615280.922 | BK27: -522.2530337 | BL27: 17089.46434 | BM27: 1702.535025 | BN27: 450.45 | BO27: 0 | BP27: 18720.19633 | BQ27: 1615803.175 | BR27: 0.9343445521 | BS27: 0.9343445521 | BW27: 6 | BX27: 2024-04-30 | BY27: 31 | BZ27: 182 | CA27: 1626008.494 | CB27: 1042.058286 | CC27: 17202.96067 | CD27: 1713.842077 | CE27: 450.45 | CF27: 0 | CG27: 20409.31104 | CH27: 1624966.435 | CI27: 0.9343445521 | CJ27: 0.9343445521 | CN27: 6 | CO27: 2024-04-30 | CP27: 31 | CQ27: 182 | CR27: 1622999.172 | CS27: -1867.218595 | CT27: 17171.12244 | CU27: 1710.670199 | CV27: 450.45 | CW27: 0 | CX27: 17465.02404 | CY27: 1624866.391 | CZ27: 0.9343445521 | DA27: 0.9343445521
B28: 7 | C28: 2024-05-30 | D28: 30 | E28: 212 | F28: 1624966.435 | G28: 1666.866787 | H28: 16634.52848 | I28: 1657.465764 | J28: 450.45 | K28: 0 | L28: 20409.31104 | M28: 1623299.568 | N28: 0.9239438599 | O28: 0.9239438599 | Q28: 20409.31104 | R28: 212 | S28: =IFERROR((1+'Simulación Cliente'!$E$21)^(R28/360),"") -> 1.084682281 | T28: 18815.93 | X28: 7 | Y28: 2024-05-30 | Z28: 30 | AA28: 212 | AB28: 1624866.391 | AC28: -1276.29402 | AD28: 16633.50434 | AE28: 1657.363718 | AF28: 450.45 | AG28: 0 | AH28: 17465.02404 | AI28: 1626142.685 | AJ28: 0.9239438599 | AK28: 0.9239438599 | AO28: 7 | AP28: 2024-05-30 | AQ28: 30 | AR28: 212 | AS28: 1615910.399 | AT28: 3235.582546 | AU28: 16541.82325 | AV28: 1648.228607 | AW28: 450.45 | AX28: 0 | AY28: 21876.0844 | AZ28: 1612674.816 | BA28: 0.9239438599 | BB28: 0.9239438599 | BF28: 7 | BG28: 2024-05-30 | BH28: 30 | BI28: 212 | BJ28: 1615803.175 | BK28: 80.90148216 | BL28: 16540.72561 | BM28: 1648.119238 | BN28: 450.45 | BO28: 0 | BP28: 18720.19633 | BQ28: 1615722.273 | BR28: 0.9239438599 | BS28: 0.9239438599 | BW28: 7 | BX28: 2024-05-30 | BY28: 30 | BZ28: 212 | CA28: 1624966.435 | CB28: 1666.866787 | CC28: 16634.52848 | CD28: 1657.465764 | CE28: 450.45 | CF28: 0 | CG28: 20409.31104 | CH28: 1623299.568 | CI28: 0.9239438599 | CJ28: 0.9239438599 | CN28: 7 | CO28: 2024-05-30 | CP28: 30 | CQ28: 212 | CR28: 1624866.391 | CS28: -1276.29402 | CT28: 16633.50434 | CU28: 1657.363718 | CV28: 450.45 | CW28: 0 | CX28: 17465.02404 | CY28: 1626142.685 | CZ28: 0.9239438599 | DA28: 0.9239438599
B29: 8 | C29: 2024-06-30 | D29: 31 | E29: 243 | F29: 1623299.568 | G29: 1073.57362 | H29: 17174.30059 | I29: 1710.986822 | J29: 450.45 | K29: 0 | L29: 20409.31104 | M29: 1622225.995 | N29: 0.9133180916 | O29: 0.9133180916 | Q29: 20409.31104 | R29: 243 | S29: =IFERROR((1+'Simulación Cliente'!$E$21)^(R29/360),"") -> 1.097652094 | T29: 18593.61 | X29: 8 | Y29: 2024-06-30 | Z29: 31 | AA29: 243 | AB29: 1626142.685 | AC29: -1903.789873 | AD29: 17204.3804 | AE29: 1713.983517 | AF29: 450.45 | AG29: 0 | AH29: 17465.02404 | AI29: 1628046.474 | AJ29: 0.9133180916 | AK29: 0.9133180916 | AO29: 8 | AP29: 2024-06-30 | AQ29: 31 | AR29: 243 | AS29: 1612674.816 | AT29: 2663.954177 | AU29: 17061.89208 | AV29: 1699.788143 | AW29: 450.45 | AX29: 0 | AY29: 21876.0844 | AZ29: 1610010.862 | BA29: 0.9133180916 | BB29: 0.9133180916 | BF29: 8 | BG29: 2024-06-30 | BH29: 31 | BI29: 243 | BJ29: 1615722.273 | BK29: -527.3876688 | BL29: 17094.13379 | BM29: 1703.000217 | BN29: 450.45 | BO29: 0 | BP29: 18720.19633 | BQ29: 1616249.661 | BR29: 0.9133180916 | BS29: 0.9133180916 | BW29: 8 | BX29: 2024-06-30 | BY29: 31 | BZ29: 243 | CA29: 1623299.568 | CB29: 1073.57362 | CC29: 17174.30059 | CD29: 1710.986822 | CE29: 450.45 | CF29: 0 | CG29: 20409.31104 | CH29: 1622225.995 | CI29: 0.9133180916 | CJ29: 0.9133180916 | CN29: 8 | CO29: 2024-06-30 | CP29: 31 | CQ29: 243 | CR29: 1626142.685 | CS29: -1903.789873 | CT29: 17204.3804 | CU29: 1713.983517 | CV29: 450.45 | CW29: 0 | CX29: 17465.02404 | CY29: 1628046.474 | CZ29: 0.9133180916 | DA29: 0.9133180916
B30: 9 | C30: 2024-07-30 | D30: 30 | E30: 273 | F30: 1622225.995 | G30: 1697.715498 | H30: 16606.47502 | I30: 1654.670515 | J30: 450.45 | K30: 0 | L30: 20409.31104 | M30: 1620528.279 | N30: 0.9031514562 | O30: 0.9031514562 | Q30: 20409.31104 | R30: 273 | S30: =IFERROR((1+'Simulación Cliente'!$E$21)^(R30/360),"") -> 1.110351168 | T30: 18380.95 | X30: 9 | Y30: 2024-07-30 | Z30: 30 | AA30: 273 | AB30: 1628046.474 | AC30: 16152.93231 | AD30: 16666.05837 | AE30: 1660.607404 | AF30: 450.45 | AG30: 0 | AH30: 34930.04808 | AI30: 1611893.542 | AJ30: 1.806302912 | AK30: 0.9031514562 | AO30: 9 | AP30: 2024-07-30 | AQ30: 30 | AR30: 273 | AS30: 1610010.862 | AT30: 3301.992713 | AU30: 16481.43061 | AV30: 1642.211079 | AW30: 450.45 | AX30: 0 | AY30: 21876.0844 | AZ30: 1606708.869 | BA30: 0.9031514562 | BB30: 0.9031514562 | BF30: 9 | BG30: 2024-07-30 | BH30: 30 | BI30: 273 | BJ30: 1616249.661 | BK30: 18796.07179 | BL30: 16545.29622 | BM30: 1648.574654 | BN30: 450.45 | BO30: 0 | BP30: 37440.39267 | BQ30: 1597453.589 | BR30: 1.806302912 | BS30: 0.9031514562 | BW30: 9 | BX30: 2024-07-30 | BY30: 30 | BZ30: 273 | CA30: 1622225.995 | CB30: 1697.715498 | CC30: 16606.47502 | CD30: 1654.670515 | CE30: 450.45 | CF30: 0 | CG30: 20409.31104 | CH30: 1620528.279 | CI30: 0.9031514562 | CJ30: 0.9031514562 | CN30: 9 | CO30: 2024-07-30 | CP30: 30 | CQ30: 273 | CR30: 1628046.474 | CS30: 16152.93231 | CT30: 16666.05837 | CU30: 1660.607404 | CV30: 450.45 | CW30: 0 | CX30: 34930.04808 | CY30: 1611893.542 | CZ30: 1.806302912 | DA30: 0.9031514562
B31: 10 | C31: 2024-08-30 | D31: 31 | E31: 304 | F31: 1620528.279 | G31: 1105.814491 | H31: 17144.98071 | I31: 1708.065834 | J31: 450.45 | K31: 0 | L31: 20409.31104 | M31: 1619422.465 | N31: 0.8927648099 | O31: 0.8927648099 | Q31: 20409.31104 | R31: =E31 -> 304 | S31: =IFERROR((1+'Simulación Cliente'!$E$21)^(R31/360),"") -> 1.12362791 | T31: 18163.76 | X31: 10 | Y31: 2024-08-30 | Z31: 31 | AA31: 304 | AB31: 1611893.542 | AC31: -1738.016927 | AD31: 17053.6263 | AE31: 1698.964666 | AF31: 450.45 | AG31: 0 | AH31: 17465.02404 | AI31: 1613631.559 | AJ31: 0.8927648099 | AK31: 0.8927648099 | AO31: 10 | AP31: 2024-08-30 | AQ31: 31 | AR31: 304 | AS31: 1606708.869 | AT31: 2733.361342 | AU31: 16998.77313 | AV31: 1693.499928 | AW31: 450.45 | AX31: 0 | AY31: 21876.0844 | AZ31: 1603975.508 | BA31: 0.8927648099 | BB31: 0.8927648099 | BF31: 10 | BG31: 2024-08-30 | BH31: 31 | BI31: 304 | BJ31: 1597453.589 | BK31: -314.8518208 | BL31: 16900.85346 | BM31: 1683.744697 | BN31: 450.45 | BO31: 0 | BP31: 18720.19633 | BQ31: 1597768.441 | BR31: 0.8927648099 | BS31: 0.8927648099 | BW31: 10 | BX31: 2024-08-30 | BY31: 31 | BZ31: 304 | CA31: 1620528.279 | CB31: 1105.814491 | CC31: 17144.98071 | CD31: 1708.065834 | CE31: 450.45 | CF31: 0 | CG31: 20409.31104 | CH31: 1619422.465 | CI31: 0.8927648099 | CJ31: 0.8927648099 | CN31: 10 | CO31: 2024-08-30 | CP31: 31 | CQ31: 304 | CR31: 1611893.542 | CS31: -1738.016927 | CT31: 17053.6263 | CU31: 1698.964666 | CV31: 450.45 | CW31: 0 | CX31: 17465.02404 | CY31: 1613631.559 | CZ31: 0.8927648099 | DA31: 0.8927648099
B32: 11 | C32: 2024-09-30 | D32: 31 | E32: 335 | F32: 1619422.465 | G32: 1118.679414 | H32: 17133.28134 | I32: 1706.900285 | J32: 450.45 | K32: 0 | L32: 20409.31104 | M32: 1618303.785 | N32: 0.8824976147 | O32: 0.8824976147 | Q32: 20409.31104 | R32: 335 | S32: =IFERROR((1+'Simulación Cliente'!$E$21)^(R32/360),"") -> 1.137063406 | T32: 17949.14 | X32: 11 | Y32: 2024-09-30 | Z32: 31 | AA32: 335 | AB32: 1613631.559 | AC32: -1758.236824 | AD32: 17072.0143 | AE32: 1700.796567 | AF32: 450.45 | AG32: 0 | AH32: 17465.02404 | AI32: 1615389.796 | AJ32: 0.8824976147 | AK32: 0.8824976147 | AO32: 11 | AP32: 2024-09-30 | AQ32: 31 | AR32: 335 | AS32: 1603975.508 | AT32: 2765.160966 | AU32: 16969.85452 | AV32: 1690.618916 | AW32: 450.45 | AX32: 0 | AY32: 21876.0844 | AZ32: 1601210.347 | BA32: 0.8824976147 | BB32: 0.8824976147 | BF32: 11 | BG32: 2024-09-30 | BH32: 31 | BI32: 335 | BJ32: 1597768.441 | BK32: -318.514772 | BL32: 16904.18455 | BM32: 1684.076556 | BN32: 450.45 | BO32: 0 | BP32: 18720.19633 | BQ32: 1598086.956 | BR32: 0.8824976147 | BS32: 0.8824976147 | BW32: 11 | BX32: 2024-09-30 | BY32: 31 | BZ32: 335 | CA32: 1619422.465 | CB32: 1118.679414 | CC32: 17133.28134 | CD32: 1706.900285 | CE32: 450.45 | CF32: 0 | CG32: 20409.31104 | CH32: 1618303.785 | CI32: 0.8824976147 | CJ32: 0.8824976147 | CN32: 11 | CO32: 2024-09-30 | CP32: 31 | CQ32: 335 | CR32: 1613631.559 | CS32: -1758.236824 | CT32: 17072.0143 | CU32: 1700.796567 | CV32: 450.45 | CW32: 0 | CX32: 17465.02404 | CY32: 1615389.796 | CZ32: 0.8824976147 | DA32: 0.8824976147
B33: 12 | C33: 2024-10-30 | D33: 30 | E33: 365 | F33: 1618303.785 | G33: 1741.867199 | H33: 16566.32398 | I33: 1650.669861 | J33: 450.45 | K33: 0 | L33: 20409.31104 | M33: 1616561.918 | N33: 0.8726740587 | O33: 0.8726740587 | Q33: 20409.31104 | R33: 365 | S33: =IFERROR((1+'Simulación Cliente'!$E$21)^(R33/360),"") -> 1.150218441 | T33: 17743.86 | X33: 12 | Y33: 2024-10-30 | Z33: 30 | AA33: 365 | AB33: 1615389.796 | AC33: -1169.617469 | AD33: 16536.49392 | AE33: 1647.697592 | AF33: 450.45 | AG33: 0 | AH33: 17465.02404 | AI33: 1616559.413 | AJ33: 0.8726740587 | AK33: 0.8726740587 | AO33: 12 | AP33: 2024-10-30 | AQ33: 30 | AR33: 365 | AS33: 1601210.347 | AT33: 3401.058741 | AU33: 16391.34111 | AV33: 1633.234554 | AW33: 450.45 | AX33: 0 | AY33: 21876.0844 | AZ33: 1597809.288 | BA33: 0.8726740587 | BB33: 0.8726740587 | BF33: 12 | BG33: 2024-10-30 | BH33: 30 | BI33: 365 | BJ33: 1598086.956 | BK33: 280.3302022 | BL33: 16359.36744 | BM33: 1630.048695 | BN33: 450.45 | BO33: 0 | BP33: 18720.19633 | BQ33: 1597806.626 | BR33: 0.8726740587 | BS33: 0.8726740587 | BW33: 12 | BX33: 2024-10-30 | BY33: 30 | BZ33: 365 | CA33: 1618303.785 | CB33: 1741.867199 | CC33: 16566.32398 | CD33: 1650.669861 | CE33: 450.45 | CF33: 0 | CG33: 20409.31104 | CH33: 1616561.918 | CI33: 0.8726740587 | CJ33: 0.8726740587 | CN33: 12 | CO33: 2024-10-30 | CP33: 30 | CQ33: 365 | CR33: 1615389.796 | CS33: -1169.617469 | CT33: 16536.49392 | CU33: 1647.697592 | CV33: 450.45 | CW33: 0 | CX33: 17465.02404 | CY33: 1616559.413 | CZ33: 0.8726740587 | DA33: 0.8726740587
B34: 13 | C34: 2024-11-30 | D34: 31 | E34: 396 | F34: 1616561.918 | G34: 1151.958697 | H34: 17103.01712 | I34: 1703.885218 | J34: 450.45 | K34: 0 | L34: 20409.31104 | M34: 1615409.96 | N34: 0.8626379161 | O34: 0.8626379161 | Q34: 20409.31104 | R34: 396 | S34: =IFERROR((1+'Simulación Cliente'!$E$21)^(R34/360),"") -> 1.163971887 | T34: 17534.2 | X34: 13 | Y34: 2024-11-30 | Z34: 31 | AA34: 396 | AB34: 1616559.413 | AC34: -1792.299156 | AD34: 17102.99062 | AE34: 1703.882578 | AF34: 450.45 | AG34: 0 | AH34: 17465.02404 | AI34: 1618351.712 | AJ34: 0.8626379161 | AK34: 0.8626379161 | AO34: 13 | AP34: 2024-11-30 | AQ34: 31 | AR34: 396 | AS34: 1597809.288 | AT34: 2836.898083 | AU34: 16904.61671 | AV34: 1684.11961 | AW34: 450.45 | AX34: 0 | AY34: 21876.0844 | AZ34: 1594972.39 | BA34: 0.8626379161 | BB34: 0.8626379161 | BF34: 13 | BG34: 2024-11-30 | BH34: 31 | BI34: 396 | BJ34: 1597806.626 | BK34: -318.9590071 | BL34: 16904.58854 | BM34: 1684.116803 | BN34: 450.45 | BO34: 0 | BP34: 18720.19633 | BQ34: 1598125.585 | BR34: 0.8626379161 | BS34: 0.8626379161 | BW34: 13 | BX34: 2024-11-30 | BY34: 31 | BZ34: 396 | CA34: 1616561.918 | CB34: 1151.958697 | CC34: 17103.01712 | CD34: 1703.885218 | CE34: 450.45 | CF34: 0 | CG34: 20409.31104 | CH34: 1615409.96 | CI34: 0.8626379161 | CJ34: 0.8626379161 | CN34: 13 | CO34: 2024-11-30 | CP34: 31 | CQ34: 396 | CR34: 1616559.413 | CS34: -1792.299156 | CT34: 17102.99062 | CU34: 1703.882578 | CV34: 450.45 | CW34: 0 | CX34: 17465.02404 | CY34: 1618351.712 | CZ34: 0.8626379161 | DA34: 0.8626379161
B35: 14 | C35: 2024-12-30 | D35: 30 | E35: 426 | F35: 1615409.96 | G35: 1774.442547 | H35: 16536.70033 | I35: 1647.718159 | J35: 450.45 | K35: 0 | L35: 20409.31104 | M35: 1613635.517 | N35: 0.8530354291 | O35: 0.8530354291 | Q35: 20409.31104 | R35: 426 | S35: =IFERROR((1+'Simulación Cliente'!$E$21)^(R35/360),"") -> 1.177438234 | T35: 17333.66 | X35: 14 | Y35: 2024-12-30 | Z35: 30 | AA35: 426 | AB35: 1618351.712 | AC35: 16262.06474 | AD35: 16566.8146 | AE35: 1650.718747 | AF35: 450.45 | AG35: 0 | AH35: 34930.04808 | AI35: 1602089.648 | AJ35: 1.706070858 | AK35: 0.8530354291 | AO35: 14 | AP35: 2024-12-30 | AQ35: 30 | AR35: 426 | AS35: 1594972.39 | AT35: 3471.27845 | AU35: 16327.48411 | AV35: 1626.871838 | AW35: 450.45 | AX35: 0 | AY35: 21876.0844 | AZ35: 1591501.112 | BA35: 0.8530354291 | BB35: 0.8530354291 | BF35: 14 | BG35: 2024-12-30 | BH35: 30 | BI35: 426 | BJ35: 1598125.585 | BK35: 19000.0917 | BL35: 16359.76287 | BM35: 1630.088096 | BN35: 450.45 | BO35: 0 | BP35: 37440.39267 | BQ35: 1579125.493 | BR35: 1.706070858 | BS35: 0.8530354291 | BW35: 14 | BX35: 2024-12-30 | BY35: 30 | BZ35: 426 | CA35: 1615409.96 | CB35: 1774.442547 | CC35: 16536.70033 | CD35: 1647.718159 | CE35: 450.45 | CF35: 0 | CG35: 20409.31104 | CH35: 1613635.517 | CI35: 0.8530354291 | CJ35: 0.8530354291 | CN35: 14 | CO35: 2024-12-30 | CP35: 30 | CQ35: 426 | CR35: 1618351.712 | CS35: 16262.06474 | CT35: 16566.8146 | CU35: 1650.718747 | CV35: 450.45 | CW35: 0 | CX35: 34930.04808 | CY35: 1602089.648 | CZ35: 1.706070858 | DA35: 0.8530354291
B36: 15 | C36: 2025-01-30 | D36: 31 | E36: 457 | F36: 1613635.517 | G36: 1186.004125 | H36: 17072.05617 | I36: 1700.800739 | J36: 450.45 | K36: 0 | L36: 20409.31104 | M36: 1612449.513 | N36: 0.8432251395 | O36: 0.8432251395 | Q36: 20409.31104 | R36: 457 | S36: =IFERROR((1+'Simulación Cliente'!$E$21)^(R36/360),"") -> 1.191517153 | T36: 17128.84 | X36: 15 | Y36: 2025-01-30 | Z36: 31 | AA36: 457 | AB36: 1602089.648 | AC36: -1623.959506 | AD36: 16949.90236 | AE36: 1688.631186 | AF36: 450.45 | AG36: 0 | AH36: 17465.02404 | AI36: 1603713.607 | AJ36: 0.8432251395 | AK36: 0.8432251395 | AO36: 15 | AP36: 2025-01-30 | AQ36: 31 | AR36: 457 | AS36: 1591501.112 | AT36: 2910.28671 | AU36: 16837.87701 | AV36: 1677.470679 | AW36: 450.45 | AX36: 0 | AY36: 21876.0844 | AZ36: 1588590.825 | BA36: 0.8432251395 | BB36: 0.8432251395 | BF36: 15 | BG36: 2025-01-30 | BH36: 31 | BI36: 457 | BJ36: 1579125.493 | BK36: -101.6247781 | BL36: 16706.94456 | BM36: 1664.426555 | BN36: 450.45 | BO36: 0 | BP36: 18720.19633 | BQ36: 1579227.118 | BR36: 0.8432251395 | BS36: 0.8432251395 | BW36: 15 | BX36: 2025-01-30 | BY36: 31 | BZ36: 457 | CA36: 1613635.517 | CB36: 1186.004125 | CC36: 17072.05617 | CD36: 1700.800739 | CE36: 450.45 | CF36: 0 | CG36: 20409.31104 | CH36: 1612449.513 | CI36: 0.8432251395 | CJ36: 0.8432251395 | CN36: 15 | CO36: 2025-01-30 | CP36: 31 | CQ36: 457 | CR36: 1602089.648 | CS36: -1623.959506 | CT36: 16949.90236 | CU36: 1688.631186 | CV36: 450.45 | CW36: 0 | CX36: 17465.02404 | CY36: 1603713.607 | CZ36: 0.8432251395 | DA36: 0.8432251395
B37: 16 | C37: 2025-02-28 | D37: 29 | E37: 486 | F37: 1612449.513 | G37: 2415.544092 | H37: 15953.46874 | I37: 1589.848201 | J37: 450.45 | K37: 0 | L37: 20409.31104 | M37: 1610033.969 | N37: 0.8341499365 | O37: 0.8341499365 | Q37: 20409.31104 | R37: 486 | S37: =IFERROR((1+'Simulación Cliente'!$E$21)^(R37/360),"") -> 1.20484012 | T37: 16939.44 | X37: 16 | Y37: 2025-02-28 | Z37: 29 | AA37: 486 | AB37: 1603713.607 | AC37: -433.6969743 | AD37: 15867.03627 | AE37: 1581.234745 | AF37: 450.45 | AG37: 0 | AH37: 17465.02404 | AI37: 1604147.304 | AJ37: 0.8341499365 | AK37: 0.8341499365 | AO37: 16 | AP37: 2025-02-28 | AQ37: 29 | AR37: 486 | AS37: 1588590.825 | AT37: 4141.898003 | AU37: 15717.41246 | AV37: 1566.323935 | AW37: 450.45 | AX37: 0 | AY37: 21876.0844 | AZ37: 1584448.927 | BA37: 0.8341499365 | BB37: 0.8341499365 | BF37: 16 | BG37: 2025-02-28 | BH37: 29 | BI37: 486 | BJ37: 1579227.118 | BK37: 1087.886295 | BL37: 15624.76856 | BM37: 1557.091476 | BN37: 450.45 | BO37: 0 | BP37: 18720.19633 | BQ37: 1578139.231 | BR37: 0.8341499365 | BS37: 0.8341499365 | BW37: 16 | BX37: 2025-02-28 | BY37: 29 | BZ37: 486 | CA37: 1612449.513 | CB37: 2415.544092 | CC37: 15953.46874 | CD37: 1589.848201 | CE37: 450.45 | CF37: 0 | CG37: 20409.31104 | CH37: 1610033.969 | CI37: 0.8341499365 | CJ37: 0.8341499365 | CN37: 16 | CO37: 2025-02-28 | CP37: 29 | CQ37: 486 | CR37: 1603713.607 | CS37: -433.6969743 | CT37: 15867.03627 | CU37: 1581.234745 | CV37: 450.45 | CW37: 0 | CX37: 17465.02404 | CY37: 1604147.304 | CZ37: 0.8341499365 | DA37: 0.8341499365
B38: 17 | C38: 2025-03-30 | D38: 30 | E38: 516 | F38: 1610033.969 | G38: 1834.959238 | H38: 16481.66715 | I38: 1642.234648 | J38: 450.45 | K38: 0 | L38: 20409.31104 | M38: 1608199.01 | N38: 0.8248645644 | O38: 0.8248645644 | Q38: 20409.31104 | R38: 516 | S38: =IFERROR((1+'Simulación Cliente'!$E$21)^(R38/360),"") -> 1.218779285 | T38: 16745.7 | X38: 17 | Y38: 2025-03-30 | Z38: 30 | AA38: 516 | AB38: 1604147.304 | AC38: -1043.06249 | AD38: 16421.40628 | AE38: 1636.23025 | AF38: 450.45 | AG38: 0 | AH38: 17465.02404 | AI38: 1605190.367 | AJ38: 0.8248645644 | AK38: 0.8248645644 | AO38: 17 | AP38: 2025-03-30 | AQ38: 30 | AR38: 516 | AS38: 1584448.927 | AT38: 3589.739437 | AU38: 16219.75706 | AV38: 1616.137906 | AW38: 450.45 | AX38: 0 | AY38: 21876.0844 | AZ38: 1580859.188 | BA38: 0.8248645644 | BB38: 0.8248645644 | BF38: 17 | BG38: 2025-03-30 | BH38: 30 | BI38: 516 | BJ38: 1578139.231 | BK38: 504.8786312 | BL38: 16155.16569 | BM38: 1609.702016 | BN38: 450.45 | BO38: 0 | BP38: 18720.19633 | BQ38: 1577634.353 | BR38: 0.8248645644 | BS38: 0.8248645644 | BW38: 17 | BX38: 2025-03-30 | BY38: 30 | BZ38: 516 | CA38: 1610033.969 | CB38: 1834.959238 | CC38: 16481.66715 | CD38: 1642.234648 | CE38: 450.45 | CF38: 0 | CG38: 20409.31104 | CH38: 1608199.01 | CI38: 0.8248645644 | CJ38: 0.8248645644 | CN38: 17 | CO38: 2025-03-30 | CP38: 30 | CQ38: 516 | CR38: 1604147.304 | CS38: -1043.06249 | CT38: 16421.40628 | CU38: 1636.23025 | CV38: 450.45 | CW38: 0 | CX38: 17465.02404 | CY38: 1605190.367 | CZ38: 0.8248645644 | DA38: 0.8248645644
B39: 18 | C39: 2025-04-30 | D39: 31 | E39: 547 | F39: 1608199.01 | G39: 1249.25185 | H39: 17014.53862 | I39: 1695.070562 | J39: 450.45 | K39: 0 | L39: 20409.31104 | M39: 1606949.758 | N39: 0.8153782525 | O39: 0.8153782525 | Q39: 20409.31104 | R39: 547 | S39: =IFERROR((1+'Simulación Cliente'!$E$21)^(R39/360),"") -> 1.233352529 | T39: 16547.83 | X39: 18 | Y39: 2025-04-30 | Z39: 31 | AA39: 547 | AB39: 1605190.367 | AC39: -1660.032927 | AD39: 16982.70757 | AE39: 1691.899399 | AF39: 450.45 | AG39: 0 | AH39: 17465.02404 | AI39: 1606850.4 | AJ39: 0.8153782525 | AK39: 0.8153782525 | AO39: 18 | AP39: 2025-04-30 | AQ39: 31 | AR39: 547 | AS39: 1580859.188 | AT39: 3034.093677 | AU39: 16725.28682 | AV39: 1666.2539 | AW39: 450.45 | AX39: 0 | AY39: 21876.0844 | AZ39: 1577825.094 | BA39: 0.8153782525 | BB39: 0.8153782525 | BF39: 18 | BG39: 2025-04-30 | BH39: 31 | BI39: 547 | BJ39: 1577634.353 | BK39: -84.27701874 | BL39: 16691.16849 | BM39: 1662.854867 | BN39: 450.45 | BO39: 0 | BP39: 18720.19633 | BQ39: 1577718.63 | BR39: 0.8153782525 | BS39: 0.8153782525 | BW39: 18 | BX39: 2025-04-30 | BY39: 31 | BZ39: 547 | CA39: 1608199.01 | CB39: 1249.25185 | CC39: 17014.53862 | CD39: 1695.070562 | CE39: 450.45 | CF39: 0 | CG39: 20409.31104 | CH39: 1606949.758 | CI39: 0.8153782525 | CJ39: 0.8153782525 | CN39: 18 | CO39: 2025-04-30 | CP39: 31 | CQ39: 547 | CR39: 1605190.367 | CS39: -1660.032927 | CT39: 16982.70757 | CU39: 1691.899399 | CV39: 450.45 | CW39: 0 | CX39: 17465.02404 | CY39: 1606850.4 | CZ39: 0.8153782525 | DA39: 0.8153782525
B40: 19 | C40: 2025-05-30 | D40: 30 | E40: 577 | F40: 1606949.758 | G40: 1869.677722 | H40: 16450.09456 | I40: 1639.088753 | J40: 450.45 | K40: 0 | L40: 20409.31104 | M40: 1605080.08 | N40: 0.8063018382 | O40: 0.8063018382 | Q40: 20409.31104 | R40: 577 | S40: =IFERROR((1+'Simulación Cliente'!$E$21)^(R40/360),"") -> 1.247621562 | T40: 16358.58 | X40: 19 | Y40: 2025-05-30 | Z40: 30 | AA40: 577 | AB40: 1606850.4 | AC40: -1073.490815 | AD40: 16449.07745 | AE40: 1638.987408 | AF40: 450.45 | AG40: 0 | AH40: 17465.02404 | AI40: 1607923.89 | AJ40: 0.8063018382 | AK40: 0.8063018382 | AO40: 19 | AP40: 2025-05-30 | AQ40: 30 | AR40: 577 | AS40: 1577825.094 | AT40: 3664.302895 | AU40: 16151.94991 | AV40: 1609.381596 | AW40: 450.45 | AX40: 0 | AY40: 21876.0844 | AZ40: 1574160.791 | BA40: 0.8063018382 | BB40: 0.8063018382 | BF40: 19 | BG40: 2025-05-30 | BH40: 30 | BI40: 577 | BJ40: 1577718.63 | BK40: 509.613278 | BL40: 16150.86005 | BM40: 1609.273002 | BN40: 450.45 | BO40: 0 | BP40: 18720.19633 | BQ40: 1577209.016 | BR40: 0.8063018382 | BS40: 0.8063018382 | BW40: 19 | BX40: 2025-05-30 | BY40: 30 | BZ40: 577 | CA40: 1606949.758 | CB40: 1869.677722 | CC40: 16450.09456 | CD40: 1639.088753 | CE40: 450.45 | CF40: 0 | CG40: 20409.31104 | CH40: 1605080.08 | CI40: 0.8063018382 | CJ40: 0.8063018382 | CN40: 19 | CO40: 2025-05-30 | CP40: 30 | CQ40: 577 | CR40: 1606850.4 | CS40: -1073.490815 | CT40: 16449.07745 | CU40: 1638.987408 | CV40: 450.45 | CW40: 0 | CX40: 17465.02404 | CY40: 1607923.89 | CZ40: 0.8063018382 | DA40: 0.8063018382
B41: 20 | C41: 2025-06-30 | D41: 31 | E41: 608 | F41: 1605080.08 | G41: 1285.537132 | H41: 16981.54075 | I41: 1691.783155 | J41: 450.45 | K41: 0 | L41: 20409.31104 | M41: 1603794.543 | N41: 0.7970290059 | O41: 0.7970290059 | Q41: 20409.31104 | R41: 608 | S41: =IFERROR((1+'Simulación Cliente'!$E$21)^(R41/360),"") -> 1.262539681 | T41: 16165.28 | X41: 20 | Y41: 2025-06-30 | Z41: 31 | AA41: 608 | AB41: 1607923.89 | AC41: -1691.83444 | AD41: 17011.6279 | AE41: 1694.780582 | AF41: 450.45 | AG41: 0 | AH41: 17465.02404 | AI41: 1609615.725 | AJ41: 0.7970290059 | AK41: 0.7970290059 | AO41: 20 | AP41: 2025-06-30 | AQ41: 31 | AR41: 608 | AS41: 1574160.791 | AT41: 3112.022081 | AU41: 16654.41865 | AV41: 1659.19367 | AW41: 450.45 | AX41: 0 | AY41: 21876.0844 | AZ41: 1571048.769 | BA41: 0.7970290059 | BB41: 0.7970290059 | BF41: 20 | BG41: 2025-06-30 | BH41: 31 | BI41: 608 | BJ41: 1577209.016 | BK41: -79.32870381 | BL41: 16686.66848 | BM41: 1662.406555 | BN41: 450.45 | BO41: 0 | BP41: 18720.19633 | BQ41: 1577288.345 | BR41: 0.7970290059 | BS41: 0.7970290059 | BW41: 20 | BX41: 2025-06-30 | BY41: 31 | BZ41: 608 | CA41: 1605080.08 | CB41: 1285.537132 | CC41: 16981.54075 | CD41: 1691.783155 | CE41: 450.45 | CF41: 0 | CG41: 20409.31104 | CH41: 1603794.543 | CI41: 0.7970290059 | CJ41: 0.7970290059 | CN41: 20 | CO41: 2025-06-30 | CP41: 31 | CQ41: 608 | CR41: 1607923.89 | CS41: -1691.83444 | CT41: 17011.6279 | CU41: 1694.780582 | CV41: 450.45 | CW41: 0 | CX41: 17465.02404 | CY41: 1609615.725 | CZ41: 0.7970290059 | DA41: 0.7970290059
B42: 21 | C42: 2025-07-30 | D42: 30 | E42: 638 | F42: 1603794.543 | G42: 1905.195485 | H42: 16417.79512 | I42: 1635.870434 | J42: 450.45 | K42: 0 | L42: 20409.31104 | M42: 1601889.347 | N42: 0.7881568469 | O42: 0.7881568469 | Q42: 20409.31104 | R42: 638 | S42: =IFERROR((1+'Simulación Cliente'!$E$21)^(R42/360),"") -> 1.277146389 | T42: 15980.4 | X42: 21 | Y42: 2025-07-30 | Z42: 30 | AA42: 638 | AB42: 1609615.725 | AC42: 16360.40439 | AD42: 16477.38565 | AE42: 1641.808039 | AF42: 450.45 | AG42: 0 | AH42: 34930.04808 | AI42: 1593255.32 | AJ42: 1.576313694 | AK42: 0.7881568469 | AO42: 21 | AP42: 2025-07-30 | AQ42: 30 | AR42: 638 | AS42: 1571048.769 | AT42: 3740.582931 | AU42: 16082.58173 | AV42: 1602.469744 | AW42: 450.45 | AX42: 0 | AY42: 21876.0844 | AZ42: 1567308.186 | BA42: 0.7881568469 | BB42: 0.7881568469 | BF42: 21 | BG42: 2025-07-30 | BH42: 30 | BI42: 638 | BJ42: 1577288.345 | BK42: 19234.65326 | BL42: 16146.4553 | BM42: 1608.834112 | BN42: 450.45 | BO42: 0 | BP42: 37440.39267 | BQ42: 1558053.692 | BR42: 1.576313694 | BS42: 0.7881568469 | BW42: 21 | BX42: 2025-07-30 | BY42: 30 | BZ42: 638 | CA42: 1603794.543 | CB42: 1905.195485 | CC42: 16417.79512 | CD42: 1635.870434 | CE42: 450.45 | CF42: 0 | CG42: 20409.31104 | CH42: 1601889.347 | CI42: 0.7881568469 | CJ42: 0.7881568469 | CN42: 21 | CO42: 2025-07-30 | CP42: 30 | CQ42: 638 | CR42: 1609615.725 | CS42: 16360.40439 | CT42: 16477.38565 | CU42: 1641.808039 | CV42: 450.45 | CW42: 0 | CX42: 34930.04808 | CY42: 1593255.32 | CZ42: 1.576313694 | DA42: 0.7881568469
B43: 22 | C43: 2025-08-30 | D43: 31 | E43: 669 | F43: 1601889.347 | G43: 1322.657762 | H43: 16947.78321 | I43: 1688.420065 | J43: 450.45 | K43: 0 | L43: 20409.31104 | M43: 1600566.69 | N43: 0.7790926902 | O43: 0.7790926902 | Q43: 20409.31104 | R43: 669 | S43: =IFERROR((1+'Simulación Cliente'!$E$21)^(R43/360),"") -> 1.292417543 | T43: 15791.58 | X43: 22 | Y43: 2025-08-30 | Z43: 31 | AA43: 669 | AB43: 1593255.32 | AC43: -1521.181921 | AD43: 16856.43632 | AE43: 1679.319646 | AF43: 450.45 | AG43: 0 | AH43: 17465.02404 | AI43: 1594776.502 | AJ43: 0.7790926902 | AK43: 0.7790926902 | AO43: 22 | AP43: 2025-08-30 | AQ43: 31 | AR43: 669 | AS43: 1567308.186 | AT43: 3191.744529 | AU43: 16581.91897 | AV43: 1651.970902 | AW43: 450.45 | AX43: 0 | AY43: 21876.0844 | AZ43: 1564116.441 | BA43: 0.7790926902 | BB43: 0.7790926902 | BF43: 22 | BG43: 2025-08-30 | BH43: 31 | BI43: 669 | BJ43: 1558053.692 | BK43: 143.5222208 | BL43: 16484.00761 | BM43: 1642.216499 | BN43: 450.45 | BO43: 0 | BP43: 18720.19633 | BQ43: 1557910.17 | BR43: 0.7790926902 | BS43: 0.7790926902 | BW43: 22 | BX43: 2025-08-30 | BY43: 31 | BZ43: 669 | CA43: 1601889.347 | CB43: 1322.657762 | CC43: 16947.78321 | CD43: 1688.420065 | CE43: 450.45 | CF43: 0 | CG43: 20409.31104 | CH43: 1600566.69 | CI43: 0.7790926902 | CJ43: 0.7790926902 | CN43: 22 | CO43: 2025-08-30 | CP43: 31 | CQ43: 669 | CR43: 1593255.32 | CS43: -1521.181921 | CT43: 16856.43632 | CU43: 1679.319646 | CV43: 450.45 | CW43: 0 | CX43: 17465.02404 | CY43: 1594776.502 | CZ43: 0.7790926902 | DA43: 0.7790926902
B44: 23 | C44: 2025-09-30 | D44: 31 | E44: 700 | F44: 1600566.69 | G44: 1338.045416 | H44: 16933.78966 | I44: 1687.02596 | J44: 450.45 | K44: 0 | L44: 20409.31104 | M44: 1599228.644 | N44: 0.7701327752 | O44: 0.7701327752 | Q44: 20409.31104 | R44: 700 | S44: =IFERROR((1+'Simulación Cliente'!$E$21)^(R44/360),"") -> 1.307871299 | T44: 15604.98 | X44: 23 | Y44: 2025-09-30 | Z44: 31 | AA44: 700 | AB44: 1594776.502 | AC44: -1538.879183 | AD44: 16872.53022 | AE44: 1680.922999 | AF44: 450.45 | AG44: 0 | AH44: 17465.02404 | AI44: 1596315.382 | AJ44: 0.7701327752 | AK44: 0.7701327752 | AO44: 23 | AP44: 2025-09-30 | AQ44: 31 | AR44: 700 | AS44: 1564116.441 | AT44: 3228.876931 | AU44: 16548.15072 | AV44: 1648.606746 | AW44: 450.45 | AX44: 0 | AY44: 21876.0844 | AZ44: 1560887.565 | BA44: 0.7701327752 | BB44: 0.7701327752 | BF44: 23 | BG44: 2025-09-30 | BH44: 31 | BI44: 700 | BJ44: 1557910.17 | BK44: 145.1919424 | BL44: 16482.48917 | BM44: 1642.065224 | BN44: 450.45 | BO44: 0 | BP44: 18720.19633 | BQ44: 1557764.978 | BR44: 0.7701327752 | BS44: 0.7701327752 | BW44: 23 | BX44: 2025-09-30 | BY44: 31 | BZ44: 700 | CA44: 1600566.69 | CB44: 1338.045416 | CC44: 16933.78966 | CD44: 1687.02596 | CE44: 450.45 | CF44: 0 | CG44: 20409.31104 | CH44: 1599228.644 | CI44: 0.7701327752 | CJ44: 0.7701327752 | CN44: 23 | CO44: 2025-09-30 | CP44: 31 | CQ44: 700 | CR44: 1594776.502 | CS44: -1538.879183 | CT44: 16872.53022 | CU44: 1680.922999 | CV44: 450.45 | CW44: 0 | CX44: 17465.02404 | CY44: 1596315.382 | CZ44: 0.7701327752 | DA44: 0.7701327752
B45: 24 | C45: 2025-10-30 | D45: 30 | E45: 730 | F45: 1599228.644 | G45: 1956.593095 | H45: 16371.05472 | I45: 1631.213217 | J45: 450.45 | K45: 0 | L45: 20409.31104 | M45: 1597272.051 | N45: 0.7615600127 | O45: 0.7615600127 | Q45: 20409.31104 | R45: 730 | S45: =IFERROR((1+'Simulación Cliente'!$E$21)^(R45/360),"") -> 1.323002462 | T45: 15426.51 | X45: 24 | Y45: 2025-10-30 | Z45: 30 | AA45: 730 | AB45: 1596315.382 | AC45: -954.8997565 | AD45: 16341.23211 | AE45: 1628.241689 | AF45: 450.45 | AG45: 0 | AH45: 17465.02404 | AI45: 1597270.281 | AJ45: 0.7615600127 | AK45: 0.7615600127 | AO45: 24 | AP45: 2025-10-30 | AQ45: 30 | AR45: 730 | AS45: 1560887.565 | AT45: 3854.966027 | AU45: 15978.56306 | AV45: 1592.105316 | AW45: 450.45 | AX45: 0 | AY45: 21876.0844 | AZ45: 1557032.599 | BA45: 0.7615600127 | BB45: 0.7615600127 | BF45: 24 | BG45: 2025-10-30 | BH45: 30 | BI45: 730 | BJ45: 1557764.978 | BK45: 734.2284329 | BL45: 15946.59762 | BM45: 1588.920277 | BN45: 450.45 | BO45: 0 | BP45: 18720.19633 | BQ45: 1557030.749 | BR45: 0.7615600127 | BS45: 0.7615600127 | BW45: 24 | BX45: 2025-10-30 | BY45: 30 | BZ45: 730 | CA45: 1599228.644 | CB45: 1956.593095 | CC45: 16371.05472 | CD45: 1631.213217 | CE45: 450.45 | CF45: 0 | CG45: 20409.31104 | CH45: 1597272.051 | CI45: 0.7615600127 | CJ45: 0.7615600127 | CN45: 24 | CO45: 2025-10-30 | CP45: 30 | CQ45: 730 | CR45: 1596315.382 | CS45: -954.8997565 | CT45: 16341.23211 | CU45: 1628.241689 | CV45: 450.45 | CW45: 0 | CX45: 17465.02404 | CY45: 1597270.281 | CZ45: 0.7615600127 | DA45: 0.7615600127
B46: 25 | C46: 2025-11-30 | D46: 31 | E46: 761 | F46: 1597272.051 | G46: 1376.374875 | H46: 16898.93281 | I46: 1683.553352 | J46: 450.45 | K46: 0 | L46: 20409.31104 | M46: 1595895.676 | N46: 0.7528017315 | O46: 0.7528017315 | Q46: 20409.31104 | R46: 761 | S46: =IFERROR((1+'Simulación Cliente'!$E$21)^(R46/360),"") -> 1.338821929 | T46: 15244.23 | X46: 25 | Y46: 2025-11-30 | Z46: 31 | AA46: 761 | AB46: 1597270.281 | AC46: -1567.891531 | AD46: 16898.91409 | AE46: 1683.551487 | AF46: 450.45 | AG46: 0 | AH46: 17465.02404 | AI46: 1598838.173 | AJ46: 0.7528017315 | AK46: 0.7528017315 | AO46: 25 | AP46: 2025-11-30 | AQ46: 31 | AR46: 761 | AS46: 1557032.599 | AT46: 3311.289576 | AU46: 16473.20458 | AV46: 1641.140249 | AW46: 450.45 | AX46: 0 | AY46: 21876.0844 | AZ46: 1553721.309 | BA46: 0.7528017315 | BB46: 0.7528017315 | BF46: 25 | BG46: 2025-11-30 | BH46: 31 | BI46: 761 | BJ46: 1557030.749 | BK46: 155.4230217 | BL46: 16473.18501 | BM46: 1641.138299 | BN46: 450.45 | BO46: 0 | BP46: 18720.19633 | BQ46: 1556875.326 | BR46: 0.7528017315 | BS46: 0.7528017315 | BW46: 25 | BX46: 2025-11-30 | BY46: 31 | BZ46: 761 | CA46: 1597272.051 | CB46: 1376.374875 | CC46: 16898.93281 | CD46: 1683.553352 | CE46: 450.45 | CF46: 0 | CG46: 20409.31104 | CH46: 1595895.676 | CI46: 0.7528017315 | CJ46: 0.7528017315 | CN46: 25 | CO46: 2025-11-30 | CP46: 31 | CQ46: 761 | CR46: 1597270.281 | CS46: -1567.891531 | CT46: 16898.91409 | CU46: 1683.551487 | CV46: 450.45 | CW46: 0 | CX46: 17465.02404 | CY46: 1598838.173 | CZ46: 0.7528017315 | DA46: 0.7528017315
B47: 26 | C47: 2025-12-30 | D47: 30 | E47: 791 | F47: 1595895.676 | G47: 1994.111797 | H47: 16336.93565 | I47: 1627.81359 | J47: 450.45 | K47: 0 | L47: 20409.31104 | M47: 1593901.564 | N47: 0.7444218901 | O47: 0.7444218901 | Q47: 20409.31104 | R47: 791 | S47: =IFERROR((1+'Simulación Cliente'!$E$21)^(R47/360),"") -> 1.35431117 | T47: 15069.88 | X47: 26 | Y47: 2025-12-30 | Z47: 30 | AA47: 791 | AB47: 1598838.173 | AC47: 16481.72562 | AD47: 16367.05753 | AE47: 1630.814936 | AF47: 450.45 | AG47: 0 | AH47: 34930.04808 | AI47: 1582356.447 | AJ47: 1.48884378 | AK47: 0.7444218901 | AO47: 26 | AP47: 2025-12-30 | AQ47: 30 | AR47: 791 | AS47: 1553721.309 | AT47: 3935.635451 | AU47: 15905.20322 | AV47: 1584.795735 | AW47: 450.45 | AX47: 0 | AY47: 21876.0844 | AZ47: 1549785.673 | BA47: 0.7444218901 | BB47: 0.7444218901 | BF47: 26 | BG47: 2025-12-30 | BH47: 30 | BI47: 791 | BJ47: 1556875.326 | BK47: 19464.43943 | BL47: 15937.4904 | BM47: 1588.012833 | BN47: 450.45 | BO47: 0 | BP47: 37440.39267 | BQ47: 1537410.887 | BR47: 1.48884378 | BS47: 0.7444218901 | BW47: 26 | BX47: 2025-12-30 | BY47: 30 | BZ47: 791 | CA47: 1595895.676 | CB47: 1994.111797 | CC47: 16336.93565 | CD47: 1627.81359 | CE47: 450.45 | CF47: 0 | CG47: 20409.31104 | CH47: 1593901.564 | CI47: 0.7444218901 | CJ47: 0.7444218901 | CN47: 26 | CO47: 2025-12-30 | CP47: 30 | CQ47: 791 | CR47: 1598838.173 | CS47: 16481.72562 | CT47: 16367.05753 | CU47: 1630.814936 | CV47: 450.45 | CW47: 0 | CX47: 34930.04808 | CY47: 1582356.447 | CZ47: 1.48884378 | DA47: 0.7444218901
B48: 27 | C48: 2026-01-30 | D48: 31 | E48: 822 | F48: 1593901.564 | G48: 1415.586744 | H48: 16863.27349 | I48: 1680.000799 | J48: 450.45 | K48: 0 | L48: 20409.31104 | M48: 1592485.978 | N48: 0.7358607049 | O48: 0.7358607049 | Q48: 20409.31104 | R48: 822 | S48: =IFERROR((1+'Simulación Cliente'!$E$21)^(R48/360),"") -> 1.370505003 | T48: 14891.82 | X48: 27 | Y48: 2026-01-30 | Z48: 31 | AA48: 822 | AB48: 1582356.447 | AC48: -1394.385637 | AD48: 16741.12764 | AE48: 1667.832039 | AF48: 450.45 | AG48: 0 | AH48: 17465.02404 | AI48: 1583750.833 | AJ48: 0.7358607049 | AK48: 0.7358607049 | AO48: 27 | AP48: 2026-01-30 | AQ48: 31 | AR48: 822 | AS48: 1549785.673 | AT48: 3395.599499 | AU48: 16396.53304 | AV48: 1633.50186 | AW48: 450.45 | AX48: 0 | AY48: 21876.0844 | AZ48: 1546390.074 | BA48: 0.7358607049 | BB48: 0.7358607049 | BF48: 27 | BG48: 2026-01-30 | BH48: 31 | BI48: 822 | BJ48: 1537410.887 | BK48: 383.6783288 | BL48: 16265.60939 | BM48: 1620.458613 | BN48: 450.45 | BO48: 0 | BP48: 18720.19633 | BQ48: 1537027.209 | BR48: 0.7358607049 | BS48: 0.7358607049 | BW48: 27 | BX48: 2026-01-30 | BY48: 31 | BZ48: 822 | CA48: 1593901.564 | CB48: 1415.586744 | CC48: 16863.27349 | CD48: 1680.000799 | CE48: 450.45 | CF48: 0 | CG48: 20409.31104 | CH48: 1592485.978 | CI48: 0.7358607049 | CJ48: 0.7358607049 | CN48: 27 | CO48: 2026-01-30 | CP48: 31 | CQ48: 822 | CR48: 1582356.447 | CS48: -1394.385637 | CT48: 16741.12764 | CU48: 1667.832039 | CV48: 450.45 | CW48: 0 | CX48: 17465.02404 | CY48: 1583750.833 | CZ48: 0.7358607049 | DA48: 0.7358607049
B49: 28 | C49: 2026-02-28 | D49: 29 | E49: 851 | F49: 1592485.978 | G49: 2632.745699 | H49: 15755.95085 | I49: 1570.16449 | J49: 450.45 | K49: 0 | L49: 20409.31104 | M49: 1589853.232 | N49: 0.7279410106 | O49: 0.7279410106 | Q49: 20409.31104 | R49: 851 | S49: =IFERROR((1+'Simulación Cliente'!$E$21)^(R49/360),"") -> 1.385829325 | T49: 14727.15 | X49: 28 | Y49: 2026-02-28 | Z49: 29 | AA49: 851 | AB49: 1583750.833 | AC49: -216.5036456 | AD49: 15669.5259 | AE49: 1561.551784 | AF49: 450.45 | AG49: 0 | AH49: 17465.02404 | AI49: 1583967.337 | AJ49: 0.7279410106 | AK49: 0.7279410106 | AO49: 28 | AP49: 2026-02-28 | AQ49: 29 | AR49: 851 | AS49: 1546390.074 | AT49: 4601.038673 | AU49: 15299.88103 | AV49: 1524.714701 | AW49: 450.45 | AX49: 0 | AY49: 21876.0844 | AZ49: 1541789.035 | BA49: 0.7279410106 | BB49: 0.7279410106 | BF49: 28 | BG49: 2026-02-28 | BH49: 29 | BI49: 851 | BJ49: 1537027.209 | BK49: 1547.017805 | BL49: 15207.24546 | BM49: 1515.483073 | BN49: 450.45 | BO49: 0 | BP49: 18720.19633 | BQ49: 1535480.191 | BR49: 0.7279410106 | BS49: 0.7279410106 | BW49: 28 | BX49: 2026-02-28 | BY49: 29 | BZ49: 851 | CA49: 1592485.978 | CB49: 2632.745699 | CC49: 15755.95085 | CD49: 1570.16449 | CE49: 450.45 | CF49: 0 | CG49: 20409.31104 | CH49: 1589853.232 | CI49: 0.7279410106 | CJ49: 0.7279410106 | CN49: 28 | CO49: 2026-02-28 | CP49: 29 | CQ49: 851 | CR49: 1583750.833 | CS49: -216.5036456 | CT49: 15669.5259 | CU49: 1561.551784 | CV49: 450.45 | CW49: 0 | CX49: 17465.02404 | CY49: 1583967.337 | CZ49: 0.7279410106 | DA49: 0.7279410106
B50: 29 | C50: 2026-03-30 | D50: 30 | E50: 881 | F50: 1589853.232 | G50: 2062.130651 | H50: 16275.08009 | I50: 1621.650297 | J50: 450.45 | K50: 0 | L50: 20409.31104 | M50: 1587791.101 | N50: 0.7198379073 | O50: 0.7198379073 | Q50: 20409.31104 | R50: 881 | S50: =IFERROR((1+'Simulación Cliente'!$E$21)^(R50/360),"") -> 1.401862409 | T50: 14558.71 | X50: 29 | Y50: 2026-03-30 | Z50: 30 | AA50: 881 | AB50: 1583967.337 | AC50: -815.8997353 | AD50: 16214.82709 | AE50: 1615.646683 | AF50: 450.45 | AG50: 0 | AH50: 17465.02404 | AI50: 1584783.236 | AJ50: 0.7198379073 | AK50: 0.7198379073 | AO50: 29 | AP50: 2026-03-30 | AQ50: 30 | AR50: 881 | AS50: 1541789.035 | AT50: 4069.955198 | AU50: 15783.05439 | AV50: 1572.624816 | AW50: 450.45 | AX50: 0 | AY50: 21876.0844 | AZ50: 1537719.08 | BA50: 0.7198379073 | BB50: 0.7198379073 | BF50: 29 | BG50: 2026-03-30 | BH50: 30 | BI50: 881 | BJ50: 1535480.191 | BK50: 985.084812 | BL50: 15718.47173 | BM50: 1566.189795 | BN50: 450.45 | BO50: 0 | BP50: 18720.19633 | BQ50: 1534495.106 | BR50: 0.7198379073 | BS50: 0.7198379073 | BW50: 29 | BX50: 2026-03-30 | BY50: 30 | BZ50: 881 | CA50: 1589853.232 | CB50: 2062.130651 | CC50: 16275.08009 | CD50: 1621.650297 | CE50: 450.45 | CF50: 0 | CG50: 20409.31104 | CH50: 1587791.101 | CI50: 0.7198379073 | CJ50: 0.7198379073 | CN50: 29 | CO50: 2026-03-30 | CP50: 30 | CQ50: 881 | CR50: 1583967.337 | CS50: -815.8997353 | CT50: 16214.82709 | CU50: 1615.646683 | CV50: 450.45 | CW50: 0 | CX50: 17465.02404 | CY50: 1584783.236 | CZ50: 0.7198379073 | DA50: 0.7198379073
B51: 30 | C51: 2026-04-30 | D51: 31 | E51: 912 | F51: 1587791.101 | G51: 1486.675195 | H51: 16798.62558 | I51: 1673.560261 | J51: 450.45 | K51: 0 | L51: 20409.31104 | M51: 1586304.426 | N51: 0.711559449 | O51: 0.711559449 | Q51: 20409.31104 | R51: 912 | S51: =IFERROR((1+'Simulación Cliente'!$E$21)^(R51/360),"") -> 1.418624823 | T51: 14386.69 | X51: 30 | Y51: 2026-04-30 | Z51: 31 | AA51: 912 | AB51: 1584783.236 | AC51: -1422.618632 | AD51: 16766.80275 | AE51: 1670.389918 | AF51: 450.45 | AG51: 0 | AH51: 17465.02404 | AI51: 1586205.855 | AJ51: 0.711559449 | AK51: 0.711559449 | AO51: 30 | AP51: 2026-04-30 | AQ51: 31 | AR51: 912 | AS51: 1537719.08 | AT51: 3535.98091 | AU51: 16268.87004 | AV51: 1620.783454 | AW51: 450.45 | AX51: 0 | AY51: 21876.0844 | AZ51: 1534183.099 | BA51: 0.711559449 | BB51: 0.711559449 | BF51: 30 | BG51: 2026-04-30 | BH51: 31 | BI51: 912 | BJ51: 1534495.106 | BK51: 417.6002014 | BL51: 16234.7608 | BM51: 1617.385328 | BN51: 450.45 | BO51: 0 | BP51: 18720.19633 | BQ51: 1534077.506 | BR51: 0.711559449 | BS51: 0.711559449 | BW51: 30 | BX51: 2026-04-30 | BY51: 31 | BZ51: 912 | CA51: 1587791.101 | CB51: 1486.675195 | CC51: 16798.62558 | CD51: 1673.560261 | CE51: 450.45 | CF51: 0 | CG51: 20409.31104 | CH51: 1586304.426 | CI51: 0.711559449 | CJ51: 0.711559449 | CN51: 30 | CO51: 2026-04-30 | CP51: 31 | CQ51: 912 | CR51: 1584783.236 | CS51: -1422.618632 | CT51: 16766.80275 | CU51: 1670.389918 | CV51: 450.45 | CW51: 0 | CX51: 17465.02404 | CY51: 1586205.855 | CZ51: 0.711559449 | DA51: 0.711559449
B52: 31 | C52: 2026-05-30 | D52: 30 | E52: 942 | F52: 1586304.426 | G52: 2102.079006 | H52: 16238.75151 | I52: 1618.030515 | J52: 450.45 | K52: 0 | L52: 20409.31104 | M52: 1584202.347 | N52: 0.7036386977 | O52: 0.7036386977 | Q52: 20409.31104 | R52: 942 | S52: =IFERROR((1+'Simulación Cliente'!$E$21)^(R52/360),"") -> 1.435037328 | T52: 14222.15 | X52: 31 | Y52: 2026-05-30 | Z52: 30 | AA52: 942 | AB52: 1586205.855 | AC52: -841.0983882 | AD52: 16237.74246 | AE52: 1617.929972 | AF52: 450.45 | AG52: 0 | AH52: 17465.02404 | AI52: 1587046.953 | AJ52: 0.7036386977 | AK52: 0.7036386977 | AO52: 31 | AP52: 2026-05-30 | AQ52: 30 | AR52: 942 | AS52: 1534183.099 | AT52: 4155.574037 | AU52: 15705.1936 | AV52: 1564.866761 | AW52: 450.45 | AX52: 0 | AY52: 21876.0844 | AZ52: 1530027.525 | BA52: 0.7036386977 | BB52: 0.7036386977 | BF52: 31 | BG52: 2026-05-30 | BH52: 30 | BI52: 942 | BJ52: 1534077.506 | BK52: 1000.874619 | BL52: 15704.11266 | BM52: 1564.759056 | BN52: 450.45 | BO52: 0 | BP52: 18720.19633 | BQ52: 1533076.631 | BR52: 0.7036386977 | BS52: 0.7036386977 | BW52: 31 | BX52: 2026-05-30 | BY52: 30 | BZ52: 942 | CA52: 1586304.426 | CB52: 2102.079006 | CC52: 16238.75151 | CD52: 1618.030515 | CE52: 450.45 | CF52: 0 | CG52: 20409.31104 | CH52: 1584202.347 | CI52: 0.7036386977 | CJ52: 0.7036386977 | CN52: 31 | CO52: 2026-05-30 | CP52: 30 | CQ52: 942 | CR52: 1586205.855 | CS52: -841.0983882 | CT52: 16237.74246 | CU52: 1617.929972 | CV52: 450.45 | CW52: 0 | CX52: 17465.02404 | CY52: 1587046.953 | CZ52: 0.7036386977 | DA52: 0.7036386977
B53: 32 | C53: 2026-06-30 | D53: 31 | E53: 973 | F53: 1584202.347 | G53: 1528.426364 | H53: 16760.65702 | I53: 1669.77765 | J53: 450.45 | K53: 0 | L53: 20409.31104 | M53: 1582673.921 | N53: 0.6955465375 | O53: 0.6955465375 | Q53: 20409.31104 | R53: 973 | S53: =IFERROR((1+'Simulación Cliente'!$E$21)^(R53/360),"") -> 1.452196424 | T53: 14054.1 | X53: 32 | Y53: 2026-06-30 | Z53: 31 | AA53: 973 | AB53: 1587046.953 | AC53: -1448.954465 | AD53: 16790.75259 | AE53: 1672.775916 | AF53: 450.45 | AG53: 0 | AH53: 17465.02404 | AI53: 1588495.908 | AJ53: 0.6955465375 | AK53: 0.6955465375 | AO53: 32 | AP53: 2026-06-30 | AQ53: 31 | AR53: 973 | AS53: 1530027.525 | AT53: 3625.463609 | AU53: 16187.49438 | AV53: 1612.676418 | AW53: 450.45 | AX53: 0 | AY53: 21876.0844 | AZ53: 1526402.062 | BA53: 0.6955465375 | BB53: 0.6955465375 | BF53: 32 | BG53: 2026-06-30 | BH53: 31 | BI53: 973 | BJ53: 1533076.631 | BK53: 434.1025804 | BL53: 16219.75352 | BM53: 1615.89023 | BN53: 450.45 | BO53: 0 | BP53: 18720.19633 | BQ53: 1532642.529 | BR53: 0.6955465375 | BS53: 0.6955465375 | BW53: 32 | BX53: 2026-06-30 | BY53: 31 | BZ53: 973 | CA53: 1584202.347 | CB53: 1528.426364 | CC53: 16760.65702 | CD53: 1669.77765 | CE53: 450.45 | CF53: 0 | CG53: 20409.31104 | CH53: 1582673.921 | CI53: 0.6955465375 | CJ53: 0.6955465375 | CN53: 32 | CO53: 2026-06-30 | CP53: 31 | CQ53: 973 | CR53: 1587046.953 | CS53: -1448.954465 | CT53: 16790.75259 | CU53: 1672.775916 | CV53: 450.45 | CW53: 0 | CX53: 17465.02404 | CY53: 1588495.908 | CZ53: 0.6955465375 | DA53: 0.6955465375
B54: 33 | C54: 2026-07-30 | D54: 30 | E54: 1003 | F54: 1582673.921 | G54: 2142.94704 | H54: 16201.5866 | I54: 1614.327399 | J54: 450.45 | K54: 0 | L54: 20409.31104 | M54: 1580530.974 | N54: 0.6878040345 | O54: 0.6878040345 | Q54: 20409.31104 | R54: 1003 | S54: =IFERROR((1+'Simulación Cliente'!$E$21)^(R54/360),"") -> 1.468997329 | T54: 13893.36 | X54: 33 | Y54: 2026-07-30 | Z54: 30 | AA54: 1003 | AB54: 1588495.908 | AC54: 16598.14688 | AD54: 16261.18537 | AE54: 1620.265826 | AF54: 450.45 | AG54: 0 | AH54: 34930.04808 | AI54: 1571897.761 | AJ54: 1.375608069 | AK54: 0.6878040345 | AO54: 33 | AP54: 2026-07-30 | AQ54: 30 | AR54: 1003 | AS54: 1526402.062 | AT54: 4243.163967 | AU54: 15625.54033 | AV54: 1556.930103 | AW54: 450.45 | AX54: 0 | AY54: 21876.0844 | AZ54: 1522158.898 | BA54: 0.6878040345 | BB54: 0.6878040345 | BF54: 33 | BG54: 2026-07-30 | BH54: 30 | BI54: 1003 | BJ54: 1532642.529 | BK54: 19737.22427 | BL54: 15689.42302 | BM54: 1563.295379 | BN54: 450.45 | BO54: 0 | BP54: 37440.39267 | BQ54: 1512905.304 | BR54: 1.375608069 | BS54: 0.6878040345 | BW54: 33 | BX54: 2026-07-30 | BY54: 30 | BZ54: 1003 | CA54: 1582673.921 | CB54: 2142.94704 | CC54: 16201.5866 | CD54: 1614.327399 | CE54: 450.45 | CF54: 0 | CG54: 20409.31104 | CH54: 1580530.974 | CI54: 0.6878040345 | CJ54: 0.6878040345 | CN54: 33 | CO54: 2026-07-30 | CP54: 30 | CQ54: 1003 | CR54: 1588495.908 | CS54: 16598.14688 | CT54: 16261.18537 | CU54: 1620.265826 | CV54: 450.45 | CW54: 0 | CX54: 34930.04808 | CY54: 1571897.761 | CZ54: 1.375608069 | DA54: 0.6878040345
B55: 34 | C55: 2026-08-30 | D55: 31 | E55: 1034 | F55: 1580530.974 | G55: 1571.138715 | H55: 16721.81436 | I55: 1665.907957 | J55: 450.45 | K55: 0 | L55: 20409.31104 | M55: 1578959.835 | N55: 0.67989398 | O55: 0.67989398 | Q55: 20409.31104 | R55: 1034 | S55: =IFERROR((1+'Simulación Cliente'!$E$21)^(R55/360),"") -> 1.486562492 | T55: 13729.2 | X55: 34 | Y55: 2026-08-30 | Z55: 31 | AA55: 1034 | AB55: 1571897.761 | AC55: -1272.710438 | AD55: 16630.47608 | AE55: 1656.808396 | AF55: 450.45 | AG55: 0 | AH55: 17465.02404 | AI55: 1573170.471 | AJ55: 0.67989398 | AK55: 0.67989398 | AO55: 34 | AP55: 2026-08-30 | AQ55: 31 | AR55: 1034 | AS55: 1522158.898 | AT55: 3717.00635 | AU55: 16104.24531 | AV55: 1604.382743 | AW55: 450.45 | AX55: 0 | AY55: 21876.0844 | AZ55: 1518441.891 | BA55: 0.67989398 | BB55: 0.67989398 | BF55: 34 | BG55: 2026-08-30 | BH55: 31 | BI55: 1034 | BJ55: 1512905.304 | BK55: 668.7735632 | BL55: 16006.34348 | BM55: 1594.62929 | BN55: 450.45 | BO55: 0 | BP55: 18720.19633 | BQ55: 1512236.531 | BR55: 0.67989398 | BS55: 0.67989398 | BW55: 34 | BX55: 2026-08-30 | BY55: 31 | BZ55: 1034 | CA55: 1580530.974 | CB55: 1571.138715 | CC55: 16721.81436 | CD55: 1665.907957 | CE55: 450.45 | CF55: 0 | CG55: 20409.31104 | CH55: 1578959.835 | CI55: 0.67989398 | CJ55: 0.67989398 | CN55: 34 | CO55: 2026-08-30 | CP55: 31 | CQ55: 1034 | CR55: 1571897.761 | CS55: -1272.710438 | CT55: 16630.47608 | CU55: 1656.808396 | CV55: 450.45 | CW55: 0 | CX55: 17465.02404 | CY55: 1573170.471 | CZ55: 0.67989398 | DA55: 0.67989398
B56: 35 | C56: 2026-09-30 | D56: 31 | E56: 1065 | F56: 1578959.835 | G56: 1589.417169 | H56: 16705.19192 | I56: 1664.251949 | J56: 450.45 | K56: 0 | L56: 20409.31104 | M56: 1577370.418 | N56: 0.6720748947 | O56: 0.6720748947 | Q56: 20409.31104 | R56: 1065 | S56: =IFERROR((1+'Simulación Cliente'!$E$21)^(R56/360),"") -> 1.504337686 | T56: 13566.97 | X56: 35 | Y56: 2026-09-30 | Z56: 31 | AA56: 1065 | AB56: 1573170.471 | AC56: -1287.51701 | AD56: 16643.9412 | AE56: 1658.149856 | AF56: 450.45 | AG56: 0 | AH56: 17465.02404 | AI56: 1574457.988 | AJ56: 0.6720748947 | AK56: 0.6720748947 | AO56: 35 | AP56: 2026-09-30 | AQ56: 31 | AR56: 1065 | AS56: 1518441.891 | AT56: 3760.249591 | AU56: 16064.91986 | AV56: 1600.464952 | AW56: 450.45 | AX56: 0 | AY56: 21876.0844 | AZ56: 1514681.642 | BA56: 0.6720748947 | BB56: 0.6720748947 | BF56: 35 | BG56: 2026-09-30 | BH56: 31 | BI56: 1065 | BJ56: 1512236.531 | BK56: 676.5540008 | BL56: 15999.26794 | BM56: 1593.924391 | BN56: 450.45 | BO56: 0 | BP56: 18720.19633 | BQ56: 1511559.977 | BR56: 0.6720748947 | BS56: 0.6720748947 | BW56: 35 | BX56: 2026-09-30 | BY56: 31 | BZ56: 1065 | CA56: 1578959.835 | CB56: 1589.417169 | CC56: 16705.19192 | CD56: 1664.251949 | CE56: 450.45 | CF56: 0 | CG56: 20409.31104 | CH56: 1577370.418 | CI56: 0.6720748947 | CJ56: 0.6720748947 | CN56: 35 | CO56: 2026-09-30 | CP56: 31 | CQ56: 1065 | CR56: 1573170.471 | CS56: -1287.51701 | CT56: 16643.9412 | CU56: 1658.149856 | CV56: 450.45 | CW56: 0 | CX56: 17465.02404 | CY56: 1574457.988 | CZ56: 0.6720748947 | DA56: 0.6720748947
B57: 36 | C57: 2026-10-30 | D57: 30 | E57: 1095 | F57: 1577370.418 | G57: 2202.647747 | H57: 16147.29546 | I57: 1608.917826 | J57: 450.45 | K57: 0 | L57: 20409.31104 | M57: 1575167.77 | N57: 0.6645936672 | O57: 0.6645936672 | Q57: 20409.31104 | R57: 1095 | S57: =IFERROR((1+'Simulación Cliente'!$E$21)^(R57/360),"") -> 1.52174183 | T57: 13411.81 | X57: 36 | Y57: 2026-10-30 | Z57: 30 | AA57: 1095 | AB57: 1574457.988 | AC57: -708.8544825 | AD57: 16117.48138 | AE57: 1605.947148 | AF57: 450.45 | AG57: 0 | AH57: 17465.02404 | AI57: 1575166.843 | AJ57: 0.6645936672 | AK57: 0.6645936672 | AO57: 36 | AP57: 2026-10-30 | AQ57: 30 | AR57: 1095 | AS57: 1514681.642 | AT57: 4375.098909 | AU57: 15505.56022 | AV57: 1544.975274 | AW57: 450.45 | AX57: 0 | AY57: 21876.0844 | AZ57: 1510306.543 | BA57: 0.6645936672 | BB57: 0.6645936672 | BF57: 36 | BG57: 2026-10-30 | BH57: 30 | BI57: 1095 | BJ57: 1511559.977 | BK57: 1254.350939 | BL57: 15473.60422 | BM57: 1541.791176 | BN57: 450.45 | BO57: 0 | BP57: 18720.19633 | BQ57: 1510305.626 | BR57: 0.6645936672 | BS57: 0.6645936672 | BW57: 36 | BX57: 2026-10-30 | BY57: 30 | BZ57: 1095 | CA57: 1577370.418 | CB57: 2202.647747 | CC57: 16147.29546 | CD57: 1608.917826 | CE57: 450.45 | CF57: 0 | CG57: 20409.31104 | CH57: 1575167.77 | CI57: 0.6645936672 | CJ57: 0.6645936672 | CN57: 36 | CO57: 2026-10-30 | CP57: 30 | CQ57: 1095 | CR57: 1574457.988 | CS57: -708.8544825 | CT57: 16117.48138 | CU57: 1605.947148 | CV57: 450.45 | CW57: 0 | CX57: 17465.02404 | CY57: 1575166.843 | CZ57: 0.6645936672 | DA57: 0.6645936672
B58: 37 | C58: 2026-11-30 | D58: 31 | E58: 1126 | F58: 1575167.77 | G58: 1633.533632 | H58: 16665.07236 | I58: 1660.255044 | J58: 450.45 | K58: 0 | L58: 20409.31104 | M58: 1573534.236 | N58: 0.6569505424 | O58: 0.6569505424 | Q58: 20409.31104 | R58: 1126 | S58: =IFERROR((1+'Simulación Cliente'!$E$21)^(R58/360),"") -> 1.539937672 | T58: 13253.34 | X58: 37 | Y58: 2026-11-30 | Z58: 31 | AA58: 1126 | AB58: 1575166.843 | AC58: -1310.742575 | AD58: 16665.06255 | AE58: 1660.254067 | AF58: 450.45 | AG58: 0 | AH58: 17465.02404 | AI58: 1576477.585 | AJ58: 0.6569505424 | AK58: 0.6569505424 | AO58: 37 | AP58: 2026-11-30 | AQ58: 31 | AR58: 1126 | AS58: 1510306.543 | AT58: 3854.895334 | AU58: 15978.84892 | AV58: 1591.890149 | AW58: 450.45 | AX58: 0 | AY58: 21876.0844 | AZ58: 1506451.647 | BA58: 0.6569505424 | BB58: 0.6569505424 | BF58: 37 | BG58: 2026-11-30 | BH58: 31 | BI58: 1126 | BJ58: 1510305.626 | BK58: 699.017935 | BL58: 15978.83922 | BM58: 1591.889182 | BN58: 450.45 | BO58: 0 | BP58: 18720.19633 | BQ58: 1509606.608 | BR58: 0.6569505424 | BS58: 0.6569505424 | BW58: 37 | BX58: 2026-11-30 | BY58: 31 | BZ58: 1126 | CA58: 1575167.77 | CB58: 1633.533632 | CC58: 16665.07236 | CD58: 1660.255044 | CE58: 450.45 | CF58: 0 | CG58: 20409.31104 | CH58: 1573534.236 | CI58: 0.6569505424 | CJ58: 0.6569505424 | CN58: 37 | CO58: 2026-11-30 | CP58: 31 | CQ58: 1126 | CR58: 1575166.843 | CS58: -1310.742575 | CT58: 16665.06255 | CU58: 1660.254067 | CV58: 450.45 | CW58: 0 | CX58: 17465.02404 | CY58: 1576477.585 | CZ58: 0.6569505424 | DA58: 0.6569505424
B59: 38 | C59: 2026-12-30 | D59: 30 | E59: 1156 | F59: 1573534.236 | G59: 2245.831044 | H59: 16108.02507 | I59: 1605.004921 | J59: 450.45 | K59: 0 | L59: 20409.31104 | M59: 1571288.405 | N59: 0.6496376722 | O59: 0.6496376722 | Q59: 20409.31104 | R59: 1156 | S59: =IFERROR((1+'Simulación Cliente'!$E$21)^(R59/360),"") -> 1.557753683 | T59: 13101.76 | X59: 38 | Y59: 2026-12-30 | Z59: 30 | AA59: 1156 | AB59: 1576477.585 | AC59: 16733.43527 | AD59: 16138.15568 | AE59: 1608.007137 | AF59: 450.45 | AG59: 0 | AH59: 34930.04808 | AI59: 1559744.15 | AJ59: 1.299275344 | AK59: 0.6496376722 | AO59: 38 | AP59: 2026-12-30 | AQ59: 30 | AR59: 1156 | AS59: 1506451.647 | AT59: 4467.742674 | AU59: 15421.31105 | AV59: 1536.58068 | AW59: 450.45 | AX59: 0 | AY59: 21876.0844 | AZ59: 1501983.905 | BA59: 0.6496376722 | BB59: 0.6496376722 | BF59: 38 | BG59: 2026-12-30 | BH59: 30 | BI59: 1156 | BJ59: 1509606.608 | BK59: 19996.53604 | BL59: 15453.60789 | BM59: 1539.79874 | BN59: 450.45 | BO59: 0 | BP59: 37440.39267 | BQ59: 1489610.072 | BR59: 1.299275344 | BS59: 0.6496376722 | BW59: 38 | BX59: 2026-12-30 | BY59: 30 | BZ59: 1156 | CA59: 1573534.236 | CB59: 2245.831044 | CC59: 16108.02507 | CD59: 1605.004921 | CE59: 450.45 | CF59: 0 | CG59: 20409.31104 | CH59: 1571288.405 | CI59: 0.6496376722 | CJ59: 0.6496376722 | CN59: 38 | CO59: 2026-12-30 | CP59: 30 | CQ59: 1156 | CR59: 1576477.585 | CS59: 16733.43527 | CT59: 16138.15568 | CU59: 1608.007137 | CV59: 450.45 | CW59: 0 | CX59: 34930.04808 | CY59: 1559744.15 | CZ59: 1.299275344 | DA59: 0.6496376722
B60: 39 | C60: 2027-01-30 | D60: 31 | E60: 1187 | F60: 1571288.405 | G60: 1678.665732 | H60: 16624.02918 | I60: 1656.166124 | J60: 450.45 | K60: 0 | L60: 20409.31104 | M60: 1569609.74 | N60: 0.642166548 | O60: 0.642166548 | Q60: 20409.31104 | R60: 1187 | S60: =IFERROR((1+'Simulación Cliente'!$E$21)^(R60/360),"") -> 1.576380128 | T60: 12946.95 | X60: 39 | Y60: 2027-01-30 | Z60: 31 | AA60: 1187 | AB60: 1559744.15 | AC60: -1131.316676 | AD60: 16501.89244 | AE60: 1643.998273 | AF60: 450.45 | AG60: 0 | AH60: 17465.02404 | AI60: 1560875.467 | AJ60: 0.642166548 | AK60: 0.642166548 | AO60: 39 | AP60: 2027-01-30 | AQ60: 31 | AR60: 1187 | AS60: 1501983.905 | AT60: 3951.719983 | AU60: 15890.79648 | AV60: 1583.117939 | AW60: 450.45 | AX60: 0 | AY60: 21876.0844 | AZ60: 1498032.185 | BA60: 0.642166548 | BB60: 0.642166548 | BF60: 39 | BG60: 2027-01-30 | BH60: 31 | BI60: 1187 | BJ60: 1489610.072 | BK60: 939.7877182 | BL60: 15759.88292 | BM60: 1570.075698 | BN60: 450.45 | BO60: 0 | BP60: 18720.19633 | BQ60: 1488670.284 | BR60: 0.642166548 | BS60: 0.642166548 | BW60: 39 | BX60: 2027-01-30 | BY60: 31 | BZ60: 1187 | CA60: 1571288.405 | CB60: 1678.665732 | CC60: 16624.02918 | CD60: 1656.166124 | CE60: 450.45 | CF60: 0 | CG60: 20409.31104 | CH60: 1569609.74 | CI60: 0.642166548 | CJ60: 0.642166548 | CN60: 39 | CO60: 2027-01-30 | CP60: 31 | CQ60: 1187 | CR60: 1559744.15 | CS60: -1131.316676 | CT60: 16501.89244 | CU60: 1643.998273 | CV60: 450.45 | CW60: 0 | CX60: 17465.02404 | CY60: 1560875.467 | CZ60: 0.642166548 | DA60: 0.642166548
B61: 40 | C61: 2027-02-28 | D61: 29 | E61: 1216 | F61: 1569609.74 | G61: 2881.637271 | H61: 15529.61486 | I61: 1547.608903 | J61: 450.45 | K61: 0 | L61: 20409.31104 | M61: 1566728.102 | N61: 0.6352552362 | O61: 0.6352552362 | Q61: 20409.31104 | R61: 1216 | S61: =IFERROR((1+'Simulación Cliente'!$E$21)^(R61/360),"") -> 1.594006446 | T61: 12803.78 | X61: 40 | Y61: 2027-02-28 | Z61: 29 | AA61: 1216 | AB61: 1560875.467 | AC61: 32.37844005 | AD61: 15443.19854 | AE61: 1538.997056 | AF61: 450.45 | AG61: 0 | AH61: 17465.02404 | AI61: 1560843.088 | AJ61: 0.6352552362 | AK61: 0.6352552362 | AO61: 40 | AP61: 2027-02-28 | AQ61: 29 | AR61: 1216 | AS61: 1498032.185 | AT61: 5127.168497 | AU61: 14821.43127 | AV61: 1477.034633 | AW61: 450.45 | AX61: 0 | AY61: 21876.0844 | AZ61: 1492905.016 | BA61: 0.6352552362 | BB61: 0.6352552362 | BF61: 40 | BG61: 2027-02-28 | BH61: 29 | BI61: 1216 | BJ61: 1488670.284 | BK61: 2073.137132 | BL61: 14728.80525 | BM61: 1467.803956 | BN61: 450.45 | BO61: 0 | BP61: 18720.19633 | BQ61: 1486597.147 | BR61: 0.6352552362 | BS61: 0.6352552362 | BW61: 40 | BX61: 2027-02-28 | BY61: 29 | BZ61: 1216 | CA61: 1569609.74 | CB61: 2881.637271 | CC61: 15529.61486 | CD61: 1547.608903 | CE61: 450.45 | CF61: 0 | CG61: 20409.31104 | CH61: 1566728.102 | CI61: 0.6352552362 | CJ61: 0.6352552362 | CN61: 40 | CO61: 2027-02-28 | CP61: 29 | CQ61: 1216 | CR61: 1560875.467 | CS61: 32.37844005 | CT61: 15443.19854 | CU61: 1538.997056 | CV61: 450.45 | CW61: 0 | CX61: 17465.02404 | CY61: 1560843.088 | CZ61: 0.6352552362 | DA61: 0.6352552362
B62: 41 | C62: 2027-03-30 | D62: 30 | E62: 1246 | F62: 1566728.102 | G62: 2322.446636 | H62: 16038.35174 | I62: 1598.062664 | J62: 450.45 | K62: 0 | L62: 20409.31104 | M62: 1564405.656 | N62: 0.6281838682 | O62: 0.6281838682 | Q62: 20409.31104 | R62: 1246 | S62: =IFERROR((1+'Simulación Cliente'!$E$21)^(R62/360),"") -> 1.612447995 | T62: 12657.35 | X62: 41 | Y62: 2027-03-30 | Z62: 30 | AA62: 1246 | AB62: 1560843.088 | AC62: -555.5936726 | AD62: 15978.10776 | AE62: 1592.05995 | AF62: 450.45 | AG62: 0 | AH62: 17465.02404 | AI62: 1561398.682 | AJ62: 0.6281838682 | AK62: 0.6281838682 | AO62: 41 | AP62: 2027-03-30 | AQ62: 30 | AR62: 1246 | AS62: 1492905.016 | AT62: 4620.234992 | AU62: 15282.63629 | AV62: 1522.763117 | AW62: 450.45 | AX62: 0 | AY62: 21876.0844 | AZ62: 1488284.781 | BA62: 0.6281838682 | BB62: 0.6281838682 | BF62: 41 | BG62: 2027-03-30 | BH62: 30 | BI62: 1246 | BJ62: 1486597.147 | BK62: 1535.353628 | BL62: 15218.06362 | BM62: 1516.32909 | BN62: 450.45 | BO62: 0 | BP62: 18720.19633 | BQ62: 1485061.793 | BR62: 0.6281838682 | BS62: 0.6281838682 | BW62: 41 | BX62: 2027-03-30 | BY62: 30 | BZ62: 1246 | CA62: 1566728.102 | CB62: 2322.446636 | CC62: 16038.35174 | CD62: 1598.062664 | CE62: 450.45 | CF62: 0 | CG62: 20409.31104 | CH62: 1564405.656 | CI62: 0.6281838682 | CJ62: 0.6281838682 | CN62: 41 | CO62: 2027-03-30 | CP62: 30 | CQ62: 1246 | CR62: 1560843.088 | CS62: -555.5936726 | CT62: 15978.10776 | CU62: 1592.05995 | CV62: 450.45 | CW62: 0 | CX62: 17465.02404 | CY62: 1561398.682 | CZ62: 0.6281838682 | DA62: 0.6281838682
B63: 42 | C63: 2027-04-30 | D63: 31 | E63: 1277 | F63: 1564405.656 | G63: 1758.738879 | H63: 16551.21057 | I63: 1648.911583 | J63: 450.45 | K63: 0 | L63: 20409.31104 | M63: 1562646.917 | N63: 0.6209594723 | O63: 0.6209594723 | Q63: 20409.31104 | R63: 1277 | S63: =IFERROR((1+'Simulación Cliente'!$E$21)^(R63/360),"") -> 1.631728433 | T63: 12507.79 | X63: 42 | Y63: 2027-04-30 | Z63: 31 | AA63: 1277 | AB63: 1561398.682 | AC63: -1150.565317 | AD63: 16519.39718 | AE63: 1645.742179 | AF63: 450.45 | AG63: 0 | AH63: 17465.02404 | AI63: 1562549.247 | AJ63: 0.6209594723 | AK63: 0.6209594723 | AO63: 42 | AP63: 2027-04-30 | AQ63: 31 | AR63: 1277 | AS63: 1488284.781 | AT63: 4111.094069 | AU63: 15745.86152 | AV63: 1568.678818 | AW63: 450.45 | AX63: 0 | AY63: 21876.0844 | AZ63: 1484173.687 | BA63: 0.6209594723 | BB63: 0.6209594723 | BF63: 42 | BG63: 2027-04-30 | BH63: 31 | BI63: 1277 | BJ63: 1485061.793 | BK63: 992.7018863 | BL63: 15711.76272 | BM63: 1565.281731 | BN63: 450.45 | BO63: 0 | BP63: 18720.19633 | BQ63: 1484069.091 | BR63: 0.6209594723 | BS63: 0.6209594723 | BW63: 42 | BX63: 2027-04-30 | BY63: 31 | BZ63: 1277 | CA63: 1564405.656 | CB63: 1758.738879 | CC63: 16551.21057 | CD63: 1648.911583 | CE63: 450.45 | CF63: 0 | CG63: 20409.31104 | CH63: 1562646.917 | CI63: 0.6209594723 | CJ63: 0.6209594723 | CN63: 42 | CO63: 2027-04-30 | CP63: 31 | CQ63: 1277 | CR63: 1561398.682 | CS63: -1150.565317 | CT63: 16519.39718 | CU63: 1645.742179 | CV63: 450.45 | CW63: 0 | CX63: 17465.02404 | CY63: 1562549.247 | CZ63: 0.6209594723 | DA63: 0.6209594723
B64: 43 | C64: 2027-05-30 | D64: 30 | E64: 1307 | F64: 1562646.917 | G64: 2368.387906 | H64: 15996.57327 | I64: 1593.899855 | J64: 450.45 | K64: 0 | L64: 20409.31104 | M64: 1560278.529 | N64: 0.6140472381 | O64: 0.6140472381 | Q64: 20409.31104 | R64: 1307 | S64: =IFERROR((1+'Simulación Cliente'!$E$21)^(R64/360),"") -> 1.650606399 | T64: 12364.74 | X64: 43 | Y64: 2027-05-30 | Z64: 30 | AA64: 1307 | AB64: 1562549.247 | AC64: -574.7996388 | AD64: 15995.57345 | AE64: 1593.800232 | AF64: 450.45 | AG64: 0 | AH64: 17465.02404 | AI64: 1563124.047 | AJ64: 0.6140472381 | AK64: 0.6140472381 | AO64: 43 | AP64: 2027-05-30 | AQ64: 30 | AR64: 1307 | AS64: 1484173.687 | AT64: 4718.522204 | AU64: 15193.25504 | AV64: 1513.857161 | AW64: 450.45 | AX64: 0 | AY64: 21876.0844 | AZ64: 1479455.165 | BA64: 0.6140472381 | BB64: 0.6140472381 | BF64: 43 | BG64: 2027-05-30 | BH64: 30 | BI64: 1307 | BJ64: 1484069.091 | BK64: 1563.811555 | BL64: 15192.18431 | BM64: 1513.750473 | BN64: 450.45 | BO64: 0 | BP64: 18720.19633 | BQ64: 1482505.28 | BR64: 0.6140472381 | BS64: 0.6140472381 | BW64: 43 | BX64: 2027-05-30 | BY64: 30 | BZ64: 1307 | CA64: 1562646.917 | CB64: 2368.387906 | CC64: 15996.57327 | CD64: 1593.899855 | CE64: 450.45 | CF64: 0 | CG64: 20409.31104 | CH64: 1560278.529 | CI64: 0.6140472381 | CJ64: 0.6140472381 | CN64: 43 | CO64: 2027-05-30 | CP64: 30 | CQ64: 1307 | CR64: 1562549.247 | CS64: -574.7996388 | CT64: 15995.57345 | CU64: 1593.800232 | CV64: 450.45 | CW64: 0 | CX64: 17465.02404 | CY64: 1563124.047 | CZ64: 0.6140472381 | DA64: 0.6140472381
B65: 44 | C65: 2027-06-30 | D65: 31 | E65: 1338 | F65: 1560278.529 | G65: 1806.753415 | H65: 16507.5461 | I65: 1644.561517 | J65: 450.45 | K65: 0 | L65: 20409.31104 | M65: 1558471.776 | N65: 0.6069854199 | O65: 0.6069854199 | Q65: 20409.31104 | R65: 1338 | S65: =IFERROR((1+'Simulación Cliente'!$E$21)^(R65/360),"") -> 1.670343107 | T65: 12218.63 | X65: 44 | Y65: 2027-06-30 | Z65: 31 | AA65: 1338 | AB65: 1563124.047 | AC65: -1170.638022 | AD65: 16537.65132 | AE65: 1647.560744 | AF65: 450.45 | AG65: 0 | AH65: 17465.02404 | AI65: 1564294.685 | AJ65: 0.6069854199 | AK65: 0.6069854199 | AO65: 44 | AP65: 2027-06-30 | AQ65: 31 | AR65: 1338 | AS65: 1479455.165 | AT65: 4213.816847 | AU65: 15652.44531 | AV65: 1559.372244 | AW65: 450.45 | AX65: 0 | AY65: 21876.0844 | AZ65: 1475241.348 | BA65: 0.6069854199 | BB65: 0.6069854199 | BF65: 44 | BG65: 2027-06-30 | BH65: 31 | BI65: 1338 | BJ65: 1482505.28 | BK65: 1022.444081 | BL65: 15684.71513 | BM65: 1562.58712 | BN65: 450.45 | BO65: 0 | BP65: 18720.19633 | BQ65: 1481482.836 | BR65: 0.6069854199 | BS65: 0.6069854199 | BW65: 44 | BX65: 2027-06-30 | BY65: 31 | BZ65: 1338 | CA65: 1560278.529 | CB65: 1806.753415 | CC65: 16507.5461 | CD65: 1644.561517 | CE65: 450.45 | CF65: 0 | CG65: 20409.31104 | CH65: 1558471.776 | CI65: 0.6069854199 | CJ65: 0.6069854199 | CN65: 44 | CO65: 2027-06-30 | CP65: 31 | CQ65: 1338 | CR65: 1563124.047 | CS65: -1170.638022 | CT65: 16537.65132 | CU65: 1647.560744 | CV65: 450.45 | CW65: 0 | CX65: 17465.02404 | CY65: 1564294.685 | CZ65: 0.6069854199 | DA65: 0.6069854199
B66: 45 | C66: 2027-07-30 | D66: 30 | E66: 1368 | F66: 1558471.776 | G66: 2415.386822 | H66: 15953.833 | I66: 1589.641211 | J66: 450.45 | K66: 0 | L66: 20409.31104 | M66: 1556056.389 | N66: 0.6002287384 | O66: 0.6002287384 | Q66: 20409.31104 | R66: 1368 | S66: =IFERROR((1+'Simulación Cliente'!$E$21)^(R66/360),"") -> 1.689667818 | T66: 12078.89 | X66: 45 | Y66: 2027-07-30 | Z66: 30 | AA66: 1368 | AB66: 1564294.685 | AC66: 16870.57628 | AD66: 16013.44122 | AE66: 1595.580579 | AF66: 450.45 | AG66: 0 | AH66: 34930.04808 | AI66: 1547424.109 | AJ66: 1.200457477 | AK66: 0.6002287384 | AO66: 45 | AP66: 2027-07-30 | AQ66: 30 | AR66: 1368 | AS66: 1475241.348 | AT66: 4819.072155 | AU66: 15101.81607 | AV66: 1504.746175 | AW66: 450.45 | AX66: 0 | AY66: 21876.0844 | AZ66: 1470422.276 | BA66: 0.6002287384 | BB66: 0.6002287384 | BF66: 45 | BG66: 2027-07-30 | BH66: 30 | BI66: 1368 | BJ66: 1481482.836 | BK66: 20313.12097 | BL66: 15165.70921 | BM66: 1511.112492 | BN66: 450.45 | BO66: 0 | BP66: 37440.39267 | BQ66: 1461169.715 | BR66: 1.200457477 | BS66: 0.6002287384 | BW66: 45 | BX66: 2027-07-30 | BY66: 30 | BZ66: 1368 | CA66: 1558471.776 | CB66: 2415.386822 | CC66: 15953.833 | CD66: 1589.641211 | CE66: 450.45 | CF66: 0 | CG66: 20409.31104 | CH66: 1556056.389 | CI66: 0.6002287384 | CJ66: 0.6002287384 | CN66: 45 | CO66: 2027-07-30 | CP66: 30 | CQ66: 1368 | CR66: 1564294.685 | CS66: 16870.57628 | CT66: 16013.44122 | CU66: 1595.580579 | CV66: 450.45 | CW66: 0 | CX66: 34930.04808 | CY66: 1547424.109 | CZ66: 1.200457477 | DA66: 0.6002287384
B67: 46 | C67: 2027-08-30 | D67: 31 | E67: 1399 | F67: 1556056.389 | G67: 1855.873327 | H67: 16462.8764 | I67: 1640.111306 | J67: 450.45 | K67: 0 | L67: 20409.31104 | M67: 1554200.515 | N67: 0.593325839 | O67: 0.593325839 | Q67: 20409.31104 | R67: 1399 | S67: =IFERROR((1+'Simulación Cliente'!$E$21)^(R67/360),"") -> 1.709871592 | T67: 11936.17 | X67: 46 | Y67: 2027-08-30 | Z67: 31 | AA67: 1399 | AB67: 1547424.109 | AC67: -987.986679 | AD67: 16371.54799 | AE67: 1631.012728 | AF67: 450.45 | AG67: 0 | AH67: 17465.02404 | AI67: 1548412.095 | AJ67: 0.593325839 | AK67: 0.593325839 | AO67: 46 | AP67: 2027-08-30 | AQ67: 31 | AR67: 1399 | AS67: 1470422.276 | AT67: 4318.904477 | AU67: 15556.87851 | AV67: 1549.851417 | AW67: 450.45 | AX67: 0 | AY67: 21876.0844 | AZ67: 1466103.372 | BA67: 0.593325839 | BB67: 0.593325839 | BF67: 46 | BG67: 2027-08-30 | BH67: 31 | BI67: 1399 | BJ67: 1461169.715 | BK67: 1270.659682 | BL67: 15458.9876 | BM67: 1540.099052 | BN67: 450.45 | BO67: 0 | BP67: 18720.19633 | BQ67: 1459899.055 | BR67: 0.593325839 | BS67: 0.593325839 | BW67: 46 | BX67: 2027-08-30 | BY67: 31 | BZ67: 1399 | CA67: 1556056.389 | CB67: 1855.873327 | CC67: 16462.8764 | CD67: 1640.111306 | CE67: 450.45 | CF67: 0 | CG67: 20409.31104 | CH67: 1554200.515 | CI67: 0.593325839 | CJ67: 0.593325839 | CN67: 46 | CO67: 2027-08-30 | CP67: 31 | CQ67: 1399 | CR67: 1547424.109 | CS67: -987.986679 | CT67: 16371.54799 | CU67: 1631.012728 | CV67: 450.45 | CW67: 0 | CX67: 17465.02404 | CY67: 1548412.095 | CZ67: 0.593325839 | DA67: 0.593325839
B68: 47 | C68: 2027-09-30 | D68: 31 | E68: 1430 | F68: 1554200.515 | G68: 1877.464351 | H68: 16443.2415 | I68: 1638.155182 | J68: 450.45 | K68: 0 | L68: 20409.31104 | M68: 1552323.051 | N68: 0.5865023261 | O68: 0.5865023261 | Q68: 20409.31104 | R68: 1430 | S68: =IFERROR((1+'Simulación Cliente'!$E$21)^(R68/360),"") -> 1.730316949 | T68: 11795.13 | X68: 47 | Y68: 2027-09-30 | Z68: 31 | AA68: 1430 | AB68: 1548412.095 | AC68: -999.4808066 | AD68: 16382.00076 | AE68: 1632.054084 | AF68: 450.45 | AG68: 0 | AH68: 17465.02404 | AI68: 1549411.576 | AJ68: 0.5865023261 | AK68: 0.5865023261 | AO68: 47 | AP68: 2027-09-30 | AQ68: 31 | AR68: 1430 | AS68: 1466103.372 | AT68: 4369.150133 | AU68: 15511.18505 | AV68: 1545.299215 | AW68: 450.45 | AX68: 0 | AY68: 21876.0844 | AZ68: 1461734.221 | BA68: 0.5865023261 | BB68: 0.5865023261 | BF68: 47 | BG68: 2027-09-30 | BH68: 31 | BI68: 1430 | BJ68: 1459899.055 | BK68: 1285.442396 | BL68: 15445.54418 | BM68: 1538.759754 | BN68: 450.45 | BO68: 0 | BP68: 18720.19633 | BQ68: 1458613.613 | BR68: 0.5865023261 | BS68: 0.5865023261 | BW68: 47 | BX68: 2027-09-30 | BY68: 31 | BZ68: 1430 | CA68: 1554200.515 | CB68: 1877.464351 | CC68: 16443.2415 | CD68: 1638.155182 | CE68: 450.45 | CF68: 0 | CG68: 20409.31104 | CH68: 1552323.051 | CI68: 0.5865023261 | CJ68: 0.5865023261 | CN68: 47 | CO68: 2027-09-30 | CP68: 31 | CQ68: 1430 | CR68: 1548412.095 | CS68: -999.4808066 | CT68: 16382.00076 | CU68: 1632.054084 | CV68: 450.45 | CW68: 0 | CX68: 17465.02404 | CY68: 1549411.576 | CZ68: 0.5865023261 | DA68: 0.5865023261
B69: 48 | C69: 2027-10-30 | D69: 30 | E69: 1460 | F69: 1552323.051 | G69: 2484.602056 | H69: 15890.88947 | I69: 1583.369512 | J69: 450.45 | K69: 0 | L69: 20409.31104 | M69: 1549838.449 | N69: 0.579973653 | O69: 0.579973653 | Q69: 20409.31104 | R69: 1460 | S69: =IFERROR((1+'Simulación Cliente'!$E$21)^(R69/360),"") -> 1.750335515 | T69: 11660.23 | X69: 48 | Y69: 2027-10-30 | Z69: 30 | AA69: 1460 | AB69: 1549411.576 | AC69: -426.9109196 | AD69: 15861.08515 | AE69: 1580.399808 | AF69: 450.45 | AG69: 0 | AH69: 17465.02404 | AI69: 1549838.487 | AJ69: 0.579973653 | AK69: 0.579973653 | AO69: 48 | AP69: 2027-10-30 | AQ69: 30 | AR69: 1460 | AS69: 1461734.221 | AT69: 4971.119778 | AU69: 14963.54572 | AV69: 1490.968906 | AW69: 450.45 | AX69: 0 | AY69: 21876.0844 | AZ69: 1456763.102 | BA69: 0.579973653 | BB69: 0.579973653 | BF69: 48 | BG69: 2027-10-30 | BH69: 30 | BI69: 1460 | BJ69: 1458613.613 | BK69: 1850.359917 | BL69: 14931.60053 | BM69: 1487.785885 | BN69: 450.45 | BO69: 0 | BP69: 18720.19633 | BQ69: 1456763.253 | BR69: 0.579973653 | BS69: 0.579973653 | BW69: 48 | BX69: 2027-10-30 | BY69: 30 | BZ69: 1460 | CA69: 1552323.051 | CB69: 2484.602056 | CC69: 15890.88947 | CD69: 1583.369512 | CE69: 450.45 | CF69: 0 | CG69: 20409.31104 | CH69: 1549838.449 | CI69: 0.579973653 | CJ69: 0.579973653 | CN69: 48 | CO69: 2027-10-30 | CP69: 30 | CQ69: 1460 | CR69: 1549411.576 | CS69: -426.9109196 | CT69: 15861.08515 | CU69: 1580.399808 | CV69: 450.45 | CW69: 0 | CX69: 17465.02404 | CY69: 1549838.487 | CZ69: 0.579973653 | DA69: 0.579973653
B70: 49 | C70: 2027-11-30 | D70: 31 | E70: 1491 | F70: 1549838.449 | G70: 1928.212149 | H70: 16397.0914 | I70: 1633.557486 | J70: 450.45 | K70: 0 | L70: 20409.31104 | M70: 1547910.237 | N70: 0.5733036962 | O70: 0.5733036962 | Q70: 20409.31104 | R70: 1491 | S70: =IFERROR((1+'Simulación Cliente'!$E$21)^(R70/360),"") -> 1.771264709 | T70: 11522.45 | X70: 49 | Y70: 2027-11-30 | Z70: 31 | AA70: 1491 | AB70: 1549838.487 | AC70: -1016.07529 | AD70: 16397.0918 | AE70: 1633.557526 | AF70: 450.45 | AG70: 0 | AH70: 17465.02404 | AI70: 1550854.562 | AJ70: 0.5733036962 | AK70: 0.5733036962 | AO70: 49 | AP70: 2027-11-30 | AQ70: 31 | AR70: 1491 | AS70: 1456763.102 | AT70: 4477.813799 | AU70: 15412.3662 | AV70: 1535.454403 | AW70: 450.45 | AX70: 0 | AY70: 21876.0844 | AZ70: 1452285.288 | BA70: 0.5733036962 | BB70: 0.5733036962 | BF70: 49 | BG70: 2027-11-30 | BH70: 31 | BI70: 1491 | BJ70: 1456763.253 | BK70: 1321.923973 | BL70: 15412.3678 | BM70: 1535.454562 | BN70: 450.45 | BO70: 0 | BP70: 18720.19633 | BQ70: 1455441.329 | BR70: 0.5733036962 | BS70: 0.5733036962 | BW70: 49 | BX70: 2027-11-30 | BY70: 31 | BZ70: 1491 | CA70: 1549838.449 | CB70: 1928.212149 | CC70: 16397.0914 | CD70: 1633.557486 | CE70: 450.45 | CF70: 0 | CG70: 20409.31104 | CH70: 1547910.237 | CI70: 0.5733036962 | CJ70: 0.5733036962 | CN70: 49 | CO70: 2027-11-30 | CP70: 31 | CQ70: 1491 | CR70: 1549838.487 | CS70: -1016.07529 | CT70: 16397.0918 | CU70: 1633.557526 | CV70: 450.45 | CW70: 0 | CX70: 17465.02404 | CY70: 1550854.562 | CZ70: 0.5733036962 | DA70: 0.5733036962
B71: 50 | C71: 2027-12-30 | D71: 30 | E71: 1521 | F71: 1547910.237 | G71: 2534.276419 | H71: 15845.71618 | I71: 1578.868442 | J71: 450.45 | K71: 0 | L71: 20409.31104 | M71: 1545375.96 | N71: 0.5669219441 | O71: 0.5669219441 | Q71: 20409.31104 | R71: 1521 | S71: =IFERROR((1+'Simulación Cliente'!$E$21)^(R71/360),"") -> 1.791757013 | T71: 11390.67 | X71: 50 | Y71: 2027-12-30 | Z71: 30 | AA71: 1521 | AB71: 1550854.562 | AC71: 17021.86965 | AD71: 15875.85678 | AE71: 1581.871654 | AF71: 450.45 | AG71: 0 | AH71: 34930.04808 | AI71: 1533832.693 | AJ71: 1.133843888 | AK71: 0.5669219441 | AO71: 50 | AP71: 2027-12-30 | AQ71: 30 | AR71: 1521 | AS71: 1452285.288 | AT71: 5077.484953 | AU71: 14866.81845 | AV71: 1481.330994 | AW71: 450.45 | AX71: 0 | AY71: 21876.0844 | AZ71: 1447207.803 | BA71: 0.5669219441 | BB71: 0.5669219441 | BF71: 50 | BG71: 2027-12-30 | BH71: 30 | BI71: 1521 | BJ71: 1455441.329 | BK71: 20606.26616 | BL71: 14899.12636 | BM71: 1484.550155 | BN71: 450.45 | BO71: 0 | BP71: 37440.39267 | BQ71: 1434835.063 | BR71: 1.133843888 | BS71: 0.5669219441 | BW71: 50 | BX71: 2027-12-30 | BY71: 30 | BZ71: 1521 | CA71: 1547910.237 | CB71: 2534.276419 | CC71: 15845.71618 | CD71: 1578.868442 | CE71: 450.45 | CF71: 0 | CG71: 20409.31104 | CH71: 1545375.96 | CI71: 0.5669219441 | CJ71: 0.5669219441 | CN71: 50 | CO71: 2027-12-30 | CP71: 30 | CQ71: 1521 | CR71: 1550854.562 | CS71: 17021.86965 | CT71: 15875.85678 | CU71: 1581.871654 | CV71: 450.45 | CW71: 0 | CX71: 34930.04808 | CY71: 1533832.693 | CZ71: 1.133843888 | DA71: 0.5669219441
B72: 51 | C72: 2028-01-30 | D72: 31 | E72: 1552 | F72: 1545375.96 | G72: 1980.128247 | H72: 16349.87885 | I72: 1628.853943 | J72: 450.45 | K72: 0 | L72: 20409.31104 | M72: 1543395.832 | N72: 0.5604020878 | O72: 0.5604020878 | Q72: 20409.31104 | R72: 1552 | S72: =IFERROR((1+'Simulación Cliente'!$E$21)^(R72/360),"") -> 1.813181493 | T72: 11256.08 | X72: 51 | Y72: 2028-01-30 | Z72: 31 | AA72: 1552 | AB72: 1533832.693 | AC72: -829.8656509 | AD72: 16227.75256 | AE72: 1616.687132 | AF72: 450.45 | AG72: 0 | AH72: 17465.02404 | AI72: 1534662.558 | AJ72: 0.5604020878 | AK72: 0.5604020878 | AO72: 51 | AP72: 2028-01-30 | AQ72: 31 | AR72: 1552 | AS72: 1447207.803 | AT72: 4588.979087 | AU72: 15311.27237 | AV72: 1525.382947 | AW72: 450.45 | AX72: 0 | AY72: 21876.0844 | AZ72: 1442618.824 | BA72: 0.5604020878 | BB72: 0.5604020878 | BF72: 51 | BG72: 2028-01-30 | BH72: 31 | BI72: 1552 | BJ72: 1434835.063 | BK72: 1577.034108 | BL72: 15180.37037 | BM72: 1512.341857 | BN72: 450.45 | BO72: 0 | BP72: 18720.19633 | BQ72: 1433258.029 | BR72: 0.5604020878 | BS72: 0.5604020878 | BW72: 51 | BX72: 2028-01-30 | BY72: 31 | BZ72: 1552 | CA72: 1545375.96 | CB72: 1980.128247 | CC72: 16349.87885 | CD72: 1628.853943 | CE72: 450.45 | CF72: 0 | CG72: 20409.31104 | CH72: 1543395.832 | CI72: 0.5604020878 | CJ72: 0.5604020878 | CN72: 51 | CO72: 2028-01-30 | CP72: 31 | CQ72: 1552 | CR72: 1533832.693 | CS72: -829.8656509 | CT72: 16227.75256 | CU72: 1616.687132 | CV72: 450.45 | CW72: 0 | CX72: 17465.02404 | CY72: 1534662.558 | CZ72: 0.5604020878 | DA72: 0.5604020878
B73: 52 | C73: 2028-02-29 | D73: 30 | E73: 1582 | F73: 1543395.832 | G73: 2585.09437 | H73: 15799.50292 | I73: 1574.263749 | J73: 450.45 | K73: 0 | L73: 20409.31104 | M73: 1540810.738 | N73: 0.5541639505 | O73: 0.5541639505 | Q73: 20409.31104 | R73: 1582 | S73: =IFERROR((1+'Simulación Cliente'!$E$21)^(R73/360),"") -> 1.834158745 | T73: 11127.34 | X73: 52 | Y73: 2028-02-29 | Z73: 30 | AA73: 1582 | AB73: 1534662.558 | AC73: -260.8835219 | AD73: 15710.10175 | AE73: 1565.35581 | AF73: 450.45 | AG73: 0 | AH73: 17465.02404 | AI73: 1534923.442 | AJ73: 0.5541639505 | AK73: 0.5541639505 | AO73: 52 | AP73: 2028-02-29 | AQ73: 30 | AR73: 1582 | AS73: 1442618.824 | AT73: 5186.298834 | AU73: 14767.86437 | AV73: 1471.4712 | AW73: 450.45 | AX73: 0 | AY73: 21876.0844 | AZ73: 1437432.525 | BA73: 0.5541639505 | BB73: 0.5541639505 | BF73: 52 | BG73: 2028-02-29 | BH73: 30 | BI73: 1582 | BJ73: 1433258.029 | BK73: 2135.783781 | BL73: 14672.03936 | BM73: 1461.923189 | BN73: 450.45 | BO73: 0 | BP73: 18720.19633 | BQ73: 1431122.245 | BR73: 0.5541639505 | BS73: 0.5541639505 | BW73: 52 | BX73: 2028-02-29 | BY73: 30 | BZ73: 1582 | CA73: 1543395.832 | CB73: 2585.09437 | CC73: 15799.50292 | CD73: 1574.263749 | CE73: 450.45 | CF73: 0 | CG73: 20409.31104 | CH73: 1540810.738 | CI73: 0.5541639505 | CJ73: 0.5541639505 | CN73: 52 | CO73: 2028-02-29 | CP73: 30 | CQ73: 1582 | CR73: 1534662.558 | CS73: -260.8835219 | CT73: 15710.10175 | CU73: 1565.35581 | CV73: 450.45 | CW73: 0 | CX73: 17465.02404 | CY73: 1534923.442 | CZ73: 0.5541639505 | DA73: 0.5541639505
B74: 53 | C74: 2028-03-30 | D74: 30 | E74: 1612 | F74: 1540810.738 | G74: 2614.194375 | H74: 15773.03971 | I74: 1571.626953 | J74: 450.45 | K74: 0 | L74: 20409.31104 | M74: 1538196.543 | N74: 0.5479952532 | O74: 0.5479952532 | Q74: 20409.31104 | R74: 1612 | S74: =IFERROR((1+'Simulación Cliente'!$E$21)^(R74/360),"") -> 1.85537869 | T74: 11000.08 | X74: 53 | Y74: 2028-03-30 | Z74: 30 | AA74: 1612 | AB74: 1534923.442 | AC74: -263.8202471 | AD74: 15712.77238 | AE74: 1565.621911 | AF74: 450.45 | AG74: 0 | AH74: 17465.02404 | AI74: 1535187.262 | AJ74: 0.5479952532 | AK74: 0.5479952532 | AO74: 53 | AP74: 2028-03-30 | AQ74: 30 | AR74: 1612 | AS74: 1437432.525 | AT74: 5244.680193 | AU74: 14714.77303 | AV74: 1466.181175 | AW74: 450.45 | AX74: 0 | AY74: 21876.0844 | AZ74: 1432187.845 | BA74: 0.5479952532 | BB74: 0.5479952532 | BF74: 53 | BG74: 2028-03-30 | BH74: 30 | BI74: 1612 | BJ74: 1431122.245 | BK74: 2159.825967 | BL74: 14650.17568 | BM74: 1459.74469 | BN74: 450.45 | BO74: 0 | BP74: 18720.19633 | BQ74: 1428962.419 | BR74: 0.5479952532 | BS74: 0.5479952532 | BW74: 53 | BX74: 2028-03-30 | BY74: 30 | BZ74: 1612 | CA74: 1540810.738 | CB74: 2614.194375 | CC74: 15773.03971 | CD74: 1571.626953 | CE74: 450.45 | CF74: 0 | CG74: 20409.31104 | CH74: 1538196.543 | CI74: 0.5479952532 | CJ74: 0.5479952532 | CN74: 53 | CO74: 2028-03-30 | CP74: 30 | CQ74: 1612 | CR74: 1534923.442 | CS74: -263.8202471 | CT74: 15712.77238 | CU74: 1565.621911 | CV74: 450.45 | CW74: 0 | CX74: 17465.02404 | CY74: 1535187.262 | CZ74: 0.5479952532 | DA74: 0.5479952532
B75: 54 | C75: 2028-04-30 | D75: 31 | E75: 1643 | F75: 1538196.543 | G75: 2063.652789 | H75: 16273.92154 | I75: 1621.286709 | J75: 450.45 | K75: 0 | L75: 20409.31104 | M75: 1536132.891 | N75: 0.5416930623 | O75: 0.5416930623 | Q75: 20409.31104 | R75: 1643 | S75: =IFERROR((1+'Simulación Cliente'!$E$21)^(R75/360),"") -> 1.87756391 | T75: 10870.1 | X75: 54 | Y75: 2028-04-30 | Z75: 31 | AA75: 1643 | AB75: 1535187.262 | AC75: -845.6245615 | AD75: 16242.08373 | AE75: 1618.114873 | AF75: 450.45 | AG75: 0 | AH75: 17465.02404 | AI75: 1536032.887 | AJ75: 0.5416930623 | AK75: 0.5416930623 | AO75: 54 | AP75: 2028-04-30 | AQ75: 31 | AR75: 1643 | AS75: 1432187.845 | AT75: 4763.719616 | AU75: 15152.36314 | AV75: 1509.551642 | AW75: 450.45 | AX75: 0 | AY75: 21876.0844 | AZ75: 1427424.125 | BA75: 0.5416930623 | BB75: 0.5416930623 | BF75: 54 | BG75: 2028-04-30 | BH75: 31 | BI75: 1643 | BJ75: 1428962.419 | BK75: 1645.355796 | BL75: 15118.23855 | BM75: 1506.151985 | BN75: 450.45 | BO75: 0 | BP75: 18720.19633 | BQ75: 1427317.063 | BR75: 0.5416930623 | BS75: 0.5416930623 | BW75: 54 | BX75: 2028-04-30 | BY75: 31 | BZ75: 1643 | CA75: 1538196.543 | CB75: 2063.652789 | CC75: 16273.92154 | CD75: 1621.286709 | CE75: 450.45 | CF75: 0 | CG75: 20409.31104 | CH75: 1536132.891 | CI75: 0.5416930623 | CJ75: 0.5416930623 | CN75: 54 | CO75: 2028-04-30 | CP75: 31 | CQ75: 1643 | CR75: 1535187.262 | CS75: -845.6245615 | CT75: 16242.08373 | CU75: 1618.114873 | CV75: 450.45 | CW75: 0 | CX75: 17465.02404 | CY75: 1536032.887 | CZ75: 0.5416930623 | DA75: 0.5416930623
B76: 55 | C76: 2028-05-30 | D76: 30 | E76: 1673 | F76: 1536132.891 | G76: 2666.852172 | H76: 15725.15332 | I76: 1566.855548 | J76: 450.45 | K76: 0 | L76: 20409.31104 | M76: 1533466.038 | N76: 0.5356631852 | O76: 0.5356631852 | Q76: 20409.31104 | R76: 1673 | S76: =IFERROR((1+'Simulación Cliente'!$E$21)^(R76/360),"") -> 1.899286022 | T76: 10745.78 | X76: 55 | Y76: 2028-05-30 | Z76: 30 | AA76: 1673 | AB76: 1536032.887 | AC76: -276.3090946 | AD76: 15724.12959 | AE76: 1566.753544 | AF76: 450.45 | AG76: 0 | AH76: 17465.02404 | AI76: 1536309.196 | AJ76: 0.5356631852 | AK76: 0.5356631852 | AO76: 55 | AP76: 2028-05-30 | AQ76: 30 | AR76: 1673 | AS76: 1427424.125 | AT76: 5357.343192 | AU76: 14612.3186 | AV76: 1455.972608 | AW76: 450.45 | AX76: 0 | AY76: 21876.0844 | AZ76: 1422066.782 | BA76: 0.5356631852 | BB76: 0.5356631852 | BF76: 55 | BG76: 2028-05-30 | BH76: 30 | BI76: 1673 | BJ76: 1427317.063 | BK76: 2202.660306 | BL76: 14611.22262 | BM76: 1455.863404 | BN76: 450.45 | BO76: 0 | BP76: 18720.19633 | BQ76: 1425114.403 | BR76: 0.5356631852 | BS76: 0.5356631852 | BW76: 55 | BX76: 2028-05-30 | BY76: 30 | BZ76: 1673 | CA76: 1536132.891 | CB76: 2666.852172 | CC76: 15725.15332 | CD76: 1566.855548 | CE76: 450.45 | CF76: 0 | CG76: 20409.31104 | CH76: 1533466.038 | CI76: 0.5356631852 | CJ76: 0.5356631852 | CN76: 55 | CO76: 2028-05-30 | CP76: 30 | CQ76: 1673 | CR76: 1536032.887 | CS76: -276.3090946 | CT76: 15724.12959 | CU76: 1566.753544 | CV76: 450.45 | CW76: 0 | CX76: 17465.02404 | CY76: 1536309.196 | CZ76: 0.5356631852 | DA76: 0.5356631852
B77: 56 | C77: 2028-06-30 | D77: 31 | E77: 1704 | F77: 1533466.038 | G77: 2118.68696 | H77: 16223.8734 | I77: 1616.300672 | J77: 450.45 | K77: 0 | L77: 20409.31104 | M77: 1531347.352 | N77: 0.5295028186 | O77: 0.5295028186 | Q77: 20409.31104 | R77: 1704 | S77: =IFERROR((1+'Simulación Cliente'!$E$21)^(R77/360),"") -> 1.921996254 | T77: 10618.81 | X77: 56 | Y77: 2028-06-30 | Z77: 31 | AA77: 1704 | AB77: 1536309.196 | AC77: -858.6770134 | AD77: 16253.95364 | AE77: 1619.297411 | AF77: 450.45 | AG77: 0 | AH77: 17465.02404 | AI77: 1537167.873 | AJ77: 0.5295028186 | AK77: 0.5295028186 | AO77: 56 | AP77: 2028-06-30 | AQ77: 31 | AR77: 1704 | AS77: 1422066.782 | AT77: 4881.46694 | AU77: 15045.2836 | AV77: 1498.88386 | AW77: 450.45 | AX77: 0 | AY77: 21876.0844 | AZ77: 1417185.315 | BA77: 0.5295028186 | BB77: 0.5295028186 | BF77: 56 | BG77: 2028-06-30 | BH77: 31 | BI77: 1704 | BJ77: 1425114.403 | BK77: 1690.12319 | BL77: 15077.52704 | BM77: 1502.096107 | BN77: 450.45 | BO77: 0 | BP77: 18720.19633 | BQ77: 1423424.28 | BR77: 0.5295028186 | BS77: 0.5295028186 | BW77: 56 | BX77: 2028-06-30 | BY77: 31 | BZ77: 1704 | CA77: 1533466.038 | CB77: 2118.68696 | CC77: 16223.8734 | CD77: 1616.300672 | CE77: 450.45 | CF77: 0 | CG77: 20409.31104 | CH77: 1531347.352 | CI77: 0.5295028186 | CJ77: 0.5295028186 | CN77: 56 | CO77: 2028-06-30 | CP77: 31 | CQ77: 1704 | CR77: 1536309.196 | CS77: -858.6770134 | CT77: 16253.95364 | CU77: 1619.297411 | CV77: 450.45 | CW77: 0 | CX77: 17465.02404 | CY77: 1537167.873 | CZ77: 0.5295028186 | DA77: 0.5295028186
B78: 57 | C78: 2028-07-30 | D78: 30 | E78: 1734 | F78: 1531347.352 | G78: 2720.722241 | H78: 15676.1645 | I78: 1561.974299 | J78: 450.45 | K78: 0 | L78: 20409.31104 | M78: 1528626.629 | N78: 0.5236086377 | O78: 0.5236086377 | Q78: 20409.31104 | R78: 1734 | S78: =IFERROR((1+'Simulación Cliente'!$E$21)^(R78/360),"") -> 1.944232417 | T78: 10497.36 | X78: 57 | Y78: 2028-07-30 | Z78: 30 | AA78: 1734 | AB78: 1537167.873 | AC78: 17175.93858 | AD78: 15735.74827 | AE78: 1567.91123 | AF78: 450.45 | AG78: 0 | AH78: 34930.04808 | AI78: 1519991.934 | AJ78: 1.047217275 | AK78: 0.5236086377 | AO78: 57 | AP78: 2028-07-30 | AQ78: 30 | AR78: 1734 | AS78: 1417185.315 | AT78: 5472.599884 | AU78: 14507.5055 | AV78: 1445.529021 | AW78: 450.45 | AX78: 0 | AY78: 21876.0844 | AZ78: 1411712.715 | BA78: 0.5236086377 | BB78: 0.5236086377 | BF78: 57 | BG78: 2028-07-30 | BH78: 30 | BI78: 1734 | BJ78: 1423424.28 | BK78: 20966.6771 | BL78: 14571.37281 | BM78: 1451.892765 | BN78: 450.45 | BO78: 0 | BP78: 37440.39267 | BQ78: 1402457.602 | BR78: 1.047217275 | BS78: 0.5236086377 | BW78: 57 | BX78: 2028-07-30 | BY78: 30 | BZ78: 1734 | CA78: 1531347.352 | CB78: 2720.722241 | CC78: 15676.1645 | CD78: 1561.974299 | CE78: 450.45 | CF78: 0 | CG78: 20409.31104 | CH78: 1528626.629 | CI78: 0.5236086377 | CJ78: 0.5236086377 | CN78: 57 | CO78: 2028-07-30 | CP78: 30 | CQ78: 1734 | CR78: 1537167.873 | CS78: 17175.93858 | CT78: 15735.74827 | CU78: 1567.91123 | CV78: 450.45 | CW78: 0 | CX78: 34930.04808 | CY78: 1519991.934 | CZ78: 1.047217275 | DA78: 0.5236086377
B79: 58 | C79: 2028-08-30 | D79: 31 | E79: 1765 | F79: 1528626.629 | G79: 2174.98811 | H79: 16172.67308 | I79: 1611.199848 | J79: 450.45 | K79: 0 | L79: 20409.31104 | M79: 1526451.641 | N79: 0.5175869038 | O79: 0.5175869038 | Q79: 20409.31104 | R79: 1765 | S79: =IFERROR((1+'Simulación Cliente'!$E$21)^(R79/360),"") -> 1.967480083 | T79: 10373.33 | X79: 58 | Y79: 2028-08-30 | Z79: 31 | AA79: 1765 | AB79: 1519991.934 | AC79: -668.8437993 | AD79: 16081.31911 | AE79: 1602.098725 | AF79: 450.45 | AG79: 0 | AH79: 17465.02404 | AI79: 1520660.778 | AJ79: 0.5175869038 | AK79: 0.5175869038 | AO79: 58 | AP79: 2028-08-30 | AQ79: 31 | AR79: 1765 | AS79: 1411712.715 | AT79: 5001.925007 | AU79: 14935.73891 | AV79: 1487.970488 | AW79: 450.45 | AX79: 0 | AY79: 21876.0844 | AZ79: 1406710.79 | BA79: 0.5175869038 | BB79: 0.5175869038 | BF79: 58 | BG79: 2028-08-30 | BH79: 31 | BI79: 1765 | BJ79: 1402457.602 | BK79: 1953.709895 | BL79: 14837.821 | BM79: 1478.215434 | BN79: 450.45 | BO79: 0 | BP79: 18720.19633 | BQ79: 1400503.893 | BR79: 0.5175869038 | BS79: 0.5175869038 | BW79: 58 | BX79: 2028-08-30 | BY79: 31 | BZ79: 1765 | CA79: 1528626.629 | CB79: 2174.98811 | CC79: 16172.67308 | CD79: 1611.199848 | CE79: 450.45 | CF79: 0 | CG79: 20409.31104 | CH79: 1526451.641 | CI79: 0.5175869038 | CJ79: 0.5175869038 | CN79: 58 | CO79: 2028-08-30 | CP79: 31 | CQ79: 1765 | CR79: 1519991.934 | CS79: -668.8437993 | CT79: 16081.31911 | CU79: 1602.098725 | CV79: 450.45 | CW79: 0 | CX79: 17465.02404 | CY79: 1520660.778 | CZ79: 0.5175869038 | DA79: 0.5175869038
B80: 59 | C80: 2028-09-30 | D80: 31 | E80: 1796 | F80: 1526451.641 | G80: 2200.291681 | H80: 16149.66198 | I80: 1608.907372 | J80: 450.45 | K80: 0 | L80: 20409.31104 | M80: 1524251.349 | N80: 0.5116344226 | O80: 0.5116344226 | Q80: 20409.31104 | R80: 1796 | S80: =IFERROR((1+'Simulación Cliente'!$E$21)^(R80/360),"") -> 1.991005728 | T80: 10250.75 | X80: 59 | Y80: 2028-09-30 | Z80: 31 | AA80: 1796 | AB80: 1520660.778 | AC80: -676.625054 | AD80: 16088.3954 | AE80: 1602.803698 | AF80: 450.45 | AG80: 0 | AH80: 17465.02404 | AI80: 1521337.403 | AJ80: 0.5116344226 | AK80: 0.5116344226 | AO80: 59 | AP80: 2028-09-30 | AQ80: 31 | AR80: 1796 | AS80: 1406710.79 | AT80: 5060.116848 | AU80: 14882.81918 | AV80: 1482.69837 | AW80: 450.45 | AX80: 0 | AY80: 21876.0844 | AZ80: 1401650.673 | BA80: 0.5116344226 | BB80: 0.5116344226 | BF80: 59 | BG80: 2028-09-30 | BH80: 31 | BI80: 1796 | BJ80: 1400503.893 | BK80: 1976.43914 | BL80: 14817.15101 | BM80: 1476.156189 | BN80: 450.45 | BO80: 0 | BP80: 18720.19633 | BQ80: 1398527.453 | BR80: 0.5116344226 | BS80: 0.5116344226 | BW80: 59 | BX80: 2028-09-30 | BY80: 31 | BZ80: 1796 | CA80: 1526451.641 | CB80: 2200.291681 | CC80: 16149.66198 | CD80: 1608.907372 | CE80: 450.45 | CF80: 0 | CG80: 20409.31104 | CH80: 1524251.349 | CI80: 0.5116344226 | CJ80: 0.5116344226 | CN80: 59 | CO80: 2028-09-30 | CP80: 31 | CQ80: 1796 | CR80: 1520660.778 | CS80: -676.625054 | CT80: 16088.3954 | CU80: 1602.803698 | CV80: 450.45 | CW80: 0 | CX80: 17465.02404 | CY80: 1521337.403 | CZ80: 0.5116344226 | DA80: 0.5116344226
B81: 60 | C81: 2028-10-30 | D81: 30 | E81: 1826 | F81: 1524251.349 | G81: 2800.600832 | H81: 15603.52383 | I81: 1554.736376 | J81: 450.45 | K81: 0 | L81: 20409.31104 | M81: 1521450.749 | N81: 0.5059391444 | O81: 0.5059391444 | Q81: 20409.31104 | R81: 1826 | S81: =IFERROR((1+'Simulación Cliente'!$E$21)^(R81/360),"") -> 2.014040283 | T81: 10133.52 | X81: 60 | Y81: 2028-10-30 | Z81: 30 | AA81: 1826 | AB81: 1521337.403 | AC81: -110.8843227 | AD81: 15573.69421 | AE81: 1551.764151 | AF81: 450.45 | AG81: 0 | AH81: 17465.02404 | AI81: 1521448.287 | AJ81: 0.5059391444 | AK81: 0.5059391444 | AO81: 60 | AP81: 2028-10-30 | AQ81: 30 | AR81: 1826 | AS81: 1401650.673 | AT81: 5647.470928 | AU81: 14348.47979 | AV81: 1429.683687 | AW81: 450.45 | AX81: 0 | AY81: 21876.0844 | AZ81: 1396003.202 | BA81: 0.5059391444 | BB81: 0.5059391444 | BF81: 60 | BG81: 2028-10-30 | BH81: 30 | BI81: 1826 | BJ81: 1398527.453 | BK81: 2526.740461 | BL81: 14316.50787 | BM81: 1426.498002 | BN81: 450.45 | BO81: 0 | BP81: 18720.19633 | BQ81: 1396000.713 | BR81: 0.5059391444 | BS81: 0.5059391444 | BW81: 60 | BX81: 2028-10-30 | BY81: 30 | BZ81: 1826 | CA81: 1524251.349 | CB81: 2800.600832 | CC81: 15603.52383 | CD81: 1554.736376 | CE81: 450.45 | CF81: 0 | CG81: 20409.31104 | CH81: 1521450.749 | CI81: 0.5059391444 | CJ81: 0.5059391444 | CN81: 60 | CO81: 2028-10-30 | CP81: 30 | CQ81: 1826 | CR81: 1521337.403 | CS81: -110.8843227 | CT81: 15573.69421 | CU81: 1551.764151 | CV81: 450.45 | CW81: 0 | CX81: 17465.02404 | CY81: 1521448.287 | CZ81: 0.5059391444 | DA81: 0.5059391444
B82: 61 | C82: 2028-11-30 | D82: 31 | E82: 1857 | F82: 1521450.749 | G82: 2258.471511 | H82: 16096.75318 | I82: 1603.636341 | J82: 450.45 | K82: 0 | L82: 20409.31104 | M82: 1519192.277 | N82: 0.5001206176 | O82: 0.5001206176 | Q82: 20409.31104 | R82: 1857 | S82: =IFERROR((1+'Simulación Cliente'!$E$21)^(R82/360),"") -> 2.038122659 | T82: 10013.78 | X82: 61 | Y82: 2028-11-30 | Z82: 31 | AA82: 1857 | AB82: 1521448.287 | AC82: -685.7868508 | AD82: 16096.72714 | AE82: 1603.633747 | AF82: 450.45 | AG82: 0 | AH82: 17465.02404 | AI82: 1522134.074 | AJ82: 0.5001206176 | AK82: 0.5001206176 | AO82: 61 | AP82: 2028-11-30 | AQ82: 31 | AR82: 1857 | AS82: 1396003.202 | AT82: 5184.687739 | AU82: 14769.53428 | AV82: 1471.412381 | AW82: 450.45 | AX82: 0 | AY82: 21876.0844 | AZ82: 1390818.515 | BA82: 0.5001206176 | BB82: 0.5001206176 | BF82: 61 | BG82: 2028-11-30 | BH82: 31 | BI82: 1857 | BJ82: 1396000.713 | BK82: 2028.828633 | BL82: 14769.50794 | BM82: 1471.409757 | BN82: 450.45 | BO82: 0 | BP82: 18720.19633 | BQ82: 1393971.884 | BR82: 0.5001206176 | BS82: 0.5001206176 | BW82: 61 | BX82: 2028-11-30 | BY82: 31 | BZ82: 1857 | CA82: 1521450.749 | CB82: 2258.471511 | CC82: 16096.75318 | CD82: 1603.636341 | CE82: 450.45 | CF82: 0 | CG82: 20409.31104 | CH82: 1519192.277 | CI82: 0.5001206176 | CJ82: 0.5001206176 | CN82: 61 | CO82: 2028-11-30 | CP82: 31 | CQ82: 1857 | CR82: 1521448.287 | CS82: -685.7868508 | CT82: 16096.72714 | CU82: 1603.633747 | CV82: 450.45 | CW82: 0 | CX82: 17465.02404 | CY82: 1522134.074 | CZ82: 0.5001206176 | DA82: 0.5001206176
B83: 62 | C83: 2028-12-30 | D83: 30 | E83: 1887 | F83: 1519192.277 | G83: 2857.550022 | H83: 15551.73489 | I83: 1549.576123 | J83: 450.45 | K83: 0 | L83: 20409.31104 | M83: 1516334.727 | N83: 0.4945535058 | O83: 0.4945535058 | Q83: 20409.31104 | R83: 1887 | S83: =IFERROR((1+'Simulación Cliente'!$E$21)^(R83/360),"") -> 2.061702325 | T83: 9899.25 | X83: 62 | Y83: 2028-12-30 | Z83: 30 | AA83: 1887 | AB83: 1522134.074 | AC83: 17345.17171 | AD83: 15581.84961 | AE83: 1552.576756 | AF83: 450.45 | AG83: 0 | AH83: 34930.04808 | AI83: 1504788.903 | AJ83: 0.9891070116 | AK83: 0.4945535058 | AO83: 62 | AP83: 2028-12-30 | AQ83: 30 | AR83: 1887 | AS83: 1390818.515 | AT83: 5769.406852 | AU83: 14237.59266 | AV83: 1418.634885 | AW83: 450.45 | AX83: 0 | AY83: 21876.0844 | AZ83: 1385049.108 | BA83: 0.4945535058 | BB83: 0.4945535058 | BF83: 62 | BG83: 2028-12-30 | BH83: 30 | BI83: 1887 | BJ83: 1393971.884 | BK83: 21298.21813 | BL83: 14269.87322 | BM83: 1421.851322 | BN83: 450.45 | BO83: 0 | BP83: 37440.39267 | BQ83: 1372673.666 | BR83: 0.9891070116 | BS83: 0.4945535058 | BW83: 62 | BX83: 2028-12-30 | BY83: 30 | BZ83: 1887 | CA83: 1519192.277 | CB83: 2857.550022 | CC83: 15551.73489 | CD83: 1549.576123 | CE83: 450.45 | CF83: 0 | CG83: 20409.31104 | CH83: 1516334.727 | CI83: 0.4945535058 | CJ83: 0.4945535058 | CN83: 62 | CO83: 2028-12-30 | CP83: 30 | CQ83: 1887 | CR83: 1522134.074 | CS83: 17345.17171 | CT83: 15581.84961 | CU83: 1552.576756 | CV83: 450.45 | CW83: 0 | CX83: 34930.04808 | CY83: 1504788.903 | CZ83: 0.9891070116 | DA83: 0.4945535058
B84: 63 | C84: 2029-01-30 | D84: 31 | E84: 1918 | F84: 1516334.727 | G84: 2317.990739 | H84: 16042.62633 | I84: 1598.243963 | J84: 450.45 | K84: 0 | L84: 20409.31104 | M84: 1514016.736 | N84: 0.4888659189 | O84: 0.4888659189 | Q84: 20409.31104 | R84: 1918 | S84: =IFERROR((1+'Simulación Cliente'!$E$21)^(R84/360),"") -> 2.086354608 | T84: 9782.28 | X84: 63 | Y84: 2029-01-30 | Z84: 31 | AA84: 1918 | AB84: 1504788.903 | AC84: -491.9734122 | AD84: 15920.473 | AE84: 1586.074457 | AF84: 450.45 | AG84: 0 | AH84: 17465.02404 | AI84: 1505280.876 | AJ84: 0.4888659189 | AK84: 0.4888659189 | AO84: 63 | AP84: 2029-01-30 | AQ84: 31 | AR84: 1918 | AS84: 1385049.108 | AT84: 5312.126462 | AU84: 14653.64137 | AV84: 1459.866569 | AW84: 450.45 | AX84: 0 | AY84: 21876.0844 | AZ84: 1379736.981 | BA84: 0.4888659189 | BB84: 0.4888659189 | BF84: 63 | BG84: 2029-01-30 | BH84: 31 | BI84: 1918 | BJ84: 1372673.666 | BK84: 2300.212911 | BL84: 14522.71079 | BM84: 1446.822632 | BN84: 450.45 | BO84: 0 | BP84: 18720.19633 | BQ84: 1370373.453 | BR84: 0.4888659189 | BS84: 0.4888659189 | BW84: 63 | BX84: 2029-01-30 | BY84: 31 | BZ84: 1918 | CA84: 1516334.727 | CB84: 2317.990739 | CC84: 16042.62633 | CD84: 1598.243963 | CE84: 450.45 | CF84: 0 | CG84: 20409.31104 | CH84: 1514016.736 | CI84: 0.4888659189 | CJ84: 0.4888659189 | CN84: 63 | CO84: 2029-01-30 | CP84: 31 | CQ84: 1918 | CR84: 1504788.903 | CS84: -491.9734122 | CT84: 15920.473 | CU84: 1586.074457 | CV84: 450.45 | CW84: 0 | CX84: 17465.02404 | CY84: 1505280.876 | CZ84: 0.4888659189 | DA84: 0.4888659189
B85: 64 | C85: 2029-02-28 | D85: 29 | E85: 1947 | F85: 1514016.736 | G85: 3486.484535 | H85: 14979.58137 | I85: 1492.795133 | J85: 450.45 | K85: 0 | L85: 20409.31104 | M85: 1510530.252 | N85: 0.4836045038 | O85: 0.4836045038 | Q85: 20409.31104 | R85: 1947 | S85: =IFERROR((1+'Simulación Cliente'!$E$21)^(R85/360),"") -> 2.109683213 | T85: 9674.11 | X85: 64 | Y85: 2029-02-28 | Z85: 29 | AA85: 1947 | AB85: 1505280.876 | AC85: 637.2429762 | AD85: 14893.14934 | AE85: 1484.181721 | AF85: 450.45 | AG85: 0 | AH85: 17465.02404 | AI85: 1504643.633 | AJ85: 0.4836045038 | AK85: 0.4836045038 | AO85: 64 | AP85: 2029-02-28 | AQ85: 29 | AR85: 1947 | AS85: 1379736.981 | AT85: 6414.210498 | AU85: 13651.02636 | AV85: 1360.397545 | AW85: 450.45 | AX85: 0 | AY85: 21876.0844 | AZ85: 1373322.771 | BA85: 0.4836045038 | BB85: 0.4836045038 | BF85: 64 | BG85: 2029-02-28 | BH85: 29 | BI85: 1947 | BJ85: 1370373.453 | BK85: 3360.196838 | BL85: 13558.38423 | BM85: 1351.165263 | BN85: 450.45 | BO85: 0 | BP85: 18720.19633 | BQ85: 1367013.256 | BR85: 0.4836045038 | BS85: 0.4836045038 | BW85: 64 | BX85: 2029-02-28 | BY85: 29 | BZ85: 1947 | CA85: 1514016.736 | CB85: 3486.484535 | CC85: 14979.58137 | CD85: 1492.795133 | CE85: 450.45 | CF85: 0 | CG85: 20409.31104 | CH85: 1510530.252 | CI85: 0.4836045038 | CJ85: 0.4836045038 | CN85: 64 | CO85: 2029-02-28 | CP85: 29 | CQ85: 1947 | CR85: 1505280.876 | CS85: 637.2429762 | CT85: 14893.14934 | CU85: 1484.181721 | CV85: 450.45 | CW85: 0 | CX85: 17465.02404 | CY85: 1504643.633 | CZ85: 0.4836045038 | DA85: 0.4836045038
B86: 65 | C86: 2029-03-30 | D86: 30 | E86: 1977 | F86: 1510530.252 | G86: =IF(B86>C$6,"",L86-K86-J86-I86-H86) -> 2955.057092 | H86: 15463.06309 | I86: =IF(B86>C$6,"",((1+C$12)^(D86/30)-1)*F86) -> 1540.740857 | J86: 450.45 | K86: =IF(B86>C$6,"",C$15) -> 0 | L86: =IF(B86>C$6,"",IF(B86=C$6,F86+H86+I86+J86+K86,IF(AND(C$9=2,MONTH(C86)=7),2*C$17,IF(AND(C$10=2,MONTH(C86)=12),2*C$17,C$17)))) -> 20409.31104 | M86: =IF(B86>C$6,"",F86-G86) -> 1507575.195 | N86: 0.4782212417 | O86: 0.4782212417 | Q86: 20409.31104 | R86: 1977 | S86: =IFERROR((1+'Simulación Cliente'!$E$21)^(R86/360),"") -> 2.134090784 | T86: 9563.47 | X86: 65 | Y86: 2029-03-30 | Z86: 30 | AA86: 1977 | AB86: 1504643.633 | AC86: 77.03484914 | AD86: 15402.80269 | AE86: =IF(X86>Y$6,"",((1+Y$12)^(Z86/30)-1)*AB86) -> 1534.736506 | AF86: 450.45 | AG86: =IF(X86>Y$6,"",Y$15) -> 0 | AH86: =IF(X86>Y$6,"",IF(X86=Y$6,AB86+AD86+AE86+AF86+AG86,IF(AND(Y$9=2,MONTH(Y86)=7),2*Y$17,IF(AND(Y$10=2,MONTH(Y86)=12),2*Y$17,Y$17)))) -> 17465.02404 | AI86: =IF(X86>Y$6,"",AB86-AC86) -> 1504566.598 | AJ86: 0.4782212417 | AK86: 0.4782212417 | AO86: 65 | AP86: 2029-03-30 | AQ86: 30 | AR86: 1977 | AS86: 1373322.771 | AT86: 5966.353718 | AU86: 14058.49146 | AV86: =IF(AO86>AP$6,"",((1+AP$12)^(AQ86/30)-1)*AS86) -> 1400.789226 | AW86: 450.45 | AX86: =IF(AO86>AP$6,"",AP$15) -> 0 | AY86: =IF(AO86>AP$6,"",IF(AO86=AP$6,AS86+AU86+AV86+AW86+AX86,IF(AND(AP$9=2,MONTH(AP86)=7),2*AP$17,IF(AND(AP$10=2,MONTH(AP86)=12),2*AP$17,AP$17)))) -> 21876.0844 | AZ86: =IF(AO86>AP$6,"",AS86-AT86) -> 1367356.417 | BA86: 0.4782212417 | BB86: 0.4782212417 | BF86: 65 | BG86: 2029-03-30 | BH86: 30 | BI86: 1977 | BJ86: 1367013.256 | BK86: 2881.490871 | BL86: 13993.90194 | BM86: =IF(BF86>BG$6,"",((1+BG$12)^(BH86/30)-1)*BJ86) -> 1394.353522 | BN86: 450.45 | BO86: =IF(BF86>BG$6,"",BG$15) -> 0 | BP86: =IF(BF86>BG$6,"",IF(BF86=BG$6,BJ86+BL86+BM86+BN86+BO86,IF(AND(BG$9=2,MONTH(BG86)=7),2*BG$17,IF(AND(BG$10=2,MONTH(BG86)=12),2*BG$17,BG$17)))) -> 18720.19633 | BQ86: =IF(BF86>BG$6,"",BJ86-BK86) -> 1364131.766 | BR86: 0.4782212417 | BS86: 0.4782212417 | BW86: 65 | BX86: 2029-03-30 | BY86: 30 | BZ86: 1977 | CA86: 1510530.252 | CB86: 2955.057092 | CC86: 15463.06309 | CD86: =IF(BW86>BX$6,"",((1+BX$12)^(BY86/30)-1)*CA86) -> 1540.740857 | CE86: 450.45 | CF86: =IF(BW86>BX$6,"",BX$15) -> 0 | CG86: =IF(BW86>BX$6,"",IF(BW86=BX$6,CA86+CC86+CD86+CE86+CF86,IF(AND(BX$9=2,MONTH(BX86)=7),2*BX$17,IF(AND(BX$10=2,MONTH(BX86)=12),2*BX$17,BX$17)))) -> 20409.31104 | CH86: =IF(BW86>BX$6,"",CA86-CB86) -> 1507575.195 | CI86: 0.4782212417 | CJ86: 0.4782212417 | CN86: 65 | CO86: 2029-03-30 | CP86: 30 | CQ86: 1977 | CR86: 1504643.633 | CS86: 77.03484914 | CT86: 15402.80269 | CU86: =IF(CN86>CO$6,"",((1+CO$12)^(CP86/30)-1)*CR86) -> 1534.736506 | CV86: 450.45 | CW86: =IF(CN86>CO$6,"",CO$15) -> 0 | CX86: =IF(CN86>CO$6,"",IF(CN86=CO$6,CR86+CT86+CU86+CV86+CW86,IF(AND(CO$9=2,MONTH(CO86)=7),2*CO$17,IF(AND(CO$10=2,MONTH(CO86)=12),2*CO$17,CO$17)))) -> 17465.02404 | CY86: =IF(CN86>CO$6,"",CR86-CS86) -> 1504566.598 | CZ86: 0.4782212417 | DA86: 0.4782212417
B87: 66 | C87: =IF(B87>C$6,"",EDATE(C$22,B86)) -> 2029-04-30 | D87: =IF(B87>C$6,"",C87-C86) -> 31 | E87: =IFERROR(D87+E86,"") -> 2008 | F87: =IF(B87>C$6,"",M86) -> 1507575.195 | G87: 2419.898168 | H87: 15949.95161 | I87: 1589.011259 | J87: =IF(B87>C$6,"",D$4*C$14) -> 450.45 | K87: 0 | L87: 20409.31104 | M87: 1505155.297 | N87: =IFERROR(IF(AND(MONTH(C87)=7,C$9=2),2/(1+C$13)^(E87/360),IF(AND(MONTH(C87)=12,C$10=2),2/(1+C$13)^(E87/360),1/(1+C$13)^(E87/360))),"") -> 0.4727214833 | O87: =IFERROR(1/(1+C$13)^(E87/360),"") -> 0.4727214833 | Q87: =IFERROR(G87+H87+I87+J87+K87,"") -> 20409.31104 | R87: =E87 -> 2008 | S87: =IFERROR((1+'Simulación Cliente'!$E$21)^(R87/360),"") -> 2.159608634 | T87: =IFERROR(ROUND(Q87/S87,2),"") -> 9450.47 | X87: 66 | Y87: =IF(X87>Y$6,"",EDATE(Y$22,X86)) -> 2029-04-30 | Z87: 31 | AA87: =IFERROR(Z87+AA86,"") -> 2008 | AB87: =IF(X87>Y$6,"",AI86) -> 1504566.598 | AC87: -489.3871473 | AD87: 15918.12104 | AE87: 1585.840144 | AF87: =IF(X87>Y$6,"",Z$4*Y$14) -> 450.45 | AG87: 0 | AH87: 17465.02404 | AI87: 1505055.985 | AJ87: =IFERROR(IF(AND(MONTH(Y87)=7,Y$9=2),2/(1+Y$13)^(AA87/360),IF(AND(MONTH(Y87)=12,Y$10=2),2/(1+Y$13)^(AA87/360),1/(1+Y$13)^(AA87/360))),"") -> 0.4727214833 | AK87: =IFERROR(1/(1+Y$13)^(AA87/360),"") -> 0.4727214833 | AO87: 66 | AP87: =IF(AO87>AP$6,"",EDATE(AP$22,AO86)) -> 2029-04-30 | AQ87: 31 | AR87: =IFERROR(AQ87+AR86,"") -> 2008 | AS87: =IF(AO87>AP$6,"",AZ86) -> 1367356.417 | AT87: 5517.961266 | AU87: 14466.45498 | AV87: 1441.218156 | AW87: =IF(AO87>AP$6,"",AQ$4*AP$14) -> 450.45 | AX87: 0 | AY87: 21876.0844 | AZ87: 1361838.456 | BA87: =IFERROR(IF(AND(MONTH(AP87)=7,AP$9=2),2/(1+AP$13)^(AR87/360),IF(AND(MONTH(AP87)=12,AP$10=2),2/(1+AP$13)^(AR87/360),1/(1+AP$13)^(AR87/360))),"") -> 0.4727214833 | BB87: =IFERROR(1/(1+AP$13)^(AR87/360),"") -> 0.4727214833 | BF87: 66 | BG87: =IF(BF87>BG$6,"",EDATE(BG$22,BF86)) -> 2029-04-30 | BH87: 31 | BI87: =IFERROR(BH87+BI86,"") -> 2008 | BJ87: =IF(BF87>BG$6,"",BQ86) -> 1364131.766 | BK87: 2399.588437 | BL87: 14432.33858 | BM87: 1437.819315 | BN87: =IF(BF87>BG$6,"",BH$4*BG$14) -> 450.45 | BO87: 0 | BP87: 18720.19633 | BQ87: 1361732.177 | BR87: =IFERROR(IF(AND(MONTH(BG87)=7,BG$9=2),2/(1+BG$13)^(BI87/360),IF(AND(MONTH(BG87)=12,BG$10=2),2/(1+BG$13)^(BI87/360),1/(1+BG$13)^(BI87/360))),"") -> 0.4727214833 | BS87: =IFERROR(1/(1+BG$13)^(BI87/360),"") -> 0.4727214833 | BW87: 66 | BX87: =IF(BW87>BX$6,"",EDATE(BX$22,BW86)) -> 2029-04-30 | BY87: 31 | BZ87: =IFERROR(BY87+BZ86,"") -> 2008 | CA87: =IF(BW87>BX$6,"",CH86) -> 1507575.195 | CB87: 2419.898168 | CC87: 15949.95161 | CD87: 1589.011259 | CE87: =IF(BW87>BX$6,"",BY$4*BX$14) -> 450.45 | CF87: 0 | CG87: 20409.31104 | CH87: 1505155.297 | CI87: =IFERROR(IF(AND(MONTH(BX87)=7,BX$9=2),2/(1+BX$13)^(BZ87/360),IF(AND(MONTH(BX87)=12,BX$10=2),2/(1+BX$13)^(BZ87/360),1/(1+BX$13)^(BZ87/360))),"") -> 0.4727214833 | CJ87: =IFERROR(1/(1+BX$13)^(BZ87/360),"") -> 0.4727214833 | CN87: 66 | CO87: =IF(CN87>CO$6,"",EDATE(CO$22,CN86)) -> 2029-04-30 | CP87: 31 | CQ87: =IFERROR(CP87+CQ86,"") -> 2008 | CR87: =IF(CN87>CO$6,"",CY86) -> 1504566.598 | CS87: -489.3871473 | CT87: 15918.12104 | CU87: 1585.840144 | CV87: =IF(CN87>CO$6,"",CP$4*CO$14) -> 450.45 | CW87: 0 | CX87: 17465.02404 | CY87: 1505055.985 | CZ87: =IFERROR(IF(AND(MONTH(CO87)=7,CO$9=2),2/(1+CO$13)^(CQ87/360),IF(AND(MONTH(CO87)=12,CO$10=2),2/(1+CO$13)^(CQ87/360),1/(1+CO$13)^(CQ87/360))),"") -> 0.4727214833 | DA87: =IFERROR(1/(1+CO$13)^(CQ87/360),"") -> 0.4727214833
B88: 67 | C88: 2029-05-30 | D88: 30 | E88: 2038 | F88: 1505155.297 | G88: 3015.562127 | H88: =IF(B88>C$6,"",((1+C$11)^(D88/360)-1)*F88) -> 15408.04051 | I88: 1535.258403 | J88: 450.45 | K88: 0 | L88: 20409.31104 | M88: 1502139.734 | N88: 0.4674593659 | O88: 0.4674593659 | Q88: 20409.31104 | R88: 2038 | S88: =IFERROR((1+'Simulación Cliente'!$E$21)^(R88/360),"") -> 2.184593808 | T88: 9342.38 | X88: 67 | Y88: 2029-05-30 | Z88: 30 | AA88: 2038 | AB88: 1505055.985 | AC88: 72.3930635 | AD88: =IF(X88>Y$6,"",((1+Y$11)^(Z88/360)-1)*AB88) -> 15407.02387 | AE88: 1535.157105 | AF88: 450.45 | AG88: 0 | AH88: 17465.02404 | AI88: 1504983.592 | AJ88: 0.4674593659 | AK88: 0.4674593659 | AO88: 67 | AP88: 2029-05-30 | AQ88: 30 | AR88: 2038 | AS88: 1361838.456 | AT88: 6095.630864 | AU88: =IF(AO88>AP$6,"",((1+AP$11)^(AQ88/360)-1)*AS88) -> 13940.92831 | AV88: 1389.075225 | AW88: 450.45 | AX88: 0 | AY88: 21876.0844 | AZ88: 1355742.825 | BA88: 0.4674593659 | BB88: 0.4674593659 | BF88: 67 | BG88: 2029-05-30 | BH88: 30 | BI88: 2038 | BJ88: 1361732.177 | BK88: 2940.939159 | BL88: =IF(BF88>BG$6,"",((1+BG$11)^(BH88/360)-1)*BJ88) -> 13939.84035 | BM88: 1388.966821 | BN88: 450.45 | BO88: 0 | BP88: 18720.19633 | BQ88: 1358791.238 | BR88: 0.4674593659 | BS88: 0.4674593659 | BW88: 67 | BX88: 2029-05-30 | BY88: 30 | BZ88: 2038 | CA88: 1505155.297 | CB88: 3015.562127 | CC88: =IF(BW88>BX$6,"",((1+BX$11)^(BY88/360)-1)*CA88) -> 15408.04051 | CD88: 1535.258403 | CE88: 450.45 | CF88: 0 | CG88: 20409.31104 | CH88: 1502139.734 | CI88: 0.4674593659 | CJ88: 0.4674593659 | CN88: 67 | CO88: 2029-05-30 | CP88: 30 | CQ88: 2038 | CR88: 1505055.985 | CS88: 72.3930635 | CT88: =IF(CN88>CO$6,"",((1+CO$11)^(CP88/360)-1)*CR88) -> 15407.02387 | CU88: 1535.157105 | CV88: 450.45 | CW88: 0 | CX88: 17465.02404 | CY88: 1504983.592 | CZ88: 0.4674593659 | DA88: 0.4674593659
B89: 68 | C89: 2029-06-30 | D89: 31 | E89: 2069 | F89: 1502139.734 | G89: 2483.133712 | H89: 15892.44514 | I89: 1583.282187 | J89: 450.45 | K89: 0 | L89: 20409.31104 | M89: 1499656.601 | N89: 0.4620833738 | O89: 0.4620833738 | Q89: 20409.31104 | R89: 2069 | S89: =IFERROR((1+'Simulación Cliente'!$E$21)^(R89/360),"") -> 2.210715535 | T89: 9231.99 | X89: 68 | Y89: 2029-06-30 | Z89: =IF(X89>Y$6,"",Y89-Y88) -> 31 | AA89: 2069 | AB89: 1504983.592 | AC89: =IF(X89>Y$6,"",AH89-AG89-AF89-AE89-AD89) -> -494.2384103 | AD89: 15922.53279 | AE89: 1586.279664 | AF89: 450.45 | AG89: 0 | AH89: 17465.02404 | AI89: 1505477.831 | AJ89: 0.4620833738 | AK89: 0.4620833738 | AO89: 68 | AP89: 2029-06-30 | AQ89: =IF(AO89>AP$6,"",AP89-AP88) -> 31 | AR89: 2069 | AS89: 1355742.825 | AT89: =IF(AO89>AP$6,"",AY89-AX89-AW89-AV89-AU89) -> 5653.072511 | AU89: 14343.58467 | AV89: 1428.977222 | AW89: 450.45 | AX89: 0 | AY89: 21876.0844 | AZ89: 1350089.752 | BA89: 0.4620833738 | BB89: 0.4620833738 | BF89: 68 | BG89: 2029-06-30 | BH89: =IF(BF89>BG$6,"",BG89-BG88) -> 31 | BI89: 2069 | BJ89: 1358791.238 | BK89: =IF(BF89>BG$6,"",BP89-BO89-BN89-BM89-BL89) -> 2461.719544 | BL89: 14375.83649 | BM89: 1432.190304 | BN89: 450.45 | BO89: 0 | BP89: 18720.19633 | BQ89: 1356329.518 | BR89: 0.4620833738 | BS89: 0.4620833738 | BW89: 68 | BX89: 2029-06-30 | BY89: =IF(BW89>BX$6,"",BX89-BX88) -> 31 | BZ89: 2069 | CA89: 1502139.734 | CB89: =IF(BW89>BX$6,"",CG89-CF89-CE89-CD89-CC89) -> 2483.133712 | CC89: 15892.44514 | CD89: 1583.282187 | CE89: 450.45 | CF89: 0 | CG89: 20409.31104 | CH89: 1499656.601 | CI89: 0.4620833738 | CJ89: 0.4620833738 | CN89: 68 | CO89: 2029-06-30 | CP89: =IF(CN89>CO$6,"",CO89-CO88) -> 31 | CQ89: 2069 | CR89: 1504983.592 | CS89: =IF(CN89>CO$6,"",CX89-CW89-CV89-CU89-CT89) -> -494.2384103 | CT89: 15922.53279 | CU89: 1586.279664 | CV89: 450.45 | CW89: 0 | CX89: 17465.02404 | CY89: 1505477.831 | CZ89: 0.4620833738 | DA89: 0.4620833738
B90: 69 | C90: 2029-07-30 | D90: 30 | E90: 2099 | F90: 1499656.601 | G90: 3077.46009 | H90: 15351.75121 | I90: 1529.649733 | J90: 450.45 | K90: 0 | L90: 20409.31104 | M90: 1496579.141 | N90: 0.456939675 | O90: 0.456939675 | Q90: 20409.31104 | R90: 2099 | S90: =IFERROR((1+'Simulación Cliente'!$E$21)^(R90/360),"") -> 2.23629198 | T90: 9126.41 | X90: 69 | Y90: 2029-07-30 | Z90: 30 | AA90: 2099 | AB90: 1505477.831 | AC90: 17532.66846 | AD90: 15411.34224 | AE90: 1535.587387 | AF90: 450.45 | AG90: 0 | AH90: 34930.04808 | AI90: 1487945.162 | AJ90: 0.9138793501 | AK90: 0.456939675 | AO90: 69 | AP90: 2029-07-30 | AQ90: 30 | AR90: 2099 | AS90: 1350089.752 | AT90: 6227.884189 | AU90: 13820.65867 | AV90: 1377.091547 | AW90: 450.45 | AX90: 0 | AY90: 21876.0844 | AZ90: 1343861.868 | BA90: 0.456939675 | BB90: 0.456939675 | BF90: 69 | BG90: 2029-07-30 | BH90: 30 | BI90: 2099 | BJ90: 1356329.518 | BK90: 21721.95238 | BL90: 13884.53418 | BM90: 1383.456109 | BN90: 450.45 | BO90: 0 | BP90: 37440.39267 | BQ90: 1334607.566 | BR90: 0.9138793501 | BS90: 0.456939675 | BW90: 69 | BX90: 2029-07-30 | BY90: 30 | BZ90: 2099 | CA90: 1499656.601 | CB90: 3077.46009 | CC90: 15351.75121 | CD90: 1529.649733 | CE90: 450.45 | CF90: 0 | CG90: 20409.31104 | CH90: 1496579.141 | CI90: 0.456939675 | CJ90: 0.456939675 | CN90: 69 | CO90: 2029-07-30 | CP90: 30 | CQ90: 2099 | CR90: 1505477.831 | CS90: 17532.66846 | CT90: 15411.34224 | CU90: 1535.587387 | CV90: 450.45 | CW90: 0 | CX90: 34930.04808 | CY90: 1487945.162 | CZ90: 0.9138793501 | DA90: 0.456939675
B91: 70 | C91: 2029-08-30 | D91: 31 | E91: 2130 | F91: 1496579.141 | G91: 2547.825044 | H91: 15833.61477 | I91: 1577.421221 | J91: 450.45 | K91: 0 | L91: 20409.31104 | M91: 1494031.316 | N91: 0.4516846641 | O91: 0.4516846641 | Q91: 20409.31104 | R91: 2130 | S91: =IFERROR((1+'Simulación Cliente'!$E$21)^(R91/360),"") -> 2.263031875 | T91: 9018.57 | X91: 70 | Y91: 2029-08-30 | Z91: 31 | AA91: 2130 | AB91: 1487945.162 | AC91: -296.0152019 | AD91: 15742.26839 | AE91: 1568.320853 | AF91: 450.45 | AG91: 0 | AH91: 17465.02404 | AI91: 1488241.177 | AJ91: 0.4516846641 | AK91: 0.4516846641 | AO91: 70 | AP91: 2029-08-30 | AQ91: 31 | AR91: 2130 | AS91: 1343861.868 | AT91: 5791.294246 | AU91: 14217.88568 | AV91: 1416.454481 | AW91: 450.45 | AX91: 0 | AY91: 21876.0844 | AZ91: 1338070.574 | BA91: 0.4516846641 | BB91: 0.4516846641 | BF91: 70 | BG91: 2029-08-30 | BH91: 31 | BI91: 2130 | BJ91: 1334607.566 | BK91: 2743.069705 | BL91: 14119.97635 | BM91: 1406.70028 | BN91: 450.45 | BO91: 0 | BP91: 18720.19633 | BQ91: 1331864.496 | BR91: 0.4516846641 | BS91: 0.4516846641 | BW91: 70 | BX91: 2029-08-30 | BY91: 31 | BZ91: 2130 | CA91: 1496579.141 | CB91: 2547.825044 | CC91: 15833.61477 | CD91: 1577.421221 | CE91: 450.45 | CF91: 0 | CG91: 20409.31104 | CH91: 1494031.316 | CI91: 0.4516846641 | CJ91: 0.4516846641 | CN91: 70 | CO91: 2029-08-30 | CP91: 31 | CQ91: 2130 | CR91: 1487945.162 | CS91: -296.0152019 | CT91: 15742.26839 | CU91: 1568.320853 | CV91: 450.45 | CW91: 0 | CX91: 17465.02404 | CY91: 1488241.177 | CZ91: 0.4516846641 | DA91: 0.4516846641
B92: 71 | C92: 2029-09-30 | D92: 31 | E92: 2161 | F92: 1494031.316 | G92: 2577.466159 | H92: 15806.65911 | I92: 1574.735768 | J92: 450.45 | K92: 0 | L92: 20409.31104 | M92: 1491453.849 | N92: 0.4464900881 | O92: 0.4464900881 | Q92: 20409.31104 | R92: 2161 | S92: =IFERROR((1+'Simulación Cliente'!$E$21)^(R92/360),"") -> 2.290091505 | T92: 8912.01 | X92: 71 | Y92: 2029-09-30 | Z92: 31 | AA92: 2161 | AB92: 1488241.177 | AC92: -299.45901 | AD92: 15745.40019 | AE92: 1568.632859 | AF92: 450.45 | AG92: 0 | AH92: 17465.02404 | AI92: 1488540.636 | AJ92: 0.4464900881 | AK92: 0.4464900881 | AO92: 71 | AP92: 2029-09-30 | AQ92: 31 | AR92: 2161 | AS92: 1338070.574 | AT92: 5858.669522 | AU92: 14156.61453 | AV92: 1410.350353 | AW92: 450.45 | AX92: 0 | AY92: 21876.0844 | AZ92: 1332211.904 | BA92: 0.4464900881 | BB92: 0.4464900881 | BF92: 71 | BG92: 2029-09-30 | BH92: 31 | BI92: 2161 | BJ92: 1331864.496 | BK92: 2774.982274 | BL92: 14090.95502 | BM92: 1403.809036 | BN92: 450.45 | BO92: 0 | BP92: 18720.19633 | BQ92: 1329089.514 | BR92: 0.4464900881 | BS92: 0.4464900881 | BW92: 71 | BX92: 2029-09-30 | BY92: 31 | BZ92: 2161 | CA92: 1494031.316 | CB92: 2577.466159 | CC92: 15806.65911 | CD92: 1574.735768 | CE92: 450.45 | CF92: 0 | CG92: 20409.31104 | CH92: 1491453.849 | CI92: 0.4464900881 | CJ92: 0.4464900881 | CN92: 71 | CO92: 2029-09-30 | CP92: 31 | CQ92: 2161 | CR92: 1488241.177 | CS92: -299.45901 | CT92: 15745.40019 | CU92: 1568.632859 | CV92: 450.45 | CW92: 0 | CX92: 17465.02404 | CY92: 1488540.636 | CZ92: 0.4464900881 | DA92: 0.4464900881
B93: 72 | C93: 2029-10-30 | D93: 30 | E93: 2191 | F93: 1491453.849 | G93: 3169.797185 | H93: 15267.78092 | I93: 1521.282926 | J93: 450.45 | K93: 0 | L93: 20409.31104 | M93: 1488284.052 | N93: 0.4415199666 | O93: 0.4415199666 | Q93: 20409.31104 | R93: 2191 | S93: =IFERROR((1+'Simulación Cliente'!$E$21)^(R93/360),"") -> 2.316586275 | T93: 8810.08 | X93: 72 | Y93: 2029-10-30 | Z93: 30 | AA93: 2191 | AB93: 1488540.636 | AC93: 258.3037756 | AD93: 15237.95882 | AE93: 1518.311449 | AF93: 450.45 | AG93: 0 | AH93: 17465.02404 | AI93: 1488282.333 | AJ93: 0.4415199666 | AK93: 0.4415199666 | AO93: 72 | AP93: 2029-10-30 | AQ93: 30 | AR93: 2191 | AS93: 1332211.904 | AT93: 6429.132341 | AU93: 13637.64592 | AV93: 1358.856143 | AW93: 450.45 | AX93: 0 | AY93: 21876.0844 | AZ93: 1325782.772 | BA93: 0.4415199666 | BB93: 0.4415199666 | BF93: 72 | BG93: 2029-10-30 | BH93: 30 | BI93: 2191 | BJ93: 1329089.514 | BK93: 3308.392536 | BL93: 13605.68249 | BM93: 1355.671304 | BN93: 450.45 | BO93: 0 | BP93: 18720.19633 | BQ93: 1325781.122 | BR93: 0.4415199666 | BS93: 0.4415199666 | BW93: 72 | BX93: 2029-10-30 | BY93: 30 | BZ93: 2191 | CA93: 1491453.849 | CB93: 3169.797185 | CC93: 15267.78092 | CD93: 1521.282926 | CE93: 450.45 | CF93: 0 | CG93: 20409.31104 | CH93: 1488284.052 | CI93: 0.4415199666 | CJ93: 0.4415199666 | CN93: 72 | CO93: 2029-10-30 | CP93: 30 | CQ93: 2191 | CR93: 1488540.636 | CS93: 258.3037756 | CT93: 15237.95882 | CU93: 1518.311449 | CV93: 450.45 | CW93: 0 | CX93: 17465.02404 | CY93: 1488282.333 | CZ93: 0.4415199666 | DA93: 0.4415199666
B94: 73 | C94: 2029-11-30 | D94: 31 | E94: 2222 | F94: 1488284.052 | G94: 2644.329184 | H94: 15745.8538 | I94: 1568.678049 | J94: 450.45 | K94: 0 | L94: 20409.31104 | M94: 1485639.723 | N94: 0.4364422892 | O94: 0.4364422892 | Q94: 20409.31104 | R94: 2222 | S94: =IFERROR((1+'Simulación Cliente'!$E$21)^(R94/360),"") -> 2.344286268 | T94: 8705.98 | X94: 73 | Y94: 2029-11-30 | Z94: 31 | AA94: 2222 | AB94: 1488282.333 | AC94: -299.9378055 | AD94: 15745.83561 | AE94: 1568.676237 | AF94: 450.45 | AG94: 0 | AH94: 17465.02404 | AI94: 1488582.27 | AJ94: 0.4364422892 | AK94: 0.4364422892 | AO94: 73 | AP94: 2029-11-30 | AQ94: 31 | AR94: 2222 | AS94: 1325782.772 | AT94: 6001.624448 | AU94: 14026.61116 | AV94: 1397.398789 | AW94: 450.45 | AX94: 0 | AY94: 21876.0844 | AZ94: 1319781.148 | BA94: 0.4364422892 | BB94: 0.4364422892 | BF94: 73 | BG94: 2029-11-30 | BH94: 31 | BI94: 2222 | BJ94: 1325781.122 | BK94: 2845.755583 | BL94: 14026.5937 | BM94: 1397.39705 | BN94: 450.45 | BO94: 0 | BP94: 18720.19633 | BQ94: 1322935.366 | BR94: 0.4364422892 | BS94: 0.4364422892 | BW94: 73 | BX94: 2029-11-30 | BY94: 31 | BZ94: 2222 | CA94: 1488284.052 | CB94: 2644.329184 | CC94: 15745.8538 | CD94: 1568.678049 | CE94: 450.45 | CF94: 0 | CG94: 20409.31104 | CH94: 1485639.723 | CI94: 0.4364422892 | CJ94: 0.4364422892 | CN94: 73 | CO94: 2029-11-30 | CP94: 31 | CQ94: 2222 | CR94: 1488282.333 | CS94: -299.9378055 | CT94: 15745.83561 | CU94: 1568.676237 | CV94: 450.45 | CW94: 0 | CX94: 17465.02404 | CY94: 1488582.27 | CZ94: 0.4364422892 | DA94: 0.4364422892
B95: 74 | C95: 2029-12-30 | D95: 30 | E95: 2252 | F95: 1485639.723 | G95: 3235.245901 | H95: 15208.26262 | I95: 1515.352518 | J95: 450.45 | K95: 0 | L95: 20409.31104 | M95: 1482404.477 | N95: 0.4315840151 | O95: 0.4315840151 | Q95: 20409.31104 | R95: 2252 | S95: =IFERROR((1+'Simulación Cliente'!$E$21)^(R95/360),"") -> 2.371408034 | T95: 8606.41 | X95: 74 | Y95: 2029-12-30 | Z95: 30 | AA95: 2252 | AB95: 1488582.27 | AC95: 17722.85915 | AD95: 15238.38502 | AE95: 1518.353916 | AF95: 450.45 | AG95: 0 | AH95: 34930.04808 | AI95: 1470859.411 | AJ95: 0.8631680303 | AK95: 0.4315840151 | AO95: 74 | AP95: 2029-12-30 | AQ95: 30 | AR95: 2252 | AS95: 1319781.148 | AT95: 6569.063435 | AU95: 13510.3942 | AV95: 1346.176771 | AW95: 450.45 | AX95: 0 | AY95: 21876.0844 | AZ95: 1313212.084 | BA95: 0.4315840151 | BB95: 0.4315840151 | BF95: 74 | BG95: 2029-12-30 | BH95: 30 | BI95: 2252 | BJ95: 1322935.366 | BK95: 22097.86516 | BL95: 13542.68344 | BM95: 1349.394073 | BN95: 450.45 | BO95: 0 | BP95: 37440.39267 | BQ95: 1300837.501 | BR95: 0.8631680303 | BS95: 0.4315840151 | BW95: 74 | BX95: 2029-12-30 | BY95: 30 | BZ95: 2252 | CA95: 1485639.723 | CB95: 3235.245901 | CC95: 15208.26262 | CD95: 1515.352518 | CE95: 450.45 | CF95: 0 | CG95: 20409.31104 | CH95: 1482404.477 | CI95: 0.4315840151 | CJ95: 0.4315840151 | CN95: 74 | CO95: 2029-12-30 | CP95: 30 | CQ95: 2252 | CR95: 1488582.27 | CS95: 17722.85915 | CT95: 15238.38502 | CU95: 1518.353916 | CV95: 450.45 | CW95: 0 | CX95: 34930.04808 | CY95: 1470859.411 | CZ95: 0.8631680303 | DA95: 0.4315840151
B96: 75 | C96: 2030-01-30 | D96: 31 | E96: 2283 | F96: 1482404.477 | G96: 2712.731509 | H96: 15683.64865 | I96: 1562.480872 | J96: 450.45 | K96: 0 | L96: 20409.31104 | M96: 1479691.746 | N96: 0.4266206056 | O96: 0.4266206056 | Q96: 20409.31104 | R96: 2283 | S96: =IFERROR((1+'Simulación Cliente'!$E$21)^(R96/360),"") -> 2.399763545 | T96: 8504.72 | X96: 75 | Y96: 2030-01-30 | Z96: 31 | AA96: 2283 | AB96: 1470859.411 | AC96: -97.24146796 | AD96: 15561.50334 | AE96: 1550.312166 | AF96: 450.45 | AG96: 0 | AH96: 17465.02404 | AI96: 1470956.653 | AJ96: 0.4266206056 | AK96: 0.4266206056 | AO96: 75 | AP96: 2030-01-30 | AQ96: 31 | AR96: 2283 | AS96: 1313212.084 | AT96: 6147.870438 | AU96: 13893.6149 | AV96: 1384.149059 | AW96: 450.45 | AX96: 0 | AY96: 21876.0844 | AZ96: 1307064.214 | BA96: 0.4266206056 | BB96: 0.4266206056 | BF96: 75 | BG96: 2030-01-30 | BH96: 31 | BI96: 2283 | BJ96: 1300837.501 | BK96: 3135.946904 | BL96: 13762.6934 | BM96: 1371.106027 | BN96: 450.45 | BO96: 0 | BP96: 18720.19633 | BQ96: 1297701.554 | BR96: 0.4266206056 | BS96: 0.4266206056 | BW96: 75 | BX96: 2030-01-30 | BY96: 31 | BZ96: 2283 | CA96: 1482404.477 | CB96: 2712.731509 | CC96: 15683.64865 | CD96: 1562.480872 | CE96: 450.45 | CF96: 0 | CG96: 20409.31104 | CH96: 1479691.746 | CI96: 0.4266206056 | CJ96: 0.4266206056 | CN96: 75 | CO96: 2030-01-30 | CP96: 31 | CQ96: 2283 | CR96: 1470859.411 | CS96: -97.24146796 | CT96: 15561.50334 | CU96: 1550.312166 | CV96: 450.45 | CW96: 0 | CX96: 17465.02404 | CY96: 1470956.653 | CZ96: 0.4266206056 | DA96: 0.4266206056
B97: 76 | C97: 2030-02-28 | D97: 29 | E97: 2312 | F97: 1479691.746 | G97: 3859.937587 | H97: 14639.97218 | I97: 1458.951267 | J97: 450.45 | K97: 0 | L97: 20409.31104 | M97: 1475831.808 | N97: 0.4220291052 | O97: 0.4220291052 | Q97: 20409.31104 | R97: 2312 | S97: =IFERROR((1+'Simulación Cliente'!$E$21)^(R97/360),"") -> 2.426596536 | T97: 8410.67 | X97: 76 | Y97: 2030-02-28 | Z97: 29 | AA97: 2312 | AB97: 1470956.653 | AC97: 1010.687678 | AD97: 14553.54775 | AE97: 1450.338612 | AF97: 450.45 | AG97: 0 | AH97: 17465.02404 | AI97: 1469945.965 | AJ97: 0.4220291052 | AK97: 0.4220291052 | AO97: 76 | AP97: 2030-02-28 | AQ97: 29 | AR97: 2312 | AS97: 1307064.214 | AT97: 7204.88418 | AU97: 12932.00681 | AV97: 1288.743413 | AW97: 450.45 | AX97: 0 | AY97: 21876.0844 | AZ97: 1299859.33 | BA97: 0.4220291052 | BB97: 0.4220291052 | BF97: 76 | BG97: 2030-02-28 | BH97: 29 | BI97: 2312 | BJ97: 1297701.554 | BK97: 4150.861075 | BL97: 12839.37327 | BM97: 1279.511988 | BN97: 450.45 | BO97: 0 | BP97: 18720.19633 | BQ97: 1293550.693 | BR97: 0.4220291052 | BS97: 0.4220291052 | BW97: 76 | BX97: 2030-02-28 | BY97: 29 | BZ97: 2312 | CA97: 1479691.746 | CB97: 3859.937587 | CC97: 14639.97218 | CD97: 1458.951267 | CE97: 450.45 | CF97: 0 | CG97: 20409.31104 | CH97: 1475831.808 | CI97: 0.4220291052 | CJ97: 0.4220291052 | CN97: 76 | CO97: 2030-02-28 | CP97: 29 | CQ97: 2312 | CR97: 1470956.653 | CS97: 1010.687678 | CT97: 14553.54775 | CU97: 1450.338612 | CV97: 450.45 | CW97: 0 | CX97: 17465.02404 | CY97: 1469945.965 | CZ97: 0.4220291052 | DA97: 0.4220291052
B98: 77 | C98: 2030-03-30 | D98: 30 | E98: 2342 | F98: 1475831.808 | G98: 3345.652073 | H98: 15107.86052 | I98: 1505.348444 | J98: 450.45 | K98: 0 | L98: 20409.31104 | M98: 1472486.156 | N98: 0.417331272 | O98: 0.417331272 | Q98: 20409.31104 | R98: 2342 | S98: =IFERROR((1+'Simulación Cliente'!$E$21)^(R98/360),"") -> 2.454670575 | T98: 8314.48 | X98: 77 | Y98: 2030-03-30 | Z98: 30 | AA98: 2342 | AB98: 1469945.965 | AC98: 467.6210966 | AD98: 15047.60806 | AE98: 1499.344884 | AF98: 450.45 | AG98: 0 | AH98: 17465.02404 | AI98: 1469478.344 | AJ98: 0.417331272 | AK98: 0.417331272 | AO98: 77 | AP98: 2030-03-30 | AQ98: 30 | AR98: 2342 | AS98: 1299859.33 | AT98: 6793.320241 | AU98: 13306.45764 | AV98: 1325.856516 | AW98: 450.45 | AX98: 0 | AY98: 21876.0844 | AZ98: 1293066.009 | BA98: 0.417331272 | BB98: 0.417331272 | BF98: 77 | BG98: 2030-03-30 | BH98: 30 | BI98: 2342 | BJ98: 1293550.693 | BK98: 3708.447516 | BL98: 13241.87711 | BM98: 1319.421707 | BN98: 450.45 | BO98: 0 | BP98: 18720.19633 | BQ98: 1289842.245 | BR98: 0.417331272 | BS98: 0.417331272 | BW98: 77 | BX98: 2030-03-30 | BY98: 30 | BZ98: 2342 | CA98: 1475831.808 | CB98: 3345.652073 | CC98: 15107.86052 | CD98: 1505.348444 | CE98: 450.45 | CF98: 0 | CG98: 20409.31104 | CH98: 1472486.156 | CI98: 0.417331272 | CJ98: 0.417331272 | CN98: 77 | CO98: 2030-03-30 | CP98: 30 | CQ98: 2342 | CR98: 1469945.965 | CS98: 467.6210966 | CT98: 15047.60806 | CU98: 1499.344884 | CV98: 450.45 | CW98: 0 | CX98: 17465.02404 | CY98: 1469478.344 | CZ98: 0.417331272 | DA98: 0.417331272
B99: 78 | C99: 2030-04-30 | D99: 31 | E99: 2373 | F99: 1472486.156 | G99: 2828.120159 | H99: 15578.71409 | I99: 1552.026784 | J99: 450.45 | K99: 0 | L99: 20409.31104 | M99: 1469658.036 | N99: 0.4125317754 | O99: 0.4125317754 | Q99: 20409.31104 | R99: 2373 | S99: =IFERROR((1+'Simulación Cliente'!$E$21)^(R99/360),"") -> 2.484021676 | T99: 8216.24 | X99: 78 | Y99: 2030-04-30 | Z99: 31 | AA99: 2373 | AB99: 1469478.344 | AC99: -81.17428386 | AD99: 15546.89183 | AE99: 1548.856496 | AF99: 450.45 | AG99: 0 | AH99: 17465.02404 | AI99: 1469559.518 | AJ99: 0.4125317754 | AK99: 0.4125317754 | AO99: 78 | AP99: 2030-04-30 | AQ99: 31 | AR99: 2373 | AS99: 1293066.009 | AT99: 6382.247642 | AU99: 13680.47202 | AV99: 1362.914735 | AW99: 450.45 | AX99: 0 | AY99: 21876.0844 | AZ99: 1286683.762 | BA99: 0.4125317754 | BB99: 0.4125317754 | BF99: 78 | BG99: 2030-04-30 | BH99: 31 | BI99: 2373 | BJ99: 1289842.245 | BK99: 3263.864489 | BL99: 13646.36501 | BM99: 1359.51683 | BN99: 450.45 | BO99: 0 | BP99: 18720.19633 | BQ99: 1286578.381 | BR99: 0.4125317754 | BS99: 0.4125317754 | BW99: 78 | BX99: 2030-04-30 | BY99: 31 | BZ99: 2373 | CA99: 1472486.156 | CB99: 2828.120159 | CC99: 15578.71409 | CD99: 1552.026784 | CE99: 450.45 | CF99: 0 | CG99: 20409.31104 | CH99: 1469658.036 | CI99: 0.4125317754 | CJ99: 0.4125317754 | CN99: 78 | CO99: 2030-04-30 | CP99: 31 | CQ99: 2373 | CR99: 1469478.344 | CS99: -81.17428386 | CT99: 15546.89183 | CU99: 1548.856496 | CV99: 450.45 | CW99: 0 | CX99: 17465.02404 | CY99: 1469559.518 | CZ99: 0.4125317754 | DA99: 0.4125317754
B100: 79 | C100: 2030-05-30 | D100: 30 | E100: 2403 | F100: 1469658.036 | G100: 3415.149266 | H100: 15044.66057 | I100: 1499.051197 | J100: 450.45 | K100: 0 | L100: 20409.31104 | M100: 1466242.887 | N100: 0.4079396621 | O100: 0.4079396621 | Q100: 20409.31104 | R100: 2403 | S100: =IFERROR((1+'Simulación Cliente'!$E$21)^(R100/360),"") -> 2.512760084 | T100: 8122.27 | X100: 79 | Y100: 2030-05-30 | Z100: 30 | AA100: 2403 | AB100: 1469559.518 | AC100: 471.9712682 | AD100: 15043.65206 | AE100: 1498.950709 | AF100: 450.45 | AG100: 0 | AH100: 17465.02404 | AI100: 1469087.547 | AJ100: 0.4079396621 | AK100: 0.4079396621 | AO100: 79 | AP100: 2030-05-30 | AQ100: 30 | AR100: 2403 | AS100: 1286683.762 | AT100: 6941.635558 | AU100: 13171.58141 | AV100: 1312.417437 | AW100: 450.45 | AX100: 0 | AY100: 21876.0844 | AZ100: 1279742.126 | BA100: 0.4079396621 | BB100: 0.4079396621 | BF100: 79 | BG100: 2030-05-30 | BH100: 30 | BI100: 2403 | BJ100: 1286578.381 | BK100: 3786.933747 | BL100: 13170.50264 | BM100: 1312.309948 | BN100: 450.45 | BO100: 0 | BP100: 18720.19633 | BQ100: 1282791.447 | BR100: 0.4079396621 | BS100: 0.4079396621 | BW100: 79 | BX100: 2030-05-30 | BY100: 30 | BZ100: 2403 | CA100: 1469658.036 | CB100: 3415.149266 | CC100: 15044.66057 | CD100: 1499.051197 | CE100: 450.45 | CF100: 0 | CG100: 20409.31104 | CH100: 1466242.887 | CI100: 0.4079396621 | CJ100: 0.4079396621 | CN100: 79 | CO100: 2030-05-30 | CP100: 30 | CQ100: 2403 | CR100: 1469559.518 | CS100: 471.9712682 | CT100: 15043.65206 | CU100: 1498.950709 | CV100: 450.45 | CW100: 0 | CX100: 17465.02404 | CY100: 1469087.547 | CZ100: 0.4079396621 | DA100: 0.4079396621
B101: 80 | C101: 2030-06-30 | D101: 31 | E101: 2434 | F101: 1466242.887 | G101: 2900.753665 | H101: 15512.66111 | I101: 1545.446266 | J101: 450.45 | K101: 0 | L101: 20409.31104 | M101: 1463342.133 | N101: 0.4032481733 | O101: 0.4032481733 | Q101: 20409.31104 | R101: 2434 | S101: =IFERROR((1+'Simulación Cliente'!$E$21)^(R101/360),"") -> 2.542805776 | T101: 8026.3 | X101: 80 | Y101: 2030-06-30 | Z101: 31 | AA101: 2434 | AB101: 1469087.547 | AC101: -76.62779502 | AD101: 15542.75725 | AE101: 1548.444589 | AF101: 450.45 | AG101: 0 | AH101: 17465.02404 | AI101: 1469164.175 | AJ101: 0.4032481733 | AK101: 0.4032481733 | AO101: 80 | AP101: 2030-06-30 | AQ101: 31 | AR101: 2434 | AS101: 1279742.126 | AT101: 6537.256224 | AU101: 13539.50705 | AV101: 1348.871124 | AW101: 450.45 | AX101: 0 | AY101: 21876.0844 | AZ101: 1273204.87 | BA101: 0.4032481733 | BB101: 0.4032481733 | BF101: 80 | BG101: 2030-06-30 | BH101: 31 | BI101: 2434 | BJ101: 1282791.447 | BK101: 3345.892695 | BL101: 13571.76848 | BM101: 1352.085163 | BN101: 450.45 | BO101: 0 | BP101: 18720.19633 | BQ101: 1279445.554 | BR101: 0.4032481733 | BS101: 0.4032481733 | BW101: 80 | BX101: 2030-06-30 | BY101: 31 | BZ101: 2434 | CA101: 1466242.887 | CB101: 2900.753665 | CC101: 15512.66111 | CD101: 1545.446266 | CE101: 450.45 | CF101: 0 | CG101: 20409.31104 | CH101: 1463342.133 | CI101: 0.4032481733 | CJ101: 0.4032481733 | CN101: 80 | CO101: 2030-06-30 | CP101: 31 | CQ101: 2434 | CR101: 1469087.547 | CS101: -76.62779502 | CT101: 15542.75725 | CU101: 1548.444589 | CV101: 450.45 | CW101: 0 | CX101: 17465.02404 | CY101: 1469164.175 | CZ101: 0.4032481733 | DA101: 0.4032481733
B102: 81 | C102: 2030-07-30 | D102: 30 | E102: 2464 | F102: 1463342.133 | G102: 3486.246403 | H102: 14980.00566 | I102: 1492.608976 | J102: 450.45 | K102: 0 | L102: 20409.31104 | M102: 1459855.887 | N102: 0.3987594008 | O102: 0.3987594008 | Q102: 20409.31104 | R102: 2464 | S102: =IFERROR((1+'Simulación Cliente'!$E$21)^(R102/360),"") -> 2.572224275 | T102: 7934.5 | X102: 81 | Y102: 2030-07-30 | Z102: 30 | AA102: 2464 | AB102: 1469164.175 | AC102: 17941.44563 | AD102: 15039.60499 | AE102: 1498.547458 | AF102: 450.45 | AG102: 0 | AH102: 34930.04808 | AI102: 1451222.729 | AJ102: 0.7975188016 | AK102: 0.3987594008 | AO102: 81 | AP102: 2030-07-30 | AQ102: 30 | AR102: 2464 | AS102: 1273204.87 | AT102: 7093.365345 | AU102: 13033.60009 | AV102: 1298.668967 | AW102: 450.45 | AX102: 0 | AY102: 21876.0844 | AZ102: 1266111.505 | BA102: 0.3987594008 | BB102: 0.3987594008 | BF102: 81 | BG102: 2030-07-30 | BH102: 30 | BI102: 2464 | BJ102: 1279445.554 | BK102: 22587.4232 | BL102: 13097.485 | BM102: 1305.034465 | BN102: 450.45 | BO102: 0 | BP102: 37440.39267 | BQ102: 1256858.131 | BR102: 0.7975188016 | BS102: 0.3987594008 | BW102: 81 | BX102: 2030-07-30 | BY102: 30 | BZ102: 2464 | CA102: 1463342.133 | CB102: 3486.246403 | CC102: 14980.00566 | CD102: 1492.608976 | CE102: 450.45 | CF102: 0 | CG102: 20409.31104 | CH102: 1459855.887 | CI102: 0.3987594008 | CJ102: 0.3987594008 | CN102: 81 | CO102: 2030-07-30 | CP102: 30 | CQ102: 2464 | CR102: 1469164.175 | CS102: 17941.44563 | CT102: 15039.60499 | CU102: 1498.547458 | CV102: 450.45 | CW102: 0 | CX102: 34930.04808 | CY102: 1451222.729 | CZ102: 0.7975188016 | DA102: 0.3987594008
B103: 82 | C103: 2030-08-30 | D103: 31 | E103: 2495 | F103: 1459855.887 | G103: 2975.059316 | H103: 15445.08747 | I103: 1538.714253 | J103: 450.45 | K103: 0 | L103: 20409.31104 | M103: 1456880.827 | N103: 0.3941734891 | O103: 0.3941734891 | Q103: 20409.31104 | R103: 2495 | S103: =IFERROR((1+'Simulación Cliente'!$E$21)^(R103/360),"") -> 2.602980995 | T103: 7840.75 | X103: 82 | Y103: 2030-08-30 | Z103: 31 | AA103: 2495 | AB103: 1451222.729 | AC103: 131.2095173 | AD103: 15353.74977 | AE103: 1529.614751 | AF103: 450.45 | AG103: 0 | AH103: 17465.02404 | AI103: 1451091.52 | AJ103: 0.3941734891 | AK103: 0.3941734891 | AO103: 82 | AP103: 2030-08-30 | AQ103: 31 | AR103: 2495 | AS103: 1266111.505 | AT103: 6695.833366 | AU103: 13395.29683 | AV103: 1334.504205 | AW103: 450.45 | AX103: 0 | AY103: 21876.0844 | AZ103: 1259415.671 | BA103: 0.3941734891 | BB103: 0.3941734891 | BF103: 82 | BG103: 2030-08-30 | BH103: 31 | BI103: 2495 | BJ103: 1256858.131 | BK103: 3647.59802 | BL103: 13297.39733 | BM103: 1324.750983 | BN103: 450.45 | BO103: 0 | BP103: 18720.19633 | BQ103: 1253210.533 | BR103: 0.3941734891 | BS103: 0.3941734891 | BW103: 82 | BX103: 2030-08-30 | BY103: 31 | BZ103: 2495 | CA103: 1459855.887 | CB103: 2975.059316 | CC103: 15445.08747 | CD103: 1538.714253 | CE103: 450.45 | CF103: 0 | CG103: 20409.31104 | CH103: 1456880.827 | CI103: 0.3941734891 | CJ103: 0.3941734891 | CN103: 82 | CO103: 2030-08-30 | CP103: 31 | CQ103: 2495 | CR103: 1451222.729 | CS103: 131.2095173 | CT103: 15353.74977 | CU103: 1529.614751 | CV103: 450.45 | CW103: 0 | CX103: 17465.02404 | CY103: 1451091.52 | CZ103: 0.3941734891 | DA103: 0.3941734891
B104: 83 | C104: 2030-09-30 | D104: 31 | E104: 2526 | F104: 1456880.827 | G104: 3009.670827 | H104: 15413.61172 | I104: 1535.578488 | J104: 450.45 | K104: 0 | L104: 20409.31104 | M104: 1453871.156 | N104: 0.3896403174 | O104: 0.3896403174 | Q104: 20409.31104 | R104: 2526 | S104: =IFERROR((1+'Simulación Cliente'!$E$21)^(R104/360),"") -> 2.63410548 | T104: 7748.1 | X104: 83 | Y104: 2030-09-30 | Z104: 31 | AA104: 2526 | AB104: 1451091.52 | AC104: 132.7359943 | AD104: 15352.36159 | AE104: 1529.476454 | AF104: 450.45 | AG104: 0 | AH104: 17465.02404 | AI104: 1450958.784 | AJ104: 0.3896403174 | AK104: 0.3896403174 | AO104: 83 | AP104: 2030-09-30 | AQ104: 31 | AR104: 2526 | AS104: 1259415.671 | AT104: 6773.73195 | AU104: 13324.45578 | AV104: 1327.446676 | AW104: 450.45 | AX104: 0 | AY104: 21876.0844 | AZ104: 1252641.939 | BA104: 0.3896403174 | BB104: 0.3896403174 | BF104: 83 | BG104: 2030-09-30 | BH104: 31 | BI104: 2526 | BJ104: 1253210.533 | BK104: 3690.033772 | BL104: 13258.80621 | BM104: 1320.90635 | BN104: 450.45 | BO104: 0 | BP104: 18720.19633 | BQ104: 1249520.499 | BR104: 0.3896403174 | BS104: 0.3896403174 | BW104: 83 | BX104: 2030-09-30 | BY104: 31 | BZ104: 2526 | CA104: 1456880.827 | CB104: 3009.670827 | CC104: 15413.61172 | CD104: 1535.578488 | CE104: 450.45 | CF104: 0 | CG104: 20409.31104 | CH104: 1453871.156 | CI104: 0.3896403174 | CJ104: 0.3896403174 | CN104: 83 | CO104: 2030-09-30 | CP104: 31 | CQ104: 2526 | CR104: 1451091.52 | CS104: 132.7359943 | CT104: 15352.36159 | CU104: 1529.476454 | CV104: 450.45 | CW104: 0 | CX104: 17465.02404 | CY104: 1450958.784 | CZ104: 0.3896403174 | DA104: 0.3896403174
B105: 84 | C105: 2030-10-30 | D105: 30 | E105: 2556 | F105: 1453871.156 | G105: 3592.859712 | H105: 14883.05274 | I105: 1482.94858 | J105: 450.45 | K105: 0 | L105: 20409.31104 | M105: 1450278.297 | N105: 0.3853030212 | O105: 0.3853030212 | Q105: 20409.31104 | R105: 2556 | S105: =IFERROR((1+'Simulación Cliente'!$E$21)^(R105/360),"") -> 2.664580254 | T105: 7659.48 | X105: 84 | Y105: 2030-10-30 | Z105: 30 | AA105: 2556 | AB105: 1450958.784 | AC105: 681.3568427 | AD105: 14853.23924 | AE105: 1479.977959 | AF105: 450.45 | AG105: 0 | AH105: 17465.02404 | AI105: 1450277.427 | AJ105: 0.3853030212 | AK105: 0.3853030212 | AO105: 84 | AP105: 2030-10-30 | AQ105: 30 | AR105: 2556 | AS105: 1252641.939 | AT105: 7324.839055 | AU105: 12823.10057 | AV105: 1277.694778 | AW105: 450.45 | AX105: 0 | AY105: 21876.0844 | AZ105: 1245317.1 | BA105: 0.3853030212 | BB105: 0.3853030212 | BF105: 84 | BG105: 2030-10-30 | BH105: 30 | BI105: 2556 | BJ105: 1249520.499 | BK105: 4204.08855 | BL105: 12791.14687 | BM105: 1274.510909 | BN105: 450.45 | BO105: 0 | BP105: 18720.19633 | BQ105: 1245316.411 | BR105: 0.3853030212 | BS105: 0.3853030212 | BW105: 84 | BX105: 2030-10-30 | BY105: 30 | BZ105: 2556 | CA105: 1453871.156 | CB105: 3592.859712 | CC105: 14883.05274 | CD105: 1482.94858 | CE105: 450.45 | CF105: 0 | CG105: 20409.31104 | CH105: 1450278.297 | CI105: 0.3853030212 | CJ105: 0.3853030212 | CN105: 84 | CO105: 2030-10-30 | CP105: 30 | CQ105: 2556 | CR105: 1450958.784 | CS105: 681.3568427 | CT105: 14853.23924 | CU105: 1479.977959 | CV105: 450.45 | CW105: 0 | CX105: 17465.02404 | CY105: 1450277.427 | CZ105: 0.3853030212 | DA105: 0.3853030212
B106: 85 | C106: 2030-11-30 | D106: 31 | E106: 2587 | F106: 1450278.297 | G106: 3086.483936 | H106: 15343.7578 | I106: 1528.619302 | J106: 450.45 | K106: 0 | L106: 20409.31104 | M106: 1447191.813 | N106: 0.3808718639 | O106: 0.3808718639 | Q106: 20409.31104 | R106: 2587 | S106: =IFERROR((1+'Simulación Cliente'!$E$21)^(R106/360),"") -> 2.696441297 | T106: 7568.98 | X106: 85 | Y106: 2030-11-30 | Z106: 31 | AA106: 2587 | AB106: 1450277.427 | AC106: 142.2070602 | AD106: 15343.7486 | AE106: 1528.618385 | AF106: 450.45 | AG106: 0 | AH106: 17465.02404 | AI106: 1450135.22 | AJ106: 0.3808718639 | AK106: 0.3808718639 | AO106: 85 | AP106: 2030-11-30 | AQ106: 31 | AR106: 2587 | AS106: 1245317.1 | AT106: 6937.753164 | AU106: 13175.29471 | AV106: 1312.58653 | AW106: 450.45 | AX106: 0 | AY106: 21876.0844 | AZ106: 1238379.347 | BA106: 0.3808718639 | BB106: 0.3808718639 | BF106: 85 | BG106: 2030-11-30 | BH106: 31 | BI106: 2587 | BJ106: 1245316.411 | BK106: 3781.873117 | BL106: 13175.28741 | BM106: 1312.585803 | BN106: 450.45 | BO106: 0 | BP106: 18720.19633 | BQ106: 1241534.538 | BR106: 0.3808718639 | BS106: 0.3808718639 | BW106: 85 | BX106: 2030-11-30 | BY106: 31 | BZ106: 2587 | CA106: 1450278.297 | CB106: 3086.483936 | CC106: 15343.7578 | CD106: 1528.619302 | CE106: 450.45 | CF106: 0 | CG106: 20409.31104 | CH106: 1447191.813 | CI106: 0.3808718639 | CJ106: 0.3808718639 | CN106: 85 | CO106: 2030-11-30 | CP106: 31 | CQ106: 2587 | CR106: 1450277.427 | CS106: 142.2070602 | CT106: 15343.7486 | CU106: 1528.618385 | CV106: 450.45 | CW106: 0 | CX106: 17465.02404 | CY106: 1450135.22 | CZ106: 0.3808718639 | DA106: 0.3808718639
B107: 86 | C107: 2030-12-30 | D107: 30 | E107: 2617 | F107: 1447191.813 | G107: 3668.048043 | H107: 14814.67734 | I107: 1476.135649 | J107: 450.45 | K107: 0 | L107: 20409.31104 | M107: 1443523.765 | N107: 0.3766321741 | O107: 0.3766321741 | Q107: 20409.31104 | R107: 2617 | S107: =IFERROR((1+'Simulación Cliente'!$E$21)^(R107/360),"") -> 2.727637252 | T107: 7482.41 | X107: 86 | Y107: 2030-12-30 | Z107: 30 | AA107: 2617 | AB107: 1450135.22 | AC107: 18155.65161 | AD107: 14844.80854 | AE107: 1479.137924 | AF107: 450.45 | AG107: 0 | AH107: 34930.04808 | AI107: 1431979.568 | AJ107: 0.7532643483 | AK107: 0.3766321741 | AO107: 86 | AP107: 2030-12-30 | AQ107: 30 | AR107: 2617 | AS107: 1238379.347 | AT107: 7485.390835 | AU107: 12677.09663 | AV107: 1263.146934 | AW107: 450.45 | AX107: 0 | AY107: 21876.0844 | AZ107: 1230893.956 | BA107: 0.3766321741 | BB107: 0.3766321741 | BF107: 86 | BG107: 2030-12-30 | BH107: 30 | BI107: 2617 | BJ107: 1241534.538 | BK107: 23014.18161 | BL107: 12709.39583 | BM107: 1266.365228 | BN107: 450.45 | BO107: 0 | BP107: 37440.39267 | BQ107: 1218520.356 | BR107: 0.7532643483 | BS107: 0.3766321741 | BW107: 86 | BX107: 2030-12-30 | BY107: 30 | BZ107: 2617 | CA107: 1447191.813 | CB107: 3668.048043 | CC107: 14814.67734 | CD107: 1476.135649 | CE107: 450.45 | CF107: 0 | CG107: 20409.31104 | CH107: 1443523.765 | CI107: 0.3766321741 | CJ107: 0.3766321741 | CN107: 86 | CO107: 2030-12-30 | CP107: 30 | CQ107: 2617 | CR107: 1450135.22 | CS107: 18155.65161 | CT107: 14844.80854 | CU107: 1479.137924 | CV107: 450.45 | CW107: 0 | CX107: 34930.04808 | CY107: 1431979.568 | CZ107: 0.7532643483 | DA107: 0.3766321741
B108: 87 | C108: 2031-01-30 | D108: 31 | E108: 2648 | F108: 1443523.765 | G108: 3165.065413 | H108: 15272.29572 | I108: 1521.499905 | J108: 450.45 | K108: 0 | L108: 20409.31104 | M108: 1440358.699 | N108: 0.3723007354 | O108: 0.3723007354 | Q108: 20409.31104 | R108: 2648 | S108: =IFERROR((1+'Simulación Cliente'!$E$21)^(R108/360),"") -> 2.760252283 | T108: 7394 | X108: 87 | Y108: 2031-01-30 | Z108: 31 | AA108: 2648 | AB108: 1431979.568 | AC108: 355.0823217 | AD108: 15150.1596 | AE108: 1509.332115 | AF108: 450.45 | AG108: 0 | AH108: 17465.02404 | AI108: 1431624.486 | AJ108: 0.3723007354 | AK108: 0.3723007354 | AO108: 87 | AP108: 2031-01-30 | AQ108: 31 | AR108: 2648 | AS108: 1230893.956 | AT108: 7105.550424 | AU108: 13022.6997 | AV108: 1297.384278 | AW108: 450.45 | AX108: 0 | AY108: 21876.0844 | AZ108: 1223788.406 | BA108: 0.3723007354 | BB108: 0.3723007354 | BF108: 87 | BG108: 2031-01-30 | BH108: 31 | BI108: 2648 | BJ108: 1218520.356 | BK108: 4093.61545 | BL108: 12891.7886 | BM108: 1284.342282 | BN108: 450.45 | BO108: 0 | BP108: 18720.19633 | BQ108: 1214426.741 | BR108: 0.3723007354 | BS108: 0.3723007354 | BW108: 87 | BX108: 2031-01-30 | BY108: 31 | BZ108: 2648 | CA108: 1443523.765 | CB108: 3165.065413 | CC108: 15272.29572 | CD108: 1521.499905 | CE108: 450.45 | CF108: 0 | CG108: 20409.31104 | CH108: 1440358.699 | CI108: 0.3723007354 | CJ108: 0.3723007354 | CN108: 87 | CO108: 2031-01-30 | CP108: 31 | CQ108: 2648 | CR108: 1431979.568 | CS108: 355.0823217 | CT108: 15150.1596 | CU108: 1509.332115 | CV108: 450.45 | CW108: 0 | CX108: 17465.02404 | CY108: 1431624.486 | CZ108: 0.3723007354 | DA108: 0.3723007354
B109: 88 | C109: 2031-02-28 | D109: 29 | E109: 2677 | F109: 1440358.699 | G109: 4287.877869 | H109: 14250.81362 | I109: 1420.169543 | J109: 450.45 | K109: 0 | L109: 20409.31104 | M109: 1436070.821 | N109: 0.3682938521 | O109: 0.3682938521 | Q109: 20409.31104 | R109: 2677 | S109: =IFERROR((1+'Simulación Cliente'!$E$21)^(R109/360),"") -> 2.791116085 | T109: 7312.24 | X109: 88 | Y109: 2031-02-28 | Z109: 29 | AA109: 2677 | AB109: 1431624.486 | AC109: 1438.618391 | AD109: 14164.39789 | AE109: 1411.557755 | AF109: 450.45 | AG109: 0 | AH109: 17465.02404 | AI109: 1430185.867 | AJ109: 0.3682938521 | AK109: 0.3682938521 | AO109: 88 | AP109: 2031-02-28 | AQ109: 29 | AR109: 2677 | AS109: 1223788.406 | AT109: 8110.918062 | AU109: 12108.08148 | AV109: 1206.634862 | AW109: 450.45 | AX109: 0 | AY109: 21876.0844 | AZ109: 1215677.488 | BA109: 0.3682938521 | BB109: 0.3682938521 | BF109: 88 | BG109: 2031-02-28 | BH109: 29 | BI109: 2677 | BJ109: 1214426.741 | BK109: 5056.884136 | BL109: 12015.45778 | BM109: 1197.404417 | BN109: 450.45 | BO109: 0 | BP109: 18720.19633 | BQ109: 1209369.856 | BR109: 0.3682938521 | BS109: 0.3682938521 | BW109: 88 | BX109: 2031-02-28 | BY109: 29 | BZ109: 2677 | CA109: 1440358.699 | CB109: 4287.877869 | CC109: 14250.81362 | CD109: 1420.169543 | CE109: 450.45 | CF109: 0 | CG109: 20409.31104 | CH109: 1436070.821 | CI109: 0.3682938521 | CJ109: 0.3682938521 | CN109: 88 | CO109: 2031-02-28 | CP109: 29 | CQ109: 2677 | CR109: 1431624.486 | CS109: 1438.618391 | CT109: 14164.39789 | CU109: 1411.557755 | CV109: 450.45 | CW109: 0 | CX109: 17465.02404 | CY109: 1430185.867 | CZ109: 0.3682938521 | DA109: 0.3682938521
B110: 89 | C110: 2031-03-30 | D110: 30 | E110: 2707 | F110: 1436070.821 | G110: 3793.235312 | H110: 14700.83349 | I110: 1464.792238 | J110: 450.45 | K110: 0 | L110: 20409.31104 | M110: 1432277.586 | N110: 0.3641941749 | O110: 0.3641941749 | Q110: 20409.31104 | R110: 2707 | S110: =IFERROR((1+'Simulación Cliente'!$E$21)^(R110/360),"") -> 2.823407363 | T110: 7228.61 | X110: 89 | Y110: 2031-03-30 | Z110: 30 | AA110: 2707 | AB110: 1430185.867 | AC110: 915.1943276 | AD110: 14640.59013 | AE110: 1458.789585 | AF110: 450.45 | AG110: 0 | AH110: 17465.02404 | AI110: 1429270.673 | AJ110: 0.3641941749 | AK110: 0.3641941749 | AO110: 89 | AP110: 2031-03-30 | AQ110: 30 | AR110: 2707 | AS110: 1215677.488 | AT110: 7740.942132 | AU110: 12444.70123 | AV110: 1239.991038 | AW110: 450.45 | AX110: 0 | AY110: 21876.0844 | AZ110: 1207936.546 | BA110: 0.3641941749 | BB110: 0.3641941749 | BF110: 89 | BG110: 2031-03-30 | BH110: 30 | BI110: 2707 | BJ110: 1209369.856 | BK110: 4656.058088 | BL110: 12380.13099 | BM110: 1233.557254 | BN110: 450.45 | BO110: 0 | BP110: 18720.19633 | BQ110: 1204713.798 | BR110: 0.3641941749 | BS110: 0.3641941749 | BW110: 89 | BX110: 2031-03-30 | BY110: 30 | BZ110: 2707 | CA110: 1436070.821 | CB110: 3793.235312 | CC110: 14700.83349 | CD110: 1464.792238 | CE110: 450.45 | CF110: 0 | CG110: 20409.31104 | CH110: 1432277.586 | CI110: 0.3641941749 | CJ110: 0.3641941749 | CN110: 89 | CO110: 2031-03-30 | CP110: 30 | CQ110: 2707 | CR110: 1430185.867 | CS110: 915.1943276 | CT110: 14640.59013 | CU110: 1458.789585 | CV110: 450.45 | CW110: 0 | CX110: 17465.02404 | CY110: 1429270.673 | CZ110: 0.3641941749 | DA110: 0.3641941749
B111: 90 | C111: 2031-04-30 | D111: 31 | E111: 2738 | F111: 1432277.586 | G111: 3295.902209 | H111: 15153.3126 | I111: 1509.646231 | J111: 450.45 | K111: 0 | L111: 20409.31104 | M111: 1428981.684 | N111: 0.3600057788 | O111: 0.3600057788 | Q111: 20409.31104 | R111: 2738 | S111: =IFERROR((1+'Simulación Cliente'!$E$21)^(R111/360),"") -> 2.85716754 | T111: 7143.2 | X111: 90 | Y111: 2031-04-30 | Z111: 31 | AA111: 2738 | AB111: 1429270.673 | AC111: 386.5973067 | AD111: 15121.49984 | AE111: 1506.476891 | AF111: 450.45 | AG111: 0 | AH111: 17465.02404 | AI111: 1428884.076 | AJ111: 0.3600057788 | AK111: 0.3600057788 | AO111: 90 | AP111: 2031-04-30 | AQ111: 31 | AR111: 2738 | AS111: 1207936.546 | AT111: 7372.634396 | AU111: 12779.81325 | AV111: 1273.186756 | AW111: 450.45 | AX111: 0 | AY111: 21876.0844 | AZ111: 1200563.911 | BA111: 0.3600057788 | BB111: 0.3600057788 | BF111: 90 | BG111: 2031-04-30 | BH111: 31 | BI111: 2738 | BJ111: 1204713.798 | BK111: 4254.239413 | BL111: 12745.717 | BM111: 1269.789922 | BN111: 450.45 | BO111: 0 | BP111: 18720.19633 | BQ111: 1200459.559 | BR111: 0.3600057788 | BS111: 0.3600057788 | BW111: 90 | BX111: 2031-04-30 | BY111: 31 | BZ111: 2738 | CA111: 1432277.586 | CB111: 3295.902209 | CC111: 15153.3126 | CD111: 1509.646231 | CE111: 450.45 | CF111: 0 | CG111: 20409.31104 | CH111: 1428981.684 | CI111: 0.3600057788 | CJ111: 0.3600057788 | CN111: 90 | CO111: 2031-04-30 | CP111: 31 | CQ111: 2738 | CR111: 1429270.673 | CS111: 386.5973067 | CT111: 15121.49984 | CU111: 1506.476891 | CV111: 450.45 | CW111: 0 | CX111: 17465.02404 | CY111: 1428884.076 | CZ111: 0.3600057788 | DA111: 0.3600057788
B112: 91 | C112: 2031-05-30 | D112: 30 | E112: 2768 | F112: 1428981.684 | G112: 3873.03663 | H112: 14628.26309 | I112: 1457.561318 | J112: 450.45 | K112: 0 | L112: 20409.31104 | M112: 1425108.647 | N112: 0.3559983607 | O112: 0.3559983607 | Q112: 20409.31104 | R112: 2768 | S112: =IFERROR((1+'Simulación Cliente'!$E$21)^(R112/360),"") -> 2.890222987 | T112: 7061.5 | X112: 91 | Y112: 2031-05-30 | Z112: 30 | AA112: 2768 | AB112: 1428884.076 | AC112: 929.8483934 | AD112: 14627.26389 | AE112: 1457.461757 | AF112: 450.45 | AG112: 0 | AH112: 17465.02404 | AI112: 1427954.227 | AJ112: 0.3559983607 | AK112: 0.3559983607 | AO112: 91 | AP112: 2031-05-30 | AQ112: 30 | AR112: 2768 | AS112: 1200563.911 | AT112: 7911.073311 | AU112: 12289.9859 | AV112: 1224.575189 | AW112: 450.45 | AX112: 0 | AY112: 21876.0844 | AZ112: 1192652.838 | BA112: 0.3559983607 | BB112: 0.3559983607 | BF112: 91 | BG112: 2031-05-30 | BH112: 30 | BI112: 2768 | BJ112: 1200459.559 | BK112: 4756.35992 | BL112: 12288.91766 | BM112: 1224.46875 | BN112: 450.45 | BO112: 0 | BP112: 18720.19633 | BQ112: 1195703.199 | BR112: 0.3559983607 | BS112: 0.3559983607 | BW112: 91 | BX112: 2031-05-30 | BY112: 30 | BZ112: 2768 | CA112: 1428981.684 | CB112: 3873.03663 | CC112: 14628.26309 | CD112: 1457.561318 | CE112: 450.45 | CF112: 0 | CG112: 20409.31104 | CH112: 1425108.647 | CI112: 0.3559983607 | CJ112: 0.3559983607 | CN112: 91 | CO112: 2031-05-30 | CP112: 30 | CQ112: 2768 | CR112: 1428884.076 | CS112: 929.8483934 | CT112: 14627.26389 | CU112: 1457.461757 | CV112: 450.45 | CW112: 0 | CX112: 17465.02404 | CY112: 1427954.227 | CZ112: 0.3559983607 | DA112: 0.3559983607
B113: 92 | C113: 2031-06-30 | D113: 31 | E113: 2799 | F113: 1425108.647 | G113: 3379.30485 | H113: 15077.46615 | I113: 1502.090041 | J113: 450.45 | K113: 0 | L113: 20409.31104 | M113: 1421729.342 | N113: 0.3519042201 | O113: 0.3519042201 | Q113: 20409.31104 | R113: 2799 | S113: =IFERROR((1+'Simulación Cliente'!$E$21)^(R113/360),"") -> 2.924782096 | T113: 6978.06 | X113: 92 | Y113: 2031-06-30 | Z113: 31 | AA113: 2799 | AB113: 1427954.227 | AC113: 401.9126902 | AD113: 15107.57202 | AE113: 1505.089333 | AF113: 450.45 | AG113: 0 | AH113: 17465.02404 | AI113: 1427552.315 | AJ113: 0.3519042201 | AK113: 0.3519042201 | AO113: 92 | AP113: 2031-06-30 | AQ113: 31 | AR113: 2799 | AS113: 1192652.838 | AT113: 7550.443359 | AU113: 12618.11359 | AV113: 1257.077454 | AW113: 450.45 | AX113: 0 | AY113: 21876.0844 | AZ113: 1185102.395 | BA113: 0.3519042201 | BB113: 0.3519042201 | BF113: 92 | BG113: 2031-06-30 | BH113: 31 | BI113: 2799 | BJ113: 1195703.199 | BK113: 4359.067728 | BL113: 12650.38602 | BM113: 1260.292589 | BN113: 450.45 | BO113: 0 | BP113: 18720.19633 | BQ113: 1191344.131 | BR113: 0.3519042201 | BS113: 0.3519042201 | BW113: 92 | BX113: 2031-06-30 | BY113: 31 | BZ113: 2799 | CA113: 1425108.647 | CB113: 3379.30485 | CC113: 15077.46615 | CD113: 1502.090041 | CE113: 450.45 | CF113: 0 | CG113: 20409.31104 | CH113: 1421729.342 | CI113: 0.3519042201 | CJ113: 0.3519042201 | CN113: 92 | CO113: 2031-06-30 | CP113: 31 | CQ113: 2799 | CR113: 1427954.227 | CS113: 401.9126902 | CT113: 15107.57202 | CU113: 1505.089333 | CV113: 450.45 | CW113: 0 | CX113: 17465.02404 | CY113: 1427552.315 | CZ113: 0.3519042201 | DA113: 0.3519042201
B114: 93 | C114: 2031-07-30 | D114: 30 | E114: 2829 | F114: 1421729.342 | G114: 3954.675109 | H114: 14554.022 | I114: 1450.163929 | J114: 450.45 | K114: 0 | L114: 20409.31104 | M114: 1417774.667 | N114: 0.3479869847 | O114: 0.3479869847 | Q114: 20409.31104 | R114: 2829 | S114: =IFERROR((1+'Simulación Cliente'!$E$21)^(R114/360),"") -> 2.958619796 | T114: 6898.25 | X114: 93 | Y114: 2031-07-30 | Z114: 30 | AA114: 2829 | AB114: 1427552.315 | AC114: 18409.86386 | AD114: 14613.63086 | AE114: 1456.103361 | AF114: 450.45 | AG114: 0 | AH114: 34930.04808 | AI114: 1409142.451 | AJ114: 0.6959739695 | AK114: 0.3479869847 | AO114: 93 | AP114: 2031-07-30 | AQ114: 30 | AR114: 2829 | AS114: 1185102.395 | AT114: 8085.121198 | AU114: 12131.70876 | AV114: 1208.804442 | AW114: 450.45 | AX114: 0 | AY114: 21876.0844 | AZ114: 1177017.273 | BA114: 0.3479869847 | BB114: 0.3479869847 | BF114: 93 | BG114: 2031-07-30 | BH114: 30 | BI114: 2829 | BJ114: 1191344.131 | BK114: 23579.1672 | BL114: 12195.60445 | BM114: 1215.171014 | BN114: 450.45 | BO114: 0 | BP114: 37440.39267 | BQ114: 1167764.964 | BR114: 0.6959739695 | BS114: 0.3479869847 | BW114: 93 | BX114: 2031-07-30 | BY114: 30 | BZ114: 2829 | CA114: 1421729.342 | CB114: 3954.675109 | CC114: 14554.022 | CD114: 1450.163929 | CE114: 450.45 | CF114: 0 | CG114: 20409.31104 | CH114: 1417774.667 | CI114: 0.3479869847 | CJ114: 0.3479869847 | CN114: 93 | CO114: 2031-07-30 | CP114: 30 | CQ114: 2829 | CR114: 1427552.315 | CS114: 18409.86386 | CT114: 14613.63086 | CU114: 1456.103361 | CV114: 450.45 | CW114: 0 | CX114: 34930.04808 | CY114: 1409142.451 | CZ114: 0.6959739695 | DA114: 0.3479869847
B115: 94 | C115: 2031-08-30 | D115: 31 | E115: 2860 | F115: 1417774.667 | G115: 3464.62756 | H115: 14999.87358 | I115: 1494.359895 | J115: 450.45 | K115: 0 | L115: 20409.31104 | M115: 1414310.04 | N115: 0.3439849785 | O115: 0.3439849785 | Q115: 20409.31104 | R115: 2860 | S115: =IFERROR((1+'Simulación Cliente'!$E$21)^(R115/360),"") -> 2.993996742 | T115: 6816.74 | X115: 94 | Y115: 2031-08-30 | Z115: 31 | AA115: 2860 | AB115: 1409142.451 | AC115: 620.7668153 | AD115: 14908.54584 | AE115: 1485.261384 | AF115: 450.45 | AG115: 0 | AH115: 17465.02404 | AI115: 1408521.684 | AJ115: 0.3439849785 | AK115: 0.3439849785 | AO115: 94 | AP115: 2031-08-30 | AQ115: 31 | AR115: 2860 | AS115: 1177017.273 | AT115: 7732.345786 | AU115: 12452.69133 | AV115: 1240.597289 | AW115: 450.45 | AX115: 0 | AY115: 21876.0844 | AZ115: 1169284.928 | BA115: 0.3439849785 | BB115: 0.3439849785 | BF115: 94 | BG115: 2031-08-30 | BH115: 31 | BI115: 2860 | BJ115: 1167764.964 | BK115: 4684.098059 | BL115: 12354.80309 | BM115: 1230.845189 | BN115: 450.45 | BO115: 0 | BP115: 18720.19633 | BQ115: 1163080.866 | BR115: 0.3439849785 | BS115: 0.3439849785 | BW115: 94 | BX115: 2031-08-30 | BY115: 31 | BZ115: 2860 | CA115: 1417774.667 | CB115: 3464.62756 | CC115: 14999.87358 | CD115: 1494.359895 | CE115: 450.45 | CF115: 0 | CG115: 20409.31104 | CH115: 1414310.04 | CI115: 0.3439849785 | CJ115: 0.3439849785 | CN115: 94 | CO115: 2031-08-30 | CP115: 31 | CQ115: 2860 | CR115: 1409142.451 | CS115: 620.7668153 | CT115: 14908.54584 | CU115: 1485.261384 | CV115: 450.45 | CW115: 0 | CX115: 17465.02404 | CY115: 1408521.684 | CZ115: 0.3439849785 | DA115: 0.3439849785
B116: 95 | C116: 2031-09-30 | D116: 31 | E116: 2891 | F116: 1414310.04 | G116: 3504.934654 | H116: 14963.21827 | I116: 1490.708115 | J116: 450.45 | K116: 0 | L116: 20409.31104 | M116: 1410805.105 | N116: 0.3400289972 | O116: 0.3400289972 | Q116: 20409.31104 | R116: 2891 | S116: =IFERROR((1+'Simulación Cliente'!$E$21)^(R116/360),"") -> 3.0297967 | T116: 6736.2 | X116: 95 | Y116: 2031-09-30 | Z116: 31 | AA116: 2891 | AB116: 1408521.684 | AC116: 627.9887477 | AD116: 14901.97821 | AE116: 1484.607085 | AF116: 450.45 | AG116: 0 | AH116: 17465.02404 | AI116: 1407893.695 | AJ116: 0.3400289972 | AK116: 0.3400289972 | AO116: 95 | AP116: 2031-09-30 | AQ116: 31 | AR116: 2891 | AS116: 1169284.928 | AT116: 7822.303041 | AU116: 12370.8841 | AV116: 1232.447258 | AW116: 450.45 | AX116: 0 | AY116: 21876.0844 | AZ116: 1161462.625 | BA116: 0.3400289972 | BB116: 0.3400289972 | BF116: 95 | BG116: 2031-09-30 | BH116: 31 | BI116: 2891 | BJ116: 1163080.866 | BK116: 4738.592337 | BL116: 12305.24593 | BM116: 1225.908066 | BN116: 450.45 | BO116: 0 | BP116: 18720.19633 | BQ116: 1158342.274 | BR116: 0.3400289972 | BS116: 0.3400289972 | BW116: 95 | BX116: 2031-09-30 | BY116: 31 | BZ116: 2891 | CA116: 1414310.04 | CB116: 3504.934654 | CC116: 14963.21827 | CD116: 1490.708115 | CE116: 450.45 | CF116: 0 | CG116: 20409.31104 | CH116: 1410805.105 | CI116: 0.3400289972 | CJ116: 0.3400289972 | CN116: 95 | CO116: 2031-09-30 | CP116: 31 | CQ116: 2891 | CR116: 1408521.684 | CS116: 627.9887477 | CT116: 14901.97821 | CU116: 1484.607085 | CV116: 450.45 | CW116: 0 | CX116: 17465.02404 | CY116: 1407893.695 | CZ116: 0.3400289972 | DA116: 0.3400289972
B117: 96 | C117: 2031-10-30 | D117: 30 | E117: 2921 | F117: 1410805.105 | G117: 4077.647548 | H117: 14442.19228 | I117: 1439.021207 | J117: 450.45 | K117: 0 | L117: 20409.31104 | M117: 1406727.458 | N117: 0.3362439514 | O117: 0.3362439514 | Q117: 20409.31104 | R117: 2921 | S117: =IFERROR((1+'Simulación Cliente'!$E$21)^(R117/360),"") -> 3.064849346 | T117: 6659.16 | X117: 96 | Y117: 2031-10-30 | Z117: 30 | AA117: 2921 | AB117: 1407893.695 | AC117: 1166.13384 | AD117: 14412.38863 | AE117: 1436.051569 | AF117: 450.45 | AG117: 0 | AH117: 17465.02404 | AI117: 1406727.561 | AJ117: 0.3362439514 | AK117: 0.3362439514 | AO117: 96 | AP117: 2031-10-30 | AQ117: 30 | AR117: 2921 | AS117: 1161462.625 | AT117: 8351.230409 | AU117: 11889.71212 | AV117: 1184.691877 | AW117: 450.45 | AX117: 0 | AY117: 21876.0844 | AZ117: 1153111.394 | BA117: 0.3362439514 | BB117: 0.3362439514 | BF117: 96 | BG117: 2031-10-30 | BH117: 30 | BI117: 2921 | BJ117: 1158342.274 | BK117: 5230.467645 | BL117: 11857.76957 | BM117: 1181.509119 | BN117: 450.45 | BO117: 0 | BP117: 18720.19633 | BQ117: 1153111.806 | BR117: 0.3362439514 | BS117: 0.3362439514 | BW117: 96 | BX117: 2031-10-30 | BY117: 30 | BZ117: 2921 | CA117: 1410805.105 | CB117: 4077.647548 | CC117: 14442.19228 | CD117: 1439.021207 | CE117: 450.45 | CF117: 0 | CG117: 20409.31104 | CH117: 1406727.458 | CI117: 0.3362439514 | CJ117: 0.3362439514 | CN117: 96 | CO117: 2031-10-30 | CP117: 30 | CQ117: 2921 | CR117: 1407893.695 | CS117: 1166.13384 | CT117: 14412.38863 | CU117: 1436.051569 | CV117: 450.45 | CW117: 0 | CX117: 17465.02404 | CY117: 1406727.561 | CZ117: 0.3362439514 | DA117: 0.3362439514
B118: 97 | C118: 2031-11-30 | D118: 31 | E118: 2952 | F118: 1406727.458 | G118: 3593.149575 | H118: 14882.99552 | I118: 1482.715938 | J118: 450.45 | K118: 0 | L118: 20409.31104 | M118: 1403134.308 | N118: 0.3323769953 | O118: 0.3323769953 | Q118: 20409.31104 | R118: 2952 | S118: =IFERROR((1+'Simulación Cliente'!$E$21)^(R118/360),"") -> 3.101496505 | T118: 6580.47 | X118: 97 | Y118: 2031-11-30 | Z118: 31 | AA118: 2952 | AB118: 1406727.561 | AC118: 648.8613712 | AD118: 14882.99662 | AE118: 1482.716047 | AF118: 450.45 | AG118: 0 | AH118: 17465.02404 | AI118: 1406078.7 | AJ118: 0.3323769953 | AK118: 0.3323769953 | AO118: 97 | AP118: 2031-11-30 | AQ118: 31 | AR118: 2952 | AS118: 1153111.394 | AT118: 8010.464138 | AU118: 12199.7702 | AV118: 1215.400064 | AW118: 450.45 | AX118: 0 | AY118: 21876.0844 | AZ118: 1145100.93 | BA118: 0.3323769953 | BB118: 0.3323769953 | BF118: 97 | BG118: 2031-11-30 | BH118: 31 | BI118: 2952 | BJ118: 1153111.806 | BK118: 4854.571277 | BL118: 12199.77456 | BM118: 1215.400498 | BN118: 450.45 | BO118: 0 | BP118: 18720.19633 | BQ118: 1148257.235 | BR118: 0.3323769953 | BS118: 0.3323769953 | BW118: 97 | BX118: 2031-11-30 | BY118: 31 | BZ118: 2952 | CA118: 1406727.458 | CB118: 3593.149575 | CC118: 14882.99552 | CD118: 1482.715938 | CE118: 450.45 | CF118: 0 | CG118: 20409.31104 | CH118: 1403134.308 | CI118: 0.3323769953 | CJ118: 0.3323769953 | CN118: 97 | CO118: 2031-11-30 | CP118: 31 | CQ118: 2952 | CR118: 1406727.561 | CS118: 648.8613712 | CT118: 14882.99662 | CU118: 1482.716047 | CV118: 450.45 | CW118: 0 | CX118: 17465.02404 | CY118: 1406078.7 | CZ118: 0.3323769953 | DA118: 0.3323769953
B119: 98 | C119: 2031-12-30 | D119: 30 | E119: 2982 | F119: 1403134.308 | G119: 4163.996517 | H119: 14363.66752 | I119: 1431.196994 | J119: 450.45 | K119: 0 | L119: 20409.31104 | M119: 1398970.311 | N119: 0.328677128 | O119: 0.328677128 | Q119: 20409.31104 | R119: 2982 | S119: =IFERROR((1+'Simulación Cliente'!$E$21)^(R119/360),"") -> 3.137378668 | T119: 6505.21 | X119: 98 | Y119: 2031-12-30 | Z119: 30 | AA119: 2982 | AB119: 1406078.7 | AC119: 18651.589 | AD119: 14393.80881 | AE119: 1434.200274 | AF119: 450.45 | AG119: 0 | AH119: 34930.04808 | AI119: 1387427.111 | AJ119: 0.6573542561 | AK119: 0.328677128 | AO119: 98 | AP119: 2031-12-30 | AQ119: 30 | AR119: 2982 | AS119: 1145100.93 | AT119: 8535.411458 | AU119: 11722.21999 | AV119: 1168.002949 | AW119: 450.45 | AX119: 0 | AY119: 21876.0844 | AZ119: 1136565.519 | BA119: 0.328677128 | BB119: 0.328677128 | BF119: 98 | BG119: 2031-12-30 | BH119: 30 | BI119: 2982 | BJ119: 1148257.235 | BK119: 24064.18969 | BL119: 11754.5306 | BM119: 1171.22238 | BN119: 450.45 | BO119: 0 | BP119: 37440.39267 | BQ119: 1124193.045 | BR119: 0.6573542561 | BS119: 0.328677128 | BW119: 98 | BX119: 2031-12-30 | BY119: 30 | BZ119: 2982 | CA119: 1403134.308 | CB119: 4163.996517 | CC119: 14363.66752 | CD119: 1431.196994 | CE119: 450.45 | CF119: 0 | CG119: 20409.31104 | CH119: 1398970.311 | CI119: 0.328677128 | CJ119: 0.328677128 | CN119: 98 | CO119: 2031-12-30 | CP119: 30 | CQ119: 2982 | CR119: 1406078.7 | CS119: 18651.589 | CT119: 14393.80881 | CU119: 1434.200274 | CV119: 450.45 | CW119: 0 | CX119: 34930.04808 | CY119: 1387427.111 | CZ119: 0.6573542561 | DA119: 0.328677128
B120: 99 | C120: 2032-01-30 | D120: 31 | E120: 3013 | F120: 1398970.311 | G120: 3683.395354 | H120: 14800.92591 | I120: 1474.539767 | J120: 450.45 | K120: 0 | L120: 20409.31104 | M120: 1395286.916 | N120: 0.3248971939 | O120: 0.3248971939 | Q120: 20409.31104 | R120: 3013 | S120: =IFERROR((1+'Simulación Cliente'!$E$21)^(R120/360),"") -> 3.174893079 | T120: 6428.35 | X120: 99 | Y120: 2032-01-30 | Z120: 31 | AA120: 3013 | AB120: 1387427.111 | AC120: 873.4006735 | AD120: 14678.80034 | AE120: 1462.373027 | AF120: 450.45 | AG120: 0 | AH120: 17465.02404 | AI120: 1386553.71 | AJ120: 0.3248971939 | AK120: 0.3248971939 | AO120: 99 | AP120: 2032-01-30 | AQ120: 31 | AR120: 3013 | AS120: 1136565.519 | AT120: 8202.957022 | AU120: 12024.71696 | AV120: 1197.960415 | AW120: 450.45 | AX120: 0 | AY120: 21876.0844 | AZ120: 1128362.562 | BA120: 0.3248971939 | BB120: 0.3248971939 | BF120: 99 | BG120: 2032-01-30 | BH120: 31 | BI120: 3013 | BJ120: 1124193.045 | BK120: 5191.00894 | BL120: 11893.81779 | BM120: 1184.919606 | BN120: 450.45 | BO120: 0 | BP120: 18720.19633 | BQ120: 1119002.036 | BR120: 0.3248971939 | BS120: 0.3248971939 | BW120: 99 | BX120: 2032-01-30 | BY120: 31 | BZ120: 3013 | CA120: 1398970.311 | CB120: 3683.395354 | CC120: 14800.92591 | CD120: 1474.539767 | CE120: 450.45 | CF120: 0 | CG120: 20409.31104 | CH120: 1395286.916 | CI120: 0.3248971939 | CJ120: 0.3248971939 | CN120: 99 | CO120: 2032-01-30 | CP120: 31 | CQ120: 3013 | CR120: 1387427.111 | CS120: 873.4006735 | CT120: 14678.80034 | CU120: 1462.373027 | CV120: 450.45 | CW120: 0 | CX120: 17465.02404 | CY120: 1386553.71 | CZ120: 0.3248971939 | DA120: 0.3248971939
B121: 100 | C121: 2032-02-29 | D121: 30 | E121: 3043 | F121: 1395286.916 | G121: 4252.333386 | H121: 14283.33499 | I121: 1423.192654 | J121: 450.45 | K121: 0 | L121: 20409.31104 | M121: 1391034.583 | N121: 0.3212805883 | O121: 0.3212805883 | Q121: 20409.31104 | R121: 3043 | S121: =IFERROR((1+'Simulación Cliente'!$E$21)^(R121/360),"") -> 3.211624389 | T121: 6354.83 | X121: 100 | Y121: 2032-02-29 | Z121: 30 | AA121: 3043 | AB121: 1386553.71 | AC121: 1406.354728 | AD121: 14193.93453 | AE121: 1414.284785 | AF121: 450.45 | AG121: 0 | AH121: 17465.02404 | AI121: 1385147.356 | AJ121: 0.3212805883 | AK121: 0.3212805883 | AO121: 100 | AP121: 2032-02-29 | AQ121: 30 | AR121: 3043 | AS121: 1128362.562 | AT121: 8723.832667 | AU121: 11550.87192 | AV121: 1150.929813 | AW121: 450.45 | AX121: 0 | AY121: 21876.0844 | AZ121: 1119638.729 | BA121: 0.3212805883 | BB121: 0.3212805883 | BF121: 100 | BG121: 2032-02-29 | BH121: 30 | BI121: 3043 | BJ121: 1119002.036 | BK121: 5673.314576 | BL121: 11455.04968 | BM121: 1141.382077 | BN121: 450.45 | BO121: 0 | BP121: 18720.19633 | BQ121: 1113328.722 | BR121: 0.3212805883 | BS121: 0.3212805883 | BW121: 100 | BX121: 2032-02-29 | BY121: 30 | BZ121: 3043 | CA121: 1395286.916 | CB121: 4252.333386 | CC121: 14283.33499 | CD121: 1423.192654 | CE121: 450.45 | CF121: 0 | CG121: 20409.31104 | CH121: 1391034.583 | CI121: 0.3212805883 | CJ121: 0.3212805883 | CN121: 100 | CO121: 2032-02-29 | CP121: 30 | CQ121: 3043 | CR121: 1386553.71 | CS121: 1406.354728 | CT121: 14193.93453 | CU121: 1414.284785 | CV121: 450.45 | CW121: 0 | CX121: 17465.02404 | CY121: 1385147.356 | CZ121: 0.3212805883 | DA121: 0.3212805883
B122: 101 | C122: 2032-03-30 | D122: 30 | E122: 3073 | F122: 1391034.583 | G122: 4300.201242 | H122: 14239.80452 | I122: 1418.855274 | J122: 450.45 | K122: 0 | L122: 20409.31104 | M122: 1386734.381 | N122: 0.3177042411 | O122: 0.3177042411 | Q122: 20409.31104 | R122: 3073 | S122: =IFERROR((1+'Simulación Cliente'!$E$21)^(R122/360),"") -> 3.248780656 | T122: 6282.14 | X122: 101 | Y122: 2032-03-30 | Z122: 30 | AA122: 3073 | AB122: 1385147.356 | AC122: 1422.185845 | AD122: 14179.53789 | AE122: 1412.850303 | AF122: 450.45 | AG122: 0 | AH122: 17465.02404 | AI122: 1383725.17 | AJ122: 0.3177042411 | AK122: 0.3177042411 | AO122: 101 | AP122: 2032-03-30 | AQ122: 30 | AR122: 3073 | AS122: 1119638.729 | AT122: 8822.035494 | AU122: 11461.5674 | AV122: 1142.031503 | AW122: 450.45 | AX122: 0 | AY122: 21876.0844 | AZ122: 1110816.693 | BA122: 0.3177042411 | BB122: 0.3177042411 | BF122: 101 | BG122: 2032-03-30 | BH122: 30 | BI122: 3073 | BJ122: 1113328.722 | BK122: 5737.178195 | BL122: 11396.97284 | BM122: 1135.595296 | BN122: 450.45 | BO122: 0 | BP122: 18720.19633 | BQ122: 1107591.543 | BR122: 0.3177042411 | BS122: 0.3177042411 | BW122: 101 | BX122: 2032-03-30 | BY122: 30 | BZ122: 3073 | CA122: 1391034.583 | CB122: 4300.201242 | CC122: 14239.80452 | CD122: 1418.855274 | CE122: 450.45 | CF122: 0 | CG122: 20409.31104 | CH122: 1386734.381 | CI122: 0.3177042411 | CJ122: 0.3177042411 | CN122: 101 | CO122: 2032-03-30 | CP122: 30 | CQ122: 3073 | CR122: 1385147.356 | CS122: 1422.185845 | CT122: 14179.53789 | CU122: 1412.850303 | CV122: 450.45 | CW122: 0 | CX122: 17465.02404 | CY122: 1383725.17 | CZ122: 0.3177042411 | DA122: 0.3177042411
B123: 102 | C123: 2032-04-30 | D123: 31 | E123: 3104 | F123: 1386734.381 | G123: 3825.746808 | H123: 14671.47135 | I123: 1461.642877 | J123: 450.45 | K123: 0 | L123: 20409.31104 | M123: 1382908.635 | N123: 0.3140505 | O123: 0.3140505 | Q123: 20409.31104 | R123: 3104 | S123: =IFERROR((1+'Simulación Cliente'!$E$21)^(R123/360),"") -> 3.287627127 | T123: 6207.92 | X123: 102 | Y123: 2032-04-30 | Z123: 31 | AA123: 3104 | AB123: 1383725.17 | AC123: 916.468648 | AD123: 14639.63428 | AE123: 1458.471114 | AF123: 450.45 | AG123: 0 | AH123: 17465.02404 | AI123: 1382808.701 | AJ123: 0.3140505 | AK123: 0.3140505 | AO123: 102 | AP123: 2032-04-30 | AQ123: 31 | AR123: 3104 | AS123: 1110816.693 | AT123: 8502.516003 | AU123: 11752.29771 | AV123: 1170.820692 | AW123: 450.45 | AX123: 0 | AY123: 21876.0844 | AZ123: 1102314.177 | BA123: 0.3140505 | BB123: 0.3140505 | BF123: 102 | BG123: 2032-04-30 | BH123: 31 | BI123: 3104 | BJ123: 1107591.543 | BK123: 5384.148972 | BL123: 11718.17604 | BM123: 1167.421326 | BN123: 450.45 | BO123: 0 | BP123: 18720.19633 | BQ123: 1102207.394 | BR123: 0.3140505 | BS123: 0.3140505 | BW123: 102 | BX123: 2032-04-30 | BY123: 31 | BZ123: 3104 | CA123: 1386734.381 | CB123: 3825.746808 | CC123: 14671.47135 | CD123: 1461.642877 | CE123: 450.45 | CF123: 0 | CG123: 20409.31104 | CH123: 1382908.635 | CI123: 0.3140505 | CJ123: 0.3140505 | CN123: 102 | CO123: 2032-04-30 | CP123: 31 | CQ123: 3104 | CR123: 1383725.17 | CS123: 916.468648 | CT123: 14639.63428 | CU123: 1458.471114 | CV123: 450.45 | CW123: 0 | CX123: 17465.02404 | CY123: 1382808.701 | CZ123: 0.3140505 | DA123: 0.3140505
B124: 103 | C124: 2032-05-30 | D124: 30 | E124: 3134 | F124: 1382908.635 | G124: 4391.673774 | H124: 14156.62045 | I124: 1410.566807 | J124: 450.45 | K124: 0 | L124: 20409.31104 | M124: 1378516.961 | N124: 0.3105546348 | O124: 0.3105546348 | Q124: 20409.31104 | R124: 3134 | S124: =IFERROR((1+'Simulación Cliente'!$E$21)^(R124/360),"") -> 3.325662693 | T124: 6136.92 | X124: 103 | Y124: 2032-05-30 | Z124: 30 | AA124: 3134 | AB124: 1382808.701 | AC124: 1448.511714 | AD124: 14155.59745 | AE124: 1410.464875 | AF124: 450.45 | AG124: 0 | AH124: 17465.02404 | AI124: 1381360.189 | AJ124: 0.3105546348 | AK124: 0.3105546348 | AO124: 103 | AP124: 2032-05-30 | AQ124: 30 | AR124: 3134 | AS124: 1102314.177 | AT124: 9017.055274 | AU124: 11284.21867 | AV124: 1124.360461 | AW124: 450.45 | AX124: 0 | AY124: 21876.0844 | AZ124: 1093297.122 | BA124: 0.3105546348 | BB124: 0.3105546348 | BF124: 103 | BG124: 2032-05-30 | BH124: 30 | BI124: 3134 | BJ124: 1102207.394 | BK124: 5862.369244 | BL124: 11283.12555 | BM124: 1124.251542 | BN124: 450.45 | BO124: 0 | BP124: 18720.19633 | BQ124: 1096345.025 | BR124: 0.3105546348 | BS124: 0.3105546348 | BW124: 103 | BX124: 2032-05-30 | BY124: 30 | BZ124: 3134 | CA124: 1382908.635 | CB124: 4391.673774 | CC124: 14156.62045 | CD124: 1410.566807 | CE124: 450.45 | CF124: 0 | CG124: 20409.31104 | CH124: 1378516.961 | CI124: 0.3105546348 | CJ124: 0.3105546348 | CN124: 103 | CO124: 2032-05-30 | CP124: 30 | CQ124: 3134 | CR124: 1382808.701 | CS124: 1448.511714 | CT124: 14155.59745 | CU124: 1410.464875 | CV124: 450.45 | CW124: 0 | CX124: 17465.02404 | CY124: 1381360.189 | CZ124: 0.3105546348 | DA124: 0.3105546348
B125: 104 | C125: 2032-06-30 | D125: 31 | E125: 3165 | F125: 1378516.961 | G125: 3921.34737 | H125: 14584.5321 | I125: 1452.981569 | J125: 450.45 | K125: 0 | L125: 20409.31104 | M125: 1374595.614 | N125: 0.3069831174 | O125: 0.3069831174 | Q125: 20409.31104 | R125: 3165 | S125: =IFERROR((1+'Simulación Cliente'!$E$21)^(R125/360),"") -> 3.365428461 | T125: 6064.4 | X125: 104 | Y125: 2032-06-30 | Z125: 31 | AA125: 3165 | AB125: 1381360.189 | AC125: 943.9825677 | AD125: 14614.61309 | AE125: 1455.978383 | AF125: 450.45 | AG125: 0 | AH125: 17465.02404 | AI125: 1380416.207 | AJ125: 0.3069831174 | AK125: 0.3069831174 | AO125: 104 | AP125: 2032-06-30 | AQ125: 31 | AR125: 3165 | AS125: 1093297.122 | AT125: 8706.336755 | AU125: 11566.9429 | AV125: 1152.35475 | AW125: 450.45 | AX125: 0 | AY125: 21876.0844 | AZ125: 1084590.785 | BA125: 0.3069831174 | BB125: 0.3069831174 | BF125: 104 | BG125: 2032-06-30 | BH125: 31 | BI125: 3165 | BJ125: 1096345.025 | BK125: 5514.98972 | BL125: 11599.18932 | BM125: 1155.567294 | BN125: 450.45 | BO125: 0 | BP125: 18720.19633 | BQ125: 1090830.035 | BR125: 0.3069831174 | BS125: 0.3069831174 | BW125: 104 | BX125: 2032-06-30 | BY125: 31 | BZ125: 3165 | CA125: 1378516.961 | CB125: 3921.34737 | CC125: 14584.5321 | CD125: 1452.981569 | CE125: 450.45 | CF125: 0 | CG125: 20409.31104 | CH125: 1374595.614 | CI125: 0.3069831174 | CJ125: 0.3069831174 | CN125: 104 | CO125: 2032-06-30 | CP125: 31 | CQ125: 3165 | CR125: 1381360.189 | CS125: 943.9825677 | CT125: 14614.61309 | CU125: 1455.978383 | CV125: 450.45 | CW125: 0 | CX125: 17465.02404 | CY125: 1380416.207 | CZ125: 0.3069831174 | DA125: 0.3069831174
B126: 105 | C126: 2032-07-30 | D126: 30 | E126: 3195 | F126: 1374595.614 | G126: 4485.252159 | H126: 14071.52135 | I126: 1402.087526 | J126: 450.45 | K126: 0 | L126: 20409.31104 | M126: 1370110.361 | N126: 0.3035659231 | O126: 0.3035659231 | Q126: 20409.31104 | R126: 3195 | S126: =IFERROR((1+'Simulación Cliente'!$E$21)^(R126/360),"") -> 3.404364134 | T126: 5995.04 | X126: 105 | Y126: 2032-07-30 | Z126: 30 | AA126: 3195 | AB126: 1380416.207 | AC126: 18940.46769 | AD126: 14131.10586 | AE126: 1408.024531 | AF126: 450.45 | AG126: 0 | AH126: 34930.04808 | AI126: 1361475.739 | AJ126: 0.6071318461 | AK126: 0.3035659231 | AO126: 105 | AP126: 2032-07-30 | AQ126: 30 | AR126: 3195 | AS126: 1084590.785 | AT126: 9216.564739 | AU126: 11102.78706 | AV126: 1106.282601 | AW126: 450.45 | AX126: 0 | AY126: 21876.0844 | AZ126: 1075374.221 | BA126: 0.3035659231 | BB126: 0.3035659231 | BF126: 105 | BG126: 2032-07-30 | BH126: 30 | BI126: 3195 | BJ126: 1090830.035 | BK126: 24710.63874 | BL126: 11166.65729 | BM126: 1112.646636 | BN126: 450.45 | BO126: 0 | BP126: 37440.39267 | BQ126: 1066119.397 | BR126: 0.6071318461 | BS126: 0.3035659231 | BW126: 105 | BX126: 2032-07-30 | BY126: 30 | BZ126: 3195 | CA126: 1374595.614 | CB126: 4485.252159 | CC126: 14071.52135 | CD126: 1402.087526 | CE126: 450.45 | CF126: 0 | CG126: 20409.31104 | CH126: 1370110.361 | CI126: 0.3035659231 | CJ126: 0.3035659231 | CN126: 105 | CO126: 2032-07-30 | CP126: 30 | CQ126: 3195 | CR126: 1380416.207 | CS126: 18940.46769 | CT126: 14131.10586 | CU126: 1408.024531 | CV126: 450.45 | CW126: 0 | CX126: 34930.04808 | CY126: 1361475.739 | CZ126: 0.6071318461 | DA126: 0.3035659231
B127: 106 | C127: 2032-08-30 | D127: 31 | E127: 3226 | F127: 1370110.361 | G127: 4019.148818 | H127: 14495.59136 | I127: 1444.120862 | J127: 450.45 | K127: 0 | L127: 20409.31104 | M127: 1366091.213 | N127: 0.300074779 | O127: 0.300074779 | Q127: 20409.31104 | R127: 3226 | S127: =IFERROR((1+'Simulación Cliente'!$E$21)^(R127/360),"") -> 3.445070955 | T127: 5924.21 | X127: 106 | Y127: 2032-08-30 | Z127: 31 | AA127: 3226 | AB127: 1361475.739 | AC127: 1175.31606 | AD127: 14404.23816 | AE127: 1435.019816 | AF127: 450.45 | AG127: 0 | AH127: 17465.02404 | AI127: 1360300.423 | AJ127: 0.300074779 | AK127: 0.300074779 | AO127: 106 | AP127: 2032-08-30 | AQ127: 31 | AR127: 3226 | AS127: 1075374.221 | AT127: 8914.849806 | AU127: 11377.3209 | AV127: 1133.463691 | AW127: 450.45 | AX127: 0 | AY127: 21876.0844 | AZ127: 1066459.371 | BA127: 0.300074779 | BB127: 0.300074779 | BF127: 106 | BG127: 2032-08-30 | BH127: 31 | BI127: 3226 | BJ127: 1066119.397 | BK127: 5866.631334 | BL127: 11279.40606 | BM127: 1123.708941 | BN127: 450.45 | BO127: 0 | BP127: 18720.19633 | BQ127: 1060252.765 | BR127: 0.300074779 | BS127: 0.300074779 | BW127: 106 | BX127: 2032-08-30 | BY127: 31 | BZ127: 3226 | CA127: 1370110.361 | CB127: 4019.148818 | CC127: 14495.59136 | CD127: 1444.120862 | CE127: 450.45 | CF127: 0 | CG127: 20409.31104 | CH127: 1366091.213 | CI127: 0.300074779 | CJ127: 0.300074779 | CN127: 106 | CO127: 2032-08-30 | CP127: 31 | CQ127: 3226 | CR127: 1361475.739 | CS127: 1175.31606 | CT127: 14404.23816 | CU127: 1435.019816 | CV127: 450.45 | CW127: 0 | CX127: 17465.02404 | CY127: 1360300.423 | CZ127: 0.300074779 | DA127: 0.300074779
B128: 107 | C128: 2032-09-30 | D128: 31 | E128: 3257 | F128: 1366091.213 | G128: 4065.90715 | H128: 14453.06928 | I128: 1439.884608 | J128: 450.45 | K128: 0 | L128: 20409.31104 | M128: 1362025.305 | N128: 0.2966237846 | O128: 0.2966237846 | Q128: 20409.31104 | R128: 3257 | S128: =IFERROR((1+'Simulación Cliente'!$E$21)^(R128/360),"") -> 3.486264518 | T128: 5854.21 | X128: 107 | Y128: 2032-09-30 | Z128: 31 | AA128: 3257 | AB128: 1360300.423 | AC128: 1188.989557 | AD128: 14391.80347 | AE128: 1433.781012 | AF128: 450.45 | AG128: 0 | AH128: 17465.02404 | AI128: 1359111.434 | AJ128: 0.2966237846 | AK128: 0.2966237846 | AO128: 107 | AP128: 2032-09-30 | AQ128: 31 | AR128: 3257 | AS128: 1066459.371 | AT128: 9018.564182 | AU128: 11283.00294 | AV128: 1124.067279 | AW128: 450.45 | AX128: 0 | AY128: 21876.0844 | AZ128: 1057440.807 | BA128: 0.2966237846 | BB128: 0.2966237846 | BF128: 107 | BG128: 2032-09-30 | BH128: 31 | BI128: 3257 | BJ128: 1060252.765 | BK128: 5934.883073 | BL128: 11217.33785 | BM128: 1117.525406 | BN128: 450.45 | BO128: 0 | BP128: 18720.19633 | BQ128: 1054317.882 | BR128: 0.2966237846 | BS128: 0.2966237846 | BW128: 107 | BX128: 2032-09-30 | BY128: 31 | BZ128: 3257 | CA128: 1366091.213 | CB128: 4065.90715 | CC128: 14453.06928 | CD128: 1439.884608 | CE128: 450.45 | CF128: 0 | CG128: 20409.31104 | CH128: 1362025.305 | CI128: 0.2966237846 | CJ128: 0.2966237846 | CN128: 107 | CO128: 2032-09-30 | CP128: 31 | CQ128: 3257 | CR128: 1360300.423 | CS128: 1188.989557 | CT128: 14391.80347 | CU128: 1433.781012 | CV128: 450.45 | CW128: 0 | CX128: 17465.02404 | CY128: 1359111.434 | CZ128: 0.2966237846 | DA128: 0.2966237846
B129: 108 | C129: 2032-10-30 | D129: 30 | E129: 3287 | F129: 1362025.305 | G129: 4626.754161 | H129: 13942.84106 | I129: 1389.265811 | J129: 450.45 | K129: 0 | L129: 20409.31104 | M129: 1357398.551 | N129: 0.2933219056 | O129: 0.2933219056 | Q129: 20409.31104 | R129: 3287 | S129: =IFERROR((1+'Simulación Cliente'!$E$21)^(R129/360),"") -> 3.526598181 | T129: 5787.25 | X129: 108 | Y129: 2032-10-30 | Z129: 30 | AA129: 3287 | AB129: 1359111.434 | AC129: 1715.268167 | AD129: 13913.01221 | AE129: 1386.293662 | AF129: 450.45 | AG129: 0 | AH129: 17465.02404 | AI129: 1357396.165 | AJ129: 0.2933219056 | AK129: 0.2933219056 | AO129: 108 | AP129: 2032-10-30 | AQ129: 30 | AR129: 3287 | AS129: 1057440.807 | AT129: 9522.187824 | AU129: 10824.85696 | AV129: 1078.589623 | AW129: 450.45 | AX129: 0 | AY129: 21876.0844 | AZ129: 1047918.619 | BA129: 0.2933219056 | BB129: 0.2933219056 | BF129: 108 | BG129: 2032-10-30 | BH129: 30 | BI129: 3287 | BJ129: 1054317.882 | BK129: 6401.454029 | BL129: 10792.88807 | BM129: 1075.40424 | BN129: 450.45 | BO129: 0 | BP129: 18720.19633 | BQ129: 1047916.428 | BR129: 0.2933219056 | BS129: 0.2933219056 | BW129: 108 | BX129: 2032-10-30 | BY129: 30 | BZ129: 3287 | CA129: 1362025.305 | CB129: 4626.754161 | CC129: 13942.84106 | CD129: 1389.265811 | CE129: 450.45 | CF129: 0 | CG129: 20409.31104 | CH129: 1357398.551 | CI129: 0.2933219056 | CJ129: 0.2933219056 | CN129: 108 | CO129: 2032-10-30 | CP129: 30 | CQ129: 3287 | CR129: 1359111.434 | CS129: 1715.268167 | CT129: 13913.01221 | CU129: 1386.293662 | CV129: 450.45 | CW129: 0 | CX129: 17465.02404 | CY129: 1357396.165 | CZ129: 0.2933219056 | DA129: 0.2933219056
B130: 109 | C130: 2032-11-30 | D130: 31 | E130: 3318 | F130: 1357398.551 | G130: 4167.036609 | H130: 14361.10204 | I130: 1430.722387 | J130: 450.45 | K130: 0 | L130: 20409.31104 | M130: 1353231.515 | N130: 0.2899485723 | O130: 0.2899485723 | Q130: 20409.31104 | R130: 3318 | S130: =IFERROR((1+'Simulación Cliente'!$E$21)^(R130/360),"") -> 3.568766584 | T130: 5718.87 | X130: 109 | Y130: 2032-11-30 | Z130: 31 | AA130: 3318 | AB130: 1357396.165 | AC130: 1222.77737 | AD130: 14361.0768 | AE130: 1430.719872 | AF130: 450.45 | AG130: 0 | AH130: 17465.02404 | AI130: 1356173.388 | AJ130: 0.2899485723 | AK130: 0.2899485723 | AO130: 109 | AP130: 2032-11-30 | AQ130: 31 | AR130: 3318 | AS130: 1047918.619 | AT130: 9234.265237 | AU130: 11086.84417 | AV130: 1104.524995 | AW130: 450.45 | AX130: 0 | AY130: 21876.0844 | AZ130: 1038684.354 | BA130: 0.2899485723 | BB130: 0.2899485723 | BF130: 109 | BG130: 2032-11-30 | BH130: 31 | BI130: 3318 | BJ130: 1047916.428 | BK130: 6078.402653 | BL130: 11086.821 | BM130: 1104.522686 | BN130: 450.45 | BO130: 0 | BP130: 18720.19633 | BQ130: 1041838.026 | BR130: 0.2899485723 | BS130: 0.2899485723 | BW130: 109 | BX130: 2032-11-30 | BY130: 31 | BZ130: 3318 | CA130: 1357398.551 | CB130: 4167.036609 | CC130: 14361.10204 | CD130: 1430.722387 | CE130: 450.45 | CF130: 0 | CG130: 20409.31104 | CH130: 1353231.515 | CI130: 0.2899485723 | CJ130: 0.2899485723 | CN130: 109 | CO130: 2032-11-30 | CP130: 31 | CQ130: 3318 | CR130: 1357396.165 | CS130: 1222.77737 | CT130: 14361.0768 | CU130: 1430.719872 | CV130: 450.45 | CW130: 0 | CX130: 17465.02404 | CY130: 1356173.388 | CZ130: 0.2899485723 | DA130: 0.2899485723
B131: 110 | C131: 2032-12-30 | D131: 30 | E131: 3348 | F131: 1353231.515 | G131: 4725.744495 | H131: 13852.8204 | I131: 1380.296145 | J131: 450.45 | K131: 0 | L131: 20409.31104 | M131: 1348505.77 | N131: 0.2867209986 | O131: 0.2867209986 | Q131: 20409.31104 | R131: 3348 | S131: =IFERROR((1+'Simulación Cliente'!$E$21)^(R131/360),"") -> 3.610054738 | T131: 5653.46 | X131: 110 | Y131: 2032-12-30 | Z131: 30 | AA131: 3348 | AB131: 1356173.388 | AC131: 19213.36533 | AD131: 13882.9359 | AE131: 1383.296856 | AF131: 450.45 | AG131: 0 | AH131: 34930.04808 | AI131: 1336960.023 | AJ131: 0.5734419972 | AK131: 0.2867209986 | AO131: 110 | AP131: 2032-12-30 | AQ131: 30 | AR131: 3348 | AS131: 1038684.354 | AT131: 9733.326297 | AU131: 10632.85006 | AV131: 1059.458041 | AW131: 450.45 | AX131: 0 | AY131: 21876.0844 | AZ131: 1028951.027 | BA131: 0.2867209986 | BB131: 0.2867209986 | BF131: 110 | BG131: 2032-12-30 | BH131: 30 | BI131: 3348 | BJ131: 1041838.026 | BK131: 25262.13417 | BL131: 10665.13371 | BM131: 1062.674786 | BN131: 450.45 | BO131: 0 | BP131: 37440.39267 | BQ131: 1016575.891 | BR131: 0.5734419972 | BS131: 0.2867209986 | BW131: 110 | BX131: 2032-12-30 | BY131: 30 | BZ131: 3348 | CA131: 1353231.515 | CB131: 4725.744495 | CC131: 13852.8204 | CD131: 1380.296145 | CE131: 450.45 | CF131: 0 | CG131: 20409.31104 | CH131: 1348505.77 | CI131: 0.2867209986 | CJ131: 0.2867209986 | CN131: 110 | CO131: 2032-12-30 | CP131: 30 | CQ131: 3348 | CR131: 1356173.388 | CS131: 19213.36533 | CT131: 13882.9359 | CU131: 1383.296856 | CV131: 450.45 | CW131: 0 | CX131: 34930.04808 | CY131: 1336960.023 | CZ131: 0.5734419972 | DA131: 0.2867209986
B132: 111 | C132: 2033-01-30 | D132: 31 | E132: 3379 | F132: 1348505.77 | G132: 4270.494239 | H132: 14267.01756 | I132: 1421.349236 | J132: 450.45 | K132: 0 | L132: 20409.31104 | M132: 1344235.276 | N132: 0.2834235787 | O132: 0.2834235787 | Q132: 20409.31104 | R132: 3379 | S132: =IFERROR((1+'Simulación Cliente'!$E$21)^(R132/360),"") -> 3.653221053 | T132: 5586.66 | X132: 111 | Y132: 2033-01-30 | Z132: 31 | AA132: 3379 | AB132: 1336960.023 | AC132: 1460.529191 | AD132: 14144.86504 | AE132: 1409.179812 | AF132: 450.45 | AG132: 0 | AH132: 17465.02404 | AI132: 1335499.494 | AJ132: 0.2834235787 | AK132: 0.2834235787 | AO132: 111 | AP132: 2033-01-30 | AQ132: 31 | AR132: 3379 | AS132: 1028951.027 | AT132: 9454.932097 | AU132: 10886.16949 | AV132: 1084.532813 | AW132: 450.45 | AX132: 0 | AY132: 21876.0844 | AZ132: 1019496.095 | BA132: 0.2834235787 | BB132: 0.2834235787 | BF132: 111 | BG132: 2033-01-30 | BH132: 31 | BI132: 3379 | BJ132: 1016575.891 | BK132: 6443.014988 | BL132: 10755.24215 | BM132: 1071.489199 | BN132: 450.45 | BO132: 0 | BP132: 18720.19633 | BQ132: 1010132.876 | BR132: 0.2834235787 | BS132: 0.2834235787 | BW132: 111 | BX132: 2033-01-30 | BY132: 31 | BZ132: 3379 | CA132: 1348505.77 | CB132: 4270.494239 | CC132: 14267.01756 | CD132: 1421.349236 | CE132: 450.45 | CF132: 0 | CG132: 20409.31104 | CH132: 1344235.276 | CI132: 0.2834235787 | CJ132: 0.2834235787 | CN132: 111 | CO132: 2033-01-30 | CP132: 31 | CQ132: 3379 | CR132: 1336960.023 | CS132: 1460.529191 | CT132: 14144.86504 | CU132: 1409.179812 | CV132: 450.45 | CW132: 0 | CX132: 17465.02404 | CY132: 1335499.494 | CZ132: 0.2834235787 | DA132: 0.2834235787
B133: 112 | C133: 2033-02-28 | D133: 29 | E133: 3408 | F133: 1344235.276 | G133: 5333.692742 | H133: 13299.77484 | I133: 1325.393458 | J133: 450.45 | K133: 0 | L133: 20409.31104 | M133: 1338901.583 | N133: 0.280373235 | O133: 0.280373235 | Q133: 20409.31104 | R133: 3408 | S133: =IFERROR((1+'Simulación Cliente'!$E$21)^(R133/360),"") -> 3.694069599 | T133: 5524.89 | X133: 112 | Y133: 2033-02-28 | Z133: 29 | AA133: 3408 | AB133: 1335499.494 | AC133: 2484.450334 | AD133: 13213.34358 | AE133: 1316.780123 | AF133: 450.45 | AG133: 0 | AH133: 17465.02404 | AI133: 1333015.043 | AJ133: 0.280373235 | AK133: 0.280373235 | AO133: 112 | AP133: 2033-02-28 | AQ133: 29 | AR133: 3408 | AS133: 1019496.095 | AT133: 10333.60146 | AU133: 10086.82688 | AV133: 1005.206067 | AW133: 450.45 | AX133: 0 | AY133: 21876.0844 | AZ133: 1009162.494 | BA133: 0.280373235 | BB133: 0.280373235 | BF133: 112 | BG133: 2033-02-28 | BH133: 29 | BI133: 3408 | BJ133: 1010132.876 | BK133: 7279.584431 | BL133: 9994.187813 | BM133: 995.9740903 | BN133: 450.45 | BO133: 0 | BP133: 18720.19633 | BQ133: 1002853.292 | BR133: 0.280373235 | BS133: 0.280373235 | BW133: 112 | BX133: 2033-02-28 | BY133: 29 | BZ133: 3408 | CA133: 1344235.276 | CB133: 5333.692742 | CC133: 13299.77484 | CD133: 1325.393458 | CE133: 450.45 | CF133: 0 | CG133: 20409.31104 | CH133: 1338901.583 | CI133: 0.280373235 | CJ133: 0.280373235 | CN133: 112 | CO133: 2033-02-28 | CP133: 29 | CQ133: 3408 | CR133: 1335499.494 | CS133: 2484.450334 | CT133: 13213.34358 | CU133: 1316.780123 | CV133: 450.45 | CW133: 0 | CX133: 17465.02404 | CY133: 1333015.043 | CZ133: 0.280373235 | DA133: 0.280373235
B134: 113 | C134: 2033-03-30 | D134: 30 | E134: 3438 | F134: 1338901.583 | G134: 4887.054304 | H134: 13706.12712 | I134: 1365.679615 | J134: 450.45 | K134: 0 | L134: 20409.31104 | M134: 1334014.529 | N134: 0.2772522495 | O134: 0.2772522495 | Q134: 20409.31104 | R134: 3438 | S134: =IFERROR((1+'Simulación Cliente'!$E$21)^(R134/360),"") -> 3.736807422 | T134: 5461.7 | X134: 113 | Y134: 2033-03-30 | Z134: 30 | AA134: 3438 | AB134: 1333015.043 | AC134: 2009.031172 | AD134: 13645.86752 | AE134: 1359.675344 | AF134: 450.45 | AG134: 0 | AH134: 17465.02404 | AI134: 1331006.012 | AJ134: 0.2772522495 | AK134: 0.2772522495 | AO134: 113 | AP134: 2033-03-30 | AQ134: 30 | AR134: 3438 | AS134: 1009162.494 | AT134: 10065.64928 | AU134: 10330.63938 | AV134: 1029.345744 | AW134: 450.45 | AX134: 0 | AY134: 21876.0844 | AZ134: 999096.8444 | BA134: 0.2772522495 | BB134: 0.2772522495 | BF134: 113 | BG134: 2033-03-30 | BH134: 30 | BI134: 3438 | BJ134: 1002853.292 | BK134: 6980.782911 | BL134: 10266.05306 | BM134: 1022.910358 | BN134: 450.45 | BO134: 0 | BP134: 18720.19633 | BQ134: 995872.5092 | BR134: 0.2772522495 | BS134: 0.2772522495 | BW134: 113 | BX134: 2033-03-30 | BY134: 30 | BZ134: 3438 | CA134: 1338901.583 | CB134: 4887.054304 | CC134: 13706.12712 | CD134: 1365.679615 | CE134: 450.45 | CF134: 0 | CG134: 20409.31104 | CH134: 1334014.529 | CI134: 0.2772522495 | CJ134: 0.2772522495 | CN134: 113 | CO134: 2033-03-30 | CP134: 30 | CQ134: 3438 | CR134: 1333015.043 | CS134: 2009.031172 | CT134: 13645.86752 | CU134: 1359.675344 | CV134: 450.45 | CW134: 0 | CX134: 17465.02404 | CY134: 1331006.012 | CZ134: 0.2772522495 | DA134: 0.2772522495
B135: 114 | C135: 2033-04-30 | D135: 31 | E135: 3469 | F135: 1334014.529 | G135: 4439.083736 | H135: 14113.70209 | I135: 1406.075208 | J135: 450.45 | K135: 0 | L135: 20409.31104 | M135: 1329575.445 | N135: 0.2740637245 | O135: 0.2740637245 | Q135: 20409.31104 | R135: 3469 | S135: =IFERROR((1+'Simulación Cliente'!$E$21)^(R135/360),"") -> 3.781489349 | T135: 5397.16 | X135: 114 | Y135: 2033-04-30 | Z135: 31 | AA135: 3469 | AB135: 1331006.012 | AC135: 1529.797492 | AD135: 14081.87237 | AE135: 1402.904178 | AF135: 450.45 | AG135: 0 | AH135: 17465.02404 | AI135: 1329476.215 | AJ135: 0.2740637245 | AK135: 0.2740637245 | AO135: 114 | AP135: 2033-04-30 | AQ135: 31 | AR135: 3469 | AS135: 999096.8444 | AT135: 9802.252354 | AU135: 10570.31608 | AV135: 1053.06597 | AW135: 450.45 | AX135: 0 | AY135: 21876.0844 | AZ135: 989294.592 | BA135: 0.2740637245 | BB135: 0.2740637245 | BF135: 114 | BG135: 2033-04-30 | BH135: 31 | BI135: 3469 | BJ135: 995872.5092 | BK135: 6683.875845 | BL135: 10536.20303 | BM135: 1049.667463 | BN135: 450.45 | BO135: 0 | BP135: 18720.19633 | BQ135: 989188.6333 | BR135: 0.2740637245 | BS135: 0.2740637245 | BW135: 114 | BX135: 2033-04-30 | BY135: 31 | BZ135: 3469 | CA135: 1334014.529 | CB135: 4439.083736 | CC135: 14113.70209 | CD135: 1406.075208 | CE135: 450.45 | CF135: 0 | CG135: 20409.31104 | CH135: 1329575.445 | CI135: 0.2740637245 | CJ135: 0.2740637245 | CN135: 114 | CO135: 2033-04-30 | CP135: 31 | CQ135: 3469 | CR135: 1331006.012 | CS135: 1529.797492 | CT135: 14081.87237 | CU135: 1402.904178 | CV135: 450.45 | CW135: 0 | CX135: 17465.02404 | CY135: 1329476.215 | CZ135: 0.2740637245 | DA135: 0.2740637245
B136: 115 | C136: 2033-05-30 | D136: 30 | E136: 3499 | F136: 1329575.445 | G136: 4992.037188 | H136: 13610.65689 | I136: 1356.166954 | J136: 450.45 | K136: 0 | L136: 20409.31104 | M136: 1324583.408 | N136: 0.2710129736 | O136: 0.2710129736 | Q136: 20409.31104 | R136: 3499 | S136: =IFERROR((1+'Simulación Cliente'!$E$21)^(R136/360),"") -> 3.825238558 | T136: 5335.43 | X136: 115 | Y136: 2033-05-30 | Z136: 30 | AA136: 3499 | AB136: 1329476.215 | AC136: 2048.867216 | AD136: 13609.64109 | AE136: 1356.065739 | AF136: 450.45 | AG136: 0 | AH136: 17465.02404 | AI136: 1327427.347 | AJ136: 0.2710129736 | AK136: 0.2710129736 | AO136: 115 | AP136: 2033-05-30 | AQ136: 30 | AR136: 3499 | AS136: 989294.592 | AT136: 10289.29915 | AU136: 10127.25476 | AV136: 1009.080484 | AW136: 450.45 | AX136: 0 | AY136: 21876.0844 | AZ136: 979005.2929 | BA136: 0.2710129736 | BB136: 0.2710129736 | BF136: 115 | BG136: 2033-05-30 | BH136: 30 | BI136: 3499 | BJ136: 989188.6333 | BK136: 7134.603848 | BL136: 10126.17008 | BM136: 1008.972406 | BN136: 450.45 | BO136: 0 | BP136: 18720.19633 | BQ136: 982054.0295 | BR136: 0.2710129736 | BS136: 0.2710129736 | BW136: 115 | BX136: 2033-05-30 | BY136: 30 | BZ136: 3499 | CA136: 1329575.445 | CB136: 4992.037188 | CC136: 13610.65689 | CD136: 1356.166954 | CE136: 450.45 | CF136: 0 | CG136: 20409.31104 | CH136: 1324583.408 | CI136: 0.2710129736 | CJ136: 0.2710129736 | CN136: 115 | CO136: 2033-05-30 | CP136: 30 | CQ136: 3499 | CR136: 1329476.215 | CS136: 2048.867216 | CT136: 13609.64109 | CU136: 1356.065739 | CV136: 450.45 | CW136: 0 | CX136: 17465.02404 | CY136: 1327427.347 | CZ136: 0.2710129736 | DA136: 0.2710129736
B137: 116 | C137: 2033-06-30 | D137: 31 | E137: 3530 | F137: 1324583.408 | G137: 4548.804352 | H137: 14013.92205 | I137: 1396.134638 | J137: 450.45 | K137: 0 | L137: 20409.31104 | M137: 1320034.604 | N137: 0.267896203 | O137: 0.267896203 | Q137: 20409.31104 | R137: 3530 | S137: =IFERROR((1+'Simulación Cliente'!$E$21)^(R137/360),"") -> 3.870977879 | T137: 5272.39 | X137: 116 | Y137: 2033-06-30 | Z137: 31 | AA137: 3530 | AB137: 1327427.347 | AC137: 1571.431281 | AD137: 14044.01056 | AE137: 1399.132201 | AF137: 450.45 | AG137: 0 | AH137: 17465.02404 | AI137: 1325855.916 | AJ137: 0.267896203 | AK137: 0.267896203 | AO137: 116 | AP137: 2033-06-30 | AQ137: 31 | AR137: 3530 | AS137: 979005.2929 | AT137: 10035.99524 | AU137: 10357.75005 | AV137: 1031.889115 | AW137: 450.45 | AX137: 0 | AY137: 21876.0844 | AZ137: 968969.2976 | BA137: 0.267896203 | BB137: 0.267896203 | BF137: 116 | BG137: 2033-06-30 | BH137: 31 | BI137: 3530 | BJ137: 982054.0295 | BK137: 6844.638508 | BL137: 10390.00529 | BM137: 1035.102538 | BN137: 450.45 | BO137: 0 | BP137: 18720.19633 | BQ137: 975209.391 | BR137: 0.267896203 | BS137: 0.267896203 | BW137: 116 | BX137: 2033-06-30 | BY137: 31 | BZ137: 3530 | CA137: 1324583.408 | CB137: 4548.804352 | CC137: 14013.92205 | CD137: 1396.134638 | CE137: 450.45 | CF137: 0 | CG137: 20409.31104 | CH137: 1320034.604 | CI137: 0.267896203 | CJ137: 0.267896203 | CN137: 116 | CO137: 2033-06-30 | CP137: 31 | CQ137: 3530 | CR137: 1327427.347 | CS137: 1571.431281 | CT137: 14044.01056 | CU137: 1399.132201 | CV137: 450.45 | CW137: 0 | CX137: 17465.02404 | CY137: 1325855.916 | CZ137: 0.267896203 | DA137: 0.267896203
B138: 117 | C138: 2033-07-30 | D138: 30 | E138: 3560 | F138: 1320034.604 | G138: 5099.436956 | H138: 13512.98878 | I138: 1346.435296 | J138: 450.45 | K138: 0 | L138: 20409.31104 | M138: 1314935.167 | N138: 0.2649141062 | O138: 0.2649141062 | Q138: 20409.31104 | R138: 3560 | S138: =IFERROR((1+'Simulación Cliente'!$E$21)^(R138/360),"") -> 3.915762408 | T138: 5212.09 | X138: 117 | Y138: 2033-07-30 | Z138: 30 | AA138: 3560 | AB138: 1325855.916 | AC138: 19554.64439 | AD138: 13572.58065 | AE138: 1352.373034 | AF138: 450.45 | AG138: 0 | AH138: 34930.04808 | AI138: 1306301.272 | AJ138: 0.5298282123 | AK138: 0.2649141062 | AO138: 117 | AP138: 2033-07-30 | AQ138: 30 | AR138: 3560 | AS138: 968969.2976 | AT138: 10518.09783 | AU138: 9919.187888 | AV138: 988.3486836 | AW138: 450.45 | AX138: 0 | AY138: 21876.0844 | AZ138: 958451.1998 | BA138: 0.2649141062 | BB138: 0.2649141062 | BF138: 117 | BG138: 2033-07-30 | BH138: 30 | BI138: 3560 | BJ138: 975209.391 | BK138: 26012.16234 | BL138: 9983.066752 | BM138: 994.7135788 | BN138: 450.45 | BO138: 0 | BP138: 37440.39267 | BQ138: 949197.2286 | BR138: 0.5298282123 | BS138: 0.2649141062 | BW138: 117 | BX138: 2033-07-30 | BY138: 30 | BZ138: 3560 | CA138: 1320034.604 | CB138: 5099.436956 | CC138: 13512.98878 | CD138: 1346.435296 | CE138: 450.45 | CF138: 0 | CG138: 20409.31104 | CH138: 1314935.167 | CI138: 0.2649141062 | CJ138: 0.2649141062 | CN138: 117 | CO138: 2033-07-30 | CP138: 30 | CQ138: 3560 | CR138: 1325855.916 | CS138: 19554.64439 | CT138: 13572.58065 | CU138: 1352.373034 | CV138: 450.45 | CW138: 0 | CX138: 34930.04808 | CY138: 1306301.272 | CZ138: 0.5298282123 | DA138: 0.2649141062
B139: 118 | C139: 2033-08-30 | D139: 31 | E139: 3591 | F139: 1314935.167 | G139: 4661.050923 | H139: 13911.84489 | I139: 1385.965219 | J139: 450.45 | K139: 0 | L139: 20409.31104 | M139: 1310274.116 | N139: 0.2618674753 | O139: 0.2618674753 | Q139: 20409.31104 | R139: 3591 | S139: =IFERROR((1+'Simulación Cliente'!$E$21)^(R139/360),"") -> 3.962584144 | T139: 5150.51 | X139: 118 | Y139: 2033-08-30 | Z139: 31 | AA139: 3591 | AB139: 1306301.272 | AC139: 1817.209706 | AD139: 13820.4994 | AE139: 1376.864939 | AF139: 450.45 | AG139: 0 | AH139: 17465.02404 | AI139: 1304484.062 | AJ139: 0.2618674753 | AK139: 0.2618674753 | AO139: 118 | AP139: 2033-08-30 | AQ139: 31 | AR139: 3591 | AS139: 958451.1998 | AT139: 10275.11928 | AU139: 10140.29039 | AV139: 1010.224732 | AW139: 450.45 | AX139: 0 | AY139: 21876.0844 | AZ139: 948176.0805 | BA139: 0.2618674753 | BB139: 0.2618674753 | BF139: 118 | BG139: 2033-08-30 | BH139: 31 | BI139: 3591 | BJ139: 949197.2286 | BK139: 7226.89089 | BL139: 10042.38456 | BM139: 1000.470881 | BN139: 450.45 | BO139: 0 | BP139: 18720.19633 | BQ139: 941970.3377 | BR139: 0.2618674753 | BS139: 0.2618674753 | BW139: 118 | BX139: 2033-08-30 | BY139: 31 | BZ139: 3591 | CA139: 1314935.167 | CB139: 4661.050923 | CC139: 13911.84489 | CD139: 1385.965219 | CE139: 450.45 | CF139: 0 | CG139: 20409.31104 | CH139: 1310274.116 | CI139: 0.2618674753 | CJ139: 0.2618674753 | CN139: 118 | CO139: 2033-08-30 | CP139: 31 | CQ139: 3591 | CR139: 1306301.272 | CS139: 1817.209706 | CT139: 13820.4994 | CU139: 1376.864939 | CV139: 450.45 | CW139: 0 | CX139: 17465.02404 | CY139: 1304484.062 | CZ139: 0.2618674753 | DA139: 0.2618674753
B140: 119 | C140: 2033-09-30 | D140: 31 | E140: 3622 | F140: 1310274.116 | G140: 4715.277073 | H140: 13862.53157 | I140: 1381.052388 | J140: 450.45 | K140: 0 | L140: 20409.31104 | M140: 1305558.839 | N140: 0.258855882 | O140: 0.258855882 | Q140: 20409.31104 | R140: 3622 | S140: =IFERROR((1+'Simulación Cliente'!$E$21)^(R140/360),"") -> 4.00996574 | T140: 5089.65 | X140: 119 | Y140: 2033-09-30 | Z140: 31 | AA140: 3622 | AB140: 1304484.062 | AC140: 1838.350922 | AD140: 13801.27355 | AE140: 1374.949567 | AF140: 450.45 | AG140: 0 | AH140: 17465.02404 | AI140: 1302645.711 | AJ140: 0.258855882 | AK140: 0.258855882 | AO140: 119 | AP140: 2033-09-30 | AQ140: 31 | AR140: 3622 | AS140: 948176.0805 | AT140: 10394.65888 | AU140: 10031.58095 | AV140: 999.3945727 | AW140: 450.45 | AX140: 0 | AY140: 21876.0844 | AZ140: 937781.4217 | BA140: 0.258855882 | BB140: 0.258855882 | BF140: 119 | BG140: 2033-09-30 | BH140: 31 | BI140: 3622 | BJ140: 941970.3377 | BK140: 7310.967739 | BL140: 9965.924987 | BM140: 992.8536086 | BN140: 450.45 | BO140: 0 | BP140: 18720.19633 | BQ140: 934659.37 | BR140: 0.258855882 | BS140: 0.258855882 | BW140: 119 | BX140: 2033-09-30 | BY140: 31 | BZ140: 3622 | CA140: 1310274.116 | CB140: 4715.277073 | CC140: 13862.53157 | CD140: 1381.052388 | CE140: 450.45 | CF140: 0 | CG140: 20409.31104 | CH140: 1305558.839 | CI140: 0.258855882 | CJ140: 0.258855882 | CN140: 119 | CO140: 2033-09-30 | CP140: 31 | CQ140: 3622 | CR140: 1304484.062 | CS140: 1838.350922 | CT140: 13801.27355 | CU140: 1374.949567 | CV140: 450.45 | CW140: 0 | CX140: 17465.02404 | CY140: 1302645.711 | CZ140: 0.258855882 | DA140: 0.258855882
B141: 120 | C141: 2033-10-30 | D141: 30 | E141: 3652 | F141: 1305558.839 | G141: 5262.388389 | H141: 13364.80263 | I141: 1331.670015 | J141: 450.45 | K141: 0 | L141: 20409.31104 | M141: 1300296.45 | N141: 0.2559744178 | O141: 0.2559744178 | Q141: 20409.31104 | R141: 3652 | S141: =IFERROR((1+'Simulación Cliente'!$E$21)^(R141/360),"") -> 4.056358262 | T141: 5031.44 | X141: 120 | Y141: 2033-10-30 | Z141: 30 | AA141: 3652 | AB141: 1302645.711 | AC141: 2350.894018 | AD141: 13334.9814 | AE141: 1328.698625 | AF141: 450.45 | AG141: 0 | AH141: 17465.02404 | AI141: 1300294.817 | AJ141: 0.2559744178 | AK141: 0.2559744178 | AO141: 120 | AP141: 2033-10-30 | AQ141: 30 | AR141: 3652 | AS141: 937781.4217 | AT141: 10869.1749 | AU141: 9599.922455 | AV141: 956.5370501 | AW141: 450.45 | AX141: 0 | AY141: 21876.0844 | AZ141: 926912.2468 | BA141: 0.2559744178 | BB141: 0.2559744178 | BF141: 120 | BG141: 2033-10-30 | BH141: 30 | BI141: 3652 | BJ141: 934659.37 | BK141: 7748.431278 | BL141: 9567.962498 | BM141: 953.3525574 | BN141: 450.45 | BO141: 0 | BP141: 18720.19633 | BQ141: 926910.9387 | BR141: 0.2559744178 | BS141: 0.2559744178 | BW141: 120 | BX141: 2033-10-30 | BY141: 30 | BZ141: 3652 | CA141: 1305558.839 | CB141: 5262.388389 | CC141: 13364.80263 | CD141: 1331.670015 | CE141: 450.45 | CF141: 0 | CG141: 20409.31104 | CH141: 1300296.45 | CI141: 0.2559744178 | CJ141: 0.2559744178 | CN141: 120 | CO141: 2033-10-30 | CP141: 30 | CQ141: 3652 | CR141: 1302645.711 | CS141: 2350.894018 | CT141: 13334.9814 | CU141: 1328.698625 | CV141: 450.45 | CW141: 0 | CX141: 17465.02404 | CY141: 1300294.817 | CZ141: 0.2559744178 | DA141: 0.2559744178
B142: 121 | C142: 2033-11-30 | D142: 31 | E142: 3683 | F142: 1300296.45 | G142: 4831.356128 | H142: 13756.96916 | I142: 1370.53575 | J142: 450.45 | K142: 0 | L142: 20409.31104 | M142: 1295465.094 | N142: 0.2530305974 | O142: 0.2530305974 | Q142: 20409.31104 | R142: 3683 | S142: =IFERROR((1+'Simulación Cliente'!$E$21)^(R142/360),"") -> 4.104861138 | T142: 4971.99 | X142: 121 | Y142: 2033-11-30 | Z142: 31 | AA142: 3683 | AB142: 1300294.817 | AC142: 1887.088134 | AD142: 13756.95188 | AE142: 1370.534028 | AF142: 450.45 | AG142: 0 | AH142: 17465.02404 | AI142: 1298407.729 | AJ142: 0.2530305974 | AK142: 0.2530305974 | AO142: 121 | AP142: 2033-11-30 | AQ142: 31 | AR142: 3683 | AS142: 926912.2468 | AT142: 10642.03997 | AU142: 9806.612322 | AV142: 976.982111 | AW142: 450.45 | AX142: 0 | AY142: 21876.0844 | AZ142: 916270.2068 | BA142: 0.2530305974 | BB142: 0.2530305974 | BF142: 121 | BG142: 2033-11-30 | BH142: 31 | BI142: 3683 | BJ142: 926910.9387 | BK142: 7486.167119 | BL142: 9806.598483 | BM142: 976.9807323 | BN142: 450.45 | BO142: 0 | BP142: 18720.19633 | BQ142: 919424.7716 | BR142: 0.2530305974 | BS142: 0.2530305974 | BW142: 121 | BX142: 2033-11-30 | BY142: 31 | BZ142: 3683 | CA142: 1300296.45 | CB142: 4831.356128 | CC142: 13756.96916 | CD142: 1370.53575 | CE142: 450.45 | CF142: 0 | CG142: 20409.31104 | CH142: 1295465.094 | CI142: 0.2530305974 | CJ142: 0.2530305974 | CN142: 121 | CO142: 2033-11-30 | CP142: 31 | CQ142: 3683 | CR142: 1300294.817 | CS142: 1887.088134 | CT142: 13756.95188 | CU142: 1370.534028 | CV142: 450.45 | CW142: 0 | CX142: 17465.02404 | CY142: 1298407.729 | CZ142: 0.2530305974 | DA142: 0.2530305974
B143: 122 | C143: 2033-12-30 | D143: 30 | E143: 3713 | F143: 1295465.094 | G143: 5376.0121 | H143: 13261.47454 | I143: 1321.374396 | J143: 450.45 | K143: 0 | L143: 20409.31104 | M143: 1290089.082 | N143: 0.2502139776 | O143: 0.2502139776 | Q143: 20409.31104 | R143: 3713 | S143: =IFERROR((1+'Simulación Cliente'!$E$21)^(R143/360),"") -> 4.152351534 | T143: 4915.12 | X143: 122 | Y143: 2033-12-30 | Z143: 30 | AA143: 3713 | AB143: 1298407.729 | AC143: 19863.62436 | AD143: 13291.59783 | AE143: 1324.375883 | AF143: 450.45 | AG143: 0 | AH143: 34930.04808 | AI143: 1278544.105 | AJ143: 0.5004279551 | AK143: 0.2502139776 | AO143: 122 | AP143: 2033-12-30 | AQ143: 30 | AR143: 3713 | AS143: 916270.2068 | AT143: 11111.32329 | AU143: 9379.715497 | AV143: 934.5956109 | AW143: 450.45 | AX143: 0 | AY143: 21876.0844 | AZ143: 905158.8835 | BA143: 0.2502139776 | BB143: 0.2502139776 | BF143: 122 | BG143: 2033-12-30 | BH143: 30 | BI143: 3713 | BJ143: 919424.7716 | BK143: 26640.12112 | BL143: 9412.008286 | BM143: 937.813267 | BN143: 450.45 | BO143: 0 | BP143: 37440.39267 | BQ143: 892784.6505 | BR143: 0.5004279551 | BS143: 0.2502139776 | BW143: 122 | BX143: 2033-12-30 | BY143: 30 | BZ143: 3713 | CA143: 1295465.094 | CB143: 5376.0121 | CC143: 13261.47454 | CD143: 1321.374396 | CE143: 450.45 | CF143: 0 | CG143: 20409.31104 | CH143: 1290089.082 | CI143: 0.2502139776 | CJ143: 0.2502139776 | CN143: 122 | CO143: 2033-12-30 | CP143: 30 | CQ143: 3713 | CR143: 1298407.729 | CS143: 19863.62436 | CT143: 13291.59783 | CU143: 1324.375883 | CV143: 450.45 | CW143: 0 | CX143: 34930.04808 | CY143: 1278544.105 | CZ143: 0.5004279551 | DA143: 0.2502139776
B144: 123 | C144: 2034-01-30 | D144: 31 | E144: 3744 | F144: 1290089.082 | G144: 4950.10752 | H144: 13648.97652 | I144: 1359.777001 | J144: 450.45 | K144: 0 | L144: 20409.31104 | M144: 1285138.974 | N144: 0.2473364048 | O144: 0.2473364048 | Q144: 20409.31104 | R144: 3744 | S144: =IFERROR((1+'Simulación Cliente'!$E$21)^(R144/360),"") -> 4.202002225 | T144: 4857.04 | X144: 123 | Y144: 2034-01-30 | Z144: 31 | AA144: 3744 | AB144: 1278544.105 | AC144: 2140.133514 | AD144: 13526.83214 | AE144: 1347.608388 | AF144: 450.45 | AG144: 0 | AH144: 17465.02404 | AI144: 1276403.971 | AJ144: 0.2473364048 | AK144: 0.2473364048 | AO144: 123 | AP144: 2034-01-30 | AQ144: 31 | AR144: 3744 | AS144: 905158.8835 | AT144: 10895.11619 | AU144: 9576.464537 | AV144: 954.0536765 | AW144: 450.45 | AX144: 0 | AY144: 21876.0844 | AZ144: 894263.7673 | BA144: 0.2473364048 | BB144: 0.2473364048 | BF144: 123 | BG144: 2034-01-30 | BH144: 31 | BI144: 3744 | BJ144: 892784.6505 | BK144: 7883.188577 | BL144: 9445.546744 | BM144: 941.0110133 | BN144: 450.45 | BO144: 0 | BP144: 18720.19633 | BQ144: 884901.4619 | BR144: 0.2473364048 | BS144: 0.2473364048 | BW144: 123 | BX144: 2034-01-30 | BY144: 31 | BZ144: 3744 | CA144: 1290089.082 | CB144: 4950.10752 | CC144: 13648.97652 | CD144: 1359.777001 | CE144: 450.45 | CF144: 0 | CG144: 20409.31104 | CH144: 1285138.974 | CI144: 0.2473364048 | CJ144: 0.2473364048 | CN144: 123 | CO144: 2034-01-30 | CP144: 31 | CQ144: 3744 | CR144: 1278544.105 | CS144: 2140.133514 | CT144: 13526.83214 | CU144: 1347.608388 | CV144: 450.45 | CW144: 0 | CX144: 17465.02404 | CY144: 1276403.971 | CZ144: 0.2473364048 | DA144: 0.2473364048
B145: 124 | C145: 2034-02-28 | D145: 29 | E145: 3773 | F145: 1285138.974 | G145: 5976.655599 | H145: 12715.07994 | I145: 1267.125495 | J145: 450.45 | K145: 0 | L145: 20409.31104 | M145: 1279162.319 | N145: 0.2446744489 | O145: 0.2446744489 | Q145: 20409.31104 | R145: 3773 | S145: =IFERROR((1+'Simulación Cliente'!$E$21)^(R145/360),"") -> 4.248986975 | T145: 4803.34 | X145: 124 | Y145: 2034-02-28 | Z145: 29 | AA145: 3773 | AB145: 1276403.971 | AC145: 3127.404717 | AD145: 12628.6564 | AE145: 1258.512928 | AF145: 450.45 | AG145: 0 | AH145: 17465.02404 | AI145: 1273276.566 | AJ145: 0.2446744489 | AK145: 0.2446744489 | AO145: 124 | AP145: 2034-02-28 | AQ145: 29 | AR145: 3773 | AS145: 894263.7673 | AT145: 11696.11879 | AU145: 8847.786517 | AV145: 881.7290902 | AW145: 450.45 | AX145: 0 | AY145: 21876.0844 | AZ145: 882567.6485 | BA145: 0.2446744489 | BB145: 0.2446744489 | BF145: 124 | BG145: 2034-02-28 | BH145: 29 | BI145: 3773 | BJ145: 884901.4619 | BK145: 8642.091833 | BL145: 8755.156487 | BM145: 872.4980139 | BN145: 450.45 | BO145: 0 | BP145: 18720.19633 | BQ145: 876259.3701 | BR145: 0.2446744489 | BS145: 0.2446744489 | BW145: 124 | BX145: 2034-02-28 | BY145: 29 | BZ145: 3773 | CA145: 1285138.974 | CB145: 5976.655599 | CC145: 12715.07994 | CD145: 1267.125495 | CE145: 450.45 | CF145: 0 | CG145: 20409.31104 | CH145: 1279162.319 | CI145: 0.2446744489 | CJ145: 0.2446744489 | CN145: 124 | CO145: 2034-02-28 | CP145: 29 | CQ145: 3773 | CR145: 1276403.971 | CS145: 3127.404717 | CT145: 12628.6564 | CU145: 1258.512928 | CV145: 450.45 | CW145: 0 | CX145: 17465.02404 | CY145: 1273276.566 | CZ145: 0.2446744489 | DA145: 0.2446744489
B146: 125 | C146: 2034-03-30 | D146: 30 | E146: 3803 | F146: 1279162.319 | G146: 5559.529903 | H146: 13094.58557 | I146: 1304.745565 | J146: 450.45 | K146: 0 | L146: 20409.31104 | M146: 1273602.789 | N146: 0.2419508459 | O146: 0.2419508459 | Q146: 20409.31104 | R146: 3803 | S146: =IFERROR((1+'Simulación Cliente'!$E$21)^(R146/360),"") -> 4.298144807 | T146: 4748.4 | X146: 125 | Y146: 2034-03-30 | Z146: 30 | AA146: 3803 | AB146: 1273276.566 | AC146: 2681.497909 | AD146: 13034.33403 | AE146: 1298.742098 | AF146: 450.45 | AG146: 0 | AH146: 17465.02404 | AI146: 1270595.068 | AJ146: 0.2419508459 | AK146: 0.2419508459 | AO146: 125 | AP146: 2034-03-30 | AQ146: 30 | AR146: 3803 | AS146: 882567.6485 | AT146: 11490.70775 | AU146: 9034.707653 | AV146: 900.2190015 | AW146: 450.45 | AX146: 0 | AY146: 21876.0844 | AZ146: 871076.9408 | BA146: 0.2419508459 | BB146: 0.2419508459 | BF146: 125 | BG146: 2034-03-30 | BH146: 30 | BI146: 3803 | BJ146: 876259.3701 | BK146: 8405.830988 | BL146: 8970.130789 | BM146: 893.7845575 | BN146: 450.45 | BO146: 0 | BP146: 18720.19633 | BQ146: 867853.5391 | BR146: 0.2419508459 | BS146: 0.2419508459 | BW146: 125 | BX146: 2034-03-30 | BY146: 30 | BZ146: 3803 | CA146: 1279162.319 | CB146: 5559.529903 | CC146: 13094.58557 | CD146: 1304.745565 | CE146: 450.45 | CF146: 0 | CG146: 20409.31104 | CH146: 1273602.789 | CI146: 0.2419508459 | CJ146: 0.2419508459 | CN146: 125 | CO146: 2034-03-30 | CP146: 30 | CQ146: 3803 | CR146: 1273276.566 | CS146: 2681.497909 | CT146: 13034.33403 | CU146: 1298.742098 | CV146: 450.45 | CW146: 0 | CX146: 17465.02404 | CY146: 1270595.068 | CZ146: 0.2419508459 | DA146: 0.2419508459
B147: 126 | C147: 2034-04-30 | D147: 31 | E147: 3834 | F147: 1273602.789 | G147: 5141.907227 | H147: 13474.55366 | I147: 1342.400152 | J147: 450.45 | K147: 0 | L147: 20409.31104 | M147: 1268460.882 | N147: 0.2391683028 | O147: 0.2391683028 | Q147: 20409.31104 | R147: 3834 | S147: =IFERROR((1+'Simulación Cliente'!$E$21)^(R147/360),"") -> 4.349538784 | T147: 4692.29 | X147: 126 | Y147: 2034-04-30 | Z147: 31 | AA147: 3834 | AB147: 1270595.068 | AC147: 2232.61172 | AD147: 13442.73236 | AE147: 1339.229961 | AF147: 450.45 | AG147: 0 | AH147: 17465.02404 | AI147: 1268362.457 | AJ147: 0.2391683028 | AK147: 0.2391683028 | AO147: 126 | AP147: 2034-04-30 | AQ147: 31 | AR147: 3834 | AS147: 871076.9408 | AT147: 11291.62174 | AU147: 9215.881968 | AV147: 918.1306984 | AW147: 450.45 | AX147: 0 | AY147: 21876.0844 | AZ147: 859785.319 | BA147: 0.2391683028 | BB147: 0.2391683028 | BF147: 126 | BG147: 2034-04-30 | BH147: 31 | BI147: 3834 | BJ147: 867853.5391 | BK147: 8173.234366 | BL147: 9181.778792 | BM147: 914.7331753 | BN147: 450.45 | BO147: 0 | BP147: 18720.19633 | BQ147: 859680.3047 | BR147: 0.2391683028 | BS147: 0.2391683028 | BW147: 126 | BX147: 2034-04-30 | BY147: 31 | BZ147: 3834 | CA147: 1273602.789 | CB147: 5141.907227 | CC147: 13474.55366 | CD147: 1342.400152 | CE147: 450.45 | CF147: 0 | CG147: 20409.31104 | CH147: 1268460.882 | CI147: 0.2391683028 | CJ147: 0.2391683028 | CN147: 126 | CO147: 2034-04-30 | CP147: 31 | CQ147: 3834 | CR147: 1270595.068 | CS147: 2232.61172 | CT147: 13442.73236 | CU147: 1339.229961 | CV147: 450.45 | CW147: 0 | CX147: 17465.02404 | CY147: 1268362.457 | CZ147: 0.2391683028 | DA147: 0.2391683028
B148: 127 | C148: 2034-05-30 | D148: 30 | E148: 3864 | F148: 1268460.882 | G148: 5679.994316 | H148: 12985.03662 | I148: 1293.830099 | J148: 450.45 | K148: 0 | L148: 20409.31104 | M148: 1262780.887 | N148: 0.2365059916 | O148: 0.2365059916 | Q148: 20409.31104 | R148: 3864 | S148: =IFERROR((1+'Simulación Cliente'!$E$21)^(R148/360),"") -> 4.399859931 | T148: 4638.63 | X148: 127 | Y148: 2034-05-30 | Z148: 30 | AA148: 3864 | AB148: 1268362.457 | AC148: 2736.815276 | AD148: 12984.02906 | AE148: 1293.729706 | AF148: 450.45 | AG148: 0 | AH148: 17465.02404 | AI148: 1265625.641 | AJ148: 0.2365059916 | AK148: 0.2365059916 | AO148: 127 | AP148: 2034-05-30 | AQ148: 30 | AR148: 3864 | AS148: 859785.319 | AT148: 11747.16488 | AU148: 8801.488492 | AV148: 876.9810254 | AW148: 450.45 | AX148: 0 | AY148: 21876.0844 | AZ148: 848038.1541 | BA148: 0.2365059916 | BB148: 0.2365059916 | BF148: 127 | BG148: 2034-05-30 | BH148: 30 | BI148: 3864 | BJ148: 859680.3047 | BK148: 8592.458946 | BL148: 8800.413477 | BM148: 876.8739108 | BN148: 450.45 | BO148: 0 | BP148: 18720.19633 | BQ148: 851087.8458 | BR148: 0.2365059916 | BS148: 0.2365059916 | BW148: 127 | BX148: 2034-05-30 | BY148: 30 | BZ148: 3864 | CA148: 1268460.882 | CB148: 5679.994316 | CC148: 12985.03662 | CD148: 1293.830099 | CE148: 450.45 | CF148: 0 | CG148: 20409.31104 | CH148: 1262780.887 | CI148: 0.2365059916 | CJ148: 0.2365059916 | CN148: 127 | CO148: 2034-05-30 | CP148: 30 | CQ148: 3864 | CR148: 1268362.457 | CS148: 2736.815276 | CT148: 12984.02906 | CU148: 1293.729706 | CV148: 450.45 | CW148: 0 | CX148: 17465.02404 | CY148: 1265625.641 | CZ148: 0.2365059916 | DA148: 0.2365059916
B149: 128 | C149: 2034-06-30 | D149: 31 | E149: 3895 | F149: 1262780.887 | G149: 5267.808032 | H149: 13360.05933 | I149: 1330.993674 | J149: 450.45 | K149: 0 | L149: 20409.31104 | M149: 1257513.079 | N149: 0.2337860668 | O149: 0.2337860668 | Q149: 20409.31104 | R149: 3895 | S149: =IFERROR((1+'Simulación Cliente'!$E$21)^(R149/360),"") -> 4.452470141 | T149: 4583.82 | X149: 128 | Y149: 2034-06-30 | Z149: 31 | AA149: 3895 | AB149: 1265625.641 | AC149: 2290.425484 | AD149: 13390.15646 | AE149: 1333.992096 | AF149: 450.45 | AG149: 0 | AH149: 17465.02404 | AI149: 1263335.216 | AJ149: 0.2337860668 | AK149: 0.2337860668 | AO149: 128 | AP149: 2034-06-30 | AQ149: 31 | AR149: 3895 | AS149: 848038.1541 | AT149: 11559.65243 | AU149: 8972.134569 | AV149: 893.8474046 | AW149: 450.45 | AX149: 0 | AY149: 21876.0844 | AZ149: 836478.5017 | BA149: 0.2337860668 | BB149: 0.2337860668 | BF149: 128 | BG149: 2034-06-30 | BH149: 31 | BI149: 3895 | BJ149: 851087.8458 | BK149: 8368.284586 | BL149: 9004.399914 | BM149: 897.0618342 | BN149: 450.45 | BO149: 0 | BP149: 18720.19633 | BQ149: 842719.5612 | BR149: 0.2337860668 | BS149: 0.2337860668 | BW149: 128 | BX149: 2034-06-30 | BY149: 31 | BZ149: 3895 | CA149: 1262780.887 | CB149: 5267.808032 | CC149: 13360.05933 | CD149: 1330.993674 | CE149: 450.45 | CF149: 0 | CG149: 20409.31104 | CH149: 1257513.079 | CI149: 0.2337860668 | CJ149: 0.2337860668 | CN149: 128 | CO149: 2034-06-30 | CP149: 31 | CQ149: 3895 | CR149: 1265625.641 | CS149: 2290.425484 | CT149: 13390.15646 | CU149: 1333.992096 | CV149: 450.45 | CW149: 0 | CX149: 17465.02404 | CY149: 1263335.216 | CZ149: 0.2337860668 | DA149: 0.2337860668
B150: 129 | C150: 2034-07-30 | D150: 30 | E150: 3925 | F150: 1257513.079 | G150: =IF(B150>C$6,"",L150-K150-J150-I150-H150) -> 5803.232023 | H150: 12872.96567 | I150: =IF(B150>C$6,"",((1+C$12)^(D150/30)-1)*F150) -> 1282.663341 | J150: 450.45 | K150: =IF(B150>C$6,"",C$15) -> 0 | L150: =IF(B150>C$6,"",IF(B150=C$6,F150+H150+I150+J150+K150,IF(AND(C$9=2,MONTH(C150)=7),2*C$17,IF(AND(C$10=2,MONTH(C150)=12),2*C$17,C$17)))) -> 20409.31104 | M150: =IF(B150>C$6,"",F150-G150) -> 1251709.847 | N150: 0.2311836682 | O150: 0.2311836682 | Q150: 20409.31104 | R150: 3925 | S150: =IFERROR((1+'Simulación Cliente'!$E$21)^(R150/360),"") -> 4.503982132 | T150: 4531.39 | X150: 129 | Y150: 2034-07-30 | Z150: 30 | AA150: 3925 | AB150: 1263335.216 | AC150: 20258.43018 | AD150: 12932.56598 | AE150: =IF(X150>Y$6,"",((1+Y$12)^(Z150/30)-1)*AB150) -> 1288.60192 | AF150: 450.45 | AG150: =IF(X150>Y$6,"",Y$15) -> 0 | AH150: =IF(X150>Y$6,"",IF(X150=Y$6,AB150+AD150+AE150+AF150+AG150,IF(AND(Y$9=2,MONTH(Y150)=7),2*Y$17,IF(AND(Y$10=2,MONTH(Y150)=12),2*Y$17,Y$17)))) -> 34930.04808 | AI150: =IF(X150>Y$6,"",AB150-AC150) -> 1243076.786 | AJ150: 0.4623673365 | AK150: 0.2311836682 | AO150: 129 | AP150: 2034-07-30 | AQ150: 30 | AR150: 3925 | AS150: 836478.5017 | AT150: 12009.5261 | AU150: 8562.900231 | AV150: =IF(AO150>AP$6,"",((1+AP$12)^(AQ150/30)-1)*AS150) -> 853.2080718 | AW150: 450.45 | AX150: =IF(AO150>AP$6,"",AP$15) -> 0 | AY150: =IF(AO150>AP$6,"",IF(AO150=AP$6,AS150+AU150+AV150+AW150+AX150,IF(AND(AP$9=2,MONTH(AP150)=7),2*AP$17,IF(AND(AP$10=2,MONTH(AP150)=12),2*AP$17,AP$17)))) -> 21876.0844 | AZ150: =IF(AO150>AP$6,"",AS150-AT150) -> 824468.9756 | BA150: 0.2311836682 | BB150: 0.2311836682 | BF150: 129 | BG150: 2034-07-30 | BH150: 30 | BI150: 3925 | BJ150: 842719.5612 | BK150: 27503.57973 | BL150: 8626.788985 | BM150: =IF(BF150>BG$6,"",((1+BG$12)^(BH150/30)-1)*BJ150) -> 859.5739524 | BN150: 450.45 | BO150: =IF(BF150>BG$6,"",BG$15) -> 0 | BP150: =IF(BF150>BG$6,"",IF(BF150=BG$6,BJ150+BL150+BM150+BN150+BO150,IF(AND(BG$9=2,MONTH(BG150)=7),2*BG$17,IF(AND(BG$10=2,MONTH(BG150)=12),2*BG$17,BG$17)))) -> 37440.39267 | BQ150: =IF(BF150>BG$6,"",BJ150-BK150) -> 815215.9814 | BR150: 0.4623673365 | BS150: 0.2311836682 | BW150: 129 | BX150: 2034-07-30 | BY150: 30 | BZ150: 3925 | CA150: 1257513.079 | CB150: 5803.232023 | CC150: 12872.96567 | CD150: =IF(BW150>BX$6,"",((1+BX$12)^(BY150/30)-1)*CA150) -> 1282.663341 | CE150: 450.45 | CF150: =IF(BW150>BX$6,"",BX$15) -> 0 | CG150: =IF(BW150>BX$6,"",IF(BW150=BX$6,CA150+CC150+CD150+CE150+CF150,IF(AND(BX$9=2,MONTH(BX150)=7),2*BX$17,IF(AND(BX$10=2,MONTH(BX150)=12),2*BX$17,BX$17)))) -> 20409.31104 | CH150: =IF(BW150>BX$6,"",CA150-CB150) -> 1251709.847 | CI150: 0.2311836682 | CJ150: 0.2311836682 | CN150: 129 | CO150: 2034-07-30 | CP150: 30 | CQ150: 3925 | CR150: 1263335.216 | CS150: 20258.43018 | CT150: 12932.56598 | CU150: =IF(CN150>CO$6,"",((1+CO$12)^(CP150/30)-1)*CR150) -> 1288.60192 | CV150: 450.45 | CW150: =IF(CN150>CO$6,"",CO$15) -> 0 | CX150: =IF(CN150>CO$6,"",IF(CN150=CO$6,CR150+CT150+CU150+CV150+CW150,IF(AND(CO$9=2,MONTH(CO150)=7),2*CO$17,IF(AND(CO$10=2,MONTH(CO150)=12),2*CO$17,CO$17)))) -> 34930.04808 | CY150: =IF(CN150>CO$6,"",CR150-CS150) -> 1243076.786 | CZ150: 0.4623673365 | DA150: 0.2311836682
B151: 130 | C151: =IF(B151>C$6,"",EDATE(C$22,B150)) -> 2034-08-30 | D151: =IF(B151>C$6,"",C151-C150) -> 31 | E151: =IFERROR(D151+E150,"") -> 3956 | F151: =IF(B151>C$6,"",M150) -> 1251709.847 | G151: 5396.607286 | H151: 13242.92915 | I151: 1319.3246 | J151: =IF(B151>C$6,"",D$4*C$14) -> 450.45 | K151: 0 | L151: 20409.31104 | M151: 1246313.24 | N151: =IFERROR(IF(AND(MONTH(C151)=7,C$9=2),2/(1+C$13)^(E151/360),IF(AND(MONTH(C151)=12,C$10=2),2/(1+C$13)^(E151/360),1/(1+C$13)^(E151/360))),"") -> 0.2285249525 | O151: =IFERROR(1/(1+C$13)^(E151/360),"") -> 0.2285249525 | Q151: =IFERROR(G151+H151+I151+J151+K151,"") -> 20409.31104 | R151: =E151 -> 3956 | S151: =IFERROR((1+'Simulación Cliente'!$E$21)^(R151/360),"") -> 4.557837357 | T151: =IFERROR(ROUND(Q151/S151,2),"") -> 4477.85 | X151: 130 | Y151: =IF(X151>Y$6,"",EDATE(Y$22,X150)) -> 2034-08-30 | Z151: 31 | AA151: =IFERROR(Z151+AA150,"") -> 3956 | AB151: =IF(X151>Y$6,"",AI150) -> 1243076.786 | AC151: 2552.756374 | AD151: 13151.59247 | AE151: 1310.225198 | AF151: =IF(X151>Y$6,"",Z$4*Y$14) -> 450.45 | AG151: 0 | AH151: 17465.02404 | AI151: 1240524.029 | AJ151: =IFERROR(IF(AND(MONTH(Y151)=7,Y$9=2),2/(1+Y$13)^(AA151/360),IF(AND(MONTH(Y151)=12,Y$10=2),2/(1+Y$13)^(AA151/360),1/(1+Y$13)^(AA151/360))),"") -> 0.2285249525 | AK151: =IFERROR(1/(1+Y$13)^(AA151/360),"") -> 0.2285249525 | AO151: 130 | AP151: =IF(AO151>AP$6,"",EDATE(AP$22,AO150)) -> 2034-08-30 | AQ151: 31 | AR151: =IFERROR(AQ151+AR150,"") -> 3956 | AS151: =IF(AO151>AP$6,"",AZ150) -> 824468.9756 | AT151: 11833.85364 | AU151: 8722.775693 | AV151: 869.0050683 | AW151: =IF(AO151>AP$6,"",AQ$4*AP$14) -> 450.45 | AX151: 0 | AY151: 21876.0844 | AZ151: 812635.122 | BA151: =IFERROR(IF(AND(MONTH(AP151)=7,AP$9=2),2/(1+AP$13)^(AR151/360),IF(AND(MONTH(AP151)=12,AP$10=2),2/(1+AP$13)^(AR151/360),1/(1+AP$13)^(AR151/360))),"") -> 0.2285249525 | BB151: =IFERROR(1/(1+AP$13)^(AR151/360),"") -> 0.2285249525 | BF151: 130 | BG151: =IF(BF151>BG$6,"",EDATE(BG$22,BF150)) -> 2034-08-30 | BH151: 31 | BI151: =IFERROR(BH151+BI150,"") -> 3956 | BJ151: =IF(BF151>BG$6,"",BQ150) -> 815215.9814 | BK151: 8785.613883 | BL151: 8624.880205 | BM151: 859.2522467 | BN151: =IF(BF151>BG$6,"",BH$4*BG$14) -> 450.45 | BO151: 0 | BP151: 18720.19633 | BQ151: 806430.3676 | BR151: =IFERROR(IF(AND(MONTH(BG151)=7,BG$9=2),2/(1+BG$13)^(BI151/360),IF(AND(MONTH(BG151)=12,BG$10=2),2/(1+BG$13)^(BI151/360),1/(1+BG$13)^(BI151/360))),"") -> 0.2285249525 | BS151: =IFERROR(1/(1+BG$13)^(BI151/360),"") -> 0.2285249525 | BW151: 130 | BX151: =IF(BW151>BX$6,"",EDATE(BX$22,BW150)) -> 2034-08-30 | BY151: 31 | BZ151: =IFERROR(BY151+BZ150,"") -> 3956 | CA151: =IF(BW151>BX$6,"",CH150) -> 1251709.847 | CB151: 5396.607286 | CC151: 13242.92915 | CD151: 1319.3246 | CE151: =IF(BW151>BX$6,"",BY$4*BX$14) -> 450.45 | CF151: 0 | CG151: 20409.31104 | CH151: 1246313.24 | CI151: =IFERROR(IF(AND(MONTH(BX151)=7,BX$9=2),2/(1+BX$13)^(BZ151/360),IF(AND(MONTH(BX151)=12,BX$10=2),2/(1+BX$13)^(BZ151/360),1/(1+BX$13)^(BZ151/360))),"") -> 0.2285249525 | CJ151: =IFERROR(1/(1+BX$13)^(BZ151/360),"") -> 0.2285249525 | CN151: 130 | CO151: =IF(CN151>CO$6,"",EDATE(CO$22,CN150)) -> 2034-08-30 | CP151: 31 | CQ151: =IFERROR(CP151+CQ150,"") -> 3956 | CR151: =IF(CN151>CO$6,"",CY150) -> 1243076.786 | CS151: 2552.756374 | CT151: 13151.59247 | CU151: 1310.225198 | CV151: =IF(CN151>CO$6,"",CP$4*CO$14) -> 450.45 | CW151: 0 | CX151: 17465.02404 | CY151: 1240524.029 | CZ151: =IFERROR(IF(AND(MONTH(CO151)=7,CO$9=2),2/(1+CO$13)^(CQ151/360),IF(AND(MONTH(CO151)=12,CO$10=2),2/(1+CO$13)^(CQ151/360),1/(1+CO$13)^(CQ151/360))),"") -> 0.2285249525 | DA151: =IFERROR(1/(1+CO$13)^(CQ151/360),"") -> 0.2285249525
B152: 131 | C152: 2034-09-30 | D152: 31 | E152: 3987 | F152: 1246313.24 | G152: 5459.390817 | H152: =IF(B152>C$6,"",((1+C$11)^(D152/360)-1)*F152) -> 13185.83374 | I152: 1313.636479 | J152: 450.45 | K152: 0 | L152: 20409.31104 | M152: 1240853.849 | N152: 0.2258968132 | O152: 0.2258968132 | Q152: 20409.31104 | R152: 3987 | S152: =IFERROR((1+'Simulación Cliente'!$E$21)^(R152/360),"") -> 4.612336542 | T152: 4424.94 | X152: 131 | Y152: 2034-09-30 | Z152: 31 | AA152: 3987 | AB152: 1240524.029 | AC152: 2582.454859 | AD152: =IF(X152>Y$6,"",((1+Y$11)^(Z152/360)-1)*AB152) -> 13124.58463 | AE152: 1307.534547 | AF152: 450.45 | AG152: 0 | AH152: 17465.02404 | AI152: 1237941.574 | AJ152: 0.2258968132 | AK152: 0.2258968132 | AO152: 131 | AP152: 2034-09-30 | AQ152: 31 | AR152: 3987 | AS152: 812635.122 | AT152: 11971.52738 | AU152: =IF(AO152>AP$6,"",((1+AP$11)^(AQ152/360)-1)*AS152) -> 8597.575044 | AV152: 856.5319746 | AW152: 450.45 | AX152: 0 | AY152: 21876.0844 | AZ152: 800663.5946 | BA152: 0.2258968132 | BB152: 0.2258968132 | BF152: 131 | BG152: 2034-09-30 | BH152: 31 | BI152: 3987 | BJ152: 806430.3676 | BK152: 8887.824742 | BL152: =IF(BF152>BG$6,"",((1+BG$11)^(BH152/360)-1)*BJ152) -> 8531.92954 | BM152: 849.9920523 | BN152: 450.45 | BO152: 0 | BP152: 18720.19633 | BQ152: 797542.5428 | BR152: 0.2258968132 | BS152: 0.2258968132 | BW152: 131 | BX152: 2034-09-30 | BY152: 31 | BZ152: 3987 | CA152: 1246313.24 | CB152: 5459.390817 | CC152: =IF(BW152>BX$6,"",((1+BX$11)^(BY152/360)-1)*CA152) -> 13185.83374 | CD152: 1313.636479 | CE152: 450.45 | CF152: 0 | CG152: 20409.31104 | CH152: 1240853.849 | CI152: 0.2258968132 | CJ152: 0.2258968132 | CN152: 131 | CO152: 2034-09-30 | CP152: 31 | CQ152: 3987 | CR152: 1240524.029 | CS152: 2582.454859 | CT152: =IF(CN152>CO$6,"",((1+CO$11)^(CP152/360)-1)*CR152) -> 13124.58463 | CU152: 1307.534547 | CV152: 450.45 | CW152: 0 | CX152: 17465.02404 | CY152: 1237941.574 | CZ152: 0.2258968132 | DA152: 0.2258968132
B153: 132 | C153: 2034-10-30 | D153: 30 | E153: 4017 | F153: 1240853.849 | G153: 5990.762383 | H153: 12702.42773 | I153: 1265.670926 | J153: 450.45 | K153: 0 | L153: 20409.31104 | M153: 1234863.087 | N153: 0.2233822341 | O153: 0.2233822341 | Q153: 20409.31104 | R153: 4017 | S153: =IFERROR((1+'Simulación Cliente'!$E$21)^(R153/360),"") -> 4.665698077 | T153: 4374.33 | X153: 132 | Y153: 2034-10-30 | Z153: =IF(X153>Y$6,"",Y153-Y152) -> 30 | AA153: 4017 | AB153: 1237941.574 | AC153: =IF(X153>Y$6,"",AH153-AG153-AF153-AE153-AD153) -> 3079.258412 | AD153: 12672.61522 | AE153: 1262.700406 | AF153: 450.45 | AG153: 0 | AH153: 17465.02404 | AI153: 1234862.316 | AJ153: 0.2233822341 | AK153: 0.2233822341 | AO153: 132 | AP153: 2034-10-30 | AQ153: =IF(AO153>AP$6,"",AP153-AP152) -> 30 | AR153: 4017 | AS153: 800663.5946 | AT153: =IF(AO153>AP$6,"",AY153-AX153-AW153-AV153-AU153) -> 12412.68893 | AU153: 8196.268601 | AV153: 816.6768665 | AW153: 450.45 | AX153: 0 | AY153: 21876.0844 | AZ153: 788250.9057 | BA153: 0.2233822341 | BB153: 0.2233822341 | BF153: 132 | BG153: 2034-10-30 | BH153: =IF(BF153>BG$6,"",BG153-BG152) -> 30 | BI153: 4017 | BJ153: 797542.5428 | BK153: =IF(BF153>BG$6,"",BP153-BO153-BN153-BM153-BL153) -> 9291.93406 | BL153: 8164.31888 | BM153: 813.4933937 | BN153: 450.45 | BO153: 0 | BP153: 18720.19633 | BQ153: 788250.6088 | BR153: 0.2233822341 | BS153: 0.2233822341 | BW153: 132 | BX153: 2034-10-30 | BY153: =IF(BW153>BX$6,"",BX153-BX152) -> 30 | BZ153: 4017 | CA153: 1240853.849 | CB153: =IF(BW153>BX$6,"",CG153-CF153-CE153-CD153-CC153) -> 5990.762383 | CC153: 12702.42773 | CD153: 1265.670926 | CE153: 450.45 | CF153: 0 | CG153: 20409.31104 | CH153: 1234863.087 | CI153: 0.2233822341 | CJ153: 0.2233822341 | CN153: 132 | CO153: 2034-10-30 | CP153: =IF(CN153>CO$6,"",CO153-CO152) -> 30 | CQ153: 4017 | CR153: 1237941.574 | CS153: =IF(CN153>CO$6,"",CX153-CW153-CV153-CU153-CT153) -> 3079.258412 | CT153: 12672.61522 | CU153: 1262.700406 | CV153: 450.45 | CW153: 0 | CX153: 17465.02404 | CY153: 1234862.316 | CZ153: 0.2233822341 | DA153: 0.2233822341
B154: 133 | C154: 2034-11-30 | D154: 31 | E154: 4048 | F154: 1234863.087 | G154: 5592.600631 | H154: 13064.69259 | I154: 1301.567813 | J154: 450.45 | K154: 0 | L154: 20409.31104 | M154: 1229270.486 | N154: 0.2208132384 | O154: 0.2208132384 | Q154: 20409.31104 | R154: 4048 | S154: =IFERROR((1+'Simulación Cliente'!$E$21)^(R154/360),"") -> 4.721486979 | T154: 4322.64 | X154: 133 | Y154: 2034-11-30 | Z154: 31 | AA154: 4048 | AB154: 1234862.316 | AC154: 2648.322604 | AD154: 13064.68444 | AE154: 1301.567 | AF154: 450.45 | AG154: 0 | AH154: 17465.02404 | AI154: 1232213.993 | AJ154: 0.2208132384 | AK154: 0.2208132384 | AO154: 133 | AP154: 2034-11-30 | AQ154: 31 | AR154: 4048 | AS154: 788250.9057 | AT154: 12255.21066 | AU154: 8339.593172 | AV154: 830.8305738 | AW154: 450.45 | AX154: 0 | AY154: 21876.0844 | AZ154: 775995.695 | BA154: 0.2208132384 | BB154: 0.2208132384 | BF154: 133 | BG154: 2034-11-30 | BH154: 31 | BI154: 4048 | BJ154: 788250.6088 | BK154: 9099.326042 | BL154: 8339.590031 | BM154: 830.8302609 | BN154: 450.45 | BO154: 0 | BP154: 18720.19633 | BQ154: 779151.2827 | BR154: 0.2208132384 | BS154: 0.2208132384 | BW154: 133 | BX154: 2034-11-30 | BY154: 31 | BZ154: 4048 | CA154: 1234863.087 | CB154: 5592.600631 | CC154: 13064.69259 | CD154: 1301.567813 | CE154: 450.45 | CF154: 0 | CG154: 20409.31104 | CH154: 1229270.486 | CI154: 0.2208132384 | CJ154: 0.2208132384 | CN154: 133 | CO154: 2034-11-30 | CP154: 31 | CQ154: 4048 | CR154: 1234862.316 | CS154: 2648.322604 | CT154: 13064.68444 | CU154: 1301.567 | CV154: 450.45 | CW154: 0 | CX154: 17465.02404 | CY154: 1232213.993 | CZ154: 0.2208132384 | DA154: 0.2208132384
B155: 134 | C155: 2034-12-30 | D155: 30 | E155: 4078 | F155: 1229270.486 | G155: 6121.154498 | H155: 12583.85064 | I155: 1253.855896 | J155: 450.45 | K155: 0 | L155: 20409.31104 | M155: 1223149.332 | N155: 0.2183552474 | O155: 0.2183552474 | Q155: 20409.31104 | R155: 4078 | S155: =IFERROR((1+'Simulación Cliente'!$E$21)^(R155/360),"") -> 4.776111308 | T155: 4273.21 | X155: 134 | Y155: 2034-12-30 | Z155: 30 | AA155: 4078 | AB155: 1232213.993 | AC155: 20608.75694 | AD155: 12613.98287 | AE155: 1256.858273 | AF155: 450.45 | AG155: 0 | AH155: 34930.04808 | AI155: 1211605.237 | AJ155: 0.4367104947 | AK155: 0.2183552474 | AO155: 134 | AP155: 2034-12-30 | AQ155: 30 | AR155: 4078 | AS155: 775995.695 | AT155: 12690.37164 | AU155: 7943.747152 | AV155: 791.5156089 | AW155: 450.45 | AX155: 0 | AY155: 21876.0844 | AZ155: 763305.3234 | BA155: 0.2183552474 | BB155: 0.2183552474 | BF155: 134 | BG155: 2034-12-30 | BH155: 30 | BI155: 4078 | BJ155: 779151.2827 | BK155: 28219.15795 | BL155: 7976.050413 | BM155: 794.7343084 | BN155: 450.45 | BO155: 0 | BP155: 37440.39267 | BQ155: 750932.1248 | BR155: 0.4367104947 | BS155: 0.2183552474 | BW155: 134 | BX155: 2034-12-30 | BY155: 30 | BZ155: 4078 | CA155: 1229270.486 | CB155: 6121.154498 | CC155: 12583.85064 | CD155: 1253.855896 | CE155: 450.45 | CF155: 0 | CG155: 20409.31104 | CH155: 1223149.332 | CI155: 0.2183552474 | CJ155: 0.2183552474 | CN155: 134 | CO155: 2034-12-30 | CP155: 30 | CQ155: 4078 | CR155: 1232213.993 | CS155: 20608.75694 | CT155: 12613.98287 | CU155: 1256.858273 | CV155: 450.45 | CW155: 0 | CX155: 34930.04808 | CY155: 1211605.237 | CZ155: 0.4367104947 | DA155: 0.2183552474
B156: 135 | C156: 2035-01-30 | D156: 31 | E156: 4109 | F156: 1223149.332 | G156: 5728.877161 | H156: 12940.76257 | I156: 1289.221305 | J156: 450.45 | K156: 0 | L156: 20409.31104 | M156: 1217420.455 | N156: 0.2158440642 | O156: 0.2158440642 | Q156: 20409.31104 | R156: 4109 | S156: =IFERROR((1+'Simulación Cliente'!$E$21)^(R156/360),"") -> 4.833220449 | T156: 4222.71 | X156: 135 | Y156: 2035-01-30 | Z156: 31 | AA156: 4109 | AB156: 1211605.237 | AC156: 2918.892892 | AD156: 12818.62753 | AE156: 1277.053622 | AF156: 450.45 | AG156: 0 | AH156: 17465.02404 | AI156: 1208686.344 | AJ156: 0.2158440642 | AK156: 0.2158440642 | AO156: 135 | AP156: 2035-01-30 | AQ156: 31 | AR156: 4109 | AS156: 763305.3234 | AT156: 12545.4248 | AU156: 8075.672121 | AV156: 804.5374832 | AW156: 450.45 | AX156: 0 | AY156: 21876.0844 | AZ156: 750759.8986 | BA156: 0.2158440642 | BB156: 0.2158440642 | BF156: 135 | BG156: 2035-01-30 | BH156: 31 | BI156: 4109 | BJ156: 750932.1248 | BK156: 9533.485152 | BL156: 7944.765271 | BM156: 791.4959103 | BN156: 450.45 | BO156: 0 | BP156: 18720.19633 | BQ156: 741398.6396 | BR156: 0.2158440642 | BS156: 0.2158440642 | BW156: 135 | BX156: 2035-01-30 | BY156: 31 | BZ156: 4109 | CA156: 1223149.332 | CB156: 5728.877161 | CC156: 12940.76257 | CD156: 1289.221305 | CE156: 450.45 | CF156: 0 | CG156: 20409.31104 | CH156: 1217420.455 | CI156: 0.2158440642 | CJ156: 0.2158440642 | CN156: 135 | CO156: 2035-01-30 | CP156: 31 | CQ156: 4109 | CR156: 1211605.237 | CS156: 2918.892892 | CT156: 12818.62753 | CU156: 1277.053622 | CV156: 450.45 | CW156: 0 | CX156: 17465.02404 | CY156: 1208686.344 | CZ156: 0.2158440642 | DA156: 0.2158440642
B157: 136 | C157: 2035-02-28 | D157: 29 | E157: 4138 | F157: 1217420.455 | G157: 6713.427478 | H157: 12045.07739 | I157: 1200.356169 | J157: 450.45 | K157: 0 | L157: 20409.31104 | M157: 1210707.027 | N157: 0.2135210444 | O157: 0.2135210444 | Q157: 20409.31104 | R157: 4138 | S157: =IFERROR((1+'Simulación Cliente'!$E$21)^(R157/360),"") -> 4.887263175 | T157: 4176.02 | X157: 136 | Y157: 2035-02-28 | Z157: 29 | AA157: 4138 | AB157: 1208686.344 | AC157: 3864.166885 | AD157: 11958.66267 | AE157: 1191.744482 | AF157: 450.45 | AG157: 0 | AH157: 17465.02404 | AI157: 1204822.177 | AJ157: 0.2135210444 | AK157: 0.2135210444 | AO157: 136 | AP157: 2035-02-28 | AQ157: 29 | AR157: 4138 | AS157: 750759.8986 | AT157: 13257.42898 | AU157: 7427.968739 | AV157: 740.2366802 | AW157: 450.45 | AX157: 0 | AY157: 21876.0844 | AZ157: 737502.4696 | BA157: 0.2135210444 | BB157: 0.2135210444 | BF157: 136 | BG157: 2035-02-28 | BH157: 29 | BI157: 4138 | BJ157: 741398.6396 | BK157: 10203.39064 | BL157: 7335.349063 | BM157: 731.0066357 | BN157: 450.45 | BO157: 0 | BP157: 18720.19633 | BQ157: 731195.249 | BR157: 0.2135210444 | BS157: 0.2135210444 | BW157: 136 | BX157: 2035-02-28 | BY157: 29 | BZ157: 4138 | CA157: 1217420.455 | CB157: 6713.427478 | CC157: 12045.07739 | CD157: 1200.356169 | CE157: 450.45 | CF157: 0 | CG157: 20409.31104 | CH157: 1210707.027 | CI157: 0.2135210444 | CJ157: 0.2135210444 | CN157: 136 | CO157: 2035-02-28 | CP157: 29 | CQ157: 4138 | CR157: 1208686.344 | CS157: 3864.166885 | CT157: 11958.66267 | CU157: 1191.744482 | CV157: 450.45 | CW157: 0 | CX157: 17465.02404 | CY157: 1204822.177 | CZ157: 0.2135210444 | DA157: 0.2135210444
B158: 137 | C158: 2035-03-30 | D158: 30 | E158: 4168 | F158: 1210707.027 | G158: 6330.120468 | H158: 12393.8194 | I158: 1234.921168 | J158: 450.45 | K158: 0 | L158: 20409.31104 | M158: 1204376.907 | N158: 0.2111442267 | O158: 0.2111442267 | Q158: 20409.31104 | R158: 4168 | S158: =IFERROR((1+'Simulación Cliente'!$E$21)^(R158/360),"") -> 4.94380542 | T158: 4128.26 | X158: 137 | Y158: 2035-03-30 | Z158: 30 | AA158: 4168 | AB158: 1204822.177 | AC158: 3452.078318 | AD158: 12333.5771 | AE158: 1228.91862 | AF158: 450.45 | AG158: 0 | AH158: 17465.02404 | AI158: 1201370.098 | AJ158: 0.2111442267 | AK158: 0.2111442267 | AO158: 137 | AP158: 2035-03-30 | AQ158: 30 | AR158: 4168 | AS158: 737502.4696 | AT158: 13123.68389 | AU158: 7549.697995 | AV158: 752.252519 | AW158: 450.45 | AX158: 0 | AY158: 21876.0844 | AZ158: 724378.7857 | BA158: 0.2111442267 | BB158: 0.2111442267 | BF158: 137 | BG158: 2035-03-30 | BH158: 30 | BI158: 4168 | BJ158: 731195.249 | BK158: 10038.79522 | BL158: 7485.131959 | BM158: 745.819154 | BN158: 450.45 | BO158: 0 | BP158: 18720.19633 | BQ158: 721156.4538 | BR158: 0.2111442267 | BS158: 0.2111442267 | BW158: 137 | BX158: 2035-03-30 | BY158: 30 | BZ158: 4168 | CA158: 1210707.027 | CB158: 6330.120468 | CC158: 12393.8194 | CD158: 1234.921168 | CE158: 450.45 | CF158: 0 | CG158: 20409.31104 | CH158: 1204376.907 | CI158: 0.2111442267 | CJ158: 0.2111442267 | CN158: 137 | CO158: 2035-03-30 | CP158: 30 | CQ158: 4168 | CR158: 1204822.177 | CS158: 3452.078318 | CT158: 12333.5771 | CU158: 1228.91862 | CV158: 450.45 | CW158: 0 | CX158: 17465.02404 | CY158: 1201370.098 | CZ158: 0.2111442267 | DA158: 0.2111442267
B159: 138 | C159: 2035-04-30 | D159: 31 | E159: 4199 | F159: 1204376.907 | G159: 5947.273476 | H159: 12742.15273 | I159: 1269.434833 | J159: 450.45 | K159: 0 | L159: 20409.31104 | M159: 1198429.633 | N159: 0.2087159735 | O159: 0.2087159735 | Q159: 20409.31104 | R159: 4199 | S159: =IFERROR((1+'Simulación Cliente'!$E$21)^(R159/360),"") -> 5.00291972 | T159: 4079.48 | X159: 138 | Y159: 2035-04-30 | Z159: 31 | AA159: 4199 | AB159: 1201370.098 | AC159: 3037.967355 | AD159: 12710.34108 | AE159: 1266.265603 | AF159: 450.45 | AG159: 0 | AH159: 17465.02404 | AI159: 1198332.131 | AJ159: 0.2087159735 | AK159: 0.2087159735 | AO159: 138 | AP159: 2035-04-30 | AQ159: 31 | AR159: 4199 | AS159: 724378.7857 | AT159: 12998.29183 | AU159: 7663.83436 | AV159: 763.5082153 | AW159: 450.45 | AX159: 0 | AY159: 21876.0844 | AZ159: 711380.4939 | BA159: 0.2087159735 | BB159: 0.2087159735 | BF159: 138 | BG159: 2035-04-30 | BH159: 31 | BI159: 4199 | BJ159: 721156.4538 | BK159: 9879.892012 | BL159: 7629.742503 | BM159: 760.1118197 | BN159: 450.45 | BO159: 0 | BP159: 18720.19633 | BQ159: 711276.5618 | BR159: 0.2087159735 | BS159: 0.2087159735 | BW159: 138 | BX159: 2035-04-30 | BY159: 31 | BZ159: 4199 | CA159: 1204376.907 | CB159: 5947.273476 | CC159: 12742.15273 | CD159: 1269.434833 | CE159: 450.45 | CF159: 0 | CG159: 20409.31104 | CH159: 1198429.633 | CI159: 0.2087159735 | CJ159: 0.2087159735 | CN159: 138 | CO159: 2035-04-30 | CP159: 31 | CQ159: 4199 | CR159: 1201370.098 | CS159: 3037.967355 | CT159: 12710.34108 | CU159: 1266.265603 | CV159: 450.45 | CW159: 0 | CX159: 17465.02404 | CY159: 1198332.131 | CZ159: 0.2087159735 | DA159: 0.2087159735
B160: 139 | C160: 2035-05-30 | D160: 30 | E160: 4229 | F160: 1198429.633 | G160: 6468.325181 | H160: 12268.13763 | I160: 1222.398226 | J160: 450.45 | K160: 0 | L160: 20409.31104 | M160: 1191961.308 | N160: 0.2063926436 | O160: 0.2063926436 | Q160: 20409.31104 | R160: 4229 | S160: =IFERROR((1+'Simulación Cliente'!$E$21)^(R160/360),"") -> 5.060800031 | T160: 4032.82 | X160: 139 | Y160: 2035-05-30 | Z160: 30 | AA160: 4229 | AB160: 1198332.131 | AC160: 3525.135752 | AD160: 12267.13952 | AE160: 1222.298774 | AF160: 450.45 | AG160: 0 | AH160: 17465.02404 | AI160: 1194806.995 | AJ160: 0.2063926436 | AK160: 0.2063926436 | AO160: 139 | AP160: 2035-05-30 | AQ160: 30 | AR160: 4229 | AS160: 711380.4939 | AT160: 13417.7349 | AU160: 7282.291395 | AV160: 725.6081038 | AW160: 450.45 | AX160: 0 | AY160: 21876.0844 | AZ160: 697962.759 | BA160: 0.2063926436 | BB160: 0.2063926436 | BF160: 139 | BG160: 2035-05-30 | BH160: 30 | BI160: 4229 | BJ160: 711276.5618 | BK160: 10263.01678 | BL160: 7281.227458 | BM160: 725.502093 | BN160: 450.45 | BO160: 0 | BP160: 18720.19633 | BQ160: 701013.545 | BR160: 0.2063926436 | BS160: 0.2063926436 | BW160: 139 | BX160: 2035-05-30 | BY160: 30 | BZ160: 4229 | CA160: 1198429.633 | CB160: 6468.325181 | CC160: 12268.13763 | CD160: 1222.398226 | CE160: 450.45 | CF160: 0 | CG160: 20409.31104 | CH160: 1191961.308 | CI160: 0.2063926436 | CJ160: 0.2063926436 | CN160: 139 | CO160: 2035-05-30 | CP160: 30 | CQ160: 4229 | CR160: 1198332.131 | CS160: 3525.135752 | CT160: 12267.13952 | CU160: 1222.298774 | CV160: 450.45 | CW160: 0 | CX160: 17465.02404 | CY160: 1194806.995 | CZ160: 0.2063926436 | DA160: 0.2063926436
B161: 140 | C161: 2035-06-30 | D161: 31 | E161: 4260 | F161: 1191961.308 | G161: 6091.715176 | H161: 12610.79729 | I161: 1256.348569 | J161: 450.45 | K161: 0 | L161: 20409.31104 | M161: 1185869.593 | N161: 0.2040190358 | O161: 0.2040190358 | Q161: 20409.31104 | R161: 4260 | S161: =IFERROR((1+'Simulación Cliente'!$E$21)^(R161/360),"") -> 5.121313265 | T161: 3985.17 | X161: 140 | Y161: 2035-06-30 | Z161: 31 | AA161: 4260 | AB161: 1194806.995 | AC161: 3114.32177 | AD161: 12640.9043 | AE161: 1259.347975 | AF161: 450.45 | AG161: 0 | AH161: 17465.02404 | AI161: 1191692.674 | AJ161: 0.2040190358 | AK161: 0.2040190358 | AO161: 140 | AP161: 2035-06-30 | AQ161: 31 | AR161: 4260 | AS161: 697962.759 | AT161: 13305.61296 | AU161: 7384.356196 | AV161: 735.6652499 | AW161: 450.45 | AX161: 0 | AY161: 21876.0844 | AZ161: 684657.146 | BA161: 0.2040190358 | BB161: 0.2040190358 | BF161: 140 | BG161: 2035-06-30 | BH161: 31 | BI161: 4260 | BJ161: 701013.545 | BK161: 10114.23238 | BL161: 7416.633119 | BM161: 738.880833 | BN161: 450.45 | BO161: 0 | BP161: 18720.19633 | BQ161: 690899.3126 | BR161: 0.2040190358 | BS161: 0.2040190358 | BW161: 140 | BX161: 2035-06-30 | BY161: 31 | BZ161: 4260 | CA161: 1191961.308 | CB161: 6091.715176 | CC161: 12610.79729 | CD161: 1256.348569 | CE161: 450.45 | CF161: 0 | CG161: 20409.31104 | CH161: 1185869.593 | CI161: 0.2040190358 | CJ161: 0.2040190358 | CN161: 140 | CO161: 2035-06-30 | CP161: 31 | CQ161: 4260 | CR161: 1194806.995 | CS161: 3114.32177 | CT161: 12640.9043 | CU161: 1259.347975 | CV161: 450.45 | CW161: 0 | CX161: 17465.02404 | CY161: 1191692.674 | CZ161: 0.2040190358 | DA161: 0.2040190358
B162: 141 | C162: 2035-07-30 | D162: 30 | E162: 4290 | F162: 1185869.593 | G162: 6609.7116 | H162: 12139.56245 | I162: 1209.586985 | J162: 450.45 | K162: 0 | L162: 20409.31104 | M162: 1179259.881 | N162: 0.2017479901 | O162: 0.2017479901 | Q162: 20409.31104 | R162: 4290 | S162: =IFERROR((1+'Simulación Cliente'!$E$21)^(R162/360),"") -> 5.180563307 | T162: 3939.59 | X162: 141 | Y162: 2035-07-30 | Z162: 30 | AA162: 4290 | AB162: 1191692.674 | AC162: 21064.89913 | AD162: 12199.17242 | AE162: 1215.526527 | AF162: 450.45 | AG162: 0 | AH162: 34930.04808 | AI162: 1170627.774 | AJ162: 0.4034959801 | AK162: 0.2017479901 | AO162: 141 | AP162: 2035-07-30 | AQ162: 30 | AR162: 4290 | AS162: 684657.146 | AT162: 13718.55547 | AU162: 7008.728642 | AV162: 698.3502889 | AW162: 450.45 | AX162: 0 | AY162: 21876.0844 | AZ162: 670938.5905 | BA162: 0.2017479901 | BB162: 0.2017479901 | BF162: 141 | BG162: 2035-07-30 | BH162: 30 | BI162: 4290 | BJ162: 690899.3126 | BK162: 29212.59664 | BL162: 7072.62873 | BM162: 704.7172988 | BN162: 450.45 | BO162: 0 | BP162: 37440.39267 | BQ162: 661686.7159 | BR162: 0.4034959801 | BS162: 0.2017479901 | BW162: 141 | BX162: 2035-07-30 | BY162: 30 | BZ162: 4290 | CA162: 1185869.593 | CB162: 6609.7116 | CC162: 12139.56245 | CD162: 1209.586985 | CE162: 450.45 | CF162: 0 | CG162: 20409.31104 | CH162: 1179259.881 | CI162: 0.2017479901 | CJ162: 0.2017479901 | CN162: 141 | CO162: 2035-07-30 | CP162: 30 | CQ162: 4290 | CR162: 1191692.674 | CS162: 21064.89913 | CT162: 12199.17242 | CU162: 1215.526527 | CV162: 450.45 | CW162: 0 | CX162: 34930.04808 | CY162: 1170627.774 | CZ162: 0.4034959801 | DA162: 0.2017479901
B163: 142 | C163: 2035-08-30 | D163: 31 | E163: 4321 | F163: 1179259.881 | G163: 6239.482169 | H163: 12476.41783 | I163: 1242.961038 | J163: 450.45 | K163: 0 | L163: 20409.31104 | M163: 1173020.399 | N163: 0.1994277978 | O163: 0.1994277978 | Q163: 20409.31104 | R163: 4321 | S163: =IFERROR((1+'Simulación Cliente'!$E$21)^(R163/360),"") -> 5.24250858 | T163: 3893.04 | X163: 142 | Y163: 2035-08-30 | Z163: 31 | AA163: 4321 | AB163: 1170627.774 | AC163: 3395.620148 | AD163: 12385.09125 | AE163: 1233.862643 | AF163: 450.45 | AG163: 0 | AH163: 17465.02404 | AI163: 1167232.154 | AJ163: 0.1994277978 | AK163: 0.1994277978 | AO163: 142 | AP163: 2035-08-30 | AQ163: 31 | AR163: 4321 | AS163: 670938.5905 | AT163: 13620.00914 | AU163: 7098.44397 | AV163: 707.1812924 | AW163: 450.45 | AX163: 0 | AY163: 21876.0844 | AZ163: 657318.5814 | BA163: 0.1994277978 | BB163: 0.1994277978 | BF163: 142 | BG163: 2035-08-30 | BH163: 31 | BI163: 4321 | BJ163: 661686.7159 | BK163: 10571.75636 | BL163: 7000.560328 | BM163: 697.4296508 | BN163: 450.45 | BO163: 0 | BP163: 18720.19633 | BQ163: 651114.9596 | BR163: 0.1994277978 | BS163: 0.1994277978 | BW163: 142 | BX163: 2035-08-30 | BY163: 31 | BZ163: 4321 | CA163: 1179259.881 | CB163: 6239.482169 | CC163: 12476.41783 | CD163: 1242.961038 | CE163: 450.45 | CF163: 0 | CG163: 20409.31104 | CH163: 1173020.399 | CI163: 0.1994277978 | CJ163: 0.1994277978 | CN163: 142 | CO163: 2035-08-30 | CP163: 31 | CQ163: 4321 | CR163: 1170627.774 | CS163: 3395.620148 | CT163: 12385.09125 | CU163: 1233.862643 | CV163: 450.45 | CW163: 0 | CX163: 17465.02404 | CY163: 1167232.154 | CZ163: 0.1994277978 | DA163: 0.1994277978
B164: 143 | C164: 2035-09-30 | D164: 31 | E164: 4352 | F164: 1173020.399 | G164: 6312.071613 | H164: 12410.40491 | I164: 1236.384512 | J164: 450.45 | K164: 0 | L164: 20409.31104 | M164: 1166708.327 | N164: 0.1971342888 | O164: 0.1971342888 | Q164: 20409.31104 | R164: 4352 | S164: =IFERROR((1+'Simulación Cliente'!$E$21)^(R164/360),"") -> 5.305194548 | T164: 3847.04 | X164: 143 | Y164: 2035-09-30 | Z164: 31 | AA164: 4352 | AB164: 1167232.154 | AC164: 3435.124417 | AD164: 12349.16603 | AE164: 1230.283598 | AF164: 450.45 | AG164: 0 | AH164: 17465.02404 | AI164: 1163797.03 | AJ164: 0.1971342888 | AK164: 0.1971342888 | AO164: 143 | AP164: 2035-09-30 | AQ164: 31 | AR164: 4352 | AS164: 657318.5814 | AT164: 13778.46282 | AU164: 6954.346026 | AV164: 692.8255588 | AW164: 450.45 | AX164: 0 | AY164: 21876.0844 | AZ164: 643540.1186 | BA164: 0.1971342888 | BB164: 0.1971342888 | BF164: 143 | BG164: 2035-09-30 | BH164: 31 | BI164: 4352 | BJ164: 651114.9596 | BK164: 10694.747 | BL164: 6888.712505 | BM164: 686.2868303 | BN164: 450.45 | BO164: 0 | BP164: 18720.19633 | BQ164: 640420.2126 | BR164: 0.1971342888 | BS164: 0.1971342888 | BW164: 143 | BX164: 2035-09-30 | BY164: 31 | BZ164: 4352 | CA164: 1173020.399 | CB164: 6312.071613 | CC164: 12410.40491 | CD164: 1236.384512 | CE164: 450.45 | CF164: 0 | CG164: 20409.31104 | CH164: 1166708.327 | CI164: 0.1971342888 | CJ164: 0.1971342888 | CN164: 143 | CO164: 2035-09-30 | CP164: 31 | CQ164: 4352 | CR164: 1167232.154 | CS164: 3435.124417 | CT164: 12349.16603 | CU164: 1230.283598 | CV164: 450.45 | CW164: 0 | CX164: 17465.02404 | CY164: 1163797.03 | CZ164: 0.1971342888 | DA164: 0.1971342888
B165: 144 | C165: 2035-10-30 | D165: 30 | E165: 4382 | F165: 1166708.327 | G165: 6825.406983 | H165: 11943.41156 | I165: 1190.042494 | J165: 450.45 | K165: 0 | L165: 20409.31104 | M165: 1159882.92 | N165: 0.1949398809 | O165: 0.1949398809 | Q165: 20409.31104 | R165: 4382 | S165: =IFERROR((1+'Simulación Cliente'!$E$21)^(R165/360),"") -> 5.366571969 | T165: 3803.04 | X165: 144 | Y165: 2035-10-30 | Z165: 30 | AA165: 4382 | AB165: 1163797.03 | AC165: 3913.892011 | AD165: 11913.60906 | AE165: 1187.07297 | AF165: 450.45 | AG165: 0 | AH165: 17465.02404 | AI165: 1159883.138 | AJ165: 0.1949398809 | AK165: 0.1949398809 | AO165: 144 | AP165: 2035-10-30 | AQ165: 30 | AR165: 4382 | AS165: 643540.1186 | AT165: 14181.40345 | AU165: 6587.820032 | AV165: 656.410921 | AW165: 450.45 | AX165: 0 | AY165: 21876.0844 | AZ165: 629358.7151 | BA165: 0.1949398809 | BB165: 0.1949398809 | BF165: 144 | BG165: 2035-10-30 | BH165: 30 | BI165: 4382 | BJ165: 640420.2126 | BK165: 11060.63568 | BL165: 6555.88204 | BM165: 653.2286168 | BN165: 450.45 | BO165: 0 | BP165: 18720.19633 | BQ165: 629359.5769 | BR165: 0.1949398809 | BS165: 0.1949398809 | BW165: 144 | BX165: 2035-10-30 | BY165: 30 | BZ165: 4382 | CA165: 1166708.327 | CB165: 6825.406983 | CC165: 11943.41156 | CD165: 1190.042494 | CE165: 450.45 | CF165: 0 | CG165: 20409.31104 | CH165: 1159882.92 | CI165: 0.1949398809 | CJ165: 0.1949398809 | CN165: 144 | CO165: 2035-10-30 | CP165: 30 | CQ165: 4382 | CR165: 1163797.03 | CS165: 3913.892011 | CT165: 11913.60906 | CU165: 1187.07297 | CV165: 450.45 | CW165: 0 | CX165: 17465.02404 | CY165: 1159883.138 | CZ165: 0.1949398809 | DA165: 0.1949398809
B166: 145 | C166: 2035-11-30 | D166: 31 | E166: 4413 | F166: 1159882.92 | G166: 6464.911584 | H166: 12271.41208 | I166: 1222.537374 | J166: 450.45 | K166: 0 | L166: 20409.31104 | M166: 1153418.009 | N166: 0.192697985 | O166: 0.192697985 | Q166: 20409.31104 | R166: 4413 | S166: =IFERROR((1+'Simulación Cliente'!$E$21)^(R166/360),"") -> 5.430741393 | T166: 3758.11 | X166: 145 | Y166: 2035-11-30 | Z166: 31 | AA166: 4413 | AB166: 1159883.138 | AC166: 3520.62206 | AD166: 12271.41438 | AE166: 1222.537603 | AF166: 450.45 | AG166: 0 | AH166: 17465.02404 | AI166: 1156362.516 | AJ166: 0.192697985 | AK166: 0.192697985 | AO166: 145 | AP166: 2035-11-30 | AQ166: 31 | AR166: 4413 | AS166: 629358.7151 | AT166: 14103.7448 | AU166: 6658.534238 | AV166: 663.3553589 | AW166: 450.45 | AX166: 0 | AY166: 21876.0844 | AZ166: 615254.9703 | BA166: 0.192697985 | BB166: 0.192697985 | BF166: 145 | BG166: 2035-11-30 | BH166: 31 | BI166: 4413 | BJ166: 629359.5769 | BK166: 10947.84671 | BL166: 6658.543356 | BM166: 663.3562672 | BN166: 450.45 | BO166: 0 | BP166: 18720.19633 | BQ166: 618411.7302 | BR166: 0.192697985 | BS166: 0.192697985 | BW166: 145 | BX166: 2035-11-30 | BY166: 31 | BZ166: 4413 | CA166: 1159882.92 | CB166: 6464.911584 | CC166: 12271.41208 | CD166: 1222.537374 | CE166: 450.45 | CF166: 0 | CG166: 20409.31104 | CH166: 1153418.009 | CI166: 0.192697985 | CJ166: 0.192697985 | CN166: 145 | CO166: 2035-11-30 | CP166: 31 | CQ166: 4413 | CR166: 1159883.138 | CS166: 3520.62206 | CT166: 12271.41438 | CU166: 1222.537603 | CV166: 450.45 | CW166: 0 | CX166: 17465.02404 | CY166: 1156362.516 | CZ166: 0.192697985 | DA166: 0.192697985
B167: 146 | C167: 2035-12-30 | D167: 30 | E167: 4443 | F167: 1153418.009 | G167: 6975.01403 | H167: 11807.36064 | I167: 1176.486369 | J167: 450.45 | K167: 0 | L167: 20409.31104 | M167: 1146442.995 | N167: 0.1905529599 | O167: 0.1905529599 | Q167: 20409.31104 | R167: 4443 | S167: =IFERROR((1+'Simulación Cliente'!$E$21)^(R167/360),"") -> 5.493571304 | T167: 3715.13 | X167: 146 | Y167: 2035-12-30 | Z167: 30 | AA167: 4443 | AB167: 1156362.516 | AC167: 21462.60522 | AD167: 11837.5031 | AE167: 1179.489766 | AF167: 450.45 | AG167: 0 | AH167: 34930.04808 | AI167: 1134899.911 | AJ167: 0.3811059199 | AK167: 0.1905529599 | AO167: 146 | AP167: 2035-12-30 | AQ167: 30 | AR167: 4443 | AS167: 615254.9703 | AT167: 14499.80496 | AU167: 6298.269372 | AV167: 627.5600697 | AW167: 450.45 | AX167: 0 | AY167: 21876.0844 | AZ167: 600755.1654 | BA167: 0.1905529599 | BB167: 0.1905529599 | BF167: 146 | BG167: 2035-12-30 | BH167: 30 | BI167: 4443 | BJ167: 618411.7302 | BK167: 30028.57807 | BL167: 6330.584631 | BM167: 630.7799648 | BN167: 450.45 | BO167: 0 | BP167: 37440.39267 | BQ167: 588383.1521 | BR167: 0.3811059199 | BS167: 0.1905529599 | BW167: 146 | BX167: 2035-12-30 | BY167: 30 | BZ167: 4443 | CA167: 1153418.009 | CB167: 6975.01403 | CC167: 11807.36064 | CD167: 1176.486369 | CE167: 450.45 | CF167: 0 | CG167: 20409.31104 | CH167: 1146442.995 | CI167: 0.1905529599 | CJ167: 0.1905529599 | CN167: 146 | CO167: 2035-12-30 | CP167: 30 | CQ167: 4443 | CR167: 1156362.516 | CS167: 21462.60522 | CT167: 11837.5031 | CU167: 1179.489766 | CV167: 450.45 | CW167: 0 | CX167: 34930.04808 | CY167: 1134899.911 | CZ167: 0.3811059199 | DA167: 0.1905529599
B168: 147 | C168: 2036-01-30 | D168: 31 | E168: 4474 | F168: 1146442.995 | G168: 6621.270191 | H168: 12129.21939 | I168: 1208.371452 | J168: 450.45 | K168: 0 | L168: 20409.31104 | M168: 1139821.725 | N168: 0.1883615156 | O168: 0.1883615156 | Q168: 20409.31104 | R168: 4474 | S168: =IFERROR((1+'Simulación Cliente'!$E$21)^(R168/360),"") -> 5.55925929 | T168: 3671.23 | X168: 147 | Y168: 2036-01-30 | Z168: 31 | AA168: 4474 | AB168: 1134899.911 | AC168: 3811.27416 | AD168: 12007.09505 | AE168: 1196.204834 | AF168: 450.45 | AG168: 0 | AH168: 17465.02404 | AI168: 1131088.636 | AJ168: 0.1883615156 | AK168: 0.1883615156 | AO168: 147 | AP168: 2036-01-30 | AQ168: 31 | AR168: 4474 | AS168: 600755.1654 | AT168: 14436.51534 | AU168: 6355.912361 | AV168: 633.2067051 | AW168: 450.45 | AX168: 0 | AY168: 21876.0844 | AZ168: 586318.65 | BA168: 0.1883615156 | BB168: 0.1883615156 | BF168: 147 | BG168: 2036-01-30 | BH168: 31 | BI168: 4474 | BJ168: 588383.1521 | BK168: 11424.5619 | BL168: 6225.018053 | BM168: 620.1663815 | BN168: 450.45 | BO168: 0 | BP168: 18720.19633 | BQ168: 576958.5902 | BR168: 0.1883615156 | BS168: 0.1883615156 | BW168: 147 | BX168: 2036-01-30 | BY168: 31 | BZ168: 4474 | CA168: 1146442.995 | CB168: 6621.270191 | CC168: 12129.21939 | CD168: 1208.371452 | CE168: 450.45 | CF168: 0 | CG168: 20409.31104 | CH168: 1139821.725 | CI168: 0.1883615156 | CJ168: 0.1883615156 | CN168: 147 | CO168: 2036-01-30 | CP168: 31 | CQ168: 4474 | CR168: 1134899.911 | CS168: 3811.27416 | CT168: 12007.09505 | CU168: 1196.204834 | CV168: 450.45 | CW168: 0 | CX168: 17465.02404 | CY168: 1131088.636 | CZ168: 0.1883615156 | DA168: 0.1883615156
B169: 148 | C169: 2036-02-29 | D169: 30 | E169: 4504 | F169: 1139821.725 | G169: 7128.065285 | H169: 11668.17759 | I169: 1162.618159 | J169: 450.45 | K169: 0 | L169: 20409.31104 | M169: 1132693.659 | N169: 0.1862647621 | O169: 0.1862647621 | Q169: 20409.31104 | R169: 4504 | S169: =IFERROR((1+'Simulación Cliente'!$E$21)^(R169/360),"") -> 5.623576064 | T169: 3629.24 | X169: 148 | Y169: 2036-02-29 | Z169: 30 | AA169: 4504 | AB169: 1131088.636 | AC169: 4282.085305 | AD169: 11578.77833 | AE169: 1153.710409 | AF169: 450.45 | AG169: 0 | AH169: 17465.02404 | AI169: 1126806.551 | AJ169: 0.1862647621 | AK169: 0.1862647621 | AO169: 148 | AP169: 2036-02-29 | AQ169: 30 | AR169: 4504 | AS169: 586318.65 | AT169: 14825.53661 | AU169: 6002.052765 | AV169: 598.045023 | AW169: 450.45 | AX169: 0 | AY169: 21876.0844 | AZ169: 571493.1134 | BA169: 0.1862647621 | BB169: 0.1862647621 | BF169: 148 | BG169: 2036-02-29 | BH169: 30 | BI169: 4504 | BJ169: 576958.5902 | BK169: 11775.01328 | BL169: 5906.235289 | BM169: 588.497762 | BN169: 450.45 | BO169: 0 | BP169: 18720.19633 | BQ169: 565183.577 | BR169: 0.1862647621 | BS169: 0.1862647621 | BW169: 148 | BX169: 2036-02-29 | BY169: 30 | BZ169: 4504 | CA169: 1139821.725 | CB169: 7128.065285 | CC169: 11668.17759 | CD169: 1162.618159 | CE169: 450.45 | CF169: 0 | CG169: 20409.31104 | CH169: 1132693.659 | CI169: 0.1862647621 | CJ169: 0.1862647621 | CN169: 148 | CO169: 2036-02-29 | CP169: 30 | CQ169: 4504 | CR169: 1131088.636 | CS169: 4282.085305 | CT169: 11578.77833 | CU169: 1153.710409 | CV169: 450.45 | CW169: 0 | CX169: 17465.02404 | CY169: 1126806.551 | CZ169: 0.1862647621 | DA169: 0.1862647621
B170: 149 | C170: 2036-03-30 | D170: 30 | E170: 4534 | F170: 1132693.659 | G170: 7208.304807 | H170: 11595.2087 | I170: 1155.347533 | J170: 450.45 | K170: 0 | L170: 20409.31104 | M170: 1125485.355 | N170: 0.1841913488 | O170: 0.1841913488 | Q170: 20409.31104 | R170: 4534 | S170: =IFERROR((1+'Simulación Cliente'!$E$21)^(R170/360),"") -> 5.688636938 | T170: 3587.73 | X170: 149 | Y170: 2036-03-30 | Z170: 30 | AA170: 4534 | AB170: 1126806.551 | AC170: 4330.288073 | AD170: 11534.94329 | AE170: 1149.342682 | AF170: 450.45 | AG170: 0 | AH170: 17465.02404 | AI170: 1122476.263 | AJ170: 0.1841913488 | AK170: 0.1841913488 | AO170: 149 | AP170: 2036-03-30 | AQ170: 30 | AR170: 4534 | AS170: 571493.1134 | AT170: 14992.42537 | AU170: 5850.286054 | AV170: 582.9229757 | AW170: 450.45 | AX170: 0 | AY170: 21876.0844 | AZ170: 556500.6881 | BA170: 0.1841913488 | BB170: 0.1841913488 | BF170: 149 | BG170: 2036-03-30 | BH170: 30 | BI170: 4534 | BJ170: 565183.577 | BK170: 11907.56277 | BL170: 5785.696311 | BM170: 576.4872485 | BN170: 450.45 | BO170: 0 | BP170: 18720.19633 | BQ170: 553276.0142 | BR170: 0.1841913488 | BS170: 0.1841913488 | BW170: 149 | BX170: 2036-03-30 | BY170: 30 | BZ170: 4534 | CA170: 1132693.659 | CB170: 7208.304807 | CC170: 11595.2087 | CD170: 1155.347533 | CE170: 450.45 | CF170: 0 | CG170: 20409.31104 | CH170: 1125485.355 | CI170: 0.1841913488 | CJ170: 0.1841913488 | CN170: 149 | CO170: 2036-03-30 | CP170: 30 | CQ170: 4534 | CR170: 1126806.551 | CS170: 4330.288073 | CT170: 11534.94329 | CU170: 1149.342682 | CV170: 450.45 | CW170: 0 | CX170: 17465.02404 | CY170: 1122476.263 | CZ170: 0.1841913488 | DA170: 0.1841913488
B171: 150 | C171: 2036-04-30 | D171: 31 | E171: 4565 | F171: 1125485.355 | G171: 6865.089057 | H171: 11907.49026 | I171: 1186.281724 | J171: 450.45 | K171: 0 | L171: 20409.31104 | M171: 1118620.265 | N171: 0.1820730658 | O171: 0.1820730658 | Q171: 20409.31104 | R171: 4565 | S171: =IFERROR((1+'Simulación Cliente'!$E$21)^(R171/360),"") -> 5.756657373 | T171: 3545.34 | X171: 150 | Y171: 2036-04-30 | Z171: 31 | AA171: 4565 | AB171: 1122476.263 | AC171: 3955.809499 | AD171: 11875.65445 | AE171: 1183.110087 | AF171: 450.45 | AG171: 0 | AH171: 17465.02404 | AI171: 1118520.454 | AJ171: 0.1820730658 | AK171: 0.1820730658 | AO171: 150 | AP171: 2036-04-30 | AQ171: 31 | AR171: 4565 | AS171: 556500.6881 | AT171: 14951.36702 | AU171: 5887.705685 | AV171: 586.5616933 | AW171: 450.45 | AX171: 0 | AY171: 21876.0844 | AZ171: 541549.321 | BA171: 0.1820730658 | BB171: 0.1820730658 | BF171: 150 | BG171: 2036-04-30 | BH171: 31 | BI171: 4565 | BJ171: 553276.0142 | BK171: 11832.99445 | BL171: 5853.58905 | BM171: 583.1628293 | BN171: 450.45 | BO171: 0 | BP171: 18720.19633 | BQ171: 541443.0197 | BR171: 0.1820730658 | BS171: 0.1820730658 | BW171: 150 | BX171: 2036-04-30 | BY171: 31 | BZ171: 4565 | CA171: 1125485.355 | CB171: 6865.089057 | CC171: 11907.49026 | CD171: 1186.281724 | CE171: 450.45 | CF171: 0 | CG171: 20409.31104 | CH171: 1118620.265 | CI171: 0.1820730658 | CJ171: 0.1820730658 | CN171: 150 | CO171: 2036-04-30 | CP171: 31 | CQ171: 4565 | CR171: 1122476.263 | CS171: 3955.809499 | CT171: 11875.65445 | CU171: 1183.110087 | CV171: 450.45 | CW171: 0 | CX171: 17465.02404 | CY171: 1118520.454 | CZ171: 0.1820730658 | DA171: 0.1820730658
B172: 151 | C172: 2036-05-30 | D172: 30 | E172: 4595 | F172: 1118620.265 | G172: 7366.726811 | H172: 11451.14155 | I172: 1140.992671 | J172: 450.45 | K172: 0 | L172: 20409.31104 | M172: 1111253.539 | N172: 0.1800463124 | O172: 0.1800463124 | Q172: 20409.31104 | R172: 4595 | S172: =IFERROR((1+'Simulación Cliente'!$E$21)^(R172/360),"") -> 5.823257906 | T172: 3504.79 | X172: 151 | Y172: 2036-05-30 | Z172: 30 | AA172: 4595 | AB172: 1118520.454 | AC172: 4423.563384 | AD172: 11450.11979 | AE172: 1140.890863 | AF172: 450.45 | AG172: 0 | AH172: 17465.02404 | AI172: 1114096.89 | AJ172: 0.1800463124 | AK172: 0.1800463124 | AO172: 151 | AP172: 2036-05-30 | AQ172: 30 | AR172: 4595 | AS172: 541549.321 | AT172: 15329.49798 | AU172: 5543.756112 | AV172: 552.3803075 | AW172: 450.45 | AX172: 0 | AY172: 21876.0844 | AZ172: 526219.823 | BA172: 0.1800463124 | BB172: 0.1800463124 | BF172: 151 | BG172: 2036-05-30 | BH172: 30 | BI172: 4595 | BJ172: 541443.0197 | BK172: 12174.80653 | BL172: 5542.667922 | BM172: 552.2718801 | BN172: 450.45 | BO172: 0 | BP172: 18720.19633 | BQ172: 529268.2132 | BR172: 0.1800463124 | BS172: 0.1800463124 | BW172: 151 | BX172: 2036-05-30 | BY172: 30 | BZ172: 4595 | CA172: 1118620.265 | CB172: 7366.726811 | CC172: 11451.14155 | CD172: 1140.992671 | CE172: 450.45 | CF172: 0 | CG172: 20409.31104 | CH172: 1111253.539 | CI172: 0.1800463124 | CJ172: 0.1800463124 | CN172: 151 | CO172: 2036-05-30 | CP172: 30 | CQ172: 4595 | CR172: 1118520.454 | CS172: 4423.563384 | CT172: 11450.11979 | CU172: 1140.890863 | CV172: 450.45 | CW172: 0 | CX172: 17465.02404 | CY172: 1114096.89 | CZ172: 0.1800463124 | DA172: 0.1800463124
B173: 152 | C173: 2036-06-30 | D173: 31 | E173: 4626 | F173: 1111253.539 | G173: 7030.660427 | H173: 11756.91947 | I173: 1171.281135 | J173: 450.45 | K173: 0 | L173: 20409.31104 | M173: 1104222.878 | N173: 0.1779756992 | O173: 0.1779756992 | Q173: 20409.31104 | R173: 4626 | S173: =IFERROR((1+'Simulación Cliente'!$E$21)^(R173/360),"") -> 5.892888036 | T173: 3463.38 | X173: 152 | Y173: 2036-06-30 | Z173: 31 | AA173: 4626 | AB173: 1114096.89 | AC173: 4053.294195 | AD173: 11787.00177 | AE173: 1174.278078 | AF173: 450.45 | AG173: 0 | AH173: 17465.02404 | AI173: 1110043.596 | AJ173: 0.1779756992 | AK173: 0.1779756992 | AO173: 152 | AP173: 2036-06-30 | AQ173: 31 | AR173: 4626 | AS173: 526219.823 | AT173: 15303.65125 | AU173: 5567.338029 | AV173: 554.6451192 | AW173: 450.45 | AX173: 0 | AY173: 21876.0844 | AZ173: 510916.1718 | BA173: 0.1779756992 | BB173: 0.1779756992 | BF173: 152 | BG173: 2036-06-30 | BH173: 31 | BI173: 4626 | BJ173: 529268.2132 | BK173: 12112.29855 | BL173: 5599.589604 | BM173: 557.858177 | BN173: 450.45 | BO173: 0 | BP173: 18720.19633 | BQ173: 517155.9146 | BR173: 0.1779756992 | BS173: 0.1779756992 | BW173: 152 | BX173: 2036-06-30 | BY173: 31 | BZ173: 4626 | CA173: 1111253.539 | CB173: 7030.660427 | CC173: 11756.91947 | CD173: 1171.281135 | CE173: 450.45 | CF173: 0 | CG173: 20409.31104 | CH173: 1104222.878 | CI173: 0.1779756992 | CJ173: 0.1779756992 | CN173: 152 | CO173: 2036-06-30 | CP173: 31 | CQ173: 4626 | CR173: 1114096.89 | CS173: 4053.294195 | CT173: 11787.00177 | CU173: 1174.278078 | CV173: 450.45 | CW173: 0 | CX173: 17465.02404 | CY173: 1110043.596 | CZ173: 0.1779756992 | DA173: 0.1779756992
B174: 153 | C174: 2036-07-30 | D174: 30 | E174: 4656 | F174: 1104222.878 | G174: 7528.795959 | H174: 11303.75774 | I174: 1126.307336 | J174: 450.45 | K174: 0 | L174: 20409.31104 | M174: 1096694.082 | N174: 0.1759945559 | O174: 0.1759945559 | Q174: 20409.31104 | R174: 4656 | S174: =IFERROR((1+'Simulación Cliente'!$E$21)^(R174/360),"") -> 5.961064663 | T174: 3423.77 | X174: 153 | Y174: 2036-07-30 | Z174: 30 | AA174: 4656 | AB174: 1110043.596 | AC174: 21984.01009 | AD174: 11363.34352 | AE174: 1132.244468 | AF174: 450.45 | AG174: 0 | AH174: 34930.04808 | AI174: 1088059.586 | AJ174: 0.3519891118 | AK174: 0.1759945559 | AO174: 153 | AP174: 2036-07-30 | AQ174: 30 | AR174: 4656 | AS174: 510916.1718 | AT174: 15674.33058 | AU174: 5230.169331 | AV174: 521.1344952 | AW174: 450.45 | AX174: 0 | AY174: 21876.0844 | AZ174: 495241.8412 | BA174: 0.1759945559 | BB174: 0.1759945559 | BF174: 153 | BG174: 2036-07-30 | BH174: 30 | BI174: 4656 | BJ174: 517155.9146 | BK174: 31168.39903 | BL174: 5294.044607 | BM174: 527.4990329 | BN174: 450.45 | BO174: 0 | BP174: 37440.39267 | BQ174: 485987.5156 | BR174: 0.3519891118 | BS174: 0.1759945559 | BW174: 153 | BX174: 2036-07-30 | BY174: 30 | BZ174: 4656 | CA174: 1104222.878 | CB174: 7528.795959 | CC174: 11303.75774 | CD174: 1126.307336 | CE174: 450.45 | CF174: 0 | CG174: 20409.31104 | CH174: 1096694.082 | CI174: 0.1759945559 | CJ174: 0.1759945559 | CN174: 153 | CO174: 2036-07-30 | CP174: 30 | CQ174: 4656 | CR174: 1110043.596 | CS174: 21984.01009 | CT174: 11363.34352 | CU174: 1132.244468 | CV174: 450.45 | CW174: 0 | CX174: 34930.04808 | CY174: 1088059.586 | CZ174: 0.3519891118 | DA174: 0.1759945559
B175: 154 | C175: 2036-08-30 | D175: 31 | E175: 4687 | F175: 1096694.082 | G175: 7200.04353 | H175: 11602.8823 | I175: 1155.935207 | J175: 450.45 | K175: 0 | L175: 20409.31104 | M175: 1089494.039 | N175: 0.1739705397 | O175: 0.1739705397 | Q175: 20409.31104 | R175: 4687 | S175: =IFERROR((1+'Simulación Cliente'!$E$21)^(R175/360),"") -> 6.032342583 | T175: 3383.31 | X175: 154 | Y175: 2036-08-30 | Z175: 31 | AA175: 4687 | AB175: 1088059.586 | AC175: 4356.20931 | AD175: 11511.53044 | AE175: 1146.834293 | AF175: 450.45 | AG175: 0 | AH175: 17465.02404 | AI175: 1083703.377 | AJ175: 0.1739705397 | AK175: 0.1739705397 | AO175: 154 | AP175: 2036-08-30 | AQ175: 31 | AR175: 4687 | AS175: 495241.8412 | AT175: 15664.04566 | AU175: 5239.594966 | AV175: 521.9937715 | AW175: 450.45 | AX175: 0 | AY175: 21876.0844 | AZ175: 479577.7956 | BA175: 0.1739705397 | BB175: 0.1739705397 | BF175: 154 | BG175: 2036-08-30 | BH175: 31 | BI175: 4687 | BJ175: 485987.5156 | BK175: 12615.8214 | BL175: 5141.685392 | BM175: 512.2395465 | BN175: 450.45 | BO175: 0 | BP175: 18720.19633 | BQ175: 473371.6942 | BR175: 0.1739705397 | BS175: 0.1739705397 | BW175: 154 | BX175: 2036-08-30 | BY175: 31 | BZ175: 4687 | CA175: 1096694.082 | CB175: 7200.04353 | CC175: 11602.8823 | CD175: 1155.935207 | CE175: 450.45 | CF175: 0 | CG175: 20409.31104 | CH175: 1089494.039 | CI175: 0.1739705397 | CJ175: 0.1739705397 | CN175: 154 | CO175: 2036-08-30 | CP175: 31 | CQ175: 4687 | CR175: 1088059.586 | CS175: 4356.20931 | CT175: 11511.53044 | CU175: 1146.834293 | CV175: 450.45 | CW175: 0 | CX175: 17465.02404 | CY175: 1083703.377 | CZ175: 0.1739705397 | DA175: 0.1739705397
B176: 155 | C176: 2036-09-30 | D176: 31 | E176: 4718 | F176: 1089494.039 | G176: 7283.808039 | H176: 11526.70676 | I176: 1148.346232 | J176: 450.45 | K176: 0 | L176: 20409.31104 | M176: 1082210.231 | N176: 0.1719698005 | O176: 0.1719698005 | Q176: 20409.31104 | R176: 4718 | S176: =IFERROR((1+'Simulación Cliente'!$E$21)^(R176/360),"") -> 6.10447279 | T176: 3343.34 | X176: 155 | Y176: 2036-09-30 | Z176: 31 | AA176: 4718 | AB176: 1083703.377 | AC176: 4406.888967 | AD176: 11465.4423 | AE176: 1142.24277 | AF176: 450.45 | AG176: 0 | AH176: 17465.02404 | AI176: 1079296.488 | AJ176: 0.1719698005 | AK176: 0.1719698005 | AO176: 155 | AP176: 2036-09-30 | AQ176: 31 | AR176: 4718 | AS176: 479577.7956 | AT176: 15846.27944 | AU176: 5073.871378 | AV176: 505.4835868 | AW176: 450.45 | AX176: 0 | AY176: 21876.0844 | AZ176: 463731.5161 | BA176: 0.1719698005 | BB176: 0.1719698005 | BF176: 155 | BG176: 2036-09-30 | BH176: 31 | BI176: 4718 | BJ176: 473371.6942 | BK176: 12762.59246 | BL176: 5008.211625 | BM176: 498.9422448 | BN176: 450.45 | BO176: 0 | BP176: 18720.19633 | BQ176: 460609.1017 | BR176: 0.1719698005 | BS176: 0.1719698005 | BW176: 155 | BX176: 2036-09-30 | BY176: 31 | BZ176: 4718 | CA176: 1089494.039 | CB176: 7283.808039 | CC176: 11526.70676 | CD176: 1148.346232 | CE176: 450.45 | CF176: 0 | CG176: 20409.31104 | CH176: 1082210.231 | CI176: 0.1719698005 | CJ176: 0.1719698005 | CN176: 155 | CO176: 2036-09-30 | CP176: 31 | CQ176: 4718 | CR176: 1083703.377 | CS176: 4406.888967 | CT176: 11465.4423 | CU176: 1142.24277 | CV176: 450.45 | CW176: 0 | CX176: 17465.02404 | CY176: 1079296.488 | CZ176: 0.1719698005 | DA176: 0.1719698005
B177: 156 | C177: 2036-10-30 | D177: 30 | E177: 4748 | F177: 1082210.231 | G177: 7776.588906 | H177: 11078.41769 | I177: 1103.854435 | J177: 450.45 | K177: 0 | L177: 20409.31104 | M177: 1074433.642 | N177: 0.1700555121 | O177: 0.1700555121 | Q177: 20409.31104 | R177: 4748 | S177: =IFERROR((1+'Simulación Cliente'!$E$21)^(R177/360),"") -> 6.175097306 | T177: 3305.1 | X177: 156 | Y177: 2036-10-30 | Z177: 30 | AA177: 4748 | AB177: 1079296.488 | AC177: 4865.101464 | AD177: 11048.59016 | AE177: 1100.882417 | AF177: 450.45 | AG177: 0 | AH177: 17465.02404 | AI177: 1074431.386 | AJ177: 0.1700555121 | AK177: 0.1700555121 | AO177: 156 | AP177: 2036-10-30 | AQ177: 30 | AR177: 4748 | AS177: 463731.5161 | AT177: 16205.4809 | AU177: 4747.147354 | AV177: 473.0061464 | AW177: 450.45 | AX177: 0 | AY177: 21876.0844 | AZ177: 447526.0352 | BA177: 0.1700555121 | BB177: 0.1700555121 | BF177: 156 | BG177: 2036-10-30 | BH177: 30 | BI177: 4748 | BJ177: 460609.1017 | BK177: 13084.74137 | BL177: 4715.183685 | BM177: 469.8212838 | BN177: 450.45 | BO177: 0 | BP177: 18720.19633 | BQ177: 447524.3604 | BR177: 0.1700555121 | BS177: 0.1700555121 | BW177: 156 | BX177: 2036-10-30 | BY177: 30 | BZ177: 4748 | CA177: 1082210.231 | CB177: 7776.588906 | CC177: 11078.41769 | CD177: 1103.854435 | CE177: 450.45 | CF177: 0 | CG177: 20409.31104 | CH177: 1074433.642 | CI177: 0.1700555121 | CJ177: 0.1700555121 | CN177: 156 | CO177: 2036-10-30 | CP177: 30 | CQ177: 4748 | CR177: 1079296.488 | CS177: 4865.101464 | CT177: 11048.59016 | CU177: 1100.882417 | CV177: 450.45 | CW177: 0 | CX177: 17465.02404 | CY177: 1074431.386 | CZ177: 0.1700555121 | DA177: 0.1700555121
B178: 157 | C178: 2036-11-30 | D178: 31 | E178: 4779 | F178: 1074433.642 | G178: 7459.019029 | H178: 11367.3697 | I178: 1132.472304 | J178: 450.45 | K178: 0 | L178: 20409.31104 | M178: 1066974.623 | N178: 0.1680997975 | O178: 0.1680997975 | Q178: 20409.31104 | R178: 4779 | S178: =IFERROR((1+'Simulación Cliente'!$E$21)^(R178/360),"") -> 6.248934467 | T178: 3266.05 | X178: 157 | Y178: 2036-11-30 | Z178: 31 | AA178: 4779 | AB178: 1074431.386 | AC178: 4514.758277 | AD178: 11367.34584 | AE178: 1132.469926 | AF178: 450.45 | AG178: 0 | AH178: 17465.02404 | AI178: 1069916.628 | AJ178: 0.1680997975 | AK178: 0.1680997975 | AO178: 157 | AP178: 2036-11-30 | AQ178: 31 | AR178: 4779 | AS178: 447526.0352 | AT178: 16219.16607 | AU178: 4734.767878 | AV178: 471.7004573 | AW178: 450.45 | AX178: 0 | AY178: 21876.0844 | AZ178: 431306.8691 | BA178: 0.1680997975 | BB178: 0.1680997975 | BF178: 157 | BG178: 2036-11-30 | BH178: 31 | BI178: 4779 | BJ178: 447524.3604 | BK178: 13063.29748 | BL178: 4734.750158 | BM178: 471.698692 | BN178: 450.45 | BO178: 0 | BP178: 18720.19633 | BQ178: 434461.0629 | BR178: 0.1680997975 | BS178: 0.1680997975 | BW178: 157 | BX178: 2036-11-30 | BY178: 31 | BZ178: 4779 | CA178: 1074433.642 | CB178: 7459.019029 | CC178: 11367.3697 | CD178: 1132.472304 | CE178: 450.45 | CF178: 0 | CG178: 20409.31104 | CH178: 1066974.623 | CI178: 0.1680997975 | CJ178: 0.1680997975 | CN178: 157 | CO178: 2036-11-30 | CP178: 31 | CQ178: 4779 | CR178: 1074431.386 | CS178: 4514.758277 | CT178: 11367.34584 | CU178: 1132.469926 | CV178: 450.45 | CW178: 0 | CX178: 17465.02404 | CY178: 1069916.628 | CZ178: 0.1680997975 | DA178: 0.1680997975
B179: 158 | C179: 2036-12-30 | D179: 30 | E179: 4809 | F179: 1066974.623 | G179: 7948.093773 | H179: 10922.45315 | I179: 1088.314115 | J179: 450.45 | K179: 0 | L179: 20409.31104 | M179: 1059026.529 | N179: 0.1662285882 | O179: 0.1662285882 | Q179: 20409.31104 | R179: 4809 | S179: =IFERROR((1+'Simulación Cliente'!$E$21)^(R179/360),"") -> 6.321230305 | T179: 3228.69 | X179: 158 | Y179: 2036-12-30 | Z179: 30 | AA179: 4809 | AB179: 1069916.628 | AC179: 22435.71313 | AD179: 10952.57 | AE179: 1091.31496 | AF179: 450.45 | AG179: 0 | AH179: 34930.04808 | AI179: 1047480.915 | AJ179: 0.3324571764 | AK179: 0.1662285882 | AO179: 158 | AP179: 2036-12-30 | AQ179: 30 | AR179: 4809 | AS179: 431306.8691 | AT179: 16570.48011 | AU179: 4415.22129 | AV179: 439.9330065 | AW179: 450.45 | AX179: 0 | AY179: 21876.0844 | AZ179: 414736.389 | BA179: 0.1662285882 | BB179: 0.1662285882 | BF179: 158 | BG179: 2036-12-30 | BH179: 30 | BI179: 4809 | BJ179: 434461.0629 | BK179: 32099.2821 | BL179: 4447.510281 | BM179: 443.1502842 | BN179: 450.45 | BO179: 0 | BP179: 37440.39267 | BQ179: 402361.7808 | BR179: 0.3324571764 | BS179: 0.1662285882 | BW179: 158 | BX179: 2036-12-30 | BY179: 30 | BZ179: 4809 | CA179: 1066974.623 | CB179: 7948.093773 | CC179: 10922.45315 | CD179: 1088.314115 | CE179: 450.45 | CF179: 0 | CG179: 20409.31104 | CH179: 1059026.529 | CI179: 0.1662285882 | CJ179: 0.1662285882 | CN179: 158 | CO179: 2036-12-30 | CP179: 30 | CQ179: 4809 | CR179: 1069916.628 | CS179: 22435.71313 | CT179: 10952.57 | CU179: 1091.31496 | CV179: 450.45 | CW179: 0 | CX179: 34930.04808 | CY179: 1047480.915 | CZ179: 0.3324571764 | DA179: 0.1662285882
B180: 159 | C180: 2037-01-30 | D180: 31 | E180: 4840 | F180: 1059026.529 | G180: 7638.263674 | H180: 11204.36443 | I180: 1116.232931 | J180: 450.45 | K180: 0 | L180: 20409.31104 | M180: 1051388.265 | N180: 0.164316885 | O180: 0.164316885 | Q180: 20409.31104 | R180: 4840 | S180: =IFERROR((1+'Simulación Cliente'!$E$21)^(R180/360),"") -> 6.396814814 | T180: 3190.54 | X180: 159 | Y180: 2037-01-30 | Z180: 31 | AA180: 4840 | AB180: 1047480.915 | AC180: 4828.297077 | AD180: 11082.21332 | AE180: 1104.063647 | AF180: 450.45 | AG180: 0 | AH180: 17465.02404 | AI180: 1042652.618 | AJ180: 0.164316885 | AK180: 0.164316885 | AO180: 159 | AP180: 2037-01-30 | AQ180: 31 | AR180: 4840 | AS180: 414736.389 | AT180: 16600.63718 | AU180: 4387.857639 | AV180: 437.1395829 | AW180: 450.45 | AX180: 0 | AY180: 21876.0844 | AZ180: 398135.7519 | BA180: 0.164316885 | BB180: 0.164316885 | BF180: 159 | BG180: 2037-01-30 | BH180: 31 | BI180: 4840 | BJ180: 402361.7808 | BK180: 13588.71393 | BL180: 4256.935876 | BM180: 424.0965241 | BN180: 450.45 | BO180: 0 | BP180: 18720.19633 | BQ180: 388773.0669 | BR180: 0.164316885 | BS180: 0.164316885 | BW180: 159 | BX180: 2037-01-30 | BY180: 31 | BZ180: 4840 | CA180: 1059026.529 | CB180: 7638.263674 | CC180: 11204.36443 | CD180: 1116.232931 | CE180: 450.45 | CF180: 0 | CG180: 20409.31104 | CH180: 1051388.265 | CI180: 0.164316885 | CJ180: 0.164316885 | CN180: 159 | CO180: 2037-01-30 | CP180: 31 | CQ180: 4840 | CR180: 1047480.915 | CS180: 4828.297077 | CT180: 11082.21332 | CU180: 1104.063647 | CV180: 450.45 | CW180: 0 | CX180: 17465.02404 | CY180: 1042652.618 | CZ180: 0.164316885 | DA180: 0.164316885
B181: 160 | C181: 2037-02-28 | D181: 29 | E181: 4869 | F181: 1051388.265 | G181: 8519.843924 | H181: 10402.3659 | I181: 1036.651212 | J181: 450.45 | K181: 0 | L181: 20409.31104 | M181: 1042868.421 | N181: 0.1625484259 | O181: 0.1625484259 | Q181: 20409.31104 | R181: 4869 | S181: =IFERROR((1+'Simulación Cliente'!$E$21)^(R181/360),"") -> 6.468340894 | T181: 3155.26 | X181: 160 | Y181: 2037-02-28 | Z181: 29 | AA181: 4869 | AB181: 1042652.618 | AC181: 5670.600051 | AD181: 10315.93598 | AE181: 1028.03801 | AF181: 450.45 | AG181: 0 | AH181: 17465.02404 | AI181: 1036982.018 | AJ181: 0.1625484259 | AK181: 0.1625484259 | AO181: 160 | AP181: 2037-02-28 | AQ181: 29 | AR181: 4869 | AS181: 398135.7519 | AT181: 17093.95045 | AU181: 3939.128774 | AV181: 392.5551801 | AW181: 450.45 | AX181: 0 | AY181: 21876.0844 | AZ181: 381041.8014 | BA181: 0.1625484259 | BB181: 0.1625484259 | BF181: 160 | BG181: 2037-02-28 | BH181: 29 | BI181: 4869 | BJ181: 388773.0669 | BK181: 14039.92762 | BL181: 3846.494988 | BM181: 383.3237296 | BN181: 450.45 | BO181: 0 | BP181: 18720.19633 | BQ181: 374733.1392 | BR181: 0.1625484259 | BS181: 0.1625484259 | BW181: 160 | BX181: 2037-02-28 | BY181: 29 | BZ181: 4869 | CA181: 1051388.265 | CB181: 8519.843924 | CC181: 10402.3659 | CD181: 1036.651212 | CE181: 450.45 | CF181: 0 | CG181: 20409.31104 | CH181: 1042868.421 | CI181: 0.1625484259 | CJ181: 0.1625484259 | CN181: 160 | CO181: 2037-02-28 | CP181: 29 | CQ181: 4869 | CR181: 1042652.618 | CS181: 5670.600051 | CT181: 10315.93598 | CU181: 1028.03801 | CV181: 450.45 | CW181: 0 | CX181: 17465.02404 | CY181: 1036982.018 | CZ181: 0.1625484259 | DA181: 0.1625484259
B182: 161 | C182: 2037-03-30 | D182: 30 | E182: 4899 | F182: 1042868.421 | G182: 8219.45353 | H182: 10675.68172 | I182: 1063.72579 | J182: 450.45 | K182: 0 | L182: 20409.31104 | M182: 1034648.968 | N182: 0.1607390119 | O182: 0.1607390119 | Q182: 20409.31104 | R182: 4899 | S182: =IFERROR((1+'Simulación Cliente'!$E$21)^(R182/360),"") -> 6.543175112 | T182: 3119.18 | X182: 161 | Y182: 2037-03-30 | Z182: 30 | AA182: 4899 | AB182: 1036982.018 | AC182: 5341.428866 | AD182: 10615.42352 | AE182: 1057.721658 | AF182: 450.45 | AG182: 0 | AH182: 17465.02404 | AI182: 1031640.589 | AJ182: 0.1607390119 | AK182: 0.1607390119 | AO182: 161 | AP182: 2037-03-30 | AQ182: 30 | AR182: 4899 | AS182: 381041.8014 | AT182: 17136.30615 | AU182: 3900.665615 | AV182: 388.6626374 | AW182: 450.45 | AX182: 0 | AY182: 21876.0844 | AZ182: 363905.4953 | BA182: 0.1607390119 | BB182: 0.1607390119 | BF182: 161 | BG182: 2037-03-30 | BH182: 30 | BI182: 4899 | BJ182: 374733.1392 | BK182: 14051.43371 | BL182: 3836.084822 | BM182: 382.227802 | BN182: 450.45 | BO182: 0 | BP182: 18720.19633 | BQ182: 360681.7055 | BR182: 0.1607390119 | BS182: 0.1607390119 | BW182: 161 | BX182: 2037-03-30 | BY182: 30 | BZ182: 4899 | CA182: 1042868.421 | CB182: 8219.45353 | CC182: 10675.68172 | CD182: 1063.72579 | CE182: 450.45 | CF182: 0 | CG182: 20409.31104 | CH182: 1034648.968 | CI182: 0.1607390119 | CJ182: 0.1607390119 | CN182: 161 | CO182: 2037-03-30 | CP182: 30 | CQ182: 4899 | CR182: 1036982.018 | CS182: 5341.428866 | CT182: 10615.42352 | CU182: 1057.721658 | CV182: 450.45 | CW182: 0 | CX182: 17465.02404 | CY182: 1031640.589 | CZ182: 0.1607390119 | DA182: 0.1607390119
B183: 162 | C183: 2037-04-30 | D183: 31 | E183: 4930 | F183: 1034648.968 | G183: 7921.86952 | H183: 10946.45297 | I183: 1090.538545 | J183: 450.45 | K183: 0 | L183: 20409.31104 | M183: 1026727.098 | N183: 0.1588904413 | O183: 0.1588904413 | Q183: 20409.31104 | R183: 4930 | S183: =IFERROR((1+'Simulación Cliente'!$E$21)^(R183/360),"") -> 6.62141347 | T183: 3082.32 | X183: 162 | Y183: 2037-04-30 | Z183: 31 | AA183: 4930 | AB183: 1031640.589 | AC183: 5012.581675 | AD183: 10914.62471 | AE183: 1087.367659 | AF183: 450.45 | AG183: 0 | AH183: 17465.02404 | AI183: 1026628.007 | AJ183: 0.1588904413 | AK183: 0.1588904413 | AO183: 162 | AP183: 2037-04-30 | AQ183: 31 | AR183: 4930 | AS183: 363905.4953 | AT183: 17191.99817 | AU183: 3850.073323 | AV183: 383.5629103 | AW183: 450.45 | AX183: 0 | AY183: 21876.0844 | AZ183: 346713.4971 | BA183: 0.1588904413 | BB183: 0.1588904413 | BF183: 162 | BG183: 2037-04-30 | BH183: 31 | BI183: 4930 | BJ183: 360681.7055 | BK183: 14073.61531 | BL183: 3815.966042 | BM183: 380.1649782 | BN183: 450.45 | BO183: 0 | BP183: 18720.19633 | BQ183: 346608.0902 | BR183: 0.1588904413 | BS183: 0.1588904413 | BW183: 162 | BX183: 2037-04-30 | BY183: 31 | BZ183: 4930 | CA183: 1034648.968 | CB183: 7921.86952 | CC183: 10946.45297 | CD183: 1090.538545 | CE183: 450.45 | CF183: 0 | CG183: 20409.31104 | CH183: 1026727.098 | CI183: 0.1588904413 | CJ183: 0.1588904413 | CN183: 162 | CO183: 2037-04-30 | CP183: 31 | CQ183: 4930 | CR183: 1031640.589 | CS183: 5012.581675 | CT183: 10914.62471 | CU183: 1087.367659 | CV183: 450.45 | CW183: 0 | CX183: 17465.02404 | CY183: 1026628.007 | CZ183: 0.1588904413 | DA183: 0.1588904413
B184: 163 | C184: 2037-05-30 | D184: 30 | E184: 4960 | F184: 1026727.098 | G184: 8401.153891 | H184: 10510.4455 | I184: 1047.26164 | J184: 450.45 | K184: 0 | L184: 20409.31104 | M184: 1018325.944 | N184: 0.1571217462 | O184: 0.1571217462 | Q184: 20409.31104 | R184: 4960 | S184: =IFERROR((1+'Simulación Cliente'!$E$21)^(R184/360),"") -> 6.698018631 | T184: 3047.07 | X184: 163 | Y184: 2037-05-30 | Z184: 30 | AA184: 4960 | AB184: 1026628.007 | AC184: 5457.982352 | AD184: 10509.43112 | AE184: 1047.160567 | AF184: 450.45 | AG184: 0 | AH184: 17465.02404 | AI184: 1021170.025 | AJ184: 0.1571217462 | AK184: 0.1571217462 | AO184: 163 | AP184: 2037-05-30 | AQ184: 30 | AR184: 4960 | AS184: 346713.4971 | AT184: 17522.73453 | AU184: 3549.252107 | AV184: 353.647767 | AW184: 450.45 | AX184: 0 | AY184: 21876.0844 | AZ184: 329190.7626 | BA184: 0.1571217462 | BB184: 0.1571217462 | BF184: 163 | BG184: 2037-05-30 | BH184: 30 | BI184: 4960 | BJ184: 346608.0902 | BK184: 14368.03301 | BL184: 3548.173073 | BM184: 353.540252 | BN184: 450.45 | BO184: 0 | BP184: 18720.19633 | BQ184: 332240.0572 | BR184: 0.1571217462 | BS184: 0.1571217462 | BW184: 163 | BX184: 2037-05-30 | BY184: 30 | BZ184: 4960 | CA184: 1026727.098 | CB184: 8401.153891 | CC184: 10510.4455 | CD184: 1047.26164 | CE184: 450.45 | CF184: 0 | CG184: 20409.31104 | CH184: 1018325.944 | CI184: 0.1571217462 | CJ184: 0.1571217462 | CN184: 163 | CO184: 2037-05-30 | CP184: 30 | CQ184: 4960 | CR184: 1026628.007 | CS184: 5457.982352 | CT184: 10509.43112 | CU184: 1047.160567 | CV184: 450.45 | CW184: 0 | CX184: 17465.02404 | CY184: 1021170.025 | CZ184: 0.1571217462 | DA184: 0.1571217462
B185: 164 | C185: 2037-06-30 | D185: 31 | E185: 4991 | F185: 1018325.944 | G185: 8111.769767 | H185: 10773.75748 | I185: 1073.333786 | J185: 450.45 | K185: 0 | L185: 20409.31104 | M185: 1010214.175 | N185: 0.1553147758 | O185: 0.1553147758 | Q185: 20409.31104 | R185: 4991 | S185: =IFERROR((1+'Simulación Cliente'!$E$21)^(R185/360),"") -> 6.778108491 | T185: 3011.06 | X185: 164 | Y185: 2037-06-30 | Z185: 31 | AA185: 4991 | AB185: 1021170.025 | AC185: 5134.395057 | AD185: 10803.84749 | AE185: 1076.331497 | AF185: 450.45 | AG185: 0 | AH185: 17465.02404 | AI185: 1016035.63 | AJ185: 0.1553147758 | AK185: 0.1553147758 | AO185: 164 | AP185: 2037-06-30 | AQ185: 31 | AR185: 4991 | AS185: 329190.7626 | AT185: 17595.86552 | AU185: 3482.795917 | AV185: 346.9729603 | AW185: 450.45 | AX185: 0 | AY185: 21876.0844 | AZ185: 311594.897 | BA185: 0.1553147758 | BB185: 0.1553147758 | BF185: 164 | BG185: 2037-06-30 | BH185: 31 | BI185: 4991 | BJ185: 332240.0572 | BK185: 14404.5023 | BL185: 3515.057062 | BM185: 350.1869714 | BN185: 450.45 | BO185: 0 | BP185: 18720.19633 | BQ185: 317835.5549 | BR185: 0.1553147758 | BS185: 0.1553147758 | BW185: 164 | BX185: 2037-06-30 | BY185: 31 | BZ185: 4991 | CA185: 1018325.944 | CB185: 8111.769767 | CC185: 10773.75748 | CD185: 1073.333786 | CE185: 450.45 | CF185: 0 | CG185: 20409.31104 | CH185: 1010214.175 | CI185: 0.1553147758 | CJ185: 0.1553147758 | CN185: 164 | CO185: 2037-06-30 | CP185: 31 | CQ185: 4991 | CR185: 1021170.025 | CS185: 5134.395057 | CT185: 10803.84749 | CU185: 1076.331497 | CV185: 450.45 | CW185: 0 | CX185: 17465.02404 | CY185: 1016035.63 | CZ185: 0.1553147758 | DA185: 0.1553147758
B186: 165 | C186: 2037-07-30 | D186: 30 | E186: 5021 | F186: 1010214.175 | G186: 8587.037303 | H186: 10341.40527 | I186: 1030.418458 | J186: 450.45 | K186: 0 | L186: 20409.31104 | M186: 1001627.137 | N186: 0.1535858834 | O186: 0.1535858834 | Q186: 20409.31104 | R186: 5021 | S186: =IFERROR((1+'Simulación Cliente'!$E$21)^(R186/360),"") -> 6.856526504 | T186: 2976.63 | X186: 165 | Y186: 2037-07-30 | Z186: 30 | AA186: 5021 | AB186: 1016035.63 | AC186: 23042.24314 | AD186: 10400.9986 | AE186: 1036.356342 | AF186: 450.45 | AG186: 0 | AH186: 34930.04808 | AI186: 992993.3865 | AJ186: 0.3071717668 | AK186: 0.1535858834 | AO186: 165 | AP186: 2037-07-30 | AQ186: 30 | AR186: 5021 | AS186: 311594.897 | AT186: 17918.05914 | AU186: 3189.748464 | AV186: 317.826795 | AW186: 450.45 | AX186: 0 | AY186: 21876.0844 | AZ186: 293676.8379 | BA186: 0.1535858834 | BB186: 0.1535858834 | BF186: 165 | BG186: 2037-07-30 | BH186: 30 | BI186: 5021 | BJ186: 317835.5549 | BK186: 33412.11729 | BL186: 3253.633107 | BM186: 324.192266 | BN186: 450.45 | BO186: 0 | BP186: 37440.39267 | BQ186: 284423.4376 | BR186: 0.3071717668 | BS186: 0.1535858834 | BW186: 165 | BX186: 2037-07-30 | BY186: 30 | BZ186: 5021 | CA186: 1010214.175 | CB186: 8587.037303 | CC186: 10341.40527 | CD186: 1030.418458 | CE186: 450.45 | CF186: 0 | CG186: 20409.31104 | CH186: 1001627.137 | CI186: 0.1535858834 | CJ186: 0.1535858834 | CN186: 165 | CO186: 2037-07-30 | CP186: 30 | CQ186: 5021 | CR186: 1016035.63 | CS186: 23042.24314 | CT186: 10400.9986 | CU186: 1036.356342 | CV186: 450.45 | CW186: 0 | CX186: 34930.04808 | CY186: 992993.3865 | CZ186: 0.3071717668 | DA186: 0.1535858834
B187: 166 | C187: 2037-08-30 | D187: 31 | E187: 5052 | F187: 1001627.137 | G187: 8306.041839 | H187: 10597.08625 | I187: 1055.732944 | J187: 450.45 | K187: 0 | L187: 20409.31104 | M187: 993321.0956 | N187: 0.1518195769 | O187: 0.1518195769 | Q187: 20409.31104 | R187: 5052 | S187: =IFERROR((1+'Simulación Cliente'!$E$21)^(R187/360),"") -> 6.938511682 | T187: 2941.45 | X187: 166 | Y187: 2037-08-30 | Z187: 31 | AA187: 5052 | AB187: 992993.3865 | AC187: 5462.198946 | AD187: 10505.74228 | AE187: 1046.632816 | AF187: 450.45 | AG187: 0 | AH187: 17465.02404 | AI187: 987531.1876 | AJ187: 0.1518195769 | AK187: 0.1518195769 | AO187: 166 | AP187: 2037-08-30 | AQ187: 31 | AR187: 5052 | AS187: 293676.8379 | AT187: 18009.03059 | AU187: 3107.063163 | AV187: 309.5406475 | AW187: 450.45 | AX187: 0 | AY187: 21876.0844 | AZ187: 275667.8073 | BA187: 0.1518195769 | BB187: 0.1518195769 | BF187: 166 | BG187: 2037-08-30 | BH187: 31 | BI187: 5052 | BJ187: 284423.4376 | BK187: 14960.79556 | BL187: 3009.163378 | BM187: 299.7873979 | BN187: 450.45 | BO187: 0 | BP187: 18720.19633 | BQ187: 269462.6421 | BR187: 0.1518195769 | BS187: 0.1518195769 | BW187: 166 | BX187: 2037-08-30 | BY187: 31 | BZ187: 5052 | CA187: 1001627.137 | CB187: 8306.041839 | CC187: 10597.08625 | CD187: 1055.732944 | CE187: 450.45 | CF187: 0 | CG187: 20409.31104 | CH187: 993321.0956 | CI187: 0.1518195769 | CJ187: 0.1518195769 | CN187: 166 | CO187: 2037-08-30 | CP187: 31 | CQ187: 5052 | CR187: 992993.3865 | CS187: 5462.198946 | CT187: 10505.74228 | CU187: 1046.632816 | CV187: 450.45 | CW187: 0 | CX187: 17465.02404 | CY187: 987531.1876 | CZ187: 0.1518195769 | DA187: 0.1518195769
B188: 167 | C188: 2037-09-30 | D188: 31 | E188: 5083 | F188: 993321.0956 | G188: 8402.67341 | H188: 10509.2094 | I188: 1046.978227 | J188: 450.45 | K188: 0 | L188: 20409.31104 | M188: 984918.4222 | N188: 0.1500735838 | O188: 0.1500735838 | Q188: 20409.31104 | R188: 5083 | S188: =IFERROR((1+'Simulación Cliente'!$E$21)^(R188/360),"") -> 7.021477177 | T188: 2906.7 | X188: 167 | Y188: 2037-09-30 | Z188: 31 | AA188: 5083 | AB188: 987531.1876 | AC188: 5525.745564 | AD188: 10447.95292 | AE188: 1040.87556 | AF188: 450.45 | AG188: 0 | AH188: 17465.02404 | AI188: 982005.442 | AJ188: 0.1500735838 | AK188: 0.1500735838 | AO188: 167 | AP188: 2037-09-30 | AQ188: 31 | AR188: 5083 | AS188: 275667.8073 | AT188: 18218.54566 | AU188: 2916.529936 | AV188: 290.5588067 | AW188: 450.45 | AX188: 0 | AY188: 21876.0844 | AZ188: 257449.2617 | BA188: 0.1500735838 | BB188: 0.1500735838 | BF188: 167 | BG188: 2037-09-30 | BH188: 31 | BI188: 5083 | BJ188: 269462.6421 | BK188: 15134.8478 | BL188: 2850.880086 | BM188: 284.0184514 | BN188: 450.45 | BO188: 0 | BP188: 18720.19633 | BQ188: 254327.7943 | BR188: 0.1500735838 | BS188: 0.1500735838 | BW188: 167 | BX188: 2037-09-30 | BY188: 31 | BZ188: 5083 | CA188: 993321.0956 | CB188: 8402.67341 | CC188: 10509.2094 | CD188: 1046.978227 | CE188: 450.45 | CF188: 0 | CG188: 20409.31104 | CH188: 984918.4222 | CI188: 0.1500735838 | CJ188: 0.1500735838 | CN188: 167 | CO188: 2037-09-30 | CP188: 31 | CQ188: 5083 | CR188: 987531.1876 | CS188: 5525.745564 | CT188: 10447.95292 | CU188: 1040.87556 | CV188: 450.45 | CW188: 0 | CX188: 17465.02404 | CY188: 982005.442 | CZ188: 0.1500735838 | DA188: 0.1500735838
B189: 168 | C189: 2037-10-30 | D189: 30 | E189: 5113 | F189: 984918.4222 | G189: 8871.787652 | H189: 10082.45659 | I189: 1004.616791 | J189: 450.45 | K189: 0 | L189: 20409.31104 | M189: 976046.6345 | N189: 0.1484030339 | O189: 0.1484030339 | Q189: 20409.31104 | R189: 5113 | S189: =IFERROR((1+'Simulación Cliente'!$E$21)^(R189/360),"") -> 7.102710798 | T189: 2873.45 | X189: 168 | Y189: 2037-10-30 | Z189: 30 | AA189: 5113 | AB189: 982005.442 | AC189: 5960.291621 | AD189: 10052.63687 | AE189: 1001.645551 | AF189: 450.45 | AG189: 0 | AH189: 17465.02404 | AI189: 976045.1504 | AJ189: 0.1484030339 | AK189: 0.1484030339 | AO189: 168 | AP189: 2037-10-30 | AQ189: 30 | AR189: 5113 | AS189: 257449.2617 | AT189: 18527.56813 | AU189: 2635.468022 | AV189: 262.5982469 | AW189: 450.45 | AX189: 0 | AY189: 21876.0844 | AZ189: 238921.6935 | BA189: 0.1484030339 | BB189: 0.1484030339 | BF189: 168 | BG189: 2037-10-30 | BH189: 30 | BI189: 5113 | BJ189: 254327.7943 | BK189: 15406.81794 | BL189: 2603.514046 | BM189: 259.4143501 | BN189: 450.45 | BO189: 0 | BP189: 18720.19633 | BQ189: 238920.9763 | BR189: 0.1484030339 | BS189: 0.1484030339 | BW189: 168 | BX189: 2037-10-30 | BY189: 30 | BZ189: 5113 | CA189: 984918.4222 | CB189: 8871.787652 | CC189: 10082.45659 | CD189: 1004.616791 | CE189: 450.45 | CF189: 0 | CG189: 20409.31104 | CH189: 976046.6345 | CI189: 0.1484030339 | CJ189: 0.1484030339 | CN189: 168 | CO189: 2037-10-30 | CP189: 30 | CQ189: 5113 | CR189: 982005.442 | CS189: 5960.291621 | CT189: 10052.63687 | CU189: 1001.645551 | CV189: 450.45 | CW189: 0 | CX189: 17465.02404 | CY189: 976045.1504 | CZ189: 0.1484030339 | DA189: 0.1484030339
B190: 169 | C190: 2037-11-30 | D190: 31 | E190: 5144 | F190: 976046.6345 | G190: 8603.642577 | H190: 10326.44782 | I190: 1028.770636 | J190: 450.45 | K190: 0 | L190: 20409.31104 | M190: 967442.9919 | N190: 0.1466963326 | O190: 0.1466963326 | Q190: 20409.31104 | R190: 5144 | S190: =IFERROR((1+'Simulación Cliente'!$E$21)^(R190/360),"") -> 7.187639662 | T190: 2839.5 | X190: 169 | Y190: 2037-11-30 | Z190: 31 | AA190: 5144 | AB190: 976045.1504 | AC190: 5659.372848 | AD190: 10326.43212 | AE190: 1028.769072 | AF190: 450.45 | AG190: 0 | AH190: 17465.02404 | AI190: 970385.7775 | AJ190: 0.1466963326 | AK190: 0.1466963326 | AO190: 169 | AP190: 2037-11-30 | AQ190: 31 | AR190: 5144 | AS190: 238921.6935 | AT190: 18646.04588 | AU190: 2527.76078 | AV190: 251.8277446 | AW190: 450.45 | AX190: 0 | AY190: 21876.0844 | AZ190: 220275.6476 | BA190: 0.1466963326 | BB190: 0.1466963326 | BF190: 169 | BG190: 2037-11-30 | BH190: 31 | BI190: 5144 | BJ190: 238920.9763 | BK190: 15490.16615 | BL190: 2527.753192 | BM190: 251.8269886 | BN190: 450.45 | BO190: 0 | BP190: 18720.19633 | BQ190: 223430.8102 | BR190: 0.1466963326 | BS190: 0.1466963326 | BW190: 169 | BX190: 2037-11-30 | BY190: 31 | BZ190: 5144 | CA190: 976046.6345 | CB190: 8603.642577 | CC190: 10326.44782 | CD190: 1028.770636 | CE190: 450.45 | CF190: 0 | CG190: 20409.31104 | CH190: 967442.9919 | CI190: 0.1466963326 | CJ190: 0.1466963326 | CN190: 169 | CO190: 2037-11-30 | CP190: 31 | CQ190: 5144 | CR190: 976045.1504 | CS190: 5659.372848 | CT190: 10326.43212 | CU190: 1028.769072 | CV190: 450.45 | CW190: 0 | CX190: 17465.02404 | CY190: 970385.7775 | CZ190: 0.1466963326 | DA190: 0.1466963326
B191: 170 | C191: 2037-12-30 | D191: 30 | E191: 5174 | F191: 967442.9919 | G191: 9068.50585 | H191: 9903.563334 | I191: 986.7918518 | J191: 450.45 | K191: 0 | L191: 20409.31104 | M191: 958374.4861 | N191: 0.1450633767 | O191: 0.1450633767 | Q191: 20409.31104 | R191: 5174 | S191: =IFERROR((1+'Simulación Cliente'!$E$21)^(R191/360),"") -> 7.270795667 | T191: 2807.03 | X191: 170 | Y191: 2037-12-30 | Z191: 30 | AA191: 5174 | AB191: 970385.7775 | AC191: 23556.11642 | AD191: 9933.688172 | AE191: 989.7934931 | AF191: 450.45 | AG191: 0 | AH191: 34930.04808 | AI191: 946829.6611 | AJ191: 0.2901267534 | AK191: 0.1450633767 | AO191: 170 | AP191: 2037-12-30 | AQ191: 30 | AR191: 5174 | AS191: 220275.6476 | AT191: 18946.02572 | AU191: 2254.927521 | AV191: 224.6811606 | AW191: 450.45 | AX191: 0 | AY191: 21876.0844 | AZ191: 201329.6219 | BA191: 0.1450633767 | BB191: 0.1450633767 | BF191: 170 | BG191: 2037-12-30 | BH191: 30 | BI191: 5174 | BJ191: 223430.8102 | BK191: 34474.81681 | BL191: 2287.226429 | BM191: 227.8994264 | BN191: 450.45 | BO191: 0 | BP191: 37440.39267 | BQ191: 188955.9934 | BR191: 0.2901267534 | BS191: 0.1450633767 | BW191: 170 | BX191: 2037-12-30 | BY191: 30 | BZ191: 5174 | CA191: 967442.9919 | CB191: 9068.50585 | CC191: 9903.563334 | CD191: 986.7918518 | CE191: 450.45 | CF191: 0 | CG191: 20409.31104 | CH191: 958374.4861 | CI191: 0.1450633767 | CJ191: 0.1450633767 | CN191: 170 | CO191: 2037-12-30 | CP191: 30 | CQ191: 5174 | CR191: 970385.7775 | CS191: 23556.11642 | CT191: 9933.688172 | CU191: 989.7934931 | CV191: 450.45 | CW191: 0 | CX191: 34930.04808 | CY191: 946829.6611 | CZ191: 0.2901267534 | DA191: 0.1450633767
